Workbook

Sheet Deckblatt
Q1: JLZ972
F2: V4.1.6
A6: Lüftungsturmkonfigurator | AP6: =IF(C19="","hallo",C19) -> hallo
B8: Firma:
A11: Anrede: | B11: Name:
E12: Kurzbeschreibung
D14: 0 - 1 - 2 - 3 - 4 - | E14: Deckblatt: Konfigurator: Auslegungsprogramm: Ausschreibungstext: Anfrage starten: | H14: Beschreibung der Grunddaten Technische Festlegung Luft- und schalltechnische Auslegung (Dimensionierung) + Fundamentlastberechnung freistehende Türme Ausschreibungstext nach den Vorgaben aus Konfigurator und Auslegungsprogramm Datei speichern und per E-Mail versenden
B15: Bauvorhaben: | E15: Deckblatt: Konfigurator: Auslegungsprogramm: Ausschreibungstext: Anfrage starten:
B18: PLZ-Ort:
E19: Bedienungsanleitung/Hinweise zur Planung
B21: Anzahl:
B22: 1

Sheet Tabelle1
T1: RAL-Farbe: (falls bekannt) | V1: 0
B2: Produkt: | D2: =Auswertung!D10 -> Außenluftturm
B4: Bauvorhaben | D4: =Deckblatt!B16&" - "&TEXT(Deckblatt!B19,"00000") & " " & Deckblatt!C19 -> - 00000
B6: Anzahl: | D6: =Deckblatt!B22 -> 1
V22: 0 | X22: Bitte geben Sie die Tiefe an, die sich der Turm im Erdreich befindet.
V24: =IF(V22=0,0,V22) -> 0
A29: Ihr Ansprechpartner:
A30: Herr Dörringer
A32: Typenschlüssel kurz:
A33: ='Match-Code'!O6 -> AU-Ø700-H3,54-1.4301-LAS01-Bp-(1x)
A34: Typenschlüssel lang:
A35: ='Match-Code'!O12 -> AU-Ø700-H3,54-1.4301-LAS01-Bp(s)-(1x)-Lochb-Dger

Sheet Auswertung (hidden)
A1: Material | F1: Nachkommastelle LV-Text | L1: Blindlamellen | M1: =CONCATENATE(B23,B27) -> 12 | O1: Lamellenart/+Dach | P1: =CONCATENATE(B23,B27) -> 12 | Q1: Turmart/Klappe | R1: =CONCATENATE(B10,B31) -> 21 | U1: Dachform/Lamellenart | V1: =CONCATENATE(B17,B23) -> 11 | W1: Lamellenart/Klappe | X1: =CONCATENATE(B23,B31) -> 11 | Y1: Dach/Klappe | Z1: =CONCATENATE(B27,B31) -> 21 | AA1: RAS/Anschluss | AB1: =CONCATENATE(B42,B47) -> 11 | AC1: Anschluss/Boden | AD1: =CONCATENATE(B47,B62) -> 11 | AE1: Regen/Klemm | AF1: =CONCATENATE(B52,B56) -> 11 | AG1: Turmart/Luft | AH1: =CONCATENATE(Auswertung!B10,Auswertung!B64) -> 20 | AI1: Turmart/Heizung | AJ1: =CONCATENATE(Auswertung!B10,Auswertung!B65) -> 20 | AK1: Turmart/Chlor | AL1: =CONCATENATE(Auswertung!B10,Auswertung!B68) -> 20 | AM1: Flansch/Wandhalterung | AN1: =CONCATENATE(Auswertung!B62,Auswertung!B69) -> 10 | AO1: VSG/RAS/Anschluss | AP1: =CONCATENATE(B27,B42,B47) -> 211 | AR1: Dachkombi falsch | AS1: Kopfkombi falsch | AU1: Turmkombi falsch | AW1: VSG/180° | AX1: =CONCATENATE(B27,H48) -> 20 | AZ1: ohne_Schatten_180 | BA1: =CONCATENATE(B23,H48) -> 10 | BH1: Anschluss/Boden | BI1: =CONCATENATE(Auswertung!B47,Auswertung!B62) -> 11 | BK1: Dach/Revi | BL1: =CONCATENATE(Auswertung!B27,Auswertung!B38) -> 21
A2: FALSE | B2: =IF(A2,1,0) -> 0 | D2: aktuelles Datum | F2: =IF(ISNUMBER(SEARCH(",",#REF!)),"",",0") -> ,0 | J2: Kombi-Fehler | K2: Material | L2: 11 | M2: =IF(ISNA(VLOOKUP(VALUE(M1),Blindlamellen,1,0))=FALSE,"(Blindlamellen)","") ->  | O2: 32 | P2: =IF(ISNA(VLOOKUP(VALUE(P1),Turmart_Dach,1,0))=FALSE,"Kombination nicht sinnvoll",TRUE) -> TRUE | Q2: 22 | R2: =IF(ISNA(VLOOKUP(VALUE(R1),Turmart_Klappe,1,0))=FALSE,"Kombination nicht sinnvoll",TRUE) -> TRUE | U2: 33 | V2: =IF(ISNA(VLOOKUP(VALUE(V1),Dachform_Lamellenart,1,0))=FALSE,"Kombination nicht sinnvoll",TRUE) -> TRUE | W2: 12 | X2: =IF(ISNA(VLOOKUP(VALUE(X1),Lamellenart_Klappe,1,0))=FALSE,"Kombination nicht sinnvoll",TRUE) -> TRUE | Y2: 22 | Z2: =IF(ISNA(VLOOKUP(VALUE(Z1),Dach_Klappe,1,0))=FALSE,"Kombination nicht sinnvoll",TRUE) -> TRUE | AA2: 22 | AB2: =IF(ISNA(VLOOKUP(VALUE(AB1),RAS_Anschluss,1,0))=FALSE,"Kombination eventuell nicht sinnvoll",TRUE) -> TRUE | AC2: 23 | AD2: =IF(ISNA(VLOOKUP(VALUE(AD1),Anschluss_Boden,1,0))=FALSE,"Kombination nicht sinnvoll",TRUE) -> TRUE | AE2: 32 | AF2: =IF(ISNA(VLOOKUP(VALUE(AF1),Regen_Klemm,1,0))=FALSE,"Hinweis",TRUE) -> TRUE | AG2: 11 | AH2: =IF(ISNA(VLOOKUP(VALUE(AH1),Turmart_Luft,1,0))=FALSE,"Kombination nicht sinnvoll",TRUE) -> TRUE | AI2: 11 | AJ2: =IF(ISNA(VLOOKUP(VALUE(AJ1),Turmart_Heizung,1,0))=FALSE,"Kombination nicht sinnvoll",TRUE) -> TRUE | AK2: 21 | AL2: =IF(ISNA(VLOOKUP(VALUE(AL1),Turmart_Chlor,1,0))=FALSE,"Kombination nicht sinnvoll",TRUE) -> TRUE | AM2: 21 | AN2: =IF(ISNA(VLOOKUP(VALUE(AN1),Flansch_Wand,1,0))=FALSE,"Kombination nicht sinnvoll",TRUE) -> TRUE | AO2: 111 | AP2: =IF(ISNA(VLOOKUP(VALUE(AP1),VSG_RAS_Anschluss,1,0))=FALSE,"Kombination nicht sinnvoll",TRUE) -> TRUE | AR2: 12 | AS2: 112 | AU2: 12111 | AW2: 11 | AX2: =IF(ISNA(VLOOKUP(VALUE(AX1),VSG_180,1,0))=FALSE,"Kombination nicht sinnvoll",TRUE) -> TRUE | AZ2: 31 | BA2: =IF(ISNA(VLOOKUP(VALUE(BA1),ohne_Schatten_180,1,0))=FALSE,"Kombination nicht sinnvoll",TRUE) -> TRUE | BH2: 12 | BI2: =IF(ISNA(VLOOKUP(VALUE(BI1),BH2,1,0))=FALSE,"Kombination nicht sinnvoll","WAHR") -> WAHR | BK2: 15 | BL2: =IF(ISNA(VLOOKUP(VALUE(BL1),Dach_Revi,1,0))=FALSE,"Kombination nicht sinnvoll",TRUE) -> TRUE
A3: TRUE | B3: =IF(A3,2,0) -> 2 | D3: =TODAY() -> 2022-12-06 | K3: TRUE | L3: 21 | O3: 42 | P3: =IF(ISLOGICAL(P2),"","Kombination nicht sinnvoll") ->  | R3: =IF(ISLOGICAL(R2),"","Kombination nicht sinnvoll") ->  | U3: 34 | V3: =IF(ISLOGICAL(V2),"","Kombination nicht sinnvoll") ->  | X3: =IF(ISLOGICAL(X2),"","Kombination nicht sinnvoll") ->  | Z3: =IF(ISLOGICAL(Z2),"","Kombination nicht sinnvoll") ->  | AA3: 23 | AB3: =IF(ISLOGICAL(AB2),"","Kombination eventuell nicht sinnvoll") ->  | AC3: 24 | AD3: =IF(ISLOGICAL(AD2),"","Kombination nicht sinnvoll") ->  | AF3: =IF(ISLOGICAL(AF2),"","Hinweis") ->  | AH3: =IF(ISLOGICAL(AH2),"","Kombination nicht sinnvoll") ->  | AJ3: =IF(ISLOGICAL(AJ2),"","Kombination nicht sinnvoll") ->  | AL3: =IF(ISLOGICAL(AL2),"","Kombination nicht sinnvoll") ->  | AM3: 41 | AN3: =IF(ISLOGICAL(AN2),"","Kombination nicht sinnvoll") ->  | AP3: =IF(ISLOGICAL(AP2),"","Zur Info") ->  | AR3: 21 | AS3: 212 | AU3: 12112 | AX3: =IF(ISLOGICAL(AX2),"","Kombination nicht sinnvoll") ->  | AZ3: 41 | BA3: =IF(ISLOGICAL(BA2),"","Kombination nicht sinnvoll") ->  | BI3: =IF(BI2="WAHR","","Kombination nicht sinnvoll") ->  | BL3: =IF(ISLOGICAL(BL2),"","Kombination nicht sinnvoll") -> 
A4: FALSE | B4: =IF(A4,3,0) -> 0 | K4: FALSE | AC4: 33 | AS4: 312 | AU4: 12113
B5: =SUM(B2:B4) -> 2 | D5: =CHOOSE(B5,P13,P14,P15)&IF(B5=3,IF(RAL_Farb<>0," (RAL: "&RAL_Farb&")",""),"") -> Tragrohr mit Zubehör 1.4301 - V2A - gebürstet | P5: Dach und Seiten sind geschlossen. | R5: -Außenluftturm und Klappe | V5: -Zylinderdach und ohne Lamellen | X5: -bündige Lamellen und Klappe | Z5: -geschlossenes Dach und Klappe | AB5: Regenabscheidesystem und Kondensatboden ist nur sinnvoll, wenn der Turm durch ein Dach hindurchführt | AC5: 34 | AD5: Bei einem seitlichen Turmanschluss ist kein Bodendurchbruch im Bodenbereich erforderlich. | AF5: Regenkragen "lose" ist nicht sinnvoll, wenn eine Klemmschiene an einer festgelegten Stelle angeschweißt werden soll. | AH5: -Fortluftturm und Luftfilter | AJ5: -Fortluftturm und Heizung | AL5: -Außenluftturm und Beschichtung | AN5: -Ankerkorb und Wandhalterung | AS5: 331 | AU5: 12114 | AX5: -bei Vogelschutzgiter sind immer alle Lamellen blind | BA5: -ohne Lamellen existiert kein Öffnungswinkel -bei Schattenringen existiert kein Öffnungswinkel | BD5: → Lamellen 360° umlaufend mit 45° Neigung → Sichtschweißnähte → Fertigung nach ALS-KD-Werksnorm → Zubehör ist zeichnerisch nicht dargestellt → Bodenplatte | BE5: → Sichtschweißnähte → Fertigung nach ALS-KD-Werksnorm → Zubehör ist zeichnerisch nicht dargestellt → Bodenplatte | BF5: ="→ Lamellen 360° umlaufend mit 45° Neigung, "&H47&"° geöffnet"&CHAR(10)&"→ Sichtschweißnähte"&CHAR(10)&"→ Fertigung nach ALS-KD-Werksnorm"&CHAR(10)&"→ Zubehör ist zeichnerisch nicht dargestellt"&CHAR(10)&"→ Bodenplatte " -> → Lamellen 360° umlaufend mit 45° Neigung, 360° geöffnet → Sichtschweißnähte → Fertigung nach ALS-KD-Werksnorm → Zubehör ist zeichnerisch nicht dargestellt → Bodenplatte | BI5: Wenn kein seitlicher Anschluss und ein Flansch mit Ankerkorb ausgewählt wurde, dann besteht keine Möglichkeit für die Luftan- / ausströmung. | BL5: Es wird ein geschlossenes Dach benötigt.
D6: =CHOOSE(B5,Q13,Q14,Q15) -> 1.4301 | V6: Zylinderdach und Schattenringe | AS6: 332 | AU6: 12121
A7: Turmart | G7: Passwort: | H7: thro | K7: Turmart | AS7: 341 | AU7: 12122
A8: FALSE | B8: =IF(A8,1,0) -> 0 | C8: FALSE | K8: FALSE | P8: =IF(ISLOGICAL(P2),"",(P5)) ->  | R8: =IF(ISLOGICAL(R2),"",(R5&" "&R6)) ->  | V8: =IF(ISLOGICAL(V2),"",(V5&" "&V6)) ->  | X8: =IF(ISLOGICAL(X2),"",(X5&" "&X6)) ->  | Z8: =IF(ISLOGICAL(Z2),"",(Z5&" "&Z6)) ->  | AB8: =IF(ISLOGICAL(AB2),"",(AB5&" "&AB6)) ->  | AD8: =IF(ISLOGICAL(AD2),"",(AD5)) ->  | AF8: =IF(ISLOGICAL(AF2),"",(AF5&" "&AF6)) ->  | AH8: =IF(ISLOGICAL(AH2),"",(AH5&" "&AH6)) ->  | AJ8: =IF(ISLOGICAL(AJ2),"",(AJ5&" "&AJ6)) ->  | AL8: =IF(ISLOGICAL(AL2),"",(AL5&" "&AL6)) ->  | AN8: =IF(ISLOGICAL(AN2),"",(AN5&" "&AN6)) ->  | AS8: 342 | AU8: 12123 | AX8: =IF(ISLOGICAL(AX2),"",AX5) ->  | BA8: =IF(ISLOGICAL(BA2),"",BA5) ->  | BI8: =IF(BI2="WAHR","",(BI5)) ->  | BL8: =IF(ISLOGICAL(BL2),"",(BL5)) -> 
A9: TRUE | B9: =IF(C9,2,0) -> 2 | C9: =OR(A9,C8) -> TRUE | K9: TRUE | AU9: 12124
B10: =SUM(B8:B9) -> 2 | D10: =IF(B10=0,"Erstes Öffnen",CHOOSE(VALUE(B10),"Fortluftturm","Außenluftturm")) -> Außenluftturm | E10: =CHOOSE(B10,"Ausblasung","Ansaugung") -> Ansaugung | AU10: 12131
G11: Produktart | AU11: 12132
G12: =IF(B23=1,"LAS01",IF(B23=2,"LAS02","Fortluftturm")) -> LAS01 | I12: Kopf | J12: =IF(ISNA(VLOOKUP(VALUE(C14),Kf,1,0))=FALSE,"Kombination nicht sinnvoll","WAHR") -> WAHR | AU12: 12133
A13: Dachform | K13: Dachform | P13: Tragrohr mit Zubehör 1.4571 - V4A - gebürstet | Q13: 1.4571 | AU13: 12134
A14: TRUE | B14: =IF(A14,1,0) -> 1 | C14: =CONCATENATE(B17,B23,B31) -> 111 | D14: Kopfkombinationen | J14: =IF(J12="WAHR","","FALSCH") ->  | K14: TRUE | L14: =IF(P3="Kombination nicht sinnvoll","Kombination nicht sinnvoll",IF(R3="Kombination nicht sinnvoll","Kombination nicht sinnvoll",IF(V3="Kombination nicht sinnvoll","Kombination nicht sinnvoll",IF(X3="Kombination nicht sinnvoll","Kombination nicht sinnvoll",IF(Z3="Kombination nicht sinnvoll","Kombination nicht sinnvoll",IF(AB3="Kombination nicht sinnvoll","Kombination nicht sinnvoll",IF(AD3="Kombination nicht sinnvoll","Kombination nicht sinnvoll",IF(AF3="Kombination nicht sinnvoll","Kombination nicht sinnvoll",IF(AH3="Kombination nicht sinnvoll","Kombination nicht sinnvoll",IF(AJ3="Kombination nicht sinnvoll","Kombination nicht sinnvoll",IF(AL3="Kombination nicht sinnvoll","Kombination nicht sinnvoll",IF(AN3="Kombination nicht sinnvoll","Kombination nicht sinnvoll",IF('Auswertung (2)'!AT3="Kombination nicht sinnvoll","Kombination nicht sinnvoll",IF(AX3="Kombiantion nicht sinnvoll","Kombination nicht sinnvoll",IF(BA3="Kombination nicht sinnvoll","Kombination nicht sinnvoll",IF(BI3="Kombination nicht sinnvoll","Kombination nicht sinnvoll",IF(BL3="Kombination nicht sinnvoll","Kombination nicht sinnvoll",""))))))))))))))))) ->  | P14: Tragrohr mit Zubehör 1.4301 - V2A - gebürstet | Q14: 1.4301 | AU14: 12211
A15: FALSE | B15: =IF(A15,2,0) -> 0 | K15: FALSE | P15: Tragrohr mit Zubehör 1.0038 - S235JR - außen lackiert | Q15: S235JR | AU15: 12212
A16: FALSE | B16: =IF(A16,3,0) -> 0 | I16: Bilder zuletzt angezeigt | K16: FALSE | AU16: 12213
B17: =SUM(B14:B16) -> 1 | D17: =CHOOSE(VALUE(B17),"Dach gerade", "Schrägdach","Zylinderdach") -> Dach gerade | E17: =CHOOSE(B17,"g","s","z") -> g | H17: bündig | I17: 2121 | J17: AU-bündig-geschlossen-gerade | AU17: 12214
A18: Lamellenart | D18: (30°) | E18: =IF(B17=2,D17&" "&D18,D17) -> Dach gerade | H18: überstehend | I18: 2221 | J18: AU-über-geschlossen-gerade | K18: Lamellenart | R18: Erstes Mal (schon) geöffnet | AU18: 12221
A19: TRUE | B19: =IF(A19,1,0) -> 1 | D19: =MID(D18,2,LEN(D18)-3) -> 30 | G19: =(E17&"-"&E23) -> g-b | K19: TRUE | R19: Konfigurator | AU19: 12222
A20: FALSE | B20: =IF(A20,2,0) -> 0 | I20: Düse möglich | K20: FALSE | O20: zur Übergabe an die Kalkulation | Q20: em_konf | R20: nein | AU20: 12223
A21: FALSE | B21: =IF(A21,3,0) -> 0 | I21: =IF(AND(TLD_T=1,TLD_D=1,B17<>2),"ja","nein") -> nein | K21: FALSE | O21: LTK-Kalkulation-auto | R21: Auslegungsprogramm | AU21: 12224
A22: FALSE | B22: =IF(A22,4,0) -> 0 | K22: FALSE | Q22: em_aus | R22: nein | AU22: 12231
B23: =SUM(B19:B22) -> 1 | D23: =CHOOSE(VALUE(B23),"bündig","überstehend","ohne","Schattenringe") -> bündig | E23: =CHOOSE(B23,"b","ü","o","s") -> b | F23: LAS | G23: =IF(B23=1,1,IF(B23=2,2,0)) -> 1 | R23: LV-Text | AU23: 12232
A24: Dach | C24: =CONCATENATE(B10,B27) -> 22 | H24: Turmkombis: | I24: gesamt | J24: =IF(ISNA(VLOOKUP(VALUE(H25),Turmkombi_falsch,1,0))=FALSE,"Kombination nicht sinnvoll","WAHR") -> WAHR | K24: Dach | Q24: em_lv | R24: nein | AU24: 12233
A25: FALSE | B25: =IF(A25,1,0) -> 0 | H25: =CONCATENATE(B10,B27,B42,B47,B62) -> 22111 | K25: FALSE | R25: Fundamentlastberechnung | AU25: 12234
A26: TRUE | B26: =IF(A26,2,0) -> 2 | J26: =IF(J24="WAHR","","FALSCH") ->  | K26: TRUE | R26: nein | AU26: 21111
B27: =SUM(B25:B26) -> 2 | D27: =CHOOSE(VALUE(B27),"Vogelschutz- gitter","geschlossen") -> geschlossen | AU27: 21112
A28: SR-Klappe | K28: SR-Klappe | AU28: 21113
A29: TRUE | B29: =IF(A29,1,0) -> 1 | E29: Anrede | K29: TRUE | AU29: 21114
A30: FALSE | B30: =IF(A30,2,0) -> 0 | E30: Frau | K30: FALSE | AU30: 21121
B31: =SUM(B29:B30) -> 1 | D31: =IF(B31=1,"",CHOOSE(VALUE(B31),"nein","ja")) ->  | E31: Herr | AU31: 21122
A32: Revisionsdeckel | D32: =IF(B31=1,"","selbstregulierende Klappe >7 m/s: ") ->  | O32: Dateiname PDF | AU32: 21123
A33: =A117 -> FALSE | B33: =IF(A33,5,0) -> 0 | C33: … Dach demontierbar (Typ 5) | E33: Bodenplatte aus Edelstahl - Konfi: | H33: FALSE | I33: =IF(H33,1,0) -> 0 | K33: Revisionsdeckel | AU33: 21124
A34: TRUE | B34: =IF(A34,1,0) -> 1 | E34: Bodenplatte aus Edelstahl - bündig: | H34: FALSE | I34: =IF(H34,1,0) -> 0 | K34: TRUE | AU34: 21131
A35: FALSE | B35: =IF(A35,2,0) -> 0 | E35: Bodenplatte aus Edelstahl - überstehend: | H35: FALSE | I35: =IF(H35,1,0) -> 0 | K35: FALSE | AU35: 21132
A36: FALSE | B36: =IF(A36,3,0) -> 0 | K36: FALSE | AU36: 21133
A37: FALSE | B37: =IF(A37,4,0) -> 0 | K37: FALSE | AU37: 21134
B38: =SUM(B33:B37) -> 1 | D38: =CHOOSE(VALUE(B38),"nein","METU- Rohrrevisions- deckel","Sattelstutzen mit Enddeckel","Türe bündig","Dach demontierbar") -> nein | E38: vorheriger Ø bündig: | G38: 700 | AU38: 21211
A39: RAS | E39: vorheriger Ø überstehend: | G39: 600 | K39: RAS | AU39: 21212
A40: TRUE | B40: =IF(A40,1,0) -> 1 | K40: TRUE | AU40: 21213
A41: FALSE | B41: =IF(A41,2,0) -> 0 | K41: FALSE | AU41: 21214
B42: =SUM(B40:B41) -> 1 | D42: =CHOOSE(VALUE(B42),"nein","ja") -> nein | F42: RASja | G42: =B42-1 -> 0 | AU42: 21221
A43: slt. Anschluss | K43: slt. Anschluss | AU43: 21222
A44: TRUE | B44: =IF(A44,1,0) -> 1 | K44: TRUE | AU44: 21223
A45: FALSE | B45: =IF(A45,2,0) -> 0 | K45: FALSE | AU45: 21224
A46: FALSE | B46: =IF(A46,3,0) -> 0 | K46: FALSE | AU46: 21231
B47: =SUM(B44:B46) -> 1 | D47: =CHOOSE(VALUE(B47),"nein","rund","eckig") -> nein | G47: Lamellenöffnung [°] | H47: 360 | AU47: 21232
A48: Regenkragen | G48: FALSE | H48: =IF(G48,1,0) -> 0 | I48: =IF(G48," "&H47&"°","") ->  | K48: Regenkragen | AU48: 21233
A49: TRUE | B49: =IF(A49,1,0) -> 1 | I49: =D23&I48 -> bündig | K49: TRUE | AU49: 21234
A50: FALSE | B50: =IF(A50,2,0) -> 0 | G50: Erdreich | K50: FALSE | AU50: 22211
A51: FALSE | B51: =IF(A51,3,0) -> 0 | G51: =IF(H51=1,FALSE,TRUE) -> FALSE | H51: =IF(Tabelle1!V22>0,2,1) -> 1 | K51: FALSE | AU51: 22212
B52: =SUM(B49:B51) -> 1 | D52: =CHOOSE(VALUE(B52),"nein","fest","lose") -> nein | AU52: 22213
A53: Klemmschiene | K53: Klemmschiene | AU53: 22214
A54: TRUE | B54: =IF(A54,1,0) -> 1 | K54: TRUE | AU54: 22221
A55: FALSE | B55: =IF(A55,2,0) -> 0 | K55: FALSE | AU55: 22222
B56: =SUM(B54:B55) -> 1 | D56: =CHOOSE(VALUE(B56),"nein","ja") -> nein | AU56: 22223
A57: Bodenanbindung | K57: Bodenanbindung | AU57: 22224
A58: TRUE | B58: =IF(A58,1,0) -> 1 | K58: TRUE | AU58: 22231
A59: FALSE | B59: =IF(A59,2,0) -> 0 | K59: FALSE | AU59: 22232
A60: FALSE | B60: =IF(A60,3,0) -> 0 | K60: FALSE | AU60: 22233
A61: FALSE | B61: =IF(A61,4,0) -> 0 | K61: FALSE | AU61: 22234
B62: =SUM(B58:B61) -> 1 | D62: =CHOOSE(VALUE(B62),"Bodenplatte","Flansch mit Ankerkorb","Bodenplatte mit Durchführung","Flansch mit Ankerkorb und verlor. Schalung")&IF(OR(B62=1,B62=3),IF(I33=1," (Edelstahl)"," (S235JR)"),"") -> Bodenplatte (S235JR) | AU62: 22123
A63: Zubehör | K63: Zubehör | AU63: 22124
A64: FALSE | B64: =IF(A64,1,0) -> 0 | C64: =IF(A64,"Grobfilter","") ->  | D64: =FIND("(",D62) -> 13 | E64: =IF(A64=FALSE,"",IF(A74>0,", ","")) ->  | K64: FALSE | AU64: 22233
A65: FALSE | B65: 0 | C65: =IF(A65,"Elektrobegleitheizung","") ->  | D65: =LEFT(D62,FIND("(",D62)-2) -> Bodenplatte | E65: =IF(A65=FALSE,"",IF(B74>0,", ","")) ->  | F65: =(C64&""&E64&""&C65&""&E65&""&C66&""&E66&""&C67&""&E67&""&C68&""&E68&""&C69&""&E69&""&C70&E70&C71&C72) ->  | G65: =IF(F65="","nicht ausgewählt",F65) -> nicht ausgewählt | K65: FALSE | AU65: 22134
A66: FALSE | B66: 0 | C66: =IF(A66,"Schalldämpfer","") ->  | D66: =LEN(D65) -> 11 | E66: =IF(A66=FALSE,"",IF(C74>0,", ","")) ->  | K66: FALSE
A67: =IF(B67,TRUE,FALSE) -> FALSE | B67: =IF(Tabelle1!V24>0,1,0) -> 0 | C67: =IF(A67,"Bitumenschutzanstrich im Fußbereich ("& Tabelle1!V24&"mm)","") ->  | E67: =IF(A67=FALSE,"",IF(D74>0,", ","")) ->  | K67: FALSE
A68: FALSE | B68: 0 | C68: =IF(A68,"Chlor-Kautschukbeschichtung innen","") ->  | E68: =IF(A68=FALSE,"",IF(E74>0,", ","")) ->  | K68: FALSE
A69: FALSE | B69: 0 | C69: =IF(A69,"Wandhalterung","") ->  | E69: =IF(A69=FALSE,"",IF(F74>0,", ","")) ->  | K69: FALSE
A70: FALSE | B70: 0 | C70: =IF(A70,"GSB","") ->  | E70: =IF(A70=FALSE,"",IF(G74>0,", ","")) -> 
A71: =G51 -> FALSE | B71: 0 | C71: =IF(A71,"Fußbereich im Erdreich ("&Tabelle1!V22&"mm)","") ->  | E71: =IF(A71=FALSE,"",IF(H74>0,", ","")) -> 
A72: FALSE | B72: 0 | C72: =IF(A72,"Flanschteilung","") -> 
A74: =SUM(B65:B72) -> 0 | B74: =SUM(B66:B72) -> 0 | C74: =SUM(B67:B72) -> 0 | D74: =SUM(B68:B72) -> 0 | E74: =SUM(B69:B72) -> 0 | F74: =SUM(B70:B72) -> 0 | G74: =SUM(B72) -> 0
A79: Lamellenart/Dach | B79: =CONCATENATE(B23,B27) -> 12
A80: Dachform/Dach | B80: =CONCATENATE(B17,B27) -> 12 | G80: =CONCATENATE(B10,B23,B27) -> 212
A81: Turmart/Lamellenart/Dach | B81: =CONCATENATE(B10,B23,B27) -> 212 | C81: TLD | D81: =IF(VALUE(TLD)=212,"Standard-TLD","nStandard-TLD") -> Standard-TLD | F81: TLD_T | G81: =INT(TLD/100) -> 2 | H81: =B10 -> 2
A82: Gesamtcode: | B82: =CONCATENATE(B5,B10,B17,B23,B27,B31,B38,B42,B47,B52,B56,B62,B64,B65,B66,B67,B68,B69,B70,H48,H51,I33) -> 2211211111110000000010 | D82: =IF(B82="1211211111110000000010","Standard-Turm","nStandard-Turm") -> nStandard-Turm | F82: TLD_L | G82: =INT(MOD(TLD,100)/10) -> 1 | H82: =B23 -> 1 | J82: Lamellenart/Dach | K82: =CONCATENATE(K26,K30) -> WAHRFALSCH
F83: TLD_D | G83: =MOD(TLD,10) -> 2 | H83: =B27 -> 2 | J83: Dachform/Dach | K83: =CONCATENATE(K20,K30) -> FALSCHFALSCH
A84: Gesamtcode: | B84: =CONCATENATE(B7,B12,B19,B25,B29,B32,B40,B44,B49,B54,B58,B64,B66,B67,B68,B69,B74,B71) -> 101111110000000 | F84: TLD_TL | G84: =INT(TLD/10) -> 21 | J84: Turmart/Lamellenart/Dach | K84: =CONCATENATE(K13,K26,K30) -> DachformWAHRFALSCH
F85: TLD_TD | G85: =INT(TLD/100)*10+MOD(TLD,10) -> 22 | J85: Gesamtcode: | K85: =CONCATENATE(K8,K13,K20,K26,K30,K34,K41,K45,K50,K55,K59,K65,K67,K68,K69,K70,K71,K72) -> FALSCHDachformFALSCHWAHRFALSCHWAHRFALSCHFALSCHFALSCHFALSCHFALSCHFALSCHFALSCHFALSCHFALSCH
F86: TLD_LD | G86: =MOD(TLD,100) -> 12
A87: Turmart/Dachform/Dach | B87: =CONCATENATE(B10,B17,B27) -> 212
A89: Bodenanbindung/Erdreich: | B89: =CONCATENATE(B62,H51) -> 11
A91: Emailadresse für Fehlermeldung
A92: info@als-gmbh.de
A94: Deutschland | B94: DE | C94: 00000
A95: Österreich | B95: AT | C95: 0000 | G95: AT
A96: Schweiz | B96: CH | C96: 0000
A97: Frankreich | B97: FR | C97: 00000 | G97: =INDEX(Länder,MATCH(G95,B94:B105,0)) -> Österreich
A98: Italien | B98: IT | C98: 00000
A99: Tschechien | B99: CZ | C99: 00000
A100: Polen | B100: PL | C100: 00000
A101: Ungarn | B101: HU | C101: 0000
A102: Niederlande | B102: NL | C102: 0000
A103: Luxemburg | B103: LU | C103: 0000
A104: sonstige (5-stellig) | B104: s5 | C104: 00000
A105: sonstige (4-stellig) | B105: s4 | C105: 0000
A107: alleinstehend
A108: FALSE | B108: =IF(A108,1,0) -> 0
A109: TRUE | B109: =IF(A109,2,0) -> 2
B110: =SUM(B108:B109) -> 2
A113: Druckverlust Regelklappe statisch
A114: 55
A116: Dach demontiertbar
A117: FALSE
A119: letztes geöffnetes Tabellenblatt für Berechnung (1 = bündig/ 2 = überstehend)
A120: 1
A122: Min / Max Winkelbegrenzung Öffnung Lamellenfeld
A123: 180 | B123: 270
A125: aktuelle Schalldämpfer-Art
A193: Pfad

Sheet Auswertung (2) (hidden)
A1: =IF('LV-Text'!B135="","",'LV-Text'!F135) -> 4999 | B1: =IF(A1="","",C1) -> m³/h | C1: m³/h | O1: Turmart/Dach | P1: =Auswertung!P1 -> 12 | Q1: Turmart/Klappe | R1: =CONCATENATE(Auswertung!B10,Auswertung!B31) -> 21 | S1: Turmart/RAS | T1: =CONCATENATE(Auswertung!B10,Auswertung!B42) -> 21 | U1: Dachform/Lamellenart | V1: =CONCATENATE(Auswertung!B17,Auswertung!B23) -> 11 | W1: Lamellenart/Klappe | X1: =CONCATENATE(Auswertung!B23,Auswertung!B31) -> 11 | Y1: Dach/Klappe | Z1: =CONCATENATE(Auswertung!B27,Auswertung!B31) -> 21 | AA1: RAS/Anschluss | AB1: =CONCATENATE(Auswertung!B42,Auswertung!B47) -> 11 | AC1: Anschluss/Boden | AD1: =CONCATENATE(Auswertung!B47,Auswertung!B62) -> 11 | AE1: Regen/Klemm | AF1: =CONCATENATE(Auswertung!B52,Auswertung!B56) -> 11 | AG1: Turmart/Luft | AH1: =CONCATENATE(Auswertung!B10,Auswertung!B64) -> 20 | AI1: Turmart/Heizung | AJ1: =CONCATENATE(Auswertung!B10,Auswertung!B65) -> 20 | AK1: Turmart/Chlor | AL1: =CONCATENATE(Auswertung!B10,Auswertung!B68) -> 20 | AM1: Flansch/Wandhalterung | AN1: =CONCATENATE(Auswertung!B62,Auswertung!B69) -> 10 | AO1: VSG/RAS/Anschluss | AP1: =CONCATENATE(Auswertung!B27,Auswertung!B42,Auswertung!B47) -> 211 | AQ1: Regenkragen/slt Anschluss | AR1: =CONCATENATE(Auswertung!B47,Auswertung!B52) -> 11 | AS1: Dach/RAS | AT1: =CONCATENATE(Auswertung!B27,Auswertung!B42) -> 21 | AV1: VSG/180° | AW1: =CONCATENATE(Auswertung!B27,Auswertung!H48) -> 20 | AY1: ohne_Schatten_180 | AZ1: =CONCATENATE(Auswertung!B23,Auswertung!H48) -> 10 | BB1: Anschluss/Boden | BC1: =CONCATENATE(Auswertung!B47,Auswertung!B62) -> 11 | BE1: Dach/Revi | BF1: =CONCATENATE(Auswertung!B27,Auswertung!B38) -> 21
A2: =IF('LV-Text'!B136="","",'LV-Text'!F136) -> 700 | B2: =IF(A2="","",C2) -> mm | C2: mm | F2: Bodenplatte aus Edelstahl: | O2: 32 | P2: =IF(ISNA(VLOOKUP(VALUE(P1),Turmart_Dach_2,1,0))=FALSE,"Kombination nicht sinnvoll","WAHR") -> WAHR | Q2: 22 | R2: =IF(ISNA(VLOOKUP(VALUE(R1),Turmart_Klappe_2,1,0))=FALSE,"Kombination nicht sinnvoll","WAHR") -> WAHR | S2: 22 | T2: =IF(ISNA(VLOOKUP(VALUE(T1),Turmart_RAS_2,1,0))=FALSE,"Kombination nicht sinnvoll","WAHR") -> WAHR | U2: 33 | V2: =IF(ISNA(VLOOKUP(VALUE(V1),Dachform_Lamellenart_2,1,0))=FALSE,"Kombination nicht sinnvoll","WAHR") -> WAHR | W2: 12 | X2: =IF(ISNA(VLOOKUP(VALUE(X1),Lamellenart_Klappe_2,1,0))=FALSE,"Kombination nicht sinnvoll","WAHR") -> WAHR | Y2: 22 | Z2: =IF(ISNA(VLOOKUP(VALUE(Z1),Dach_Klappe_2,1,0))=FALSE,"Kombination nicht sinnvoll","WAHR") -> WAHR | AA2: 22 | AB2: =IF(ISNA(VLOOKUP(VALUE(AB1),RAS_Anschluss_2,1,0))=FALSE,"Kombination nicht sinnvoll","WAHR") -> WAHR | AC2: 23 | AD2: =IF(ISNA(VLOOKUP(VALUE(AD1),Anschluss_Boden_2,1,0))=FALSE,"Kombination nicht sinnvoll","WAHR") -> WAHR | AE2: 0 | AF2: =IF(ISNA(VLOOKUP(VALUE(AF1),Regen_Klemm_2,1,0))=FALSE,"Hinweis","WAHR") -> WAHR | AG2: 11 | AH2: =IF(ISNA(VLOOKUP(VALUE(AH1),Turmart_Luft,1,0))=FALSE,"Kombination nicht sinnvoll","WAHR") -> WAHR | AI2: 11 | AJ2: =IF(ISNA(VLOOKUP(VALUE(AJ1),Turmart_Heizung,1,0))=FALSE,"Kombination nicht sinnvoll","WAHR") -> WAHR | AK2: 21 | AL2: =IF(ISNA(VLOOKUP(VALUE(AL1),Turmart_Chlor,1,0))=FALSE,"Kombination nicht sinnvoll","WAHR") -> WAHR | AM2: 21 | AN2: =IF(ISNA(VLOOKUP(VALUE(AN1),Flansch_Wand,1,0))=FALSE,"Kombination nicht sinnvoll","WAHR") -> WAHR | AO2: =VSG_RAS_Anschluss -> 111 | AP2: =IF(ISNA(VLOOKUP(VALUE(AP1),VSG_RAS_Anschluss,1,0))=FALSE,"Kombination nicht sinnvoll","WAHR") -> WAHR | AQ2: 32 | AR2: =IF(ISNA(VLOOKUP(VALUE(AR1),Regenkragen_slt_Anschluss,1,0))=FALSE,"Kombination nicht sinnvoll","WAHR") -> WAHR | AS2: 22 | AT2: =IF(ISNA(VLOOKUP(VALUE(AT1),RAS_Dach,1,0))=FALSE,"Kombination nicht sinnvoll","WAHR") -> WAHR | AV2: 11 | AW2: =IF(ISNA(VLOOKUP(VALUE(AW1),VSG_180,1,0))=FALSE,"Kombination nicht sinnvoll",TRUE) -> TRUE | AY2: 31 | AZ2: =IF(ISNA(VLOOKUP(VALUE(AZ1),ohne_Schatten_180,1,0))=FALSE,"Kombination nicht sinnvoll",TRUE) -> TRUE | BB2: 12 | BC2: =IF(ISNA(VLOOKUP(VALUE(BC1),BB2,1,0))=FALSE,"Kombination nicht sinnvoll","WAHR") -> WAHR | BE2: 15 | BF2: =IF(ISNA(VLOOKUP(VALUE(BF1),Dach_Revi,1,0))=FALSE,"Kombination nicht sinnvoll",TRUE) -> TRUE
A3: =IF('LV-Text'!B137="","",'LV-Text'!F137) -> 3540 | B3: mm | C3: mm | F3: =CONCATENATE(Auswertung!B5,Auswertung!B62) -> 21 | O3: 42 | P3: =IF(P2="WAHR","","Kombination nicht sinnvoll") ->  | R3: =IF(R2="WAHR","","Kombination nicht sinnvoll") ->  | T3: =IF(T2="WAHR","","Kombination nicht sinnvoll") ->  | U3: 34 | V3: =IF(V2="WAHR","","Kombination nicht sinnvoll") ->  | X3: =IF(X2="WAHR","","Kombination nicht sinnvoll") ->  | Z3: =IF(Z2="WAHR","","Kombination nicht sinnvoll") ->  | AA3: 23 | AB3: =IF(AB2="WAHR","","Kombination nicht sinnvoll") ->  | AC3: 24 | AD3: =IF(AD2="WAHR","","Kombination nicht sinnvoll") ->  | AE3: 32 | AF3: =IF(AF2="WAHR","","Hinweis") ->  | AH3: =IF(AH2="WAHR","","Kombination nicht sinnvoll") ->  | AJ3: =IF(AJ2="WAHR","","Kombination nicht sinnvoll") ->  | AL3: =IF(AL2="WAHR","","Kombination nicht sinnvoll") ->  | AM3: 41 | AN3: =IF(AN2="WAHR","","Kombination nicht sinnvoll") ->  | AP3: =IF(AP2="WAHR","","Zur Info") ->  | AQ3: 22 | AR3: =IF(AR2="WAHR","","Hinweis") ->  | AT3: =IF(AT2="WAHR","","Kombination nicht sinnvoll") ->  | AW3: =IF(ISLOGICAL(AW2),"","Kombination nicht sinnvoll") ->  | AY3: 41 | AZ3: =IF(ISLOGICAL(AZ2),"","Kombination nicht sinnvoll") ->  | BC3: =IF(BC2="WAHR","","Kombination nicht sinnvoll") ->  | BF3: =IF(ISLOGICAL(BF2),"","Kombination nicht sinnvoll") -> 
A4: =IF('LV-Text'!B138="","",'LV-Text'!F138) -> 8 | B4: Stück | C4: Stück | AC4: 33 | AQ4: 33
A5: =IF('LV-Text'!B139="","",'LV-Text'!F139) -> 60 | B5: mm | C5: mm | P5: -Fortluftturm und geschlossenes Dach | R5: -Außenluftturm und Klappe | T5: -Außenluftturm und Regenabscheidesystem | V5: -Zylinderdach und ohne Lamellen | X5: -bünde Lamellen und Klappe | Z5: -geschlossenes Dach und Klappe | AB5: -Regenabscheidesystem und seitlicher Anschluss | AC5: 34 | AD5: Bei einem seitlichen Turmanschluss ist kein Bodendurchbruch im Bodenbereich erforderlich. | AF5: Regenkragen "lose" ist nicht sinnvoll, wenn eine Klemmschiene an einer festgelegten Stelle angeschweißt werden soll. | AH5: -Fortluftturm und Luftfilter | AJ5: -Fortluftturm und Heizung | AL5: -Außenluftturm und Beschichtung | AN5: -Ankerkorb und Wandhalterung | AQ5: 23 | AT5: -geschlossenes Dach und Regenabscheidesystem | AW5: -bei Vogelschutzgiter sind alle Lamellen geschlossen | AZ5: -ohne Lamllen sind alle geschlossen -bei Schattenringen sind alle Lamellen geschlossen | BC5: Wenn kein seitlicher Anschluss und ein Flansch mit Ankerkorb ausgewählt wurde, dann besteht keine Möglichkeit für die Luftan- / ausströmung. | BF5: Es wird ein geschlossenes Dach benötigt.
A6: =IF('LV-Text'!B140="","",'LV-Text'!F140) -> 2.480741765 | B6: m/s | C6: m/s | P6: Außenluftturm und Vogelschutzgitter | V6: Zylinderdach und Schattenringe
A7: =IF('LV-Text'!B141="","",'LV-Text'!F141) -> 360 | B7: ° | C7: °
A8: =IF('LV-Text'!B142="","",'LV-Text'!F142) -> 58.56587232 | B8: Pa | C8: Pa | P8: =IF(P2="WAHR","",(P5&" - "&P6)) ->  | R8: =IF(R2="WAHR","",(R5&" "&R6)) ->  | T8: =IF(T2="WAHR","",(T5&""&T6)) ->  | V8: =IF(V2="WAHR","",(V5&" - "&V6)) ->  | X8: =IF(X2="WAHR","",(X5&" "&X6)) ->  | Z8: =IF(Z2="WAHR","",(Z5&" "&Z6)) ->  | AB8: =IF(AB2="WAHR","",(AB5&""&AB6)) ->  | AD8: =IF(AD2="WAHR","",(AD5&" -"&AD6)) ->  | AF8: =IF(AF2="WAHR","",(AF5&" -"&AF6)) ->  | AH8: =IF(AH2="WAHR","",(AH5&""&AH6)) ->  | AJ8: =IF(AJ2="WAHR","",(AJ5&""&AJ6)) ->  | AL8: =IF(AL2="WAHR","",(AL5&""&AL6)) ->  | AN8: =IF(AN2="WAHR","",(AN5&""&AN6)) ->  | AT8: =IF(AT2="WAHR","",(AT5&""&AT6)) ->  | BC8: =IF(BC2="WAHR","",(BC5&" -"&BC6)) -> 
A9: =IF('LV-Text'!B143="","",'LV-Text'!F143) -> 39 | B9: =IF(OR(A9="",A9="k.A."),"",C9) -> dB(A) | C9: dB(A)
A10: =IF('LV-Text'!B144="","",'LV-Text'!F144) -> 2 | B10: =IF(OR(A10="",A10="n. Statik"),"",C10) -> mm | C10: mm

Sheet 1Kopf (hidden)
A1: 1 | B1: 111
A2: 2 | B2: 121
A3: 3 | B3: 122
A4: 4 | B4: 131
A5: 5 | B5: 132
A6: 6 | B6: 141
A7: 7 | B7: 142
A8: 8 | B8: 211
A9: 9 | B9: 221
A10: 10 | B10: 222
A11: 11 | B11: 231
A12: 12 | B12: 232
A13: 13 | B13: 241
A14: 14 | B14: 242
A15: 15 | B15: 311
A16: 16 | B16: 321
A17: 17 | B17: 322

Sheet 2Revisionsdeckel (hidden)
A1: 1
A2: 2
A3: 3
A4: 4
A5: 5

Sheet 3RAS (hidden)
A1: 1
A2: 2

Sheet 4slt. Anschluss (hidden)
A1: 1
A2: 2
A3: 3

Sheet 5Regenkragen (hidden)
A1: 1
A2: 2
A3: 3

Sheet 6Klemmschiene (hidden)
A1: 1
A2: 2

Sheet 7Bodenanbindung (hidden)
A1: 1
A2: 2
A3: 3
A4: 4

Sheet Hyperlinks (hidden)
A1: http://www.alsgmbh.info/sites/default/files/Lamellenturmkonfigurator_LAS01_v14.xlsm
A2: http://www.alsgmbh.info/sites/default/files/Lamellenturmkonfigurator_LAS02_v14.xlsm
A3: www.alsgmbh.info

Sheet Kontaktperson (hidden)
A1: Herr Dörringer | B1: 1 | C1: Herr Dörringer | D1: Herr Dörringer Tel.: 08082 / 937-144 wolfgang.doerringer@als-kd.de | E1: =VLOOKUP(Tabelle1!A30,Kontaktperson!C1:D5,2,0) -> Herr Dörringer Tel.: 08082 / 937-144 wolfgang.doerringer@als-kd.de | G1: 1 | H1: Herr Dörringer | I1: Vertrieb | J1: Wolfgang Dörringer | K1: wolfgang.doerringer@als-kd.de | L1: 08082 / 937-144 | M1: =VLOOKUP(Tabelle1!A30,Kontaktperson!H1:L5,2,0) -> Vertrieb | N1: =VLOOKUP(Tabelle1!A30,Kontaktperson!H1:L5,3,0) -> Wolfgang Dörringer | O1: =VLOOKUP(Tabelle1!A30,Kontaktperson!H1:L5,4,0) -> wolfgang.doerringer@als-kd.de | P1: =VLOOKUP(Tabelle1!A30,Kontaktperson!H1:L5,5,0) -> 08082 / 937-144
A2: Herr Schwarzl | B2: 2 | C2: Herr Schwarzl | D2: Herr Schwarzl Tel.: 08082 / 937-109 bruno.schwarzl@als-kd.de | G2: 2 | H2: Herr Schwarzl | I2: Vertrieb | J2: Bruno Schwarzl | K2: bruno.schwarzl@als-kd.de | L2: 08082 / 937-109
A3: Herr Bachmaier | B3: 3 | C3: Herr Bachmaier | D3: Herr Bachmaier Tel.: 08082 / 937-105 johann.bachmaier@als-kd.de | G3: 3 | H3: Herr Bachmaier | I3: Vertrieb | J3: Johann Bachmaier | K3: johann.bachmaier@als-kd.de | L3: 08082 / 937-105
A4: Herr Drotleff | B4: 4 | C4: Herr Drotleff | D4: Herr Drotleff Tel.: 08082 / 937-117 karl-heinz.drotleff@als-kd.de | G4: 4 | H4: Herr Drotleff | I4: Technik | J4: Karl-Heinz Drotleff | K4: karl-heinz.drotleff@als-kd.de | L4: 08082 / 937-117
A5: Tech. Vertrieb | B5: 5 | C5: Tech. Vertrieb | D5: Tech. Vertrieb Tel.: 08082 / 937-0 info@als-kd.de | G5: 5 | H5: Tech. Vertrieb | I5: Vertrieb | J5: Tech. Vertrieb | K5: info@als-kd.de | L5: 08082 / 937-0
H6: i. A.
A10: Herr Dörringer
A11: Herr Schwarzl
A12: Herr Bachmaier
A13: Herr Drotleff
A14: Tech. Vertrieb

Sheet Match-Code (hidden)
B1: Luftart (Turmart) | D1: Franz | J1: Typ einfach | K1: Typ lang
A2: 1 | C2: Fortluft | D2: FO | G2: =VLOOKUP(Auswertung!B10,A2:D3,4,0) -> AU | J2: - | K2: -
A3: 2 | C3: Außenluft | D3: AU
B4: Grössen | N4: Typenschlüssel einfach
C5: Durchmesser | D5: ='LV-Text'!F136 -> 700 | J5: - | K5: -
C6: Höhe | D6: ='LV-Text'!F137/1000 -> 3.54 | J6: - | K6: - | O6: =(G2&""&J2&"Ø"&D5&""&J5&"H"&D6&""&J6&""&D7&""&J7&""&G9&""&J9&""&G14&""&J14&""&H19&""&J19&""&H22&""&J23&"("&D24&"x)") -> AU-Ø700-H3,54-1.4301-LAS01-Bp-(1x) | Y6: =LEN(O6) -> 34
C7: Material | D7: =CHOOSE(Auswertung!B5,"1.4571","1.4301","1.0038") -> 1.4301 | J7: - | K7: -
B8: Lamellenart
A9: 1 | C9: bündige Lamellen | D9: LAS01 | G9: =VLOOKUP(Auswertung!B23,'Match-Code'!A9:D12,4,0) -> LAS01 | J9: - | K9: -
A10: 2 | C10: überstehende Lamellen | D10: LAS02 | N10: Typenschlüssel lang
A11: 3 | C11: glatt | D11: glatt
A12: 4 | C12: Schattenringe | D12: ShR | O12: =(G2&""&J2&"Ø"&D5&""&J5&"H"&D6&""&J6&""&D7&""&J7&""&G9&""&J9&""&G14&E14&""&J14&""&H19&""&J19&""&H22&""&J23&"("&D24&"x)")&"-"&H33&K33&H36&K36&H39&K39&H43&K43&H49&K49&H53&K53&H57&K57&H62&K62&H65&K65&H68&K68&H71&K71&H74&K74&H77&K77&H80&H83&H86 -> AU-Ø700-H3,54-1.4301-LAS01-Bp(s)-(1x)-Lochb-Dger | Y12: =LEN(O12) -> 48
B13: Bodenbefestigung
A14: 1 | C14: Bodenplatte | D14: Bp | E14: =IF(OR(Auswertung!B62=1,Auswertung!B62=3),IF(Auswertung!B23=1,IF(Auswertung!I34=1,"(e)","(s)"),IF(Auswertung!I35=1,"(e)","(s)")),"") -> (s) | G14: =VLOOKUP(Auswertung!B62,'Match-Code'!A14:D17,4,0) -> Bp | J14: =IF(L19>0,"-","") ->  | K14: =IF(L25>0,"-","") -> -
A15: 2 | C15: Flansch mit Ankerkorb | D15: FlAK
A16: 3 | C16: Bodenplatte mit Durchführung | D16: BpD
A17: 4 | C17: Flansch mit Ankerkorb und verlor. Schallung | D17: FlvS | L17: Typenschlüssel einfach
B18: Klappe > 7m/s | L18: Summe1 | M18: Summe2
A19: 1 | C19: nein | G19: =VLOOKUP(Auswertung!B31,'Match-Code'!A19:D20,4,0) -> 0 | H19: =IF(G19=0,"",G19) ->  | I19: =IF(G19=0,0,1) -> 0 | J19: =IF(G19=0,"",IF(M19>0,"-","")) ->  | K19: =IF(G19=0,"",IF(M25>0,"-","")) ->  | L19: =SUM(I19,I22) -> 0 | M19: =SUM(I22) -> 0
A20: 2 | C20: ja | D20: GRK
B21: RAS
A22: 1 | C22: nein | G22: =VLOOKUP(Auswertung!B42,'Match-Code'!A22:D23,4,0) -> 0 | H22: =IF(G22=0,"",G22) ->  | I22: =IF(G22=0,0,1) -> 0 | K22: =IF(G22=0,"",IF(N25>0,"-","")) -> 
A23: 2 | C23: ja | D23: RASeco | J23: - | K23: - | L23: Typenschlüssel lang
C24: Stückzahl | D24: =Tabelle1!D6 -> 1 | L24: Summe1 | M24: Summe2 | N24: Summe3 | O24: Summe4 | P24: Summe5 | Q24: Summe6 | R24: Summe7 | S24: Summe8 | T24: Summe9 | U24: Summe10 | V24: Summe11 | W24: Summe12 | X24: Summe13 | Y24: Summe14 | Z24: Summe15 | AA24: Summe16
L25: =SUM(I19:I80) -> 2 | M25: =SUM(I22:I80) -> 2 | N25: =SUM(I33:I80) -> 2 | O25: =SUM(I36:I80) -> 2 | P25: =SUM(I39:I80) -> 1 | Q25: =SUM(I43:I80) -> 0 | R25: =SUM(I49:I80) -> 0 | S25: =SUM(I53:I80) -> 0 | T25: =SUM(I57:I80) -> 0 | U25: =SUM(I62:I80) -> 0 | V25: =SUM(I65:I80) -> 0 | W25: =SUM(I68:I80) -> 0 | X25: =SUM(I71:I80) -> 0 | Y25: =SUM(I74:I80) -> 0 | Z25: =SUM(I77:I80) -> 0 | AA25: =SUM(I80) -> 0
O26: x
B32: Lamellenöffnung
A33: 0 | C33: 360 | G33: =VLOOKUP(Auswertung!H48,'Match-Code'!A33:D34,4,0) -> 0 | H33: =IF(G33=0,"",G33) ->  | I33: =IF(G33=0,0,1) -> 0 | K33: =IF(G33=0,"",IF(O25>0,"-","")) ->  | M33: 4
A34: 1 | C34: =Auswertung!H47 -> 360 | D34: =C34&"°" -> 360°
B35: Dach
A36: 1 | C36: oben offen (Vogelschutzgitter) | D36: VSG | G36: =VLOOKUP(Auswertung!B27,'Match-Code'!A36:D37,4,0) -> Lochb | H36: =IF(G36=0,"",G36) -> Lochb | I36: =IF(G36=0,0,1) -> 1 | K36: =IF(G36=0,"",IF(P25>0,"-","")) -> - | M36: 5
A37: 2 | C37: seitlich offen (Lochblechkorb) | D37: Lochb
B38: Dachform
A39: 1 | C39: gerade | D39: Dger | G39: =VLOOKUP(Auswertung!B17,'Match-Code'!A39:D41,4,0) -> Dger | H39: =IF(G39=0,"",G39) -> Dger | I39: =IF(G39=0,0,1) -> 1 | K39: =IF(G39=0,"",IF(Q25>0,"-","")) ->  | M39: 6
A40: 2 | C40: Schrägdach | D40: Dschg
A41: 3 | C41: Zylinderdach | D41: Dzyl
B42: Revisionsöffnung | M42: 7
A43: 1 | C43: nein | G43: =VLOOKUP(Auswertung!B38,'Match-Code'!A43:D47,4,0) -> 0 | H43: =IF(G43=0,"",G43) ->  | I43: =IF(G43=0,0,1) -> 0 | K43: =IF(G43=0,"",IF(R25>0,"-","")) -> 
A44: 2 | C44: Rohrrevisionsdeckel Metu | D44: RRD
A45: 3 | C45: Sattelstutzen | D45: SaSt
A46: 4 | C46: Revisionsüre bündig | D46: RTb
A47: 5 | C47: Dach demontierbar | D47: Ddem
B48: Seitlicher Anschluss
A49: 1 | C49: nein | G49: =VLOOKUP(Auswertung!B47,'Match-Code'!A49:D51,4,0) -> 0 | H49: =IF(G49=0,"",G49) ->  | I49: =IF(G49=0,0,1) -> 0 | K49: =IF(G49=0,"",IF(S25>0,"-","")) ->  | M49: 8
A50: 2 | C50: rund | D50: rund
A51: 3 | C51: eckig | D51: eck
B52: Regenkragen
A53: 1 | C53: nein | G53: =VLOOKUP(Auswertung!B52,'Match-Code'!A53:D55,4,0) -> 0 | H53: =IF(G53=0,"",G53) ->  | I53: =IF(G53=0,0,1) -> 0 | K53: =IF(G53=0,"",IF(T25>0,"-","")) ->  | M53: 9
A54: 2 | C54: fest | D54: RkFe
A55: 3 | C55: lose | D55: RkLo
B56: Klemmschiene
A57: 1 | C57: nein | G57: =VLOOKUP(Auswertung!B56,'Match-Code'!A57:D58,4,0) -> 0 | H57: =IF(G57=0,"",G57) ->  | I57: =IF(G57=0,0,1) -> 0 | K57: =IF(G57=0,"",IF(U25>0,"-","")) ->  | M57: 10
A58: 2 | C58: ja | D58: Kl
B59: Zubehör
A61: 0 | C61: nein
A62: 1 | C62: Grobfilter | D62: GrF | G62: =VLOOKUP(Auswertung!B64,'Match-Code'!A61:D62,4,0) -> 0 | H62: =IF(G62=0,"",G62) ->  | I62: =IF(G62=0,0,1) -> 0 | K62: =IF(G62=0,"",IF(V25>0,"-","")) ->  | M62: 11
A64: 0 | C64: nein
A65: 1 | C65: Elektrobegleitheizung | D65: Hzg | G65: =VLOOKUP(Auswertung!B65,'Match-Code'!A64:D65,4,0) -> 0 | H65: =IF(G65=0,"",G65) ->  | I65: =IF(G65=0,0,1) -> 0 | K65: =IF(G65=0,"",IF(W25>0,"-","")) ->  | M65: 12
A67: 0 | C67: nein
A68: 1 | C68: Schalldämpfer | D68: SD | G68: =VLOOKUP(Auswertung!B66,'Match-Code'!A67:D68,4,0) -> 0 | H68: =IF(G68=0,"",G68) ->  | I68: =IF(G68=0,0,1) -> 0 | K68: =IF(G68=0,"",IF(X25>0,"-","")) ->  | M68: 13
A70: 0 | C70: nein
A71: 1 | C71: Bitumenschutzanstrich außen | D71: Bit | G71: =VLOOKUP(Auswertung!B67,'Match-Code'!A70:D71,4,0) -> 0 | H71: =IF(G71=0,"",G71) ->  | I71: =IF(G71=0,0,1) -> 0 | K71: =IF(G71=0,"",IF(Y25>0,"-","")) ->  | M71: 14
A73: 0 | C73: nein
A74: 1 | C74: Chlor-Kautschukbeschichtung innen | D74: Chlo | G74: =VLOOKUP(Auswertung!B68,'Match-Code'!A73:D74,4,0) -> 0 | H74: =IF(G74=0,"",G74) ->  | I74: =IF(G74=0,0,1) -> 0 | K74: =IF(G74=0,"",IF(Z25>0,"-","")) ->  | M74: 15
A76: 0 | C76: nein
A77: 1 | C77: Wandhalterung | D77: WH | G77: =VLOOKUP(Auswertung!B69,'Match-Code'!A76:D77,4,0) -> 0 | H77: =IF(G77=0,"",G77) ->  | I77: =IF(G77=0,0,1) -> 0 | K77: =IF(G77=0,"",IF(AA25>0,"-","")) ->  | M77: 16
A79: 0 | C79: nein
A80: 1 | C80: Graffiti-Schutzbeschichtung | D80: GSB | G80: =VLOOKUP(Auswertung!B70,'Match-Code'!A79:D80,4,0) -> 0 | H80: =IF(G80=0,"",G80) ->  | I80: =IF(G80=0,0,1) -> 0
A82: 0 | C82: nein
A83: 1 | C83: Fußbereich im Erdreich | D83: -Erd | G83: =VLOOKUP(Auswertung!B71,'Match-Code'!A82:D83,4,0) -> 0 | H83: =IF(G83=0,"",G83) -> 
A85: 0 | C85: nein
A86: 1 | C86: Flanschteilung | D86: -FLT | G86: =VLOOKUP(Auswertung!B72,'Match-Code'!A85:D86,4,0) -> 0 | H86: =IF(G86=0,"",G86) ->  | I86: =IF(G86=0,0,1) -> 0

Sheet ZetaLBKuLam (hidden)
V1: Außenluftturm mit bündigen Lamellen | Y1: Außenluftturm mit überstehenden Lamellen | AB1: Fortluftturm mit bündigen Lamellen | AE1: Fortluftturm mit überstehenden Lamellen
B2: Eingabe: | H2: Standardwerte: | J2: Widerstandsbeiwerte ζ (Lochblechkorb & Lamellen) für: | M2: Außenluftturm mit bündigen Lamellen | Q2: TLD | T2: Geometrie-Faktor GeoF [-] | V2: Widerstandsbeiwert ζ [-] | Y2: Widerstandsbeiwert ζ [-] | AB2: Widerstandsbeiwert ζ [-] | AE2: Widerstandsbeiwert ζ [-]
B3: HLBK = | C3: =IF(OR(Q3=112,Q3=212),'Berechnung bündige Lamellen'!F20/1000,IF(OR(Q3=122,Q3=222),'Berechnung FO-über_ohne_Schatte'!F21/1000,0)) -> 0.48 | D3: m | H3: =IF(OR(Q3=112,Q3=212),'Berechnung bündige Lamellen'!K20/1000,IF(OR(Q3=122,Q3=222),'Berechnung FO-über_ohne_Schatte'!K21/1000,0)) -> 0.48 | I3: m | M3: Außenluftturm mit überstehenden Lamellen | Q3: =VALUE(TLD) -> 212 | T3: 0.15 | V3: =7.672*$T3^2-2.141*$T3+3.273 -> 3.12447 | Y3: =5.772*$T3^2-1.926*$T3+2.88 -> 2.72097
B4: DLBK = | C4: =IF(OR(Q3=112,Q3=212),'Berechnung bündige Lamellen'!F14/1000,IF(OR(Q3=122,Q3=222),'Berechnung FO-über_ohne_Schatte'!F13/1000,0)) -> 0.58 | D4: m | H4: =IF(OR(Q3=112,Q3=212),'Berechnung bündige Lamellen'!K14/1000,IF(OR(Q3=122,Q3=222),'Berechnung FO-über_ohne_Schatte'!K13/1000,0)) -> 0.58 | I4: m | M4: Fortluftturm mit bündigen Lamellen | T4: 0.2 | V4: 3.15168 | Y4: 2.72568
B5: f = | C5: 0.64 | D5: [-] | M5: Fortluftturm mit überstehenden Lamellen | T5: 0.25 | V5: 3.21725 | Y5: 2.75925 | AE5: =2.58*$T5^2-1.213*$T5+3.441 -> 3.299
T6: 0.3 | V6: 3.32118 | Y6: 2.82168 | AE6: 3.3093
T7: 0.35 | V7: 3.46347 | Y7: 2.91297 | AB7: =4.966*$T7^2-3.55*$T7+4.186 -> 3.551835 | AE7: 3.3325
B8: GeoF = | D8: = | E8: =ROUND(C3/(C4*C5),2) -> 1.29 | F8: [-] | H8: =ROUND(H3/(H4*C5),2) -> 1.29 | I8: [-] | T8: 0.4 | V8: 3.64412 | Y8: 3.03312 | AB8: 3.56056 | AE8: 3.3686
T9: 0.45 | V9: 3.86313 | Y9: 3.18213 | AB9: 3.594115 | AE9: 3.4176
T10: 0.5 | V10: 4.1205 | Y10: 3.36 | AB10: 3.6525 | AE10: 3.4795
B11: =IF(Q3=V41,V1,IF(Q3=Y41,Y1,IF(Q3=AB41,AB1,IF(Q3=AE41,AE1,0)))) -> Außenluftturm mit bündigen Lamellen | T11: 0.55 | V11: 4.41623 | Y11: 3.56673 | AB11: 3.735715 | AE11: 3.5543
T12: 0.6 | V12: 4.75032 | Y12: 3.80232 | AB12: 3.84376 | AE12: 3.642
B13: Widerstandsbeiwert ζ = | F13: =IF(B11=V1,V39,IF(B11=Y1,Y39,IF(B11=AB1,AB39,AE39))) -> 13.28 | G13: [-] | H13: =IF(B11=V1,V40,IF(B11=Y1,Y40,IF(B11=AB1,AB40,AE40))) -> 13.28 | I13: [-] | T13: 0.65 | V13: 5.12277 | Y13: 4.06677 | AB13: 3.976635 | AE13: 3.7426
E14: Faktor Abschottung = | F14: =IF(B11=V1,V42,IF(B11=Y1,Y42,IF(B11=AB1,AB42,AE42))) -> 1 | G14: [-] | T14: 0.7 | V14: 5.53358 | Y14: 4.36008 | AB14: 4.13434 | AE14: 3.8561
B15: V' = | C15: =IF(OR(Q3=112,Q3=212),'Berechnung bündige Lamellen'!F10,IF(OR(Q3=122,Q3=222),'Berechnung FO-über_ohne_Schatte'!F11,0)) -> 4999 | D15: m³/h = | F15: =C15/3600 -> 1.388611111 | G15: m³/s | T15: 0.75 | V15: 5.98275 | Y15: 4.68225 | AB15: 4.316875 | AE15: 3.9825
B16: cLam = | C16: =F15/(C4*PI()*C3*C5) -> 2.480741765 | D16: m/s | H16: =F15/(H4*PI()*H3*C5) -> 2.480741765 | I16: m/s | T16: 0.8 | V16: 6.47028 | Y16: 5.03328 | AB16: 4.52424 | AE16: 4.1218
T17: 0.85 | V17: 6.99617 | Y17: 5.41317 | AB17: 4.756435 | AE17: 4.274
B18: dPv = | C18: =IF(Auswertung!H48,IF(F14<1,F13*(1.2/2)*C16^2,F14*F13*(1.2/2)*C16^2),F13*(1.2/2)*C16^2) -> 49.03570709 | D18: Pa | H18: =H13*(1.2/2)*H16^2 -> 49.03570709 | I18: Pa | T18: 0.9 | V18: 7.56042 | Y18: 5.82192 | AB18: 5.01346 | AE18: 4.4391
T19: 0.95 | V19: 8.16303 | Y19: 6.25953 | AB19: 5.295315 | AE19: 4.6171
B20: => wird bei Berechnung aufaddiert! | T20: 1 | V20: 8.804 | Y20: 6.726 | AB20: 5.602 | AE20: 4.808
T21: 1.05 | V21: 9.48333 | Y21: 7.22133 | AB21: 5.933515 | AE21: 5.0118
T22: 1.1 | V22: 10.20102 | Y22: 7.74552 | AB22: 6.28986 | AE22: 5.2285
T23: 1.15 | V23: 10.95707 | Y23: 8.29857 | AB23: 6.671035 | AE23: 5.4581
T24: 1.2 | V24: 11.75148 | Y24: 8.88048 | AB24: 7.07704 | AE24: 5.7006
T25: 1.25 | V25: 12.58425 | Y25: 9.49125 | AB25: 7.507875 | AE25: 5.956
T26: 1.3 | V26: 13.45538 | Y26: 10.13088 | AB26: 7.96354 | AE26: 6.2243
B27: ...Druckverlust muss mit Geschwindigkeit an Lamelle (theoret. Wert) gerechnet werden! | T27: 1.35 | V27: 14.36487 | Y27: 10.79937 | AB27: 8.444035 | AE27: 6.5055
B28: …Richtlinie: HLBK sollte maximal 0,8*DTurm betragen | T28: 1.4 | V28: 15.31272 | Y28: 11.49672 | AB28: 8.94936 | AE28: 6.7996
B29: …Richtlinie: cLam sollte maximal 2,5 m/s betragen | T29: 1.45 | V29: 16.29893 | Y29: 12.22293 | AB29: 9.479515 | AE29: 7.1066
T30: 1.5 | V30: 17.3235 | Y30: 12.978 | AB30: 10.0345 | AE30: 7.4265
T31: 1.55 | V31: 18.38643 | Y31: 13.76193 | AB31: 10.614315 | AE31: 7.7593
T32: 1.6 | V32: 19.48772 | Y32: 14.57472 | AB32: 11.21896 | AE32: 8.105
T33: 1.65 | V33: 20.62737 | Y33: 15.41637 | AB33: 11.848435 | AE33: 8.4636
T34: 1.7 | V34: 21.80538 | Y34: 16.28688 | AB34: 12.50274 | AE34: 8.8351
T35: 1.75 | V35: 23.02175 | Y35: 17.18625 | AB35: 13.181875 | AE35: 9.2195
T36: 1.8 | V36: 24.27648 | Y36: 18.11448 | AB36: 13.88584 | AE36: 9.6168
T37: 1.85 | V37: 25.56957 | Y37: 19.07157 | AB37: 14.614635 | AE37: 10.027
T39: Zeta = | V39: =ROUND(7.672*$E$8^2-2.141*$E$8+3.273,2) -> 13.28 | Y39: =ROUND(5.772*$E$8^2-1.926*$E$8+2.88,2) -> 10 | AB39: =ROUND(4.966*$E$8^2-3.55*$E$8+4.186,2) -> 7.87 | AE39: =ROUND(2.58*$E$8^2-1.213*$E$8+3.441,2) -> 6.17
T40: Zeta (Standard) = | V40: =ROUND(7.672*$H$8^2-2.141*$H$8+3.273,2) -> 13.28 | Y40: =ROUND(5.772*$H$8^2-1.926*$H$8+2.88,2) -> 10 | AB40: =ROUND(4.966*$H$8^2-3.55*$H$8+4.186,2) -> 7.87 | AE40: =ROUND(2.58*$H$8^2-1.213*$H$8+3.441,2) -> 6.17
T41: TLD = | V41: 212 | Y41: 222 | AB41: 112 | AE41: 122
T42: (Lamellenanzahl_360°aktiv / Lamellenanzahl_gewählt) * (360 / Winkel_aktiv) = | V42: =('Berechnung bündige Lamellen'!J32/'Berechnung bündige Lamellen'!F32)*(360/Auswertung!H47) -> 1 | Y42: =('Berechnung FO-über_ohne_Schatte'!J23/'Berechnung FO-über_ohne_Schatte'!F23)*(360/Auswertung!H47) ->  | AB42: =('Berechnung bündige Lamellen'!J32/'Berechnung bündige Lamellen'!F32)*(360/Auswertung!H47) -> 1 | AE42: =('Berechnung FO-über_ohne_Schatte'!J23/'Berechnung FO-über_ohne_Schatte'!F23)*(360/Auswertung!H47) -> 

Sheet Berechnung bündige Lamellen
D1: ="Typ: " & 'Match-Code'!O6 -> Typ: AU-Ø700-H3,54-1.4301-LAS01-Bp-(1x) | H1: x | I1: x | J1: x | N1: x | O1: x | P1: x | Q1: x | R1: x | AD1: x | AE1: x | AF1: x | AG1: x | AH1: x | AI1: x | AJ1: x | AK1: x | AL1: x | AM1: x | AN1: x | AO1: x | AP1: x | AQ1: x | AR1: x | AS1: x | AT1: x | AU1: x | AV1: x | AW1: x | AX1: x | AY1: x | AZ1: x | BA1: x | BB1: x | BC1: x | BD1: x | BE1: x | BF1: x | BG1: x | BH1: x | BI1: x | BJ1: x | BK1: x | BL1: x | BM1: x | BN1: x | BO1: x | BP1: x | BQ1: x | BR1: x | BS1: x | BT1: x | BU1: x | BV1: x | BW1: x | BX1: x | BY1: x | BZ1: x | CA1: x | CB1: x | CC1: x | CD1: x | CE1: x | CF1: x | CG1: x | CI1: x | CJ1: x | CK1: x | CL1: x | CM1: x | CN1: x | CO1: x | CP1: x
A2: Produkt: | B2: =Auswertung!D10 -> Außenluftturm | D2: =CONCATENATE(IF(OR(Auswertung!B23=3,Auswertung!B23=4),Auswertung!BE5,IF(Auswertung!H48=1,Auswertung!BF5,Auswertung!BD5)),IF(Auswertung!H34=TRUE,IF(Auswertung!B5=2,"1.4301 gebeizt","1.4571 gebeizt"),"S235JR - lackiert")) -> → Lamellen 360° umlaufend mit 45° Neigung → Sichtschweißnähte → Fertigung nach ALS-KD-Werksnorm → Zubehör ist zeichnerisch nicht dargestellt → Bodenplatte S235JR - lackiert
A4: Bauvorhaben: | B4: =Deckblatt!B16&" - "&TEXT(Deckblatt!B19,"00000") & " " & Deckblatt!C19 -> - 00000
I5: 1
A6: Anzahl: | B6: =Deckblatt!B22 -> 1 | I6: 0 | K6: Standard-werte
B7: =IF(R7,"","Achtung! Standardwerte wurden geändert!") ->  | N7: min0 | O7: min1 | P7: max. | Q7: =IF(R7,"Standard-LAS01","nStandard-LAS01") -> Standard-LAS01 | R7: =IFERROR(R12*R16*R22*R26*R32*R34*R36*R50,1) -> 1 | W7: Gewünschte Gesamthöhe: | Y7: 3540
W8: erforderliches Maß für L1 | Y8: =IFERROR(IF(Y7=0,"",IF(Y7<=(F20+F22),"nicht möglich",Y7-F24+F18))," nicht möglich") -> 3000 | Z8: =IFERROR(IF(OR(Y7=0,Y8="nicht möglich"),"",IF(Y8<>F18,"Bitte Maß bei L1 eintragen","")),"") -> 
H9: x | I9: =SQRT($F$10/3600/'Kamindaten bündige Lamellen'!$G$4*4/PI()*1000000) -> 542.837388 | J9: =SQRT($F$10/3600/'Kamindaten bündige Lamellen'!$G$4*4/PI()*1000000) -> 542.837388 | K9: =SQRT($F$10/3600/'Kamindaten bündige Lamellen'!$G$4*4/PI()*1000000) -> 542.837388
D10: Luftmenge (Volumenstrom) | E10: V | F10: 4999 | G10: m³/h
D12: Durchmesser*** | E12: ØA | F12: =K12 -> 700 | G12: mm | I12: =F12 -> 700 | J12: =INDEX('Kamindaten bündige Lamellen'!$A$5:$L$42,MATCH(SQRT($F$10/3600/'Kamindaten bündige Lamellen'!$G$4*4/PI()*1000000),'Kamindaten bündige Lamellen'!$C$5:$C$42,-1),1) -> 700 | K12: =IFERROR(IF('Kamindaten bündige Lamellen'!AI9=1,INDEX('Kamindaten bündige Lamellen'!$A$5:$L$36,MATCH(K14,'Kamindaten bündige Lamellen'!$C$5:$C$36,-1),1),INDEX('Kamindaten bündige Lamellen'!$A$5:$L$42,MATCH(K14,'Kamindaten bündige Lamellen'!$C$5:$C$42,-1),1)),"") -> 700 | N12: =ROUNDUP(F16*2+SQRT(F10*1000000/3600/'Kamindaten bündige Lamellen'!$G$4*4/PI()),0) -> 663 | O12: =ROUNDUP(30*2+SQRT(F10*1000000/3600/'Kamindaten bündige Lamellen'!$G$4*4/PI()),0) -> 603 | P12: 2000 | Q12: Durchmesser zwischen Ø160 mm und Ø2000 mm. | R12: =EXACT(F12,K12) -> TRUE
D14: Durchmesser | E14: ØB | F14: =IFERROR(F12-2*F16,"") -> 580 | G14: mm | I14: =F12-2*F16 -> 580 | J14: =J12-2*J16 -> 580 | K14: =IFERROR(IF('Kamindaten bündige Lamellen'!AI9=1,INDEX('Kamindaten bündige Lamellen'!$A$5:$L$38,MATCH(F10,'Kamindaten bündige Lamellen'!$G$5:$G$38,-1),3),INDEX('Kamindaten bündige Lamellen'!$A$5:$L$42,MATCH(SQRT($F$10/3600/'Kamindaten bündige Lamellen'!$G$4*4/PI()*1000000),'Kamindaten bündige Lamellen'!$C$5:$C$42,-1),3)),"") -> 580 | AE14: Kulissenschalldämpfer: | BA14: Rohrschalldämpfer mit Kern: | BW14: Rohrschalldämpfer ohne Kern:
D16: Lamellenhöhe | E16: z | F16: =K16 -> 60 | G16: mm | I16: =INDEX('Kamindaten bündige Lamellen'!$A$5:$L$42,MATCH(F12,'Kamindaten bündige Lamellen'!$A$5:$A$42,-1),11) -> 60 | J16: =INDEX('Kamindaten bündige Lamellen'!$A$5:$L$42,MATCH(J12,'Kamindaten bündige Lamellen'!$A$5:$A$42,-1),11) -> 60 | K16: =IFERROR(IF('Kamindaten bündige Lamellen'!AI9=1,INDEX('Kamindaten bündige Lamellen'!$A$5:$L$38,MATCH(K14,'Kamindaten bündige Lamellen'!$C$5:$C$38,-1),11),INDEX('Kamindaten bündige Lamellen'!$A$5:$L$42,MATCH(K14,'Kamindaten bündige Lamellen'!$C$5:$C$42,-1),11)),"") -> 60 | N16: =IF((($F$12-SQRT(F10*1000000/3600/'Kamindaten bündige Lamellen'!$G$4*4/PI()))/2)<30,"NA",30) -> 30 | O16: 30 | P16: =IF((($F$12-SQRT(F10*1000000/3600/'Kamindaten bündige Lamellen'!$G$4*4/PI()))/2)<30,"NA",(($F$12-SQRT(F10*1000000/3600/'Kamindaten bündige Lamellen'!$G$4*4/PI()))/2)) -> 78.581306 | Q16: Lamellenhöhe zwischen 30 mm und 120 mm. | R16: =EXACT(F16,K16) -> TRUE | AE16: Länge: | AF16: 2000 | AG16: mm | AH16: Kulissenbreite: | AJ16: 200 | BA16: Länge: | BB16: 1500 | BC16: mm | BD16: Packungsdicke: | BF16: =Schalldämpfer!CP7 -> 100 | BW16: Länge: | BX16: 1000 | BY16: mm | BZ16: Packungsdicke: | CB16: =Schalldämpfer!DV12 -> 50
D18: Höhe Rohr | E18: L1 | F18: 3000 | G18: mm | I18: =$F$18 -> 3000 | J18: =$K$18 -> 0 | R18: =EXACT(F18,K18) -> FALSE | AE18: Oktav-Frequenzen: | AG18: 63 | AH18: 125 | AI18: 250 | AJ18: 500 | AK18: 1000 | AL18: 2000 | AM18: 4000 | AN18: 8000 | AQ18: 63 | AR18: 125 | AS18: 250 | AT18: 500 | AU18: 1000 | AV18: 2000 | AW18: 4000 | AX18: 8000 | BA18: Oktav-Frequenzen: | BC18: 63 | BD18: 125 | BE18: 250 | BF18: 500 | BG18: 1000 | BH18: 2000 | BI18: 4000 | BJ18: 8000 | BM18: 63 | BN18: 125 | BO18: 250 | BP18: 500 | BQ18: 1000 | BR18: 2000 | BS18: 4000 | BT18: 8000 | BW18: Oktav-Frequenzen: | BY18: 63 | BZ18: 125 | CA18: 250 | CB18: 500 | CC18: 1000 | CD18: 2000 | CE18: 4000 | CF18: 8000 | CI18: 63 | CJ18: 125 | CK18: 250 | CL18: 500 | CM18: 1000 | CN18: 2000 | CO18: 4000 | CP18: 8000
D20: =IF(OR(VALUE(TLD)=112,VALUE(TLD)=212),"Höhe aktiver Lamellenbereich","Höhe Lamellenbereich") -> Höhe aktiver Lamellenbereich | E20: L2 | F20: =IFERROR(IF(TLD_LD=11,F16*(F32-1),F16*(F32)),"") -> 480 | G20: mm | I20: =IF(TLD_LD=11,F16*(F32-1),F16*(F32)) -> 480 | J20: =IF(TLD_LD=11,J16*(J32-1),J16*(J32)) -> 480 | K20: =IFERROR(IF(TLD_LD=11,K16*(K32-1),K16*(K32)),"") -> 480 | AG20: 2 | AH20: 16 | AI20: 24 | AJ20: 23 | AK20: 28 | AL20: 20 | AM20: 11 | AN20: 9 | AQ20: =IFERROR(IF($AJ$16=100,IF($AF$16=500,INDEX(Schalldämpfer!$C$25:'Schalldämpfer'!$K$30,MATCH(Schalldämpfer!$AO$7,Schalldämpfer!$C$25:$C$30,-1),MATCH(AQ18,Schalldämpfer!$C$24:$K$24,0)),IF($AF$16=1000,INDEX(Schalldämpfer!$C$31:'Schalldämpfer'!$K$36,MATCH(Schalldämpfer!$AO$7,Schalldämpfer!$C$25:$C$30,-1),MATCH(AQ18,Schalldämpfer!$C$24:$K$24,0)),IF($AF$16=1500,INDEX(Schalldämpfer!$C$37:'Schalldämpfer'!$K$42,MATCH(Schalldämpfer!$AO$7,Schalldämpfer!$C$25:$C$30,-1),MATCH(AQ18,Schalldämpfer!$C$24:$K$24,0)),IF($AF$16=2000,INDEX(Schalldämpfer!$C$43:'Schalldämpfer'!$K$48,MATCH(Schalldämpfer!$AO$7,Schalldämpfer!$C$25:$C$30,-1),MATCH(AQ18,Schalldämpfer!$C$24:$K$24,0)),IF($AF$16=2500,INDEX(Schalldämpfer!$C$49:'Schalldämpfer'!$K$54,MATCH(Schalldämpfer!$AO$7,Schalldämpfer!$C$25:$C$30,-1),MATCH(AQ18,Schalldämpfer!$C$24:$K$24,0)),IF($AF$16=3000,INDEX(Schalldämpfer!$C$55:'Schalldämpfer'!$K$60,MATCH(Schalldämpfer!$AO$7,Schalldämpfer!$C$25:$C$30,-1),MATCH(AQ18,Schalldämpfer!$C$24:$K$24,0)),0)))))),IF($AJ$16=200,IF($AF$16=500,INDEX(Schalldämpfer!$S$25:'Schalldämpfer'!$Z$33,MATCH(Schalldämpfer!$AO$7,Schalldämpfer!$R$25:$R$33,-1),MATCH(AQ18,Schalldämpfer!$S$24:$Z$24,0)),IF($AF$16=1000,INDEX(Schalldämpfer!$S$34:'Schalldämpfer'!$Z$42,MATCH(Schalldämpfer!$AO$7,Schalldämpfer!$R$25:$R$33,-1),MATCH(AQ18,Schalldämpfer!$S$24:$Z$24,0)),IF($AF$16=1500,INDEX(Schalldämpfer!$S$43:'Schalldämpfer'!$Z$51,MATCH(Schalldämpfer!$AO$7,Schalldämpfer!$R$25:$R$33,-1),MATCH(AQ18,Schalldämpfer!$S$24:$Z$24,0)),IF($AF$16=2000,INDEX(Schalldämpfer!$S$52:'Schalldämpfer'!$Z$60,MATCH(Schalldämpfer!$AO$7,Schalldämpfer!$R$25:$R$33,-1),MATCH(AQ18,Schalldämpfer!$S$24:$Z$24,0)),IF($AF$16=2500,INDEX(Schalldämpfer!$S$61:'Schalldämpfer'!$Z$69,MATCH(Schalldämpfer!$AO$7,Schalldämpfer!$R$25:$R$33,-1),MATCH(AQ18,Schalldämpfer!$S$24:$Z$24,0)),IF($AF$16=3000,INDEX(Schalldämpfer!$S$70:'Schalldämpfer'!$Z$78,MATCH(Schalldämpfer!$AO$7,Schalldämpfer!$R$25:$R$33,-1),MATCH(AQ18,Schalldämpfer!$S$24:$Z$24,0)),0)))))))),"k.W.") -> 2 | AR20: =IFERROR(IF($AJ$16=100,IF($AF$16=500,INDEX(Schalldämpfer!$C$25:'Schalldämpfer'!$K$30,MATCH(Schalldämpfer!$AO$7,Schalldämpfer!$C$25:$C$30,-1),MATCH(AR18,Schalldämpfer!$C$24:$K$24,0)),IF($AF$16=1000,INDEX(Schalldämpfer!$C$31:'Schalldämpfer'!$K$36,MATCH(Schalldämpfer!$AO$7,Schalldämpfer!$C$25:$C$30,-1),MATCH(AR18,Schalldämpfer!$C$24:$K$24,0)),IF($AF$16=1500,INDEX(Schalldämpfer!$C$37:'Schalldämpfer'!$K$42,MATCH(Schalldämpfer!$AO$7,Schalldämpfer!$C$25:$C$30,-1),MATCH(AR18,Schalldämpfer!$C$24:$K$24,0)),IF($AF$16=2000,INDEX(Schalldämpfer!$C$43:'Schalldämpfer'!$K$48,MATCH(Schalldämpfer!$AO$7,Schalldämpfer!$C$25:$C$30,-1),MATCH(AR18,Schalldämpfer!$C$24:$K$24,0)),IF($AF$16=2500,INDEX(Schalldämpfer!$C$49:'Schalldämpfer'!$K$54,MATCH(Schalldämpfer!$AO$7,Schalldämpfer!$C$25:$C$30,-1),MATCH(AR18,Schalldämpfer!$C$24:$K$24,0)),IF($AF$16=3000,INDEX(Schalldämpfer!$C$55:'Schalldämpfer'!$K$60,MATCH(Schalldämpfer!$AO$7,Schalldämpfer!$C$25:$C$30,-1),MATCH(AR18,Schalldämpfer!$C$24:$K$24,0)),0)))))),IF($AJ$16=200,IF($AF$16=500,INDEX(Schalldämpfer!$S$25:'Schalldämpfer'!$Z$33,MATCH(Schalldämpfer!$AO$7,Schalldämpfer!$R$25:$R$33,-1),MATCH(AR18,Schalldämpfer!$S$24:$Z$24,0)),IF($AF$16=1000,INDEX(Schalldämpfer!$S$34:'Schalldämpfer'!$Z$42,MATCH(Schalldämpfer!$AO$7,Schalldämpfer!$R$25:$R$33,-1),MATCH(AR18,Schalldämpfer!$S$24:$Z$24,0)),IF($AF$16=1500,INDEX(Schalldämpfer!$S$43:'Schalldämpfer'!$Z$51,MATCH(Schalldämpfer!$AO$7,Schalldämpfer!$R$25:$R$33,-1),MATCH(AR18,Schalldämpfer!$S$24:$Z$24,0)),IF($AF$16=2000,INDEX(Schalldämpfer!$S$52:'Schalldämpfer'!$Z$60,MATCH(Schalldämpfer!$AO$7,Schalldämpfer!$R$25:$R$33,-1),MATCH(AR18,Schalldämpfer!$S$24:$Z$24,0)),IF($AF$16=2500,INDEX(Schalldämpfer!$S$61:'Schalldämpfer'!$Z$69,MATCH(Schalldämpfer!$AO$7,Schalldämpfer!$R$25:$R$33,-1),MATCH(AR18,Schalldämpfer!$S$24:$Z$24,0)),IF($AF$16=3000,INDEX(Schalldämpfer!$S$70:'Schalldämpfer'!$Z$78,MATCH(Schalldämpfer!$AO$7,Schalldämpfer!$R$25:$R$33,-1),MATCH(AR18,Schalldämpfer!$S$24:$Z$24,0)),0)))))))),"k.W.") -> 21 | AS20: =IFERROR(IF($AJ$16=100,IF($AF$16=500,INDEX(Schalldämpfer!$C$25:'Schalldämpfer'!$K$30,MATCH(Schalldämpfer!$AO$7,Schalldämpfer!$C$25:$C$30,-1),MATCH(AS18,Schalldämpfer!$C$24:$K$24,0)),IF($AF$16=1000,INDEX(Schalldämpfer!$C$31:'Schalldämpfer'!$K$36,MATCH(Schalldämpfer!$AO$7,Schalldämpfer!$C$25:$C$30,-1),MATCH(AS18,Schalldämpfer!$C$24:$K$24,0)),IF($AF$16=1500,INDEX(Schalldämpfer!$C$37:'Schalldämpfer'!$K$42,MATCH(Schalldämpfer!$AO$7,Schalldämpfer!$C$25:$C$30,-1),MATCH(AS18,Schalldämpfer!$C$24:$K$24,0)),IF($AF$16=2000,INDEX(Schalldämpfer!$C$43:'Schalldämpfer'!$K$48,MATCH(Schalldämpfer!$AO$7,Schalldämpfer!$C$25:$C$30,-1),MATCH(AS18,Schalldämpfer!$C$24:$K$24,0)),IF($AF$16=2500,INDEX(Schalldämpfer!$C$49:'Schalldämpfer'!$K$54,MATCH(Schalldämpfer!$AO$7,Schalldämpfer!$C$25:$C$30,-1),MATCH(AS18,Schalldämpfer!$C$24:$K$24,0)),IF($AF$16=3000,INDEX(Schalldämpfer!$C$55:'Schalldämpfer'!$K$60,MATCH(Schalldämpfer!$AO$7,Schalldämpfer!$C$25:$C$30,-1),MATCH(AS18,Schalldämpfer!$C$24:$K$24,0)),0)))))),IF($AJ$16=200,IF($AF$16=500,INDEX(Schalldämpfer!$S$25:'Schalldämpfer'!$Z$33,MATCH(Schalldämpfer!$AO$7,Schalldämpfer!$R$25:$R$33,-1),MATCH(AS18,Schalldämpfer!$S$24:$Z$24,0)),IF($AF$16=1000,INDEX(Schalldämpfer!$S$34:'Schalldämpfer'!$Z$42,MATCH(Schalldämpfer!$AO$7,Schalldämpfer!$R$25:$R$33,-1),MATCH(AS18,Schalldämpfer!$S$24:$Z$24,0)),IF($AF$16=1500,INDEX(Schalldämpfer!$S$43:'Schalldämpfer'!$Z$51,MATCH(Schalldämpfer!$AO$7,Schalldämpfer!$R$25:$R$33,-1),MATCH(AS18,Schalldämpfer!$S$24:$Z$24,0)),IF($AF$16=2000,INDEX(Schalldämpfer!$S$52:'Schalldämpfer'!$Z$60,MATCH(Schalldämpfer!$AO$7,Schalldämpfer!$R$25:$R$33,-1),MATCH(AS18,Schalldämpfer!$S$24:$Z$24,0)),IF($AF$16=2500,INDEX(Schalldämpfer!$S$61:'Schalldämpfer'!$Z$69,MATCH(Schalldämpfer!$AO$7,Schalldämpfer!$R$25:$R$33,-1),MATCH(AS18,Schalldämpfer!$S$24:$Z$24,0)),IF($AF$16=3000,INDEX(Schalldämpfer!$S$70:'Schalldämpfer'!$Z$78,MATCH(Schalldämpfer!$AO$7,Schalldämpfer!$R$25:$R$33,-1),MATCH(AS18,Schalldämpfer!$S$24:$Z$24,0)),0)))))))),"k.W.") -> 35 | AT20: =IFERROR(IF($AJ$16=100,IF($AF$16=500,INDEX(Schalldämpfer!$C$25:'Schalldämpfer'!$K$30,MATCH(Schalldämpfer!$AO$7,Schalldämpfer!$C$25:$C$30,-1),MATCH(AT18,Schalldämpfer!$C$24:$K$24,0)),IF($AF$16=1000,INDEX(Schalldämpfer!$C$31:'Schalldämpfer'!$K$36,MATCH(Schalldämpfer!$AO$7,Schalldämpfer!$C$25:$C$30,-1),MATCH(AT18,Schalldämpfer!$C$24:$K$24,0)),IF($AF$16=1500,INDEX(Schalldämpfer!$C$37:'Schalldämpfer'!$K$42,MATCH(Schalldämpfer!$AO$7,Schalldämpfer!$C$25:$C$30,-1),MATCH(AT18,Schalldämpfer!$C$24:$K$24,0)),IF($AF$16=2000,INDEX(Schalldämpfer!$C$43:'Schalldämpfer'!$K$48,MATCH(Schalldämpfer!$AO$7,Schalldämpfer!$C$25:$C$30,-1),MATCH(AT18,Schalldämpfer!$C$24:$K$24,0)),IF($AF$16=2500,INDEX(Schalldämpfer!$C$49:'Schalldämpfer'!$K$54,MATCH(Schalldämpfer!$AO$7,Schalldämpfer!$C$25:$C$30,-1),MATCH(AT18,Schalldämpfer!$C$24:$K$24,0)),IF($AF$16=3000,INDEX(Schalldämpfer!$C$55:'Schalldämpfer'!$K$60,MATCH(Schalldämpfer!$AO$7,Schalldämpfer!$C$25:$C$30,-1),MATCH(AT18,Schalldämpfer!$C$24:$K$24,0)),0)))))),IF($AJ$16=200,IF($AF$16=500,INDEX(Schalldämpfer!$S$25:'Schalldämpfer'!$Z$33,MATCH(Schalldämpfer!$AO$7,Schalldämpfer!$R$25:$R$33,-1),MATCH(AT18,Schalldämpfer!$S$24:$Z$24,0)),IF($AF$16=1000,INDEX(Schalldämpfer!$S$34:'Schalldämpfer'!$Z$42,MATCH(Schalldämpfer!$AO$7,Schalldämpfer!$R$25:$R$33,-1),MATCH(AT18,Schalldämpfer!$S$24:$Z$24,0)),IF($AF$16=1500,INDEX(Schalldämpfer!$S$43:'Schalldämpfer'!$Z$51,MATCH(Schalldämpfer!$AO$7,Schalldämpfer!$R$25:$R$33,-1),MATCH(AT18,Schalldämpfer!$S$24:$Z$24,0)),IF($AF$16=2000,INDEX(Schalldämpfer!$S$52:'Schalldämpfer'!$Z$60,MATCH(Schalldämpfer!$AO$7,Schalldämpfer!$R$25:$R$33,-1),MATCH(AT18,Schalldämpfer!$S$24:$Z$24,0)),IF($AF$16=2500,INDEX(Schalldämpfer!$S$61:'Schalldämpfer'!$Z$69,MATCH(Schalldämpfer!$AO$7,Schalldämpfer!$R$25:$R$33,-1),MATCH(AT18,Schalldämpfer!$S$24:$Z$24,0)),IF($AF$16=3000,INDEX(Schalldämpfer!$S$70:'Schalldämpfer'!$Z$78,MATCH(Schalldämpfer!$AO$7,Schalldämpfer!$R$25:$R$33,-1),MATCH(AT18,Schalldämpfer!$S$24:$Z$24,0)),0)))))))),"k.W.") -> 35 | AU20: =IFERROR(IF($AJ$16=100,IF($AF$16=500,INDEX(Schalldämpfer!$C$25:'Schalldämpfer'!$K$30,MATCH(Schalldämpfer!$AO$7,Schalldämpfer!$C$25:$C$30,-1),MATCH(AU18,Schalldämpfer!$C$24:$K$24,0)),IF($AF$16=1000,INDEX(Schalldämpfer!$C$31:'Schalldämpfer'!$K$36,MATCH(Schalldämpfer!$AO$7,Schalldämpfer!$C$25:$C$30,-1),MATCH(AU18,Schalldämpfer!$C$24:$K$24,0)),IF($AF$16=1500,INDEX(Schalldämpfer!$C$37:'Schalldämpfer'!$K$42,MATCH(Schalldämpfer!$AO$7,Schalldämpfer!$C$25:$C$30,-1),MATCH(AU18,Schalldämpfer!$C$24:$K$24,0)),IF($AF$16=2000,INDEX(Schalldämpfer!$C$43:'Schalldämpfer'!$K$48,MATCH(Schalldämpfer!$AO$7,Schalldämpfer!$C$25:$C$30,-1),MATCH(AU18,Schalldämpfer!$C$24:$K$24,0)),IF($AF$16=2500,INDEX(Schalldämpfer!$C$49:'Schalldämpfer'!$K$54,MATCH(Schalldämpfer!$AO$7,Schalldämpfer!$C$25:$C$30,-1),MATCH(AU18,Schalldämpfer!$C$24:$K$24,0)),IF($AF$16=3000,INDEX(Schalldämpfer!$C$55:'Schalldämpfer'!$K$60,MATCH(Schalldämpfer!$AO$7,Schalldämpfer!$C$25:$C$30,-1),MATCH(AU18,Schalldämpfer!$C$24:$K$24,0)),0)))))),IF($AJ$16=200,IF($AF$16=500,INDEX(Schalldämpfer!$S$25:'Schalldämpfer'!$Z$33,MATCH(Schalldämpfer!$AO$7,Schalldämpfer!$R$25:$R$33,-1),MATCH(AU18,Schalldämpfer!$S$24:$Z$24,0)),IF($AF$16=1000,INDEX(Schalldämpfer!$S$34:'Schalldämpfer'!$Z$42,MATCH(Schalldämpfer!$AO$7,Schalldämpfer!$R$25:$R$33,-1),MATCH(AU18,Schalldämpfer!$S$24:$Z$24,0)),IF($AF$16=1500,INDEX(Schalldämpfer!$S$43:'Schalldämpfer'!$Z$51,MATCH(Schalldämpfer!$AO$7,Schalldämpfer!$R$25:$R$33,-1),MATCH(AU18,Schalldämpfer!$S$24:$Z$24,0)),IF($AF$16=2000,INDEX(Schalldämpfer!$S$52:'Schalldämpfer'!$Z$60,MATCH(Schalldämpfer!$AO$7,Schalldämpfer!$R$25:$R$33,-1),MATCH(AU18,Schalldämpfer!$S$24:$Z$24,0)),IF($AF$16=2500,INDEX(Schalldämpfer!$S$61:'Schalldämpfer'!$Z$69,MATCH(Schalldämpfer!$AO$7,Schalldämpfer!$R$25:$R$33,-1),MATCH(AU18,Schalldämpfer!$S$24:$Z$24,0)),IF($AF$16=3000,INDEX(Schalldämpfer!$S$70:'Schalldämpfer'!$Z$78,MATCH(Schalldämpfer!$AO$7,Schalldämpfer!$R$25:$R$33,-1),MATCH(AU18,Schalldämpfer!$S$24:$Z$24,0)),0)))))))),"k.W.") -> 42 | AV20: =IFERROR(IF($AJ$16=100,IF($AF$16=500,INDEX(Schalldämpfer!$C$25:'Schalldämpfer'!$K$30,MATCH(Schalldämpfer!$AO$7,Schalldämpfer!$C$25:$C$30,-1),MATCH(AV18,Schalldämpfer!$C$24:$K$24,0)),IF($AF$16=1000,INDEX(Schalldämpfer!$C$31:'Schalldämpfer'!$K$36,MATCH(Schalldämpfer!$AO$7,Schalldämpfer!$C$25:$C$30,-1),MATCH(AV18,Schalldämpfer!$C$24:$K$24,0)),IF($AF$16=1500,INDEX(Schalldämpfer!$C$37:'Schalldämpfer'!$K$42,MATCH(Schalldämpfer!$AO$7,Schalldämpfer!$C$25:$C$30,-1),MATCH(AV18,Schalldämpfer!$C$24:$K$24,0)),IF($AF$16=2000,INDEX(Schalldämpfer!$C$43:'Schalldämpfer'!$K$48,MATCH(Schalldämpfer!$AO$7,Schalldämpfer!$C$25:$C$30,-1),MATCH(AV18,Schalldämpfer!$C$24:$K$24,0)),IF($AF$16=2500,INDEX(Schalldämpfer!$C$49:'Schalldämpfer'!$K$54,MATCH(Schalldämpfer!$AO$7,Schalldämpfer!$C$25:$C$30,-1),MATCH(AV18,Schalldämpfer!$C$24:$K$24,0)),IF($AF$16=3000,INDEX(Schalldämpfer!$C$55:'Schalldämpfer'!$K$60,MATCH(Schalldämpfer!$AO$7,Schalldämpfer!$C$25:$C$30,-1),MATCH(AV18,Schalldämpfer!$C$24:$K$24,0)),0)))))),IF($AJ$16=200,IF($AF$16=500,INDEX(Schalldämpfer!$S$25:'Schalldämpfer'!$Z$33,MATCH(Schalldämpfer!$AO$7,Schalldämpfer!$R$25:$R$33,-1),MATCH(AV18,Schalldämpfer!$S$24:$Z$24,0)),IF($AF$16=1000,INDEX(Schalldämpfer!$S$34:'Schalldämpfer'!$Z$42,MATCH(Schalldämpfer!$AO$7,Schalldämpfer!$R$25:$R$33,-1),MATCH(AV18,Schalldämpfer!$S$24:$Z$24,0)),IF($AF$16=1500,INDEX(Schalldämpfer!$S$43:'Schalldämpfer'!$Z$51,MATCH(Schalldämpfer!$AO$7,Schalldämpfer!$R$25:$R$33,-1),MATCH(AV18,Schalldämpfer!$S$24:$Z$24,0)),IF($AF$16=2000,INDEX(Schalldämpfer!$S$52:'Schalldämpfer'!$Z$60,MATCH(Schalldämpfer!$AO$7,Schalldämpfer!$R$25:$R$33,-1),MATCH(AV18,Schalldämpfer!$S$24:$Z$24,0)),IF($AF$16=2500,INDEX(Schalldämpfer!$S$61:'Schalldämpfer'!$Z$69,MATCH(Schalldämpfer!$AO$7,Schalldämpfer!$R$25:$R$33,-1),MATCH(AV18,Schalldämpfer!$S$24:$Z$24,0)),IF($AF$16=3000,INDEX(Schalldämpfer!$S$70:'Schalldämpfer'!$Z$78,MATCH(Schalldämpfer!$AO$7,Schalldämpfer!$R$25:$R$33,-1),MATCH(AV18,Schalldämpfer!$S$24:$Z$24,0)),0)))))))),"k.W.") -> 34 | AW20: =IFERROR(IF($AJ$16=100,IF($AF$16=500,INDEX(Schalldämpfer!$C$25:'Schalldämpfer'!$K$30,MATCH(Schalldämpfer!$AO$7,Schalldämpfer!$C$25:$C$30,-1),MATCH(AW18,Schalldämpfer!$C$24:$K$24,0)),IF($AF$16=1000,INDEX(Schalldämpfer!$C$31:'Schalldämpfer'!$K$36,MATCH(Schalldämpfer!$AO$7,Schalldämpfer!$C$25:$C$30,-1),MATCH(AW18,Schalldämpfer!$C$24:$K$24,0)),IF($AF$16=1500,INDEX(Schalldämpfer!$C$37:'Schalldämpfer'!$K$42,MATCH(Schalldämpfer!$AO$7,Schalldämpfer!$C$25:$C$30,-1),MATCH(AW18,Schalldämpfer!$C$24:$K$24,0)),IF($AF$16=2000,INDEX(Schalldämpfer!$C$43:'Schalldämpfer'!$K$48,MATCH(Schalldämpfer!$AO$7,Schalldämpfer!$C$25:$C$30,-1),MATCH(AW18,Schalldämpfer!$C$24:$K$24,0)),IF($AF$16=2500,INDEX(Schalldämpfer!$C$49:'Schalldämpfer'!$K$54,MATCH(Schalldämpfer!$AO$7,Schalldämpfer!$C$25:$C$30,-1),MATCH(AW18,Schalldämpfer!$C$24:$K$24,0)),IF($AF$16=3000,INDEX(Schalldämpfer!$C$55:'Schalldämpfer'!$K$60,MATCH(Schalldämpfer!$AO$7,Schalldämpfer!$C$25:$C$30,-1),MATCH(AW18,Schalldämpfer!$C$24:$K$24,0)),0)))))),IF($AJ$16=200,IF($AF$16=500,INDEX(Schalldämpfer!$S$25:'Schalldämpfer'!$Z$33,MATCH(Schalldämpfer!$AO$7,Schalldämpfer!$R$25:$R$33,-1),MATCH(AW18,Schalldämpfer!$S$24:$Z$24,0)),IF($AF$16=1000,INDEX(Schalldämpfer!$S$34:'Schalldämpfer'!$Z$42,MATCH(Schalldämpfer!$AO$7,Schalldämpfer!$R$25:$R$33,-1),MATCH(AW18,Schalldämpfer!$S$24:$Z$24,0)),IF($AF$16=1500,INDEX(Schalldämpfer!$S$43:'Schalldämpfer'!$Z$51,MATCH(Schalldämpfer!$AO$7,Schalldämpfer!$R$25:$R$33,-1),MATCH(AW18,Schalldämpfer!$S$24:$Z$24,0)),IF($AF$16=2000,INDEX(Schalldämpfer!$S$52:'Schalldämpfer'!$Z$60,MATCH(Schalldämpfer!$AO$7,Schalldämpfer!$R$25:$R$33,-1),MATCH(AW18,Schalldämpfer!$S$24:$Z$24,0)),IF($AF$16=2500,INDEX(Schalldämpfer!$S$61:'Schalldämpfer'!$Z$69,MATCH(Schalldämpfer!$AO$7,Schalldämpfer!$R$25:$R$33,-1),MATCH(AW18,Schalldämpfer!$S$24:$Z$24,0)),IF($AF$16=3000,INDEX(Schalldämpfer!$S$70:'Schalldämpfer'!$Z$78,MATCH(Schalldämpfer!$AO$7,Schalldämpfer!$R$25:$R$33,-1),MATCH(AW18,Schalldämpfer!$S$24:$Z$24,0)),0)))))))),"k.W.") -> 21 | AX20: =IFERROR(IF($AJ$16=100,IF($AF$16=500,INDEX(Schalldämpfer!$C$25:'Schalldämpfer'!$K$30,MATCH(Schalldämpfer!$AO$7,Schalldämpfer!$C$25:$C$30,-1),MATCH(AX18,Schalldämpfer!$C$24:$K$24,0)),IF($AF$16=1000,INDEX(Schalldämpfer!$C$31:'Schalldämpfer'!$K$36,MATCH(Schalldämpfer!$AO$7,Schalldämpfer!$C$25:$C$30,-1),MATCH(AX18,Schalldämpfer!$C$24:$K$24,0)),IF($AF$16=1500,INDEX(Schalldämpfer!$C$37:'Schalldämpfer'!$K$42,MATCH(Schalldämpfer!$AO$7,Schalldämpfer!$C$25:$C$30,-1),MATCH(AX18,Schalldämpfer!$C$24:$K$24,0)),IF($AF$16=2000,INDEX(Schalldämpfer!$C$43:'Schalldämpfer'!$K$48,MATCH(Schalldämpfer!$AO$7,Schalldämpfer!$C$25:$C$30,-1),MATCH(AX18,Schalldämpfer!$C$24:$K$24,0)),IF($AF$16=2500,INDEX(Schalldämpfer!$C$49:'Schalldämpfer'!$K$54,MATCH(Schalldämpfer!$AO$7,Schalldämpfer!$C$25:$C$30,-1),MATCH(AX18,Schalldämpfer!$C$24:$K$24,0)),IF($AF$16=3000,INDEX(Schalldämpfer!$C$55:'Schalldämpfer'!$K$60,MATCH(Schalldämpfer!$AO$7,Schalldämpfer!$C$25:$C$30,-1),MATCH(AX18,Schalldämpfer!$C$24:$K$24,0)),0)))))),IF($AJ$16=200,IF($AF$16=500,INDEX(Schalldämpfer!$S$25:'Schalldämpfer'!$Z$33,MATCH(Schalldämpfer!$AO$7,Schalldämpfer!$R$25:$R$33,-1),MATCH(AX18,Schalldämpfer!$S$24:$Z$24,0)),IF($AF$16=1000,INDEX(Schalldämpfer!$S$34:'Schalldämpfer'!$Z$42,MATCH(Schalldämpfer!$AO$7,Schalldämpfer!$R$25:$R$33,-1),MATCH(AX18,Schalldämpfer!$S$24:$Z$24,0)),IF($AF$16=1500,INDEX(Schalldämpfer!$S$43:'Schalldämpfer'!$Z$51,MATCH(Schalldämpfer!$AO$7,Schalldämpfer!$R$25:$R$33,-1),MATCH(AX18,Schalldämpfer!$S$24:$Z$24,0)),IF($AF$16=2000,INDEX(Schalldämpfer!$S$52:'Schalldämpfer'!$Z$60,MATCH(Schalldämpfer!$AO$7,Schalldämpfer!$R$25:$R$33,-1),MATCH(AX18,Schalldämpfer!$S$24:$Z$24,0)),IF($AF$16=2500,INDEX(Schalldämpfer!$S$61:'Schalldämpfer'!$Z$69,MATCH(Schalldämpfer!$AO$7,Schalldämpfer!$R$25:$R$33,-1),MATCH(AX18,Schalldämpfer!$S$24:$Z$24,0)),IF($AF$16=3000,INDEX(Schalldämpfer!$S$70:'Schalldämpfer'!$Z$78,MATCH(Schalldämpfer!$AO$7,Schalldämpfer!$R$25:$R$33,-1),MATCH(AX18,Schalldämpfer!$S$24:$Z$24,0)),0)))))))),"k.W.") -> 14 | BC20: 4 | BD20: 7 | BE20: 13 | BF20: 27 | BG20: 47 | BH20: 47 | BI20: 30 | BJ20: 18 | BM20: =IFERROR(IF($BB$16=500,INDEX(Schalldämpfer!$BZ$14:$CI$25,MATCH(Schalldämpfer!$CE$6,Schalldämpfer!$BZ$14:$BZ$25,-1),MATCH(BM18,Schalldämpfer!$BZ$14:$CI$14)),IF($BB$16=1000,INDEX(Schalldämpfer!$CV$14:$DE$25,MATCH(Schalldämpfer!$CE$6,Schalldämpfer!$CV$14:$CV$25,-1),MATCH(BM18,Schalldämpfer!$CV$14:$DE$14)),IF($BB$16=1500,INDEX(Schalldämpfer!$CK$14:$CT$25,MATCH(Schalldämpfer!$CE$6,Schalldämpfer!$CK$14:$CK$25,-1),MATCH(BM18,Schalldämpfer!$CK$14:$CT$14)),0))),"k.W.") -> 5 | BN20: =IFERROR(IF($BB$16=500,INDEX(Schalldämpfer!$BZ$14:$CI$25,MATCH(Schalldämpfer!$CE$6,Schalldämpfer!$BZ$14:$BZ$25,-1),MATCH(BN18,Schalldämpfer!$BZ$14:$CI$14)),IF($BB$16=1000,INDEX(Schalldämpfer!$CV$14:$DE$25,MATCH(Schalldämpfer!$CE$6,Schalldämpfer!$CV$14:$CV$25,-1),MATCH(BN18,Schalldämpfer!$CV$14:$DE$14)),IF($BB$16=1500,INDEX(Schalldämpfer!$CK$14:$CT$25,MATCH(Schalldämpfer!$CE$6,Schalldämpfer!$CK$14:$CK$25,-1),MATCH(BN18,Schalldämpfer!$CK$14:$CT$14)),0))),"k.W.") -> 8 | BO20: =IFERROR(IF($BB$16=500,INDEX(Schalldämpfer!$BZ$14:$CI$25,MATCH(Schalldämpfer!$CE$6,Schalldämpfer!$BZ$14:$BZ$25,-1),MATCH(BO18,Schalldämpfer!$BZ$14:$CI$14)),IF($BB$16=1000,INDEX(Schalldämpfer!$CV$14:$DE$25,MATCH(Schalldämpfer!$CE$6,Schalldämpfer!$CV$14:$CV$25,-1),MATCH(BO18,Schalldämpfer!$CV$14:$DE$14)),IF($BB$16=1500,INDEX(Schalldämpfer!$CK$14:$CT$25,MATCH(Schalldämpfer!$CE$6,Schalldämpfer!$CK$14:$CK$25,-1),MATCH(BO18,Schalldämpfer!$CK$14:$CT$14)),0))),"k.W.") -> 14 | BP20: =IFERROR(IF($BB$16=500,INDEX(Schalldämpfer!$BZ$14:$CI$25,MATCH(Schalldämpfer!$CE$6,Schalldämpfer!$BZ$14:$BZ$25,-1),MATCH(BP18,Schalldämpfer!$BZ$14:$CI$14)),IF($BB$16=1000,INDEX(Schalldämpfer!$CV$14:$DE$25,MATCH(Schalldämpfer!$CE$6,Schalldämpfer!$CV$14:$CV$25,-1),MATCH(BP18,Schalldämpfer!$CV$14:$DE$14)),IF($BB$16=1500,INDEX(Schalldämpfer!$CK$14:$CT$25,MATCH(Schalldämpfer!$CE$6,Schalldämpfer!$CK$14:$CK$25,-1),MATCH(BP18,Schalldämpfer!$CK$14:$CT$14)),0))),"k.W.") -> 30 | BQ20: =IFERROR(IF($BB$16=500,INDEX(Schalldämpfer!$BZ$14:$CI$25,MATCH(Schalldämpfer!$CE$6,Schalldämpfer!$BZ$14:$BZ$25,-1),MATCH(BQ18,Schalldämpfer!$BZ$14:$CI$14)),IF($BB$16=1000,INDEX(Schalldämpfer!$CV$14:$DE$25,MATCH(Schalldämpfer!$CE$6,Schalldämpfer!$CV$14:$CV$25,-1),MATCH(BQ18,Schalldämpfer!$CV$14:$DE$14)),IF($BB$16=1500,INDEX(Schalldämpfer!$CK$14:$CT$25,MATCH(Schalldämpfer!$CE$6,Schalldämpfer!$CK$14:$CK$25,-1),MATCH(BQ18,Schalldämpfer!$CK$14:$CT$14)),0))),"k.W.") -> 47 | BR20: =IFERROR(IF($BB$16=500,INDEX(Schalldämpfer!$BZ$14:$CI$25,MATCH(Schalldämpfer!$CE$6,Schalldämpfer!$BZ$14:$BZ$25,-1),MATCH(BR18,Schalldämpfer!$BZ$14:$CI$14)),IF($BB$16=1000,INDEX(Schalldämpfer!$CV$14:$DE$25,MATCH(Schalldämpfer!$CE$6,Schalldämpfer!$CV$14:$CV$25,-1),MATCH(BR18,Schalldämpfer!$CV$14:$DE$14)),IF($BB$16=1500,INDEX(Schalldämpfer!$CK$14:$CT$25,MATCH(Schalldämpfer!$CE$6,Schalldämpfer!$CK$14:$CK$25,-1),MATCH(BR18,Schalldämpfer!$CK$14:$CT$14)),0))),"k.W.") -> 47 | BS20: =IFERROR(IF($BB$16=500,INDEX(Schalldämpfer!$BZ$14:$CI$25,MATCH(Schalldämpfer!$CE$6,Schalldämpfer!$BZ$14:$BZ$25,-1),MATCH(BS18,Schalldämpfer!$BZ$14:$CI$14)),IF($BB$16=1000,INDEX(Schalldämpfer!$CV$14:$DE$25,MATCH(Schalldämpfer!$CE$6,Schalldämpfer!$CV$14:$CV$25,-1),MATCH(BS18,Schalldämpfer!$CV$14:$DE$14)),IF($BB$16=1500,INDEX(Schalldämpfer!$CK$14:$CT$25,MATCH(Schalldämpfer!$CE$6,Schalldämpfer!$CK$14:$CK$25,-1),MATCH(BS18,Schalldämpfer!$CK$14:$CT$14)),0))),"k.W.") -> 37 | BT20: =IFERROR(IF($BB$16=500,INDEX(Schalldämpfer!$BZ$14:$CI$25,MATCH(Schalldämpfer!$CE$6,Schalldämpfer!$BZ$14:$BZ$25,-1),MATCH(BT18,Schalldämpfer!$BZ$14:$CI$14)),IF($BB$16=1000,INDEX(Schalldämpfer!$CV$14:$DE$25,MATCH(Schalldämpfer!$CE$6,Schalldämpfer!$CV$14:$CV$25,-1),MATCH(BT18,Schalldämpfer!$CV$14:$DE$14)),IF($BB$16=1500,INDEX(Schalldämpfer!$CK$14:$CT$25,MATCH(Schalldämpfer!$CE$6,Schalldämpfer!$CK$14:$CK$25,-1),MATCH(BT18,Schalldämpfer!$CK$14:$CT$14)),0))),"K.W.") -> 23 | BY20: 2 | BZ20: 3 | CA20: 6 | CB20: 13 | CC20: 28 | CD20: 19 | CE20: 9 | CF20: 8 | CI20: =IFERROR(IF($BX$16=500,INDEX(Schalldämpfer!$DJ$15:$DS$22,MATCH(Schalldämpfer!$DL$10,Schalldämpfer!$DJ$15:$DJ$22,-1),MATCH('Berechnung bündige Lamellen'!CI18,Schalldämpfer!$DJ$15:$DS$15,0)),IF($BX$16=1000,INDEX(Schalldämpfer!$DV$15:$EE$22,MATCH(Schalldämpfer!$DL$10,Schalldämpfer!$DV$15:$DV$22,-1),MATCH('Berechnung FO-über_ohne_Schatte'!CX19,Schalldämpfer!$DV$15:$EE$15,0)),0)),"k.W.") -> k.W. | CJ20: =IFERROR(IF($BX$16=500,INDEX(Schalldämpfer!$DJ$15:$DS$22,MATCH(Schalldämpfer!$DL$10,Schalldämpfer!$DJ$15:$DJ$22,-1),MATCH('Berechnung bündige Lamellen'!CJ18,Schalldämpfer!$DJ$15:$DS$15,0)),IF($BX$16=1000,INDEX(Schalldämpfer!$DV$15:$EE$22,MATCH(Schalldämpfer!$DL$10,Schalldämpfer!$DV$15:$DV$22,-1),MATCH('Berechnung FO-über_ohne_Schatte'!CY19,Schalldämpfer!$DV$15:$EE$15,0)),0)),"k.W.") -> k.W. | CK20: =IFERROR(IF($BX$16=500,INDEX(Schalldämpfer!$DJ$15:$DS$22,MATCH(Schalldämpfer!$DL$10,Schalldämpfer!$DJ$15:$DJ$22,-1),MATCH('Berechnung bündige Lamellen'!CK18,Schalldämpfer!$DJ$15:$DS$15,0)),IF($BX$16=1000,INDEX(Schalldämpfer!$DV$15:$EE$22,MATCH(Schalldämpfer!$DL$10,Schalldämpfer!$DV$15:$DV$22,-1),MATCH('Berechnung FO-über_ohne_Schatte'!CZ19,Schalldämpfer!$DV$15:$EE$15,0)),0)),"k.W.") -> k.W. | CL20: =IFERROR(IF($BX$16=500,INDEX(Schalldämpfer!$DJ$15:$DS$22,MATCH(Schalldämpfer!$DL$10,Schalldämpfer!$DJ$15:$DJ$22,-1),MATCH('Berechnung bündige Lamellen'!CL18,Schalldämpfer!$DJ$15:$DS$15,0)),IF($BX$16=1000,INDEX(Schalldämpfer!$DV$15:$EE$22,MATCH(Schalldämpfer!$DL$10,Schalldämpfer!$DV$15:$DV$22,-1),MATCH('Berechnung FO-über_ohne_Schatte'!DA19,Schalldämpfer!$DV$15:$EE$15,0)),0)),"k.W.") -> k.W. | CM20: =IFERROR(IF($BX$16=500,INDEX(Schalldämpfer!$DJ$15:$DS$22,MATCH(Schalldämpfer!$DL$10,Schalldämpfer!$DJ$15:$DJ$22,-1),MATCH('Berechnung bündige Lamellen'!CM18,Schalldämpfer!$DJ$15:$DS$15,0)),IF($BX$16=1000,INDEX(Schalldämpfer!$DV$15:$EE$22,MATCH(Schalldämpfer!$DL$10,Schalldämpfer!$DV$15:$DV$22,-1),MATCH('Berechnung FO-über_ohne_Schatte'!DB19,Schalldämpfer!$DV$15:$EE$15,0)),0)),"k.W.") -> k.W. | CN20: =IFERROR(IF($BX$16=500,INDEX(Schalldämpfer!$DJ$15:$DS$22,MATCH(Schalldämpfer!$DL$10,Schalldämpfer!$DJ$15:$DJ$22,-1),MATCH('Berechnung bündige Lamellen'!CN18,Schalldämpfer!$DJ$15:$DS$15,0)),IF($BX$16=1000,INDEX(Schalldämpfer!$DV$15:$EE$22,MATCH(Schalldämpfer!$DL$10,Schalldämpfer!$DV$15:$DV$22,-1),MATCH('Berechnung FO-über_ohne_Schatte'!DC19,Schalldämpfer!$DV$15:$EE$15,0)),0)),"k.W.") -> k.W. | CO20: =IFERROR(IF($BX$16=500,INDEX(Schalldämpfer!$DJ$15:$DS$22,MATCH(Schalldämpfer!$DL$10,Schalldämpfer!$DJ$15:$DJ$22,-1),MATCH('Berechnung bündige Lamellen'!CO18,Schalldämpfer!$DJ$15:$DS$15,0)),IF($BX$16=1000,INDEX(Schalldämpfer!$DV$15:$EE$22,MATCH(Schalldämpfer!$DL$10,Schalldämpfer!$DV$15:$DV$22,-1),MATCH('Berechnung FO-über_ohne_Schatte'!DD19,Schalldämpfer!$DV$15:$EE$15,0)),0)),"k.W.") -> k.W. | CP20: =IFERROR(IF($BX$16=500,INDEX(Schalldämpfer!$DJ$15:$DS$22,MATCH(Schalldämpfer!$DL$10,Schalldämpfer!$DJ$15:$DJ$22,-1),MATCH('Berechnung bündige Lamellen'!CP18,Schalldämpfer!$DJ$15:$DS$15,0)),IF($BX$16=1000,INDEX(Schalldämpfer!$DV$15:$EE$22,MATCH(Schalldämpfer!$DL$10,Schalldämpfer!$DV$15:$DV$22,-1),MATCH('Berechnung FO-über_ohne_Schatte'!DE19,Schalldämpfer!$DV$15:$EE$15,0)),0)),"k.W.") -> k.W.
D22: =IF(Dachform=1,"","Höhe Kopfbereich") ->  | E22: =IF(Dachform=1,"","L3") ->  | F22: =J22 -> 60 | G22: =IF(Dachform=1,"","mm") ->  | J22: =IFERROR(IF(Dachform=1,F16,IF(Dachform=3,F16*2,IF(Dachform=2,ROUNDUP((F16*2+F12*TAN(Auswertung!D19/180*PI()))/10,0)*10,F16))),"") -> 60 | K22: =IFERROR(IF(Dachform=1,K16,IF(Dachform=3,K16*2,IF(Dachform=2,ROUNDUP((K16*2+K12*TAN(Auswertung!D19/180*PI()))/10,0)*10,K16))),"") -> 60 | O22: =F16 -> 60 | Q22: Kopfbereich gleich oder größer als Lamellenhöhe. | R22: =EXACT(F22,K22) -> TRUE
D24: Gesamthöhe | E24: L | F24: =IFERROR(F18+F20+F22,"") -> 3540 | G24: mm
X25: =IF(Schalldämpfer,"Für korrekte Angaben zu Druckverlust und Schallleistung ist nach einem Durchmesserwechsel immer auch eine Aktualisierung der Schalldämpferberechnung notwendig."&CHAR(10)&"k.W. = keine Werte (bitte Luftgeschw. reduzieren)","") -> 
D26: =IF(OR(Auswertung!B62=1,Auswertung!B62=3),"Bodenplatte*","Rundflansch") -> Bodenplatte* | E26: =IF(OR(Auswertung!B62=1,Auswertung!B62=3),"Bp","") -> Bp | F26: =IFERROR(IF(OR(Auswertung!B62=1,Auswertung!B62=3),F12+IF(Auswertung!B62=3,300,100),"n. Statik"),"") -> 800 | G26: =IF(OR(Auswertung!B62=1,Auswertung!B62=3),"mm","") -> mm | I26: =F26 -> 800 | J26: =J12+'Kamindaten bündige Lamellen'!$P$4 -> 800 | K26: =IFERROR(IF(OR(Auswertung!B62=1,Auswertung!B62=3),K12+'Kamindaten bündige Lamellen'!$P$4,"n. Statik"),"") -> 800 | O26: =F12+100 -> 800 | P26: 3000 | Q26: Bodenplatte mind. 100 mm größer als Außendurchmesser. | R26: =IF(Auswertung!B62=1,EXACT(F26,K26),TRUE) -> TRUE | W26: =IF('Kamindaten bündige Lamellen'!AI13,"→","") ->  | AR26: =IF(Auswertung!H51=2,"n. Statik",IF(OR(Auswertung!B38=3,Auswertung!B38=4,Auswertung!B47=2,Auswertung!B47=3),IF(Auswertung!B69=0,IF(F24>8000,"n. Statik",3),IF(F24>16000,"n. Statik",3)),IF(Auswertung!B69,IF(F12<1399,IF(F24<11999,2,IF(F24<15999,3,"n. Statik")), IF(F24<15999,3,"n.Statik")),IF(F12<499,IF(F24<4999,2,IF(F24<7999,3,"n. Statik")),IF(F12<1399,IF(F24<7999,2,"n.Statik"),IF(F24<7999,3,"n. Statik")))))) -> 2 | AS26: Blechstärke
D28: Lochblech freier Querschnitt | F28: 64 | G28: % | H28: x | I28: 64 | J28: 64 | K28: 64
H29: x
D30: Vogelschutzgitter freier Querschnitt | F30: 77 | G30: % | H30: x | I30: 77 | J30: 77 | K30: 77
H31: x
D32: =IF(OR(VALUE(TLD)=111,VALUE(TLD)=211),"Lamellenanzahl (gesamt)","Lamellenanzahl (aktiv)") -> Lamellenanzahl (aktiv) | E32: =IF(VALUE(TLD)=111,"n",IF(VALUE(TLD)=211,"","")) ->  | F32: =I32 -> 8 | G32: Stück | I32: =IFERROR(ROUNDUP(IF(Auswertung!H48,360/Auswertung!H47,1)*IF(TLD_LD=11,J32+1,J32),0),"") -> 8 | J32: =IF(AND('Kamindaten bündige Lamellen'!$AI$12=1,'Berechnung bündige Lamellen'!$F$12<='Kamindaten bündige Lamellen'!$AQ$16),ROUNDUP(F10/3600/(2.2*$K$28/100)/PI()*100000000/(F14*F16*$K$28),0),ROUNDUP(F10/3600/2.5/PI()*100000000/(F14*F16*K$28),0)) -> 8 | K32: =IFERROR(ROUNDUP(IF(Auswertung!H48,360/Auswertung!H47,1)*IF(TLD_LD=11,J34+1,J34),0),"") -> 8 | O32: =IF(F10="",0,ROUNDUP($F$10/3600/2.5/PI()*100000000/(F14*F16*F28),0)) -> 8 | R32: =EXACT(F32,K32) -> TRUE | AR32: =Blechstärkenberechnung(Auswertung!H51,Auswertung!B38,Auswertung!B69,F24,F12) -> 2
D34: =IF(Auswertung!I21="ja","Durchmesser",IF(TLD_D=2,"Lamellenanzahl (gesamt)","")) -> Lamellenanzahl (gesamt) | E34: =IF(Auswertung!I21="ja","ØD",IF(TLD_D=2,"n","")) -> n | F34: =I34 -> 9 | G34: =IF(Auswertung!I21="ja","mm",IF(TLD_D=2,"Stück","")) -> Stück | I34: =IFERROR(IF(OR(Auswertung!I21="ja",TLD_D=2),IF(VALUE(TLD)=111,F14-2*(IF((F14-SQRT('Berechnung bündige Lamellen'!$F$10/3600/'Kamindaten bündige Lamellen'!$G$1/PI())*2*1000)/2<20,"0",IF((F14-SQRT('Berechnung bündige Lamellen'!$F$10/3600/'Kamindaten bündige Lamellen'!$G$1/PI())*2*1000)/2<80,ROUND((F14-SQRT('Berechnung bündige Lamellen'!$F$10/3600/'Kamindaten bündige Lamellen'!$G$1/PI())*2*1000)/10,0)*10/2,IF((F14-SQRT('Berechnung bündige Lamellen'!$F$10/3600/'Kamindaten bündige Lamellen'!$G$1/PI())*2*1000)<F14/2,ROUND((F14-SQRT('Berechnung bündige Lamellen'!$F$10/3600/'Kamindaten bündige Lamellen'!$G$1/PI())*2*1000)/20,0)*20/2,F14/2)))),IF(VALUE(TLD)=211,"",F32+1)),""),"") -> 9 | J34: =IF(AND('Kamindaten bündige Lamellen'!$AI$12=1,'Berechnung bündige Lamellen'!$K$12<='Kamindaten bündige Lamellen'!$AQ$16),ROUNDUP(F10/3600/(2.2*$K$28/100)/PI()*100000000/(K14*K16*$K$28),0),ROUNDUP(F10/3600/2.5/PI()*100000000/(K14*K16*K$28),0)) -> 8 | K34: =IFERROR(IF(OR(Auswertung!I21="ja",TLD_D=2),IF(VALUE(TLD)=111,K14-2*(IF((K14-SQRT('Berechnung bündige Lamellen'!$F$10/3600/'Kamindaten bündige Lamellen'!$G$1/PI())*2*1000)/2<20,"0",IF((K14-SQRT('Berechnung bündige Lamellen'!$F$10/3600/'Kamindaten bündige Lamellen'!$G$1/PI())*2*1000)/2<80,ROUND((K14-SQRT('Berechnung bündige Lamellen'!$F$10/3600/'Kamindaten bündige Lamellen'!$G$1/PI())*2*1000)/10,0)*10/2,IF((K14-SQRT('Berechnung bündige Lamellen'!$F$10/3600/'Kamindaten bündige Lamellen'!$G$1/PI())*2*1000)<K14/2,ROUND((K14-SQRT('Berechnung bündige Lamellen'!$F$10/3600/'Kamindaten bündige Lamellen'!$G$1/PI())*2*1000)/20,0)*20/2,K14/2)))),IF(VALUE(TLD)=211,"",K32+1)),""),"") -> 9 | R34: =EXACT(F34,K34) -> TRUE
D36: Strömungsgeräusch ØA | F36: =(5+50*(LOG(F48)))+(10*(LOG(F42))) -> 28.71759334 | G36: dB(A) | H36: x | I36: =(5+50*(LOG(F48)))+(10*(LOG(F42))) -> 28.71759334 | J36: =(5+50*(LOG(J48)))+(10*(LOG(J42))) -> 28.71759334 | K36: =(5+50*(LOG(K48)))+(10*(LOG(K42))) -> 28.71759334 | R36: =EXACT(AA54,AR26) -> TRUE
H37: x
D38: Querschnitt ØD | F38: =(F34^2)/4*PI()/1000000 -> 6.361725124e-05 | G38: m² | H38: x | K38: =(K34^2)/4*PI()/1000000 -> 6.361725124e-05
H39: x
D40: Strömungsgeräusch Lochblech | F40: =(5+50*(LOG(F52)))+(10*(LOG(F46))) -> 22.20906869 | G40: dB(A) | H40: x | I40: =(5+50*(LOG(F52)))+(10*(LOG(F46))) -> 22.20906869 | J40: =(5+50*(LOG(J52)))+(10*(LOG(J46))) -> 22.20906869 | K40: =(5+50*(LOG(K52)))+(10*(LOG(K46))) -> 22.20906869
H41: x
D42: Querschnitt ØA | F42: =SUM((F12*F12*PI())/4/1000/1000) -> 0.3848451001 | G42: m² | H42: x | I42: =SUM((F12*F12*PI())/4/1000/1000) -> 0.3848451001 | J42: =SUM((J12*J12*PI())/4/1000/1000) -> 0.3848451001 | K42: =SUM((K12*K12*PI())/4/1000/1000) -> 0.3848451001
H43: x
D44: Querschnitt ØB | F44: =SUM((F14*F14*PI())/4/1000000) -> 0.2642079422 | G44: m² | H44: x | I44: =SUM((F14*F14*PI())/4/1000/1000) -> 0.2642079422 | J44: =SUM((J14*J14*PI())/4/1000/1000) -> 0.2642079422 | K44: =SUM((K14*K14*PI())/4/1000/1000) -> 0.2642079422
H45: x
D46: Querschnitt Lochblech | F46: =F16*F32/1000*PI()*F14/1000*F28/100 -> 0.5597564126 | G46: m² | H46: x | I46: =F16*F32/1000*PI()*F14/1000*F28/100 -> 0.5597564126 | J46: =J16*J32/1000*PI()*J14/1000*J28/100 -> 0.5597564126 | K46: =K16*K32/1000*PI()*K14/1000*K28/100 -> 0.5597564126
H47: x
D48: Luftgeschwindigkeit ØA | E48: v | F48: =IFERROR(SUM(($F$10)/3600/F42),"k.A.") -> 3.608233835 | G48: m/s | I48: =SUM(($F$10)/3600/F42) -> 3.608233835 | J48: =SUM(($F$10)/3600/J42) -> 3.608233835 | K48: =IFERROR(SUM(($F$10)/3600/K42),"") -> 3.608233835 | W48: =IF('Kamindaten bündige Lamellen'!AI13,"→"&CHAR(10),"") ->  | X48: =IF('Kamindaten bündige Lamellen'!AI13,"Für die Werte zur Schalldämmberechnung des Schalldämpfers bitte nach rechts scrollen.","") -> 
D50: Luftgeschwindigkeit ØB | E50: v | F50: =IFERROR(IF(F48=0,0,SUM(($F$10)/3600/F44)),"k.A.") -> 5.255750829 | G50: m/s | I50: =SUM(($F$10)/3600/F44) -> 5.255750829 | J50: =SUM(($F$10)/3600/J44) -> 5.255750829 | K50: =IFERROR(SUM(($F$10)/3600/K44),"") -> 5.255750829 | M50: =IF('Kamindaten bündige Lamellen'!G4 = "6",IF(F50>'Kamindaten bündige Lamellen'!$G$4,"Ausserhalb des Standards!",""),"") ->  | P50: ='Kamindaten bündige Lamellen'!$G$4 -> 6 | Q50: Blechstärke Rohr | R50: =EXACT(AA54,AR26) -> TRUE
D52: =IFERROR(IF(Auswertung!I21="ja","Luftgeschwindigkeit ØD",IF(Auswertung!B27=1,"","Ø Luftgeschwindigkeit Lamelle")),"") -> Ø Luftgeschwindigkeit Lamelle | E52: =IF(OR(Auswertung!I21="ja",TLD_D=2),"v","") -> v | F52: =IFERROR(IF(Auswertung!$H$48,360/Auswertung!H47,1)*IF(Auswertung!$I$21="ja",$F$10/3600/F38/F30*100,IF(TLD_D=2,IF($F$10=0,0,$F$10/3600/F46),"")),"") -> 2.480741765 | G52: =IF(OR(Auswertung!I21="ja",TLD_D=2),"m/s","") -> m/s | I52: =IF($F$10=0,0,$F$10/3600/F46) -> 2.480741765 | J52: =IF($F$10=0,0,$F$10/3600/J46) -> 2.480741765 | K52: =IFERROR(IF(Auswertung!$H$48,360/Auswertung!H47,1)*IF(Auswertung!$I$21="ja",$F$10/3600/K38/K30*100,IF(TLD_D=2,IF($F$10=0,0,$F$10/3600/K46),"")),"") -> 2.480741765 | M52: =IF(OR(VALUE(TLD)=211,VALUE(TLD)=111),"",IF(F52>2.5,"Ausserhalb des Standards!","")) ->  | P52: 2.5
M53: =IF(ISNA(IF(F54="k. A.","Ausserhalb des Standards!",)),"",IF(F54="k. A.","Ausserhalb des Standards!","")) -> 
D54: Druckverlust | E54: DP | F54: =IFERROR(IF(Auswertung!B31=2,"k.A.",IF(ISNA(J54),"k.A.",J54)),"k.A.") -> 58.56587232 | G54: Pa | I54: =VLOOKUP(F48,'Kamindaten bündige Lamellen'!$AA$5:$AB$85,2) -> 18.84 | J54: =IF(OR(AND('Kamindaten bündige Lamellen'!AI12,F12>='Kamindaten bündige Lamellen'!AQ14),AND('Kamindaten bündige Lamellen'!AI12=1,F12<'Kamindaten bündige Lamellen'!AQ14,R7<>1)),"k.A.",IF(VALUE(TLD)=111,P78*((1.2/2)*'Kamindaten bündige Lamellen'!AH29*F48^2+(1.2/2)*'Kamindaten bündige Lamellen'!AH32*F50^2+(1.2/2)*'Kamindaten bündige Lamellen'!AH35*(IF(Auswertung!I21="nein",F50,F52))^2+(1.2/2)*'Kamindaten bündige Lamellen'!AH38*IF(Auswertung!I21="nein",F50,F52)^2),IF(VALUE(TLD)=211,P78*((1.2/2)*'Kamindaten bündige Lamellen'!AH29*F48^2+(1.2/2)*'Kamindaten bündige Lamellen'!AH32*F50^2+(1.2/2)*'Kamindaten bündige Lamellen'!AH38*F50^2),IF(VALUE(TLD)=112,P78*((1.2/2)*'Kamindaten bündige Lamellen'!AH29*F48^2+ZetaLBKuLam!C18),P78*((1.2/2)*'Kamindaten bündige Lamellen'!AH29*F48^2+ZetaLBKuLam!C18))))) -> 58.56587232 | K54: =IFERROR(IF(OR(AND('Kamindaten bündige Lamellen'!AI12,F12>1499),AND('Kamindaten bündige Lamellen'!AI12=1,F12<500,R7<>1,)),"k.A.",IF(VALUE(TLD)=111,P78*((1.2/2)*'Kamindaten bündige Lamellen'!AH29*K48^2+(1.2/2)*'Kamindaten bündige Lamellen'!AH32*K50^2+(1.2/2)*'Kamindaten bündige Lamellen'!AH35*(IF(Auswertung!I21="nein",K50,K52))^2+(1.2/2)*'Kamindaten bündige Lamellen'!AH38*(IF(Auswertung!I21="nein",K50,K52))^2),IF(VALUE(TLD)=211,P78*((1.2/2)*'Kamindaten bündige Lamellen'!AH29*K48^2+(1.2/2)*'Kamindaten bündige Lamellen'!AH32*K50^2+(1.2/2)*'Kamindaten bündige Lamellen'!AH38*K50^2),IF(VALUE(TLD)=112,P78*((1.2/2)*'Kamindaten bündige Lamellen'!AH29*K48^2+ZetaLBKuLam!H18),P78*((1.2/2)*'Kamindaten bündige Lamellen'!AH29*K48^2+ZetaLBKuLam!H18))))),"") -> 58.56587232 | Y54: Bleckstärke Rohr: | AA54: =AR26 -> 2
D56: Schallleistungspegel(vom Turm ohne SD) | E56: LwA | F56: =IFERROR(IF(ISNA(IF(F54="k.A.","k.A.",IF(I56<0,0,IF(I56<30,"<30",I56)))),"k.A.",IF(F54="k.A.","k.A.",IF(I56<0,0,IF(I56<30,"<30",I56)))),"k.A.") -> 39 | G56: dB(A) | I56: =IF(VALUE(TLD)=111,ROUNDUP(P79+(70*LOG(IF(Auswertung!I21="nein",F50,F52)/0.77)+10*LOG(F38*F30/100)-25),0),IF(VALUE(TLD)=211,ROUNDUP(P79+(70*LOG(F50/0.77)+10*LOG(F44*F30/100)-25),0),IF(ROUNDUP(P80+(10*LOG(10^((70*LOG(1.4*F50)+10*LOG(F44)-25)/10)+10^((70*LOG(3*F52)+10*LOG(F46)-25)/10))),0)<0,0,ROUNDUP(P80+(10*LOG(10^((70*LOG(1.4*F50)+10*LOG(F44)-25)/10)+10^((70*LOG(3*F52)+10*LOG(F46)-25)/10))),0)))) -> 39 | J56: =IF(F56="<30","30",F56) -> 39 | K56: =IFERROR(IF(J58<0,0,IF(K32<K32,"k.A.",IF(J58<30,"<30",J58))),"") -> 106 | M56: =IF(ISNA(IF(VALUE(TLD)=211,"",IF(F56="k. A.","Ausserhalb des Standards!",""))),"",IF(VALUE(TLD)=211,"",IF(F56="k. A.","Ausserhalb des Standards!",""))) ->  | P56: Gesamtcode | Q56: 0 | Y56: Achtung: Voraussichtliche Wandstärke Die tatsächliche Wandstärke wird definiert nach statischer Berechnung
D58: Entfernung von der Lärmquelle | E58: d | F58: 3 | G58: m | J58: =IF(VALUE(TLD)=111,ROUNDUP(P79*(70*LOG(IF(Auswertung!I21="nein",K50,K52)/0.77)+10*LOG(K38*K30/100)-25),0),IF(VALUE(TLD)=211,ROUNDUP(P79*(70*LOG(K50/0.77)+10*LOG(K44*K30/100)-25),0),IF(ROUNDUP(P80*(10*LOG(10^((70*LOG(1.4*K50)+10*LOG(K44)-25)/10)+10^((70*LOG(3*K52)+10*LOG(K46)-25)/10))),0)<0,0,ROUNDUP(P80*(10*LOG(10^((70*LOG(1.4*K50)+10*LOG(K44)-25)/10)+10^((70*LOG(3*K52)+10*LOG(K46)-25)/10))),0)))) -> 106
D60: Schalldruckpegel in der Entfernung** | E60: LpA | F60: =IF(ISNA(IF(F56="k.A.","k.A.",IF(I60="k.A.","k. A.",IF(I60<0,0,I60)))),"k.A.",IF(F56="k.A.","k.A.",IF(I60="k.A.","k. A.",IF(I60<0,0,I60)))) -> 22 | G60: dB(A) | I60: =IF(F56="k.A.","k.A.",IF(F56="<30","<"&I70,IF(F58=0,J56,IF(OR(ROUNDUP(J56-10*LOG(2*PI()*F58^2),0)<0,F58<0),0,ROUNDUP(J56-10*LOG(2*PI()*F58^2),0))))) -> 22 | J60: =VLOOKUP(J48,'Kamindaten bündige Lamellen'!$AA$5:$AC$85,3) -> 25.37 | K60: =IFERROR(IF(J70="k.A.","k. A.",IF(J70<0,0,J70)),"k.A.") -> 22 | M60: =IF(ISNA(IF(VALUE(TLD)=211,"",IF(F60="k. A.","Ausserhalb des Standards!",""))),"",IF(VALUE(TLD)=211,"",IF(F60="k. A.","Ausserhalb des Standards!",""))) -> 
H61: x
D62: Windlastzone | H62: x
D63: Sicherheitsklasse | H63: x
D64: Aufstandhöhe über Gelände | H64: x
D65: Fundamentlasten | E65: Vertikallast | G65: kN | H65: x
E66: Holizontallast | G66: kN | H66: x
E67: Moment | G67: kNm | H67: x
E68: Dübel-Z-Last | G68: kN | H68: x
D70: Bemerkungen: | I70: =IF(F58=0,J56,IF(OR(ROUNDUP(J56-10*LOG(2*PI()*F58^2),0)<0,F58<0),0,ROUNDUP(J56-10*LOG(2*PI()*F58^2),0))) -> 22 | J70: =IF(K56="k.A.","k.A.",IF(K56="<30","<"&I70,IF(F58=0,J56,IF(OR(ROUNDUP(J56-10*LOG(2*PI()*F58^2),0)<0,F58<0),0,ROUNDUP(J56-10*LOG(2*PI()*F58^2),0))))) -> 22
P74: =SQRT($F$10/3600/'Kamindaten bündige Lamellen'!$G$4*4/PI()*1000000) -> 542.837388
D76: Pos.:
N77: Sicherheiten:
D78: Lieferumfang: → Lüftungsturm → Befestigungsdübel gemäß Herstellerangaben → Kranösen, Blitzschutzlaschen → Montageanleitung | N78: Druckverlust | P78: 1
N79: Schall Dach offen | P79: 3 | Q79: [db]
N80: Schall Dach zu | P80: 3 | Q80: [db]
A84: * Maß und Form der Bodenplatte nur vorläufig. Verbindliche Angaben nach statischer Berechnung. ** bei halbkugelförmiger Schallausbreitung - Lärmquelle in Bodennähe, Schalldruckpegel vom Turm ohne Schalldämpfer (SD) Genaue Berechnung siehe VDI-Richtlinie 2714 *** Durchmesserabweichungen +/- 5% (Handelsformate) | D84: Bei der angegebenen Schalleistung wurden die Schallwerte nach DIN 45635 mit einer Toleranz von ± 5 dB(A) ermittelt. Die Schalleistung im Turm entsteht durch das Strömungsrauschen. Die in den Lüftungsturm eingebrachte Schalleistung von Bauteilen in der Anschlussleitung muss mindestens 10 dB geringer sein als das Strömungsrauschen des Turms. Filter werden nur mit ihrem Anfangsdruckverlust berücksichtigt.
A90: ="Typenschlüssel lang: " & 'Match-Code'!O12 -> Typenschlüssel lang: AU-Ø700-H3,54-1.4301-LAS01-Bp(s)-(1x)-Lochb-Dger

Sheet Kamindaten bündige Lamellen (hidden)
A1: 1 | B1: 2 | C1: 3 | D1: 4 | E1: 5 | F1: =2.2/SIN(AQ15)*0.77 -> 2.395677775 | G1: 5 | H1: 8 | I1: 9 | J1: 10 | K1: 11 | L1: 12 | M1: 13 | N1: 14 | O1: 15 | P1: 16 | Q1: 17 | R1: 18 | S1: 19 | T1: 20 | U1: 21 | V1: 22 | W1: 23 | X1: 24 | Y1: 25 | Z1: 26 | AA1: 27 | AB1: 28 | AC1: 29 | AD1: 30 | AE1: 31 | AF1: 32 | AG1: 33
A2: Kaminturm-durchmesser | B2: Kamin-querschnitt | D2: Kamin-querschnitt | F2: Kamin-querschnitt | G2: Volumen-strom | H2: Lufteintritts-querschnitt pro Lamelle | I2: gesamt | J2: Anzahl Lamellen | K2: Lamellen-abstand | L2: b | M2: Druck-verlust | N2: Schall-leistungs-pegel | O2: Umfang | P2: Platte ¨ | Q2: Platten-stärke | R2: Bohrungen ¨ | S2: Bohrungen Ø | T2: Anker (4x) | U2: Rand-abstand | V2: Fundament-größe | W2: Höhe Grundrohr | X2: Höhe Lamellen-kopf | Y2: Gesamt-höhe | AA2: Geschwindig-keit | AB2: Druck-verlust | AC2: Schall-leistungs-pegel | AF2: Reduzierung
A3: mm | B3: m² | C3: mm | D3: m² | E3: mm | F3: m² | G3: m³/h | H3: m² | I3: m² | J3: Stück | K3: mm | L3: mm | M3: Pa | N3: dB(A) | O3: mm | P3: mm | Q3: mm | R3: mm | S3: mm | U3: mm | V3: mm | W3: mm | X3: mm | Y3: mm | AA3: m/s | AB3: Pa | AC3: dB(A)
A4: ØA | B4: Q ØA | C4: ØB | D4: Q ØB | E4: ØC | F4: Q ØC | G4: =IF(AND(AI12=1,OR(AND(AI9=1,'Berechnung bündige Lamellen'!F10>AL14),AND(TLD_D=2,'Berechnung bündige Lamellen'!F10>AL15),AND(TLD_T=1,TLD_D=1,'Berechnung bündige Lamellen'!F10>AL16),AND(TLD_T=2,TLD_D=1,'Berechnung bündige Lamellen'!F10>AL17))),2.2/SIN(AQ15)*0.77,IF(AI9=1,3.5,IF(TLD_D=2,6,IF(TLD_T=1,5,4.62)))) -> 6 | J4: ='Berechnung bündige Lamellen'!$K$28 -> 64 | K4: LH | L4: 60 | P4: =IF(Auswertung!B62=3,300,100) -> 100 | R4: 0 | AA4: v | AB4: Pv | AC4: LwA
A5: 3500 | B5: =(A5/2)^2*PI()/1000000 -> 9.621127502 | C5: 3260 | D5: =(C5/2)^2*PI()/1000000 -> 8.346897521 | E5: 3639 | F5: =(E5/2)^2*PI()/1000000 -> 10.40049459 | G5: =IF(OR($AI$9=1,$G$4=2.2*0.77/SIN($AQ$15)),$G$4*B5*3600,$G$4*D5*3600) -> 180292.9865 | J5: =IF('Berechnung bündige Lamellen'!$F$12<='Kamindaten bündige Lamellen'!$AQ$16,ROUNDUP(G5/3600/(2.2*$J$4/100)/PI()*100000000/(C5*K5*$J$4),0),ROUNDUP(G5/3600/2.5/PI()*100000000/(C5*K5*$J$4),0)) -> 26 | K5: 120 | L5: =K5+$L$4 -> 180 | O5: =A5*PI() -> 10995.57429 | P5: =A5+$P$4 -> 3600 | Q5: 8 | R5: =A5+$R$4 -> 3500 | S5: 14 | U5: 140 | V5: =R5+2*U5 -> 3780 | W5: 2999 | X5: =J5*K5+L5 -> 3300 | Y5: =W5+X5 -> 6299 | AA5: 2 | AB5: 10.1 | AC5: 16.96 | AF5: =IF((C20-SQRT('Berechnung bündige Lamellen'!$F$10/3600/$G$1/PI())*2*1000)/2<20,"0",IF((C20-SQRT('Berechnung bündige Lamellen'!$F$10/3600/$G$1/PI())*2*1000)/2<80,ROUND((C20-SQRT('Berechnung bündige Lamellen'!$F$10/3600/$G$1/PI())*2*1000)/10,0)*10/2,IF((C20-SQRT('Berechnung bündige Lamellen'!$F$10/3600/$G$1/PI())*2*1000)<C20/2,ROUND((C20-SQRT('Berechnung bündige Lamellen'!$F$10/3600/$G$1/PI())*2*1000)/20,0)*20/2,C20/2))) -> 880 | AO5: Q ≙ Volumenstrom | AU5: Aussage,ob Druckverlust kann berechnet werden >1499, wurde schon angezeigt
A6: 3400 | B6: =(A6/2)^2*PI()/1000000 -> 9.079202769 | C6: 3160 | D6: =(C6/2)^2*PI()/1000000 -> 7.8426719 | E6: 3640 | F6: =(E6/2)^2*PI()/1000000 -> 10.40621151 | G6: 169401.713 | J6: =IF('Berechnung bündige Lamellen'!$F$12<='Kamindaten bündige Lamellen'!$AQ$16,ROUNDUP(G6/3600/(2.2*$J$4/100)/PI()*100000000/(C6*K6*$J$4),0),ROUNDUP(G6/3600/2.5/PI()*100000000/(C6*K6*$J$4),0)) -> 25 | K6: 120 | L6: =K6+$L$4 -> 180 | O6: =A6*PI() -> 10681.41502 | P6: =A6+$P$4 -> 3500 | Q6: 8 | R6: =A6+$R$4 -> 3400 | S6: 14 | U6: 140 | V6: =R6+2*U6 -> 3680 | W6: 3000 | X6: =J6*K6+L6 -> 3180 | Y6: =W6+X6 -> 6180 | AA6: 2.1 | AB6: 10.46 | AC6: 17.56 | AF6: =IF((C21-SQRT('Berechnung bündige Lamellen'!$F$10/3600/$G$1/PI())*2*1000)/2<20,"0",IF((C21-SQRT('Berechnung bündige Lamellen'!$F$10/3600/$G$1/PI())*2*1000)/2<80,ROUND((C21-SQRT('Berechnung bündige Lamellen'!$F$10/3600/$G$1/PI())*2*1000)/10,0)*10/2,IF((C21-SQRT('Berechnung bündige Lamellen'!$F$10/3600/$G$1/PI())*2*1000)<C21/2,ROUND((C21-SQRT('Berechnung bündige Lamellen'!$F$10/3600/$G$1/PI())*2*1000)/20,0)*20/2,C21/2))) -> 830 | AU6: 0
A7: 3300 | B7: =(A7/2)^2*PI()/1000000 -> 8.552985999 | C7: 3060 | D7: =(C7/2)^2*PI()/1000000 -> 7.354154243 | E7: 3540 | F7: 9.842295624 | G7: 158849.7316 | J7: =IF('Berechnung bündige Lamellen'!$F$12<='Kamindaten bündige Lamellen'!$AQ$16,ROUNDUP(G7/3600/(2.2*$J$4/100)/PI()*100000000/(C7*K7*$J$4),0),ROUNDUP(G7/3600/2.5/PI()*100000000/(C7*K7*$J$4),0)) -> 24 | K7: 120 | L7: =K7+$L$4 -> 180 | O7: =A7*PI() -> 10367.25576 | P7: =A7+$P$4 -> 3400 | Q7: 8 | R7: =A7+$R$4 -> 3300 | S7: 14 | U7: 140 | V7: =R7+2*U7 -> 3580 | W7: 3000 | X7: =J7*K7+L7 -> 3060 | Y7: =W7+X7 -> 6060 | AA7: 2.2 | AB7: 10.76 | AC7: 18.17 | AF7: =IF((C22-SQRT('Berechnung bündige Lamellen'!$F$10/3600/$G$1/PI())*2*1000)/2<20,"0",IF((C22-SQRT('Berechnung bündige Lamellen'!$F$10/3600/$G$1/PI())*2*1000)/2<80,ROUND((C22-SQRT('Berechnung bündige Lamellen'!$F$10/3600/$G$1/PI())*2*1000)/10,0)*10/2,IF((C22-SQRT('Berechnung bündige Lamellen'!$F$10/3600/$G$1/PI())*2*1000)<C22/2,ROUND((C22-SQRT('Berechnung bündige Lamellen'!$F$10/3600/$G$1/PI())*2*1000)/20,0)*20/2,C22/2))) -> 780 | AU7: Aussage,ob Druckverlust kann berechnet werden <499, wurde schon angezeigt
A8: 3200 | B8: =(A8/2)^2*PI()/1000000 -> 8.042477193 | C8: 2960 | D8: =(C8/2)^2*PI()/1000000 -> 6.881344548 | E8: 3440 | F8: 9.294087706 | G8: 148637.0422 | J8: =IF('Berechnung bündige Lamellen'!$F$12<='Kamindaten bündige Lamellen'!$AQ$16,ROUNDUP(G8/3600/(2.2*$J$4/100)/PI()*100000000/(C8*K8*$J$4),0),ROUNDUP(G8/3600/2.5/PI()*100000000/(C8*K8*$J$4),0)) -> 24 | K8: 120 | L8: =K8+$L$4 -> 180 | O8: =A8*PI() -> 10053.09649 | P8: =A8+$P$4 -> 3300 | Q8: 8 | R8: =A8+$R$4 -> 3200 | S8: 14 | U8: 140 | V8: =R8+2*U8 -> 3480 | W8: 3000 | X8: =J8*K8+L8 -> 3060 | Y8: =W8+X8 -> 6060 | AA8: 2.3 | AB8: 11.01 | AC8: 18.78 | AF8: =IF((C23-SQRT('Berechnung bündige Lamellen'!$F$10/3600/$G$1/PI())*2*1000)/2<20,"0",IF((C23-SQRT('Berechnung bündige Lamellen'!$F$10/3600/$G$1/PI())*2*1000)/2<80,ROUND((C23-SQRT('Berechnung bündige Lamellen'!$F$10/3600/$G$1/PI())*2*1000)/10,0)*10/2,IF((C23-SQRT('Berechnung bündige Lamellen'!$F$10/3600/$G$1/PI())*2*1000)<C23/2,ROUND((C23-SQRT('Berechnung bündige Lamellen'!$F$10/3600/$G$1/PI())*2*1000)/20,0)*20/2,C23/2))) -> 730 | AH8: Bauteile vorhanden | AI8: ja/nein | AK8: Turmart | AL8: Luftrichtung | AM8: Dach | AU8: 0
A9: 3100 | B9: =(A9/2)^2*PI()/1000000 -> 7.54767635 | C9: 2860 | D9: =(C9/2)^2*PI()/1000000 -> 6.424242817 | E9: 3340 | F9: 8.761587752 | G9: 138763.6449 | J9: =IF('Berechnung bündige Lamellen'!$F$12<='Kamindaten bündige Lamellen'!$AQ$16,ROUNDUP(G9/3600/(2.2*$J$4/100)/PI()*100000000/(C9*K9*$J$4),0),ROUNDUP(G9/3600/2.5/PI()*100000000/(C9*K9*$J$4),0)) -> 23 | K9: 120 | L9: =K9+$L$4 -> 180 | O9: =A9*PI() -> 9738.937226 | P9: =A9+$P$4 -> 3200 | Q9: 8 | R9: =A9+$R$4 -> 3100 | S9: 14 | U9: 140 | V9: =R9+2*U9 -> 3380 | W9: 3000 | X9: =J9*K9+L9 -> 2940 | Y9: =W9+X9 -> 5940 | AA9: 2.4 | AB9: 11.22 | AC9: 19.41 | AF9: =IF((C24-SQRT('Berechnung bündige Lamellen'!$F$10/3600/$G$1/PI())*2*1000)/2<20,"0",IF((C24-SQRT('Berechnung bündige Lamellen'!$F$10/3600/$G$1/PI())*2*1000)/2<80,ROUND((C24-SQRT('Berechnung bündige Lamellen'!$F$10/3600/$G$1/PI())*2*1000)/10,0)*10/2,IF((C24-SQRT('Berechnung bündige Lamellen'!$F$10/3600/$G$1/PI())*2*1000)<C24/2,ROUND((C24-SQRT('Berechnung bündige Lamellen'!$F$10/3600/$G$1/PI())*2*1000)/20,0)*20/2,C24/2))) -> 680 | AH9: RAS | AI9: 0 | AK9: =TLD -> 212 | AL9: =TLD_T -> 2 | AM9: =TLD_D -> 2 | AU9: Aussage, ob Info über nicht notwenigen Wandhalterung/Ankerkorb schon angezeigt wurde
A10: 3000 | B10: =(A10/2)^2*PI()/1000000 -> 7.068583471 | C10: 2760 | D10: =(C10/2)^2*PI()/1000000 -> 5.982849049 | E10: 3240 | F10: 8.24479576 | G10: 129229.5395 | J10: =IF('Berechnung bündige Lamellen'!$F$12<='Kamindaten bündige Lamellen'!$AQ$16,ROUNDUP(G10/3600/(2.2*$J$4/100)/PI()*100000000/(C10*K10*$J$4),0),ROUNDUP(G10/3600/2.5/PI()*100000000/(C10*K10*$J$4),0)) -> 22 | K10: 120 | L10: =K10+$L$4 -> 180 | O10: =A10*PI() -> 9424.777961 | P10: =A10+$P$4 -> 3100 | Q10: 8 | R10: =A10+$R$4 -> 3000 | S10: 14 | U10: 140 | V10: =R10+2*U10 -> 3280 | W10: 3000 | X10: =J10*K10+L10 -> 2820 | Y10: =W10+X10 -> 5820 | AA10: 2.5 | AB10: 11.38 | AC10: 20.06 | AF10: =IF((C25-SQRT('Berechnung bündige Lamellen'!$F$10/3600/$G$1/PI())*2*1000)/2<20,"0",IF((C25-SQRT('Berechnung bündige Lamellen'!$F$10/3600/$G$1/PI())*2*1000)/2<80,ROUND((C25-SQRT('Berechnung bündige Lamellen'!$F$10/3600/$G$1/PI())*2*1000)/10,0)*10/2,IF((C25-SQRT('Berechnung bündige Lamellen'!$F$10/3600/$G$1/PI())*2*1000)<C25/2,ROUND((C25-SQRT('Berechnung bündige Lamellen'!$F$10/3600/$G$1/PI())*2*1000)/20,0)*20/2,C25/2))) -> 630 | AH10: VSG | AI10: =IF(VSG,1,0) -> 0 | AL10: =CHOOSE(AL9,"FO","AU") -> AU | AM10: =CHOOSE(AM9,"VSG","geschlossen") -> geschlossen | AU10: 0
A11: 2900 | B11: 6.605198554 | C11: 2660 | D11: 5.557163245 | E11: 3140 | F11: 7.743711732 | G11: 120034.7261 | J11: =IF('Berechnung bündige Lamellen'!$F$12<='Kamindaten bündige Lamellen'!$AQ$16,ROUNDUP(G11/3600/(2.2*$J$4/100)/PI()*100000000/(C11*K11*$J$4),0),ROUNDUP(G11/3600/2.5/PI()*100000000/(C11*K11*$J$4),0)) -> 21 | K11: 120 | L11: 180 | O11: 9110.618695 | P11: 3000 | Q11: 8 | R11: 2900 | S11: 14 | U11: 140 | V11: 3180 | W11: 3000 | X11: 2700 | Y11: 5700 | AA11: 2.6 | AB11: 11.52 | AC11: 20.71 | AF11: =IF((C26-SQRT('Berechnung bündige Lamellen'!$F$10/3600/$G$1/PI())*2*1000)/2<20,"0",IF((C26-SQRT('Berechnung bündige Lamellen'!$F$10/3600/$G$1/PI())*2*1000)/2<80,ROUND((C26-SQRT('Berechnung bündige Lamellen'!$F$10/3600/$G$1/PI())*2*1000)/10,0)*10/2,IF((C26-SQRT('Berechnung bündige Lamellen'!$F$10/3600/$G$1/PI())*2*1000)<C26/2,ROUND((C26-SQRT('Berechnung bündige Lamellen'!$F$10/3600/$G$1/PI())*2*1000)/20,0)*20/2,C26/2))) -> 280 | AH11: seitlicher Anschluss | AI11: 1 | AK11: Turmart mit RAS | AU11: Aussage, ob Info über Schalldämpferlänge RoK angezeigt
A12: 2800 | B12: =(A12/2)^2*PI()/1000000 -> 6.157521601 | C12: 2560 | D12: =(C12/2)^2*PI()/1000000 -> 5.147185404 | E12: 3040 | F12: 7.258335667 | G12: 111179.2047 | J12: =IF('Berechnung bündige Lamellen'!$F$12<='Kamindaten bündige Lamellen'!$AQ$16,ROUNDUP(G12/3600/(2.2*$J$4/100)/PI()*100000000/(C12*K12*$J$4),0),ROUNDUP(G12/3600/2.5/PI()*100000000/(C12*K12*$J$4),0)) -> 20 | K12: 120 | L12: =K12+$L$4 -> 180 | O12: =A12*PI() -> 8796.45943 | P12: =A12+$P$4 -> 2900 | Q12: 8 | R12: =A12+$R$4 -> 2800 | S12: 14 | U12: 140 | V12: =R12+2*U12 -> 3080 | W12: 3000 | X12: =J12*K12+L12 -> 2580 | Y12: =W12+X12 -> 5580 | AA12: 2.7 | AB12: 11.69 | AC12: 21.36 | AF12: =IF((C27-SQRT('Berechnung bündige Lamellen'!$F$10/3600/$G$1/PI())*2*1000)/2<20,"0",IF((C27-SQRT('Berechnung bündige Lamellen'!$F$10/3600/$G$1/PI())*2*1000)/2<80,ROUND((C27-SQRT('Berechnung bündige Lamellen'!$F$10/3600/$G$1/PI())*2*1000)/10,0)*10/2,IF((C27-SQRT('Berechnung bündige Lamellen'!$F$10/3600/$G$1/PI())*2*1000)<C27/2,ROUND((C27-SQRT('Berechnung bündige Lamellen'!$F$10/3600/$G$1/PI())*2*1000)/20,0)*20/2,C27/2))) -> 230 | AH12: Luftfilter | AI12: =IF(Luftfilter,1,0) -> 0 | AK12: =CONCATENATE(TLD,AI9) -> 2120 | AU12: 0
A13: 2700 | B13: 5.725552611 | C13: 2460 | D13: 4.752915526 | E13: 2940 | F13: =(E13/2)^2*PI()/1000000 -> 6.788667565 | G13: 102662.9754 | J13: =IF('Berechnung bündige Lamellen'!$F$12<='Kamindaten bündige Lamellen'!$AQ$16,ROUNDUP(G13/3600/(2.2*$J$4/100)/PI()*100000000/(C13*K13*$J$4),0),ROUNDUP(G13/3600/2.5/PI()*100000000/(C13*K13*$J$4),0)) -> 20 | K13: 120 | L13: 180 | O13: 8482.300165 | P13: 2800 | Q13: 8 | R13: 2700 | S13: 14 | U13: 140 | V13: 2980 | W13: 3000 | X13: 2580 | Y13: 5580 | AA13: 2.8 | AB13: 11.98 | AC13: 21.97 | AF13: =IF((C28-SQRT('Berechnung bündige Lamellen'!$F$10/3600/$G$1/PI())*2*1000)/2<20,"0",IF((C28-SQRT('Berechnung bündige Lamellen'!$F$10/3600/$G$1/PI())*2*1000)/2<80,ROUND((C28-SQRT('Berechnung bündige Lamellen'!$F$10/3600/$G$1/PI())*2*1000)/10,0)*10/2,IF((C28-SQRT('Berechnung bündige Lamellen'!$F$10/3600/$G$1/PI())*2*1000)<C28/2,ROUND((C28-SQRT('Berechnung bündige Lamellen'!$F$10/3600/$G$1/PI())*2*1000)/20,0)*20/2,C28/2))) -> 180 | AH13: Schalldämpfer | AI13: 0 | AO13: Grenzvolumenstrom unten | AQ13: 897 | AU13: Aussage, ob Info über Schalldämpferlänge RmK angezeigt
A14: 2600 | B14: 5.309291585 | C14: 2360 | D14: 4.374353611 | E14: 2840 | F14: 6.334707427 | G14: 94486.03799 | J14: =IF('Berechnung bündige Lamellen'!$F$12<='Kamindaten bündige Lamellen'!$AQ$16,ROUNDUP(G14/3600/(2.2*$J$4/100)/PI()*100000000/(C14*K14*$J$4),0),ROUNDUP(G14/3600/2.5/PI()*100000000/(C14*K14*$J$4),0)) -> 19 | K14: 120 | L14: 180 | O14: 8168.140899 | P14: 2700 | Q14: 8 | R14: 2600 | S14: 14 | U14: 140 | V14: 2880 | W14: 3000 | X14: 2460 | Y14: 5460 | AA14: 2.9 | AB14: 12.46 | AC14: 22.54 | AF14: =IF((C29-SQRT('Berechnung bündige Lamellen'!$F$10/3600/$G$1/PI())*2*1000)/2<20,"0",IF((C29-SQRT('Berechnung bündige Lamellen'!$F$10/3600/$G$1/PI())*2*1000)/2<80,ROUND((C29-SQRT('Berechnung bündige Lamellen'!$F$10/3600/$G$1/PI())*2*1000)/10,0)*10/2,IF((C29-SQRT('Berechnung bündige Lamellen'!$F$10/3600/$G$1/PI())*2*1000)<C29/2,ROUND((C29-SQRT('Berechnung bündige Lamellen'!$F$10/3600/$G$1/PI())*2*1000)/20,0)*20/2,C29/2))) -> 150 | AH14: Sattelstutzen | AI14: =IF(Sattelstutzen,1,0) -> 0 | AK14: Q Grenz;RAS= | AL14: =($AQ$16/1000/2)^2*PI()*3600*3.5 -> 2675.882959 | AO14: Grenzdurchmesser oben | AQ14: 1400 | AU14: 0
A15: 2500 | B15: 4.908738521 | C15: 2260 | D15: 4.011499659 | E15: 2740 | F15: 5.896455252 | G15: 86648.39264 | J15: =IF('Berechnung bündige Lamellen'!$F$12<='Kamindaten bündige Lamellen'!$AQ$16,ROUNDUP(G15/3600/(2.2*$J$4/100)/PI()*100000000/(C15*K15*$J$4),0),ROUNDUP(G15/3600/2.5/PI()*100000000/(C15*K15*$J$4),0)) -> 18 | K15: 120 | L15: 180 | O15: 7853.981634 | P15: 2600 | Q15: 8 | R15: 2500 | S15: 14 | U15: 140 | V15: 2780 | W15: 3000 | X15: 2340 | Y15: 5340 | AA15: 3 | AB15: 13.08 | AC15: 23.04 | AF15: =IF((C30-SQRT('Berechnung bündige Lamellen'!$F$10/3600/$G$1/PI())*2*1000)/2<20,"0",IF((C30-SQRT('Berechnung bündige Lamellen'!$F$10/3600/$G$1/PI())*2*1000)/2<80,ROUND((C30-SQRT('Berechnung bündige Lamellen'!$F$10/3600/$G$1/PI())*2*1000)/10,0)*10/2,IF((C30-SQRT('Berechnung bündige Lamellen'!$F$10/3600/$G$1/PI())*2*1000)<C30/2,ROUND((C30-SQRT('Berechnung bündige Lamellen'!$F$10/3600/$G$1/PI())*2*1000)/20,0)*20/2,C30/2))) -> 80 | AH15: MetuDeckel | AI15: =IF(MetuDeckel,1,0) -> 0 | AK15: Q Grenz;gesch= | AL15: =($AQ$16/1000/2)^2*PI()*3600*6 -> 4587.227929 | AO15: halber Winkel Giebel | AQ15: =AR15*PI()/180 -> 0.7853981634 | AR15: 45 | AU15: Aussage, ob Info über Schalldämpferlänge Kul angezeigt
A16: 2400 | B16: 4.523893421 | C16: 2160 | D16: 3.664353671 | E16: 2640 | F16: 5.47391104 | G16: 79150.0393 | J16: =IF('Berechnung bündige Lamellen'!$F$12<='Kamindaten bündige Lamellen'!$AQ$16,ROUNDUP(G16/3600/(2.2*$J$4/100)/PI()*100000000/(C16*K16*$J$4),0),ROUNDUP(G16/3600/2.5/PI()*100000000/(C16*K16*$J$4),0)) -> 17 | K16: 120 | L16: 180 | O16: 7539.822369 | P16: 2500 | Q16: 8 | R16: 2400 | S16: 14 | U16: 140 | V16: 2680 | W16: 3000 | X16: 2220 | Y16: 5220 | AA16: 3.1 | AB16: 13.8 | AC16: 23.49 | AF16: =IF((C31-SQRT('Berechnung bündige Lamellen'!$F$10/3600/$G$1/PI())*2*1000)/2<20,"0",IF((C31-SQRT('Berechnung bündige Lamellen'!$F$10/3600/$G$1/PI())*2*1000)/2<80,ROUND((C31-SQRT('Berechnung bündige Lamellen'!$F$10/3600/$G$1/PI())*2*1000)/10,0)*10/2,IF((C31-SQRT('Berechnung bündige Lamellen'!$F$10/3600/$G$1/PI())*2*1000)<C31/2,ROUND((C31-SQRT('Berechnung bündige Lamellen'!$F$10/3600/$G$1/PI())*2*1000)/20,0)*20/2,C31/2))) -> 75 | AH16: Türe_bündig | AI16: =IF(Türe_bündig,1,0) -> 0 | AK16: Q Grenz;FO= | AL16: =($AQ$16/1000/2)^2*PI()*3600*5 -> 3822.689941 | AO16: Grenzdurchmesser unten bündig | AQ16: 520 | AU16: 0
A17: 2300 | B17: 4.154756284 | C17: 2060 | D17: 3.332915646 | E17: 2540 | F17: 5.067074791 | G17: 71990.97796 | J17: =IF('Berechnung bündige Lamellen'!$F$12<='Kamindaten bündige Lamellen'!$AQ$16,ROUNDUP(G17/3600/(2.2*$J$4/100)/PI()*100000000/(C17*K17*$J$4),0),ROUNDUP(G17/3600/2.5/PI()*100000000/(C17*K17*$J$4),0)) -> 17 | K17: 120 | L17: 180 | O17: 7225.663103 | P17: 2400 | Q17: 8 | R17: 2300 | S17: 14 | U17: 140 | V17: 2580 | W17: 3000 | X17: 2220 | Y17: 5220 | AA17: 3.2 | AB17: 14.61 | AC17: 23.9 | AF17: =IF((C32-SQRT('Berechnung bündige Lamellen'!$F$10/3600/$G$1/PI())*2*1000)/2<20,"0",IF((C32-SQRT('Berechnung bündige Lamellen'!$F$10/3600/$G$1/PI())*2*1000)/2<80,ROUND((C32-SQRT('Berechnung bündige Lamellen'!$F$10/3600/$G$1/PI())*2*1000)/10,0)*10/2,IF((C32-SQRT('Berechnung bündige Lamellen'!$F$10/3600/$G$1/PI())*2*1000)<C32/2,ROUND((C32-SQRT('Berechnung bündige Lamellen'!$F$10/3600/$G$1/PI())*2*1000)/20,0)*20/2,C32/2))) -> 25 | AK17: Q Grenz;Rest= | AL17: =($AQ$16/1000/2)^2*PI()*3600*4.62 -> 3532.165505 | AO17: Grenzdurchmesser unten über | AQ17: 400
A18: 2200 | B18: 3.801327111 | C18: 1960 | D18: 3.017185585 | E18: 2440 | F18: 4.675946506 | G18: 65171.20863 | J18: =IF('Berechnung bündige Lamellen'!$F$12<='Kamindaten bündige Lamellen'!$AQ$16,ROUNDUP(G18/3600/(2.2*$J$4/100)/PI()*100000000/(C18*K18*$J$4),0),ROUNDUP(G18/3600/2.5/PI()*100000000/(C18*K18*$J$4),0)) -> 16 | K18: 120 | L18: 180 | O18: 6911.503838 | P18: 2300 | Q18: 8 | R18: 2200 | S18: 14 | U18: 140 | V18: 2480 | W18: 3000 | X18: 2100 | Y18: 5100 | AA18: 3.3 | AB18: 15.55 | AC18: 24.29 | AF18: =IF((C33-SQRT('Berechnung bündige Lamellen'!$F$10/3600/$G$1/PI())*2*1000)/2<20,"0",IF((C33-SQRT('Berechnung bündige Lamellen'!$F$10/3600/$G$1/PI())*2*1000)/2<80,ROUND((C33-SQRT('Berechnung bündige Lamellen'!$F$10/3600/$G$1/PI())*2*1000)/10,0)*10/2,IF((C33-SQRT('Berechnung bündige Lamellen'!$F$10/3600/$G$1/PI())*2*1000)<C33/2,ROUND((C33-SQRT('Berechnung bündige Lamellen'!$F$10/3600/$G$1/PI())*2*1000)/20,0)*20/2,C33/2))) -> 0 | AM18: a= | AN18: 3.263456091 | AP18: O= | AQ18: =IF('Berechnung bündige Lamellen'!F12<AQ16,PI()*('Berechnung bündige Lamellen'!F12-2*'Berechnung bündige Lamellen'!F16)/1000*'Berechnung bündige Lamellen'!F20/1000,PI()*('Berechnung bündige Lamellen'!F12/1000)^2/(4*SIN(AQ15))) -> 0.5442531599 | AR18: Oberfläche Filtermatte/Giebelfilter
A19: 2100 | B19: 3.463605901 | C19: 1860 | D19: 2.717163486 | E19: 2340 | F19: 4.300526183 | G19: 58690.7313 | J19: =IF('Berechnung bündige Lamellen'!$F$12<='Kamindaten bündige Lamellen'!$AQ$16,ROUNDUP(G19/3600/(2.2*$J$4/100)/PI()*100000000/(C19*K19*$J$4),0),ROUNDUP(G19/3600/2.5/PI()*100000000/(C19*K19*$J$4),0)) -> 15 | K19: 120 | L19: 180 | O19: 6597.344573 | P19: 2200 | Q19: 8 | R19: 2100 | S19: 14 | U19: 140 | V19: 2380 | W19: 3000 | X19: 1980 | Y19: 4980 | AA19: 3.4 | AB19: 16.63 | AC19: 24.65 | AF19: =IF((C34-SQRT('Berechnung bündige Lamellen'!$F$10/3600/$G$1/PI())*2*1000)/2<20,"0",IF((C34-SQRT('Berechnung bündige Lamellen'!$F$10/3600/$G$1/PI())*2*1000)/2<80,ROUND((C34-SQRT('Berechnung bündige Lamellen'!$F$10/3600/$G$1/PI())*2*1000)/10,0)*10/2,IF((C34-SQRT('Berechnung bündige Lamellen'!$F$10/3600/$G$1/PI())*2*1000)<C34/2,ROUND((C34-SQRT('Berechnung bündige Lamellen'!$F$10/3600/$G$1/PI())*2*1000)/20,0)*20/2,C34/2))) -> 0 | AK19: Druckverlust Überdruckklappe | AM19: b= | AN19: 9.745042493 | AP19: vLuft= | AQ19: ='Berechnung bündige Lamellen'!F48*('Berechnung bündige Lamellen'!F12/1000)^2/4*PI()/AQ18 -> 2.551406613 | AR19: Luftgeschw. An Filtermatte
A20: 2000 | B20: 3.141592654 | C20: 1760 | D20: 2.432849351 | E20: 2240 | F20: 3.940813825 | G20: 52549.54598 | J20: =IF('Berechnung bündige Lamellen'!$F$12<='Kamindaten bündige Lamellen'!$AQ$16,ROUNDUP(G20/3600/(2.2*$J$4/100)/PI()*100000000/(C20*K20*$J$4),0),ROUNDUP(G20/3600/2.5/PI()*100000000/(C20*K20*$J$4),0)) -> 14 | K20: 120 | L20: =K20+$L$4 -> 180 | O20: =A20*PI() -> 6283.185307 | P20: =A20+$P$4 -> 2100 | Q20: 8 | R20: =A20+$R$4 -> 2000 | S20: 14 | U20: 140 | V20: =R20+2*U20 -> 2280 | W20: 3000 | X20: 1860 | Y20: =W20+X20 -> 4860 | AA20: 3.5 | AB20: 17.75 | AC20: 25.01 | AF20: =IF((C35-SQRT('Berechnung bündige Lamellen'!$F$10/3600/$G$1/PI())*2*1000)/2<20,"0",IF((C35-SQRT('Berechnung bündige Lamellen'!$F$10/3600/$G$1/PI())*2*1000)/2<80,ROUND((C35-SQRT('Berechnung bündige Lamellen'!$F$10/3600/$G$1/PI())*2*1000)/10,0)*10/2,IF((C35-SQRT('Berechnung bündige Lamellen'!$F$10/3600/$G$1/PI())*2*1000)<C35/2,ROUND((C35-SQRT('Berechnung bündige Lamellen'!$F$10/3600/$G$1/PI())*2*1000)/20,0)*20/2,C35/2))) -> 0 | AI20: automatische Aktualierung | AK20: statischer Wert, von Franz gemessen | AM20: c= | AN20: 1.857097891 | AP20: Δp= | AQ20: =AN18*AQ19^2+AN19*AQ19+AN20 -> 47.96470457 | AR20: Druckverlust an Filtermatten
A21: 1900 | B21: 2.83528737 | C21: 1660 | D21: 2.164243179 | E21: 2140 | F21: 3.596809429 | G21: 46747.65267 | J21: =IF('Berechnung bündige Lamellen'!$F$12<='Kamindaten bündige Lamellen'!$AQ$16,ROUNDUP(G21/3600/(2.2*$J$4/100)/PI()*100000000/(C21*K21*$J$4),0),ROUNDUP(G21/3600/2.5/PI()*100000000/(C21*K21*$J$4),0)) -> 13 | K21: 120 | L21: =K21+$L$4 -> 180 | O21: =A21*PI() -> 5969.026042 | P21: =A21+$P$4 -> 2000 | Q21: 8 | R21: =A21+$R$4 -> 1900 | S21: 14 | U21: 140 | V21: =R21+2*U21 -> 2180 | W21: 3000 | X21: =J21*K21+L21 -> 1740 | Y21: =W21+X21 -> 4740 | AA21: 3.6 | AB21: 18.84 | AC21: 25.37 | AF21: =IF((C36-SQRT('Berechnung bündige Lamellen'!$F$10/3600/$G$1/PI())*2*1000)/2<20,"0",IF((C36-SQRT('Berechnung bündige Lamellen'!$F$10/3600/$G$1/PI())*2*1000)/2<80,ROUND((C36-SQRT('Berechnung bündige Lamellen'!$F$10/3600/$G$1/PI())*2*1000)/10,0)*10/2,IF((C36-SQRT('Berechnung bündige Lamellen'!$F$10/3600/$G$1/PI())*2*1000)<C36/2,ROUND((C36-SQRT('Berechnung bündige Lamellen'!$F$10/3600/$G$1/PI())*2*1000)/20,0)*20/2,C36/2))) -> 0 | AI21: Aktualiesierung per Makro | AK21: Jira LUEFKONF-21
A22: 1800 | B22: 2.544690049 | C22: 1560 | D22: 1.91134497 | E22: 2040 | F22: 3.268512997 | G22: 41285.05136 | J22: =IF('Berechnung bündige Lamellen'!$F$12<='Kamindaten bündige Lamellen'!$AQ$16,ROUNDUP(G22/3600/(2.2*$J$4/100)/PI()*100000000/(C22*K22*$J$4),0),ROUNDUP(G22/3600/2.5/PI()*100000000/(C22*K22*$J$4),0)) -> 13 | K22: 120 | L22: 180 | O22: =A22*PI() -> 5654.866776 | P22: 1900 | Q22: 8 | R22: 1800 | S22: 14 | U22: 140 | V22: =R22+2*U22 -> 2080 | W22: 3000 | X22: 1740 | Y22: 4740 | AA22: 3.7 | AB22: 19.9 | AC22: 25.73 | AF22: =IF((C37-SQRT('Berechnung bündige Lamellen'!$F$10/3600/$G$1/PI())*2*1000)/2<20,"0",IF((C37-SQRT('Berechnung bündige Lamellen'!$F$10/3600/$G$1/PI())*2*1000)/2<80,ROUND((C37-SQRT('Berechnung bündige Lamellen'!$F$10/3600/$G$1/PI())*2*1000)/10,0)*10/2,IF((C37-SQRT('Berechnung bündige Lamellen'!$F$10/3600/$G$1/PI())*2*1000)<C37/2,ROUND((C37-SQRT('Berechnung bündige Lamellen'!$F$10/3600/$G$1/PI())*2*1000)/20,0)*20/2,C37/2))) -> 0 | AK22: ∆Überdruckklappe = | AL22: 60
A23: 1700 | B23: 2.269800692 | C23: 1460 | D23: 1.674154725 | E23: 1940 | F23: 2.955924528 | G23: 36161.74206 | J23: =IF('Berechnung bündige Lamellen'!$F$12<='Kamindaten bündige Lamellen'!$AQ$16,ROUNDUP(G23/3600/(2.2*$J$4/100)/PI()*100000000/(C23*K23*$J$4),0),ROUNDUP(G23/3600/2.5/PI()*100000000/(C23*K23*$J$4),0)) -> 12 | K23: 120 | L23: 180 | O23: 5340.707511 | P23: 1800 | Q23: 8 | R23: 1700 | S23: 14 | U23: 140 | V23: 1980 | W23: 3000 | X23: 1620 | Y23: 4620 | AA23: 3.8 | AB23: 20.94 | AC23: 26.1 | AF23: =IF((C38-SQRT('Berechnung bündige Lamellen'!$F$10/3600/$G$1/PI())*2*1000)/2<20,"0",IF((C38-SQRT('Berechnung bündige Lamellen'!$F$10/3600/$G$1/PI())*2*1000)/2<80,ROUND((C38-SQRT('Berechnung bündige Lamellen'!$F$10/3600/$G$1/PI())*2*1000)/10,0)*10/2,IF((C38-SQRT('Berechnung bündige Lamellen'!$F$10/3600/$G$1/PI())*2*1000)<C38/2,ROUND((C38-SQRT('Berechnung bündige Lamellen'!$F$10/3600/$G$1/PI())*2*1000)/20,0)*20/2,C38/2))) -> 0
A24: 1600 | B24: 2.010619298 | C24: 1360 | D24: 1.452672443 | E24: 1840 | F24: 2.659044022 | G24: 31377.72477 | J24: =IF('Berechnung bündige Lamellen'!$F$12<='Kamindaten bündige Lamellen'!$AQ$16,ROUNDUP(G24/3600/(2.2*$J$4/100)/PI()*100000000/(C24*K24*$J$4),0),ROUNDUP(G24/3600/2.5/PI()*100000000/(C24*K24*$J$4),0)) -> 11 | K24: 120 | L24: 180 | O24: 5026.548246 | P24: 1700 | Q24: 8 | R24: 1600 | S24: 14 | U24: 140 | V24: 1880 | W24: 3000 | X24: 1500 | Y24: 4500 | AA24: 3.9 | AB24: 21.98 | AC24: 26.49 | AF24: =IF((C39-SQRT('Berechnung bündige Lamellen'!$F$10/3600/$G$1/PI())*2*1000)/2<20,"0",IF((C39-SQRT('Berechnung bündige Lamellen'!$F$10/3600/$G$1/PI())*2*1000)/2<80,ROUND((C39-SQRT('Berechnung bündige Lamellen'!$F$10/3600/$G$1/PI())*2*1000)/10,0)*10/2,IF((C39-SQRT('Berechnung bündige Lamellen'!$F$10/3600/$G$1/PI())*2*1000)<C39/2,ROUND((C39-SQRT('Berechnung bündige Lamellen'!$F$10/3600/$G$1/PI())*2*1000)/20,0)*20/2,C39/2))) -> 0
A25: 1500 | B25: 1.767145868 | C25: 1260 | D25: 1.246898124 | E25: 1740 | F25: 2.37787148 | G25: 26932.99948 | J25: =IF('Berechnung bündige Lamellen'!$F$12<='Kamindaten bündige Lamellen'!$AQ$16,ROUNDUP(G25/3600/(2.2*$J$4/100)/PI()*100000000/(C25*K25*$J$4),0),ROUNDUP(G25/3600/2.5/PI()*100000000/(C25*K25*$J$4),0)) -> 10 | K25: 120 | L25: 180 | O25: 4712.38898 | P25: 1600 | Q25: 8 | R25: 1500 | S25: 14 | U25: 140 | V25: 1780 | W25: 3000 | X25: 1380 | Y25: 4380 | AA25: 4 | AB25: 23.05 | AC25: 26.9 | AF25: =IF((C40-SQRT('Berechnung bündige Lamellen'!$F$10/3600/$G$1/PI())*2*1000)/2<20,"0",IF((C40-SQRT('Berechnung bündige Lamellen'!$F$10/3600/$G$1/PI())*2*1000)/2<80,ROUND((C40-SQRT('Berechnung bündige Lamellen'!$F$10/3600/$G$1/PI())*2*1000)/10,0)*10/2,IF((C40-SQRT('Berechnung bündige Lamellen'!$F$10/3600/$G$1/PI())*2*1000)<C40/2,ROUND((C40-SQRT('Berechnung bündige Lamellen'!$F$10/3600/$G$1/PI())*2*1000)/20,0)*20/2,C40/2))) -> 0
A26: 1400 | B26: 1.5393804 | C26: 1160 | D26: 1.056831769 | E26: 1640 | F26: 2.1124069 | G26: 22827.5662 | J26: =IF('Berechnung bündige Lamellen'!$F$12<='Kamindaten bündige Lamellen'!$AQ$16,ROUNDUP(G26/3600/(2.2*$J$4/100)/PI()*100000000/(C26*K26*$J$4),0),ROUNDUP(G26/3600/2.5/PI()*100000000/(C26*K26*$J$4),0)) -> 10 | K26: 120 | L26: 180 | O26: 4398.229715 | P26: 1500 | Q26: 8 | R26: 1400 | S26: 14 | U26: 140 | V26: 1680 | W26: 3000 | X26: 1380 | Y26: 4380 | AA26: 4.1 | AB26: 24.16 | AC26: 27.34 | AF26: =IF((C41-SQRT('Berechnung bündige Lamellen'!$F$10/3600/$G$1/PI())*2*1000)/2<20,"0",IF((C41-SQRT('Berechnung bündige Lamellen'!$F$10/3600/$G$1/PI())*2*1000)/2<80,ROUND((C41-SQRT('Berechnung bündige Lamellen'!$F$10/3600/$G$1/PI())*2*1000)/10,0)*10/2,IF((C41-SQRT('Berechnung bündige Lamellen'!$F$10/3600/$G$1/PI())*2*1000)<C41/2,ROUND((C41-SQRT('Berechnung bündige Lamellen'!$F$10/3600/$G$1/PI())*2*1000)/20,0)*20/2,C41/2))) -> 0
A27: 1300 | B27: 1.327322896 | C27: 1060 | D27: 0.8824733764 | E27: 1540 | F27: 1.862650284 | G27: 19061.42493 | J27: =IF('Berechnung bündige Lamellen'!$F$12<='Kamindaten bündige Lamellen'!$AQ$16,ROUNDUP(G27/3600/(2.2*$J$4/100)/PI()*100000000/(C27*K27*$J$4),0),ROUNDUP(G27/3600/2.5/PI()*100000000/(C27*K27*$J$4),0)) -> 9 | K27: 120 | L27: 180 | O27: 4084.07045 | P27: 1400 | Q27: 8 | R27: 1300 | S27: 14 | U27: 140 | V27: 1580 | W27: 3000 | X27: 1260 | Y27: 4260 | AA27: 4.2 | AB27: 25.32 | AC27: 27.82
A28: 1200 | B28: 1.130973355 | C28: 960 | D28: 0.7238229474 | E28: 1440 | F28: 1.628601632 | G28: 15634.57566 | J28: =IF('Berechnung bündige Lamellen'!$F$12<='Kamindaten bündige Lamellen'!$AQ$16,ROUNDUP(G28/3600/(2.2*$J$4/100)/PI()*100000000/(C28*K28*$J$4),0),ROUNDUP(G28/3600/2.5/PI()*100000000/(C28*K28*$J$4),0)) -> 8 | K28: 120 | L28: 180 | O28: 3769.911184 | P28: 1300 | Q28: 8 | R28: 1200 | S28: 14 | U28: 140 | V28: 1480 | W28: 3000 | X28: 1140 | Y28: 4140 | AA28: 4.3 | AB28: 26.51 | AC28: 28.32 | AH28: Zetawerte ØA | AI28: RAS-eco | AJ28: seitlicher Anschluss | AK28: Luftfilter | AL28: Schalldämpfer | AM28: Reduzierung 1 | AN28: Sattelstutzen | AO28: MetuDeckel | AP28: Türe_bündig
A29: 1100 | B29: 0.9503317777 | C29: 900 | D29: 0.6361725124 | E29: 1300 | F29: 1.327322896 | G29: 13741.32627 | J29: =IF('Berechnung bündige Lamellen'!$F$12<='Kamindaten bündige Lamellen'!$AQ$16,ROUNDUP(G29/3600/(2.2*$J$4/100)/PI()*100000000/(C29*K29*$J$4),0),ROUNDUP(G29/3600/2.5/PI()*100000000/(C29*K29*$J$4),0)) -> 9 | K29: 100 | L29: 160 | O29: 3455.751919 | P29: 1200 | Q29: 8 | R29: 1100 | S29: 14 | U29: 140 | V29: 1380 | W29: 3000 | X29: 1060 | Y29: 4060 | AA29: 4.4 | AB29: 27.74 | AC29: 28.85 | AH29: =SUM(AI29:AP29) -> 1.22 | AI29: =IF(RASja,1.9,0) -> 0 | AJ29: =IF(AI11=1,1.22,0) -> 1.22 | AK29: =IF(AI12,AQ20/(0.6*'Berechnung bündige Lamellen'!F48^2),0) -> 0 | AL29: =IF(AI13,IF('Berechnung bündige Lamellen'!F12>700,Schalldämpfer!M126,IF('Berechnung bündige Lamellen'!F12>415,Schalldämpfer!CS36,Schalldämpfer!DY36))/(0.6*'Berechnung bündige Lamellen'!F48^2)+IF('Berechnung bündige Lamellen'!F12<=415,(0.707*SQRT(1-(('Berechnung bündige Lamellen'!F12-2*50)/'Berechnung bündige Lamellen'!F12)^2)^2)+((1-(('Berechnung bündige Lamellen'!F12-2*50)/'Berechnung bündige Lamellen'!F12)^2)^2*('Berechnung bündige Lamellen'!F12/('Berechnung bündige Lamellen'!F12-2*50))^4),IF('Berechnung bündige Lamellen'!F12<=700,(0.707*SQRT(1-(('Berechnung bündige Lamellen'!F12-2*100)/'Berechnung bündige Lamellen'!F12)^2)^2)+((1-(('Berechnung bündige Lamellen'!F12-2*100)/'Berechnung bündige Lamellen'!F12)^2)^2*('Berechnung bündige Lamellen'!F12/('Berechnung bündige Lamellen'!F12-2*100))^4),0)),0) -> 0 | AM29: =IF(AND(VALUE(AL9)=1,VALUE(AM9)=1),(0.707*SQRT(1-('Berechnung bündige Lamellen'!F14/'Berechnung bündige Lamellen'!F12)^2)^2),0) -> 0 | AN29: =IF(AI14=1,0.13,0) -> 0 | AO29: =IF(AI15,0.13,0) -> 0 | AP29: =IF(AI16,0.13,0) -> 0
A30: 950 | B30: 0.7088218425 | C30: 750 | D30: 0.4417864669 | E30: 1150 | F30: 1.038689071 | G30: 9542.587685 | J30: =IF('Berechnung bündige Lamellen'!$F$12<='Kamindaten bündige Lamellen'!$AQ$16,ROUNDUP(G30/3600/(2.2*$J$4/100)/PI()*100000000/(C30*K30*$J$4),0),ROUNDUP(G30/3600/2.5/PI()*100000000/(C30*K30*$J$4),0)) -> 8 | K30: 100 | L30: 160 | O30: 2984.513021 | P30: 1050 | Q30: 8 | R30: 950 | S30: 14 | U30: 140 | V30: 1230 | W30: 3000 | X30: 960 | Y30: 3960 | AA30: 4.5 | AB30: 29 | AC30: 29.38
A31: 900 | B31: 0.6361725124 | C31: 740 | D31: 0.4300840343 | E31: 1060 | F31: 0.8824733764 | G31: 9289.81514 | J31: =IF('Berechnung bündige Lamellen'!$F$12<='Kamindaten bündige Lamellen'!$AQ$16,ROUNDUP(G31/3600/(2.2*$J$4/100)/PI()*100000000/(C31*K31*$J$4),0),ROUNDUP(G31/3600/2.5/PI()*100000000/(C31*K31*$J$4),0)) -> 9 | K31: 80 | L31: 140 | O31: 2827.433388 | P31: 1000 | Q31: 8 | R31: 900 | S31: 14 | U31: 140 | V31: 1180 | W31: 3000 | X31: 860 | Y31: 3860 | AA31: 4.6 | AB31: 30.28 | AC31: 29.92 | AH31: Zetawerte ØB | AJ31: VSG-1 | AL31: Aufweitung | AM31: Reduzierung 2 | AO31: Lochblechkorb
A32: 800 | B32: 0.5026548246 | C32: 640 | D32: 0.3216990877 | E32: 960 | F32: 0.7238229474 | G32: 6948.700295 | J32: =IF('Berechnung bündige Lamellen'!$F$12<='Kamindaten bündige Lamellen'!$AQ$16,ROUNDUP(G32/3600/(2.2*$J$4/100)/PI()*100000000/(C32*K32*$J$4),0),ROUNDUP(G32/3600/2.5/PI()*100000000/(C32*K32*$J$4),0)) -> 8 | K32: 80 | L32: 140 | O32: 2513.274123 | P32: 900 | Q32: 8 | R32: 800 | S32: 14 | U32: 140 | V32: 1080 | W32: 3000 | X32: 780 | Y32: 3780 | AA32: 4.7 | AB32: 31.56 | AC32: 30.44 | AH32: =SUM(AI32:AM32) -> 0 | AJ32: =IF(VALUE(TLD)=111,0,IF(AI10=1,0.35,0)) -> 0 | AL32: =IF(TLD_TD=21,(1-(('Berechnung bündige Lamellen'!F14/2)^2*PI()/1000000)/(('Berechnung bündige Lamellen'!F12/2)^2*PI()/1000000))^2,0) -> 0 | AM32: =IF(TLD_TD=11,(0.707*SQRT(1-('Berechnung bündige Lamellen'!F34/'Berechnung bündige Lamellen'!F14)^2)^2),0) -> 0 | AO32: =IF(TLD_TD=12,4/('Berechnung bündige Lamellen'!L46/'Berechnung bündige Lamellen'!L44)+0.3,0) -> 0 | AP32: <= alte Formel Lochblechkorb nicht mehr benutzt
A33: 700 | B33: 0.3848451001 | C33: 580 | D33: 0.2642079422 | E33: 820 | F33: 0.5281017251 | G33: 5706.891551 | J33: =IF('Berechnung bündige Lamellen'!$F$12<='Kamindaten bündige Lamellen'!$AQ$16,ROUNDUP(G33/3600/(2.2*$J$4/100)/PI()*100000000/(C33*K33*$J$4),0),ROUNDUP(G33/3600/2.5/PI()*100000000/(C33*K33*$J$4),0)) -> 10 | K33: 60 | L33: 120 | O33: 2199.114858 | P33: 800 | Q33: 8 | R33: 700 | S33: 14 | U33: 140 | V33: 980 | W33: 3000 | X33: 720 | Y33: 3720 | AA33: 4.8 | AB33: 32.84 | AC33: 30.95
A34: 600 | B34: 0.2827433388 | C34: 480 | D34: 0.1809557368 | E34: 720 | F34: 0.4071504079 | G34: 3908.643916 | J34: =IF('Berechnung bündige Lamellen'!$F$12<='Kamindaten bündige Lamellen'!$AQ$16,ROUNDUP(G34/3600/(2.2*$J$4/100)/PI()*100000000/(C34*K34*$J$4),0),ROUNDUP(G34/3600/2.5/PI()*100000000/(C34*K34*$J$4),0)) -> 8 | K34: 60 | L34: 120 | O34: 1884.955592 | P34: 700 | Q34: 8 | R34: 600 | S34: 14 | U34: 140 | V34: 880 | W34: 3000 | X34: 600 | Y34: 3600 | AA34: 4.9 | AB34: 34.12 | AC34: 31.47 | AH34: Zetawerte ØD | AI34: VSG-2
A35: 475 | B35: 0.1772054606 | C35: 375 | D35: 0.1104466167 | E35: 575 | F35: 0.2596722678 | G35: 2385.646921 | J35: =IF('Berechnung bündige Lamellen'!$F$12<='Kamindaten bündige Lamellen'!$AQ$16,ROUNDUP(G35/3600/(2.2*$J$4/100)/PI()*100000000/(C35*K35*$J$4),0),ROUNDUP(G35/3600/2.5/PI()*100000000/(C35*K35*$J$4),0)) -> 8 | K35: 50 | L35: 110 | O35: 1492.25651 | P35: 575 | Q35: 8 | R35: 475 | S35: 14 | U35: 140 | V35: 755 | W35: 3000 | X35: 510 | Y35: 3510 | AA35: 5 | AB35: 35.38 | AC35: 31.99 | AH35: =SUM(AI35:AM35) -> 0 | AI35: =IF(VALUE(TLD)=111,0.35,0) -> 0
A36: 400 | B36: 0.1256637061 | C36: 320 | D36: 0.08042477193 | E36: 480 | F36: 0.1809557368 | G36: 1737.175074 | J36: =IF('Berechnung bündige Lamellen'!$F$12<='Kamindaten bündige Lamellen'!$AQ$16,ROUNDUP(G36/3600/(2.2*$J$4/100)/PI()*100000000/(C36*K36*$J$4),0),ROUNDUP(G36/3600/2.5/PI()*100000000/(C36*K36*$J$4),0)) -> 8 | K36: 40 | L36: 100 | O36: 1256.637061 | P36: 500 | Q36: 8 | R36: 400 | S36: 14 | U36: 140 | V36: 680 | W36: 3000 | X36: 420 | Y36: 3420 | AA36: 5.1 | AB36: 36.61 | AC36: 32.53
A37: 350 | B37: 0.09621127502 | C37: 270 | D37: 0.05725552611 | E37: 430 | F37: 0.1452201204 | G37: 1236.719364 | J37: =IF('Berechnung bündige Lamellen'!$F$12<='Kamindaten bündige Lamellen'!$AQ$16,ROUNDUP(G37/3600/(2.2*$J$4/100)/PI()*100000000/(C37*K37*$J$4),0),ROUNDUP(G37/3600/2.5/PI()*100000000/(C37*K37*$J$4),0)) -> 7 | K37: 40 | L37: 100 | O37: 1099.557429 | P37: 450 | Q37: 8 | R37: 350 | S37: 14 | U37: 140 | V37: 630 | W37: 3000 | X37: 380 | Y37: 3380 | AA37: 5.2 | AB37: 37.81 | AC37: 33.08 | AH37: Zetawerte Gitter | AI37: An/- Ausströmung
A38: 300 | B38: 0.07068583471 | C38: 240 | D38: 0.04523893421 | E38: 360 | F38: 0.101787602 | G38: 977.160979 | J38: =IF('Berechnung bündige Lamellen'!$F$12<='Kamindaten bündige Lamellen'!$AQ$16,ROUNDUP(G38/3600/(2.2*$J$4/100)/PI()*100000000/(C38*K38*$J$4),0),ROUNDUP(G38/3600/2.5/PI()*100000000/(C38*K38*$J$4),0)) -> 8 | K38: 30 | L38: 90 | O38: 942.4777961 | P38: 400 | Q38: 8 | R38: 300 | S38: 14 | U38: 140 | V38: 580 | W38: 3000 | X38: 330 | Y38: 3330 | AA38: 5.3 | AB38: 38.97 | AC38: 33.64 | AH38: =SUM(AI38:AM38) -> 0 | AI38: =IF(AI10=1,1,0) -> 0
A39: 250 | B39: 0.04908738521 | C39: 190 | D39: 0.0283528737 | E39: 310 | F39: 0.0754767635 | G39: 612.4220719 | J39: =IF('Berechnung bündige Lamellen'!$F$12<='Kamindaten bündige Lamellen'!$AQ$16,ROUNDUP(G39/3600/(2.2*$J$4/100)/PI()*100000000/(C39*K39*$J$4),0),ROUNDUP(G39/3600/2.5/PI()*100000000/(C39*K39*$J$4),0)) -> 6 | K39: 30 | L39: 90 | O39: 785.3981634 | P39: 350 | Q39: 8 | R39: 250 | S39: 14 | U39: 140 | V39: 530 | W39: 3000 | X39: 270 | Y39: 3270 | AA39: 5.4 | AB39: 40.09 | AC39: 34.18
A40: 200 | B40: 0.03141592654 | C40: 140 | D40: 0.015393804 | E40: 260 | F40: 0.05309291585 | G40: 332.5061665 | J40: =IF('Berechnung bündige Lamellen'!$F$12<='Kamindaten bündige Lamellen'!$AQ$16,ROUNDUP(G40/3600/(2.2*$J$4/100)/PI()*100000000/(C40*K40*$J$4),0),ROUNDUP(G40/3600/2.5/PI()*100000000/(C40*K40*$J$4),0)) -> 5 | K40: 30 | L40: 90 | O40: 628.3185307 | P40: 300 | Q40: 8 | R40: 200 | S40: 14 | U40: 140 | V40: 480 | W40: 3000 | X40: 240 | Y40: 3240 | AA40: 5.5 | AB40: 41.16 | AC40: 34.7
A41: 160 | B41: 0.02010619298 | C41: 100 | D41: =(C41/2)^2*PI()/1000000 -> 0.007853981634 | E41: 220 | F41: 0.03801327111 | G41: 169.6460033 | J41: =IF('Berechnung bündige Lamellen'!$F$12<='Kamindaten bündige Lamellen'!$AQ$16,ROUNDUP(G41/3600/(2.2*$J$4/100)/PI()*100000000/(C41*K41*$J$4),0),ROUNDUP(G41/3600/2.5/PI()*100000000/(C41*K41*$J$4),0)) -> 4 | K41: 30 | L41: =K41+$L$4 -> 90 | O41: 502.6548246 | P41: 260 | Q41: 8 | R41: 160 | S41: 14 | U41: 140 | V41: 440 | W41: 3000 | X41: 210 | Y41: 3210 | AA41: 5.6 | AB41: 42.19 | AC41: 35.2
A42: 100 | B42: 0.007853981634 | C42: 40 | D42: =(C42/2)^2*PI()/1000000 -> 0.001256637061 | E42: 160 | F42: 0.02010619298 | G42: 27.14336053 | J42: =IF('Berechnung bündige Lamellen'!$F$12<='Kamindaten bündige Lamellen'!$AQ$16,ROUNDUP(G42/3600/(2.2*$J$4/100)/PI()*100000000/(C42*K42*$J$4),0),ROUNDUP(G42/3600/2.5/PI()*100000000/(C42*K42*$J$4),0)) -> 2 | K42: 30 | L42: =K42+$L$4 -> 90 | O42: 314.1592654 | P42: 200 | Q42: 8 | R42: 100 | S42: 14 | U42: 140 | V42: 380 | W42: 3000 | X42: 150 | Y42: 3150 | AA42: 5.7 | AB42: 43.25 | AC42: 35.68
AA43: 5.8 | AB43: 44.41 | AC43: 36.13
AA44: 5.9 | AB44: 45.74 | AC44: 36.56
A45: siehe Anmerkungen weiter unten | AA45: 6 | AB45: 47.26 | AC45: 36.96
AA46: 6.1 | AB46: 48.98 | AC46: 37.35
AA47: 6.2 | AB47: 50.85 | AC47: 37.71
AA48: 6.3 | AB48: 52.8 | AC48: 38.05
AA49: 6.4 | AB49: 54.8 | AC49: 38.37
AA50: 6.5 | AB50: 56.81 | AC50: 38.67
AA51: 6.6 | AB51: 58.81 | AC51: 38.96
AA52: 6.7 | AB52: 60.78 | AC52: 39.22
AA53: 6.8 | AB53: 62.73 | AC53: 39.48
AA54: 6.9 | AB54: 64.68 | AC54: 39.73
AA55: 7 | AB55: 66.68 | AC55: 39.97
AA56: 7.1 | AB56: 68.76 | AC56: 40.2
AA57: 7.2 | AB57: 70.92 | AC57: 40.42
AA58: 7.3 | AB58: 73.11 | AC58: 40.64
AA59: 7.4 | AB59: 75.3 | AC59: 40.85
AA60: 7.5 | AB60: 77.45 | AC60: 41.06
AA61: 7.6 | AB61: 79.59 | AC61: 41.26
AA62: 7.7 | AB62: 81.74 | AC62: 41.45
AA63: 7.8 | AB63: 83.93 | AC63: 41.64
AA64: 7.9 | AB64: 86.19 | AC64: 41.83
AA65: 8 | AB65: 88.57 | AC65: 42.02
AA66: 8.1 | AB66: 91.14 | AC66: 42.21
AA67: 8.2 | AB67: 93.6 | AC67: 42.4
AA68: 8.3 | AB68: 96.81 | AC68: 42.59
AA69: 8.4 | AB69: 99.79 | AC69: 42.78
AA70: 8.5 | AB70: 102.77 | AC70: 42.98
AA71: 8.6 | AB71: 105.68 | AC71: 43.17
AA72: 8.7 | AB72: 108.52 | AC72: 43.36
AA73: 8.8 | AB73: 111.37 | AC73: 43.56
AA74: 8.9 | AB74: 114.18 | AC74: 43.75
AA75: 9 | AB75: 116.81 | AC75: 43.95
AA76: 9.1 | AB76: 119.23 | AC76: 44.16
AA77: 9.2 | AB77: 121.56 | AC77: 44.36
AA78: 9.3 | AB78: 123.94 | AC78: 44.57
AA79: 9.4 | AB79: 126.38 | AC79: 44.78
AA80: 9.5 | AB80: 128.81 | AC80: 44.99
AA81: 9.6 | AB81: 131.17 | AC81: 45.19
AA82: 9.7 | AB82: 133.48 | AC82: 45.4
AA83: 9.8 | AB83: 135.75 | AC83: 45.6
AA84: 9.9 | AB84: 137.98 | AC84: 45.8
AA85: 10 | AB85: 140.2 | AC85: 46
A105: Formeln obengelöscht, zum Aktualiseren der Werte Formeln nach oben kopieren
A106: 2800 | B106: =(A106/2)^2*PI()/1000000 -> 6.157521601 | C106: =A106-2*K106 -> 2560 | D106: =(C106/2)^2*PI()/1000000 -> 5.147185404 | E106: =A106+2*K106 -> 3040 | F106: =(E106/2)^2*PI()/1000000 -> 7.258335667 | G106: =$G$4*D106*3600 -> 111179.2047 | J106: =ROUNDUP(G106/3600/2.5/PI()*100000000/(C106*K106*$J$4),0) -> 20 | K106: 120 | L106: =K106+$L$4 -> 180 | O106: =A106*PI() -> 8796.45943 | P106: =A106+$P$4 -> 2900 | Q106: 8 | R106: =A106+$R$4 -> 2800 | S106: 14 | U106: 140 | V106: =R106+2*U106 -> 3080 | W106: 3000 | X106: =J106*K106+L106 -> 2580 | Y106: =W106+X106 -> 5580 | AA106: 1 | AB106: 4.92 | AC106: 10.97
C107: nur aus diesen Spalten wurden Formeln entfernt
A112: => wurde nach unten kopiert, um oberen Grenzdurchmesser auf 3.500 herabzusetzen!
A113: 5000 | B113: =(A113/2)^2*PI()/1000000 -> 19.63495408 | C113: 4760 | D113: =(C113/2)^2*PI()/1000000 -> 17.79523743 | E113: 3740 | F113: =(E113/2)^2*PI()/1000000 -> 10.98583535 | G113: =IF(OR($AI$9=1,$G$4=2.2*0.77/SIN($AQ$15)),$G$4*B113*3600,$G$4*D113*3600) -> 384377.1284 | J113: =IF('Berechnung bündige Lamellen'!$F$12<='Kamindaten bündige Lamellen'!$AQ$16,ROUNDUP(G113/3600/(2.2*$J$4/100)/PI()*100000000/(C113*K113*$J$4),0),ROUNDUP(G113/3600/2.5/PI()*100000000/(C113*K113*$J$4),0)) -> 38 | K113: 120 | L113: =K113+$L$4 -> 180 | O113: =A113*PI() -> 15707.96327 | P113: =A113+$P$4 -> 5100 | Q113: 8 | R113: =A113+$R$4 -> 5000 | S113: 14 | U113: 140 | V113: =R113+2*U113 -> 5280 | W113: 3000 | X113: =J113*K113+L113 -> 4740 | Y113: =W113+X113 -> 7740 | AF113: =IF((C113-SQRT('Berechnung bündige Lamellen'!$F$10/3600/$G$1/PI())*2*1000)/2<20,"0",IF((C113-SQRT('Berechnung bündige Lamellen'!$F$10/3600/$G$1/PI())*2*1000)/2<80,ROUND((C113-SQRT('Berechnung bündige Lamellen'!$F$10/3600/$G$1/PI())*2*1000)/10,0)*10/2,IF((C113-SQRT('Berechnung bündige Lamellen'!$F$10/3600/$G$1/PI())*2*1000)<C113/2,ROUND((C113-SQRT('Berechnung bündige Lamellen'!$F$10/3600/$G$1/PI())*2*1000)/20,0)*20/2,C113/2))) -> 2380
A114: 4900 | B114: 18.8574099 | C114: 4660 | D114: 17.05539236 | E114: 3625 | F114: 10.32062274 | G114: 368396.4749 | J114: =IF('Berechnung bündige Lamellen'!$F$12<='Kamindaten bündige Lamellen'!$AQ$16,ROUNDUP(G114/3600/(2.2*$J$4/100)/PI()*100000000/(C114*K114*$J$4),0),ROUNDUP(G114/3600/2.5/PI()*100000000/(C114*K114*$J$4),0)) -> 37 | K114: 120 | L114: 180 | O114: 15393.804 | P114: 5000 | Q114: 8 | R114: 4900 | S114: 14 | U114: 140 | V114: 5180 | W114: 2985 | X114: 4620 | Y114: 7605 | AF114: =IF((C6-SQRT('Berechnung bündige Lamellen'!$F$10/3600/$G$1/PI())*2*1000)/2<20,"0",IF((C6-SQRT('Berechnung bündige Lamellen'!$F$10/3600/$G$1/PI())*2*1000)/2<80,ROUND((C6-SQRT('Berechnung bündige Lamellen'!$F$10/3600/$G$1/PI())*2*1000)/10,0)*10/2,IF((C6-SQRT('Berechnung bündige Lamellen'!$F$10/3600/$G$1/PI())*2*1000)<C6/2,ROUND((C6-SQRT('Berechnung bündige Lamellen'!$F$10/3600/$G$1/PI())*2*1000)/20,0)*20/2,C6/2))) -> 1580
A115: 4800 | B115: 18.09557368 | C115: 4560 | D115: 16.33125525 | E115: 3626 | F115: 10.32631766 | G115: 352755.1134 | J115: =IF('Berechnung bündige Lamellen'!$F$12<='Kamindaten bündige Lamellen'!$AQ$16,ROUNDUP(G115/3600/(2.2*$J$4/100)/PI()*100000000/(C115*K115*$J$4),0),ROUNDUP(G115/3600/2.5/PI()*100000000/(C115*K115*$J$4),0)) -> 36 | K115: 120 | L115: 180 | O115: 15079.64474 | P115: 4900 | Q115: 8 | R115: 4800 | S115: 14 | U115: 140 | V115: 5080 | W115: 2986 | X115: 4500 | Y115: 7486 | AF115: =IF((C7-SQRT('Berechnung bündige Lamellen'!$F$10/3600/$G$1/PI())*2*1000)/2<20,"0",IF((C7-SQRT('Berechnung bündige Lamellen'!$F$10/3600/$G$1/PI())*2*1000)/2<80,ROUND((C7-SQRT('Berechnung bündige Lamellen'!$F$10/3600/$G$1/PI())*2*1000)/10,0)*10/2,IF((C7-SQRT('Berechnung bündige Lamellen'!$F$10/3600/$G$1/PI())*2*1000)<C7/2,ROUND((C7-SQRT('Berechnung bündige Lamellen'!$F$10/3600/$G$1/PI())*2*1000)/20,0)*20/2,C7/2))) -> 1530
A116: 4700 | B116: 17.34944543 | C116: 4460 | D116: 15.62282611 | E116: 3627 | F116: 10.33201416 | G116: 337453.0439 | J116: =IF('Berechnung bündige Lamellen'!$F$12<='Kamindaten bündige Lamellen'!$AQ$16,ROUNDUP(G116/3600/(2.2*$J$4/100)/PI()*100000000/(C116*K116*$J$4),0),ROUNDUP(G116/3600/2.5/PI()*100000000/(C116*K116*$J$4),0)) -> 35 | K116: 120 | L116: 180 | O116: 14765.48547 | P116: 4800 | Q116: 8 | R116: 4700 | S116: 14 | U116: 140 | V116: 4980 | W116: 2987 | X116: 4380 | Y116: 7367 | AF116: =IF((C8-SQRT('Berechnung bündige Lamellen'!$F$10/3600/$G$1/PI())*2*1000)/2<20,"0",IF((C8-SQRT('Berechnung bündige Lamellen'!$F$10/3600/$G$1/PI())*2*1000)/2<80,ROUND((C8-SQRT('Berechnung bündige Lamellen'!$F$10/3600/$G$1/PI())*2*1000)/10,0)*10/2,IF((C8-SQRT('Berechnung bündige Lamellen'!$F$10/3600/$G$1/PI())*2*1000)<C8/2,ROUND((C8-SQRT('Berechnung bündige Lamellen'!$F$10/3600/$G$1/PI())*2*1000)/20,0)*20/2,C8/2))) -> 1480
A117: 4600 | B117: 16.61902514 | C117: 4360 | D117: 14.93010493 | E117: 3628 | F117: 10.33771222 | G117: 322490.2664 | J117: =IF('Berechnung bündige Lamellen'!$F$12<='Kamindaten bündige Lamellen'!$AQ$16,ROUNDUP(G117/3600/(2.2*$J$4/100)/PI()*100000000/(C117*K117*$J$4),0),ROUNDUP(G117/3600/2.5/PI()*100000000/(C117*K117*$J$4),0)) -> 35 | K117: 120 | L117: 180 | O117: 14451.32621 | P117: 4700 | Q117: 8 | R117: 4600 | S117: 14 | U117: 140 | V117: 4880 | W117: 2988 | X117: 4380 | Y117: 7368 | AF117: =IF((C9-SQRT('Berechnung bündige Lamellen'!$F$10/3600/$G$1/PI())*2*1000)/2<20,"0",IF((C9-SQRT('Berechnung bündige Lamellen'!$F$10/3600/$G$1/PI())*2*1000)/2<80,ROUND((C9-SQRT('Berechnung bündige Lamellen'!$F$10/3600/$G$1/PI())*2*1000)/10,0)*10/2,IF((C9-SQRT('Berechnung bündige Lamellen'!$F$10/3600/$G$1/PI())*2*1000)<C9/2,ROUND((C9-SQRT('Berechnung bündige Lamellen'!$F$10/3600/$G$1/PI())*2*1000)/20,0)*20/2,C9/2))) -> 1430
A118: 4500 | B118: 15.90431281 | C118: 4260 | D118: 14.25309171 | E118: 3629 | F118: 10.34341185 | G118: 307866.7809 | J118: =IF('Berechnung bündige Lamellen'!$F$12<='Kamindaten bündige Lamellen'!$AQ$16,ROUNDUP(G118/3600/(2.2*$J$4/100)/PI()*100000000/(C118*K118*$J$4),0),ROUNDUP(G118/3600/2.5/PI()*100000000/(C118*K118*$J$4),0)) -> 34 | K118: 120 | L118: 180 | O118: 14137.16694 | P118: 4600 | Q118: 8 | R118: 4500 | S118: 14 | U118: 140 | V118: 4780 | W118: 2989 | X118: 4260 | Y118: 7249 | AA118: 1 | AB118: 4.92 | AC118: 10.97 | AF118: =IF((C10-SQRT('Berechnung bündige Lamellen'!$F$10/3600/$G$1/PI())*2*1000)/2<20,"0",IF((C10-SQRT('Berechnung bündige Lamellen'!$F$10/3600/$G$1/PI())*2*1000)/2<80,ROUND((C10-SQRT('Berechnung bündige Lamellen'!$F$10/3600/$G$1/PI())*2*1000)/10,0)*10/2,IF((C10-SQRT('Berechnung bündige Lamellen'!$F$10/3600/$G$1/PI())*2*1000)<C10/2,ROUND((C10-SQRT('Berechnung bündige Lamellen'!$F$10/3600/$G$1/PI())*2*1000)/20,0)*20/2,C10/2))) -> 1380
A119: 4400 | B119: 15.20530844 | C119: 4160 | D119: 13.59178646 | E119: 3630 | F119: 10.34911306 | G119: 293582.5875 | J119: =IF('Berechnung bündige Lamellen'!$F$12<='Kamindaten bündige Lamellen'!$AQ$16,ROUNDUP(G119/3600/(2.2*$J$4/100)/PI()*100000000/(C119*K119*$J$4),0),ROUNDUP(G119/3600/2.5/PI()*100000000/(C119*K119*$J$4),0)) -> 33 | K119: 120 | L119: 180 | O119: 13823.00768 | P119: 4500 | Q119: 8 | R119: 4400 | S119: 14 | U119: 140 | V119: 4680 | W119: 2990 | X119: 4140 | Y119: 7130 | AA119: 1.1 | AB119: 5.47 | AC119: 11.57 | AF119: =IF((C11-SQRT('Berechnung bündige Lamellen'!$F$10/3600/$G$1/PI())*2*1000)/2<20,"0",IF((C11-SQRT('Berechnung bündige Lamellen'!$F$10/3600/$G$1/PI())*2*1000)/2<80,ROUND((C11-SQRT('Berechnung bündige Lamellen'!$F$10/3600/$G$1/PI())*2*1000)/10,0)*10/2,IF((C11-SQRT('Berechnung bündige Lamellen'!$F$10/3600/$G$1/PI())*2*1000)<C11/2,ROUND((C11-SQRT('Berechnung bündige Lamellen'!$F$10/3600/$G$1/PI())*2*1000)/20,0)*20/2,C11/2))) -> 1330
A120: 4300 | B120: 14.52201204 | C120: 4060 | D120: 12.94618917 | E120: 3631 | F120: 10.35481584 | G120: 279637.686 | J120: =IF('Berechnung bündige Lamellen'!$F$12<='Kamindaten bündige Lamellen'!$AQ$16,ROUNDUP(G120/3600/(2.2*$J$4/100)/PI()*100000000/(C120*K120*$J$4),0),ROUNDUP(G120/3600/2.5/PI()*100000000/(C120*K120*$J$4),0)) -> 32 | K120: 120 | L120: 180 | O120: 13508.84841 | P120: 4400 | Q120: 8 | R120: 4300 | S120: 14 | U120: 140 | V120: 4580 | W120: 2991 | X120: 4020 | Y120: 7011 | AA120: 1.2 | AB120: 6.01 | AC120: 12.18 | AF120: =IF((C12-SQRT('Berechnung bündige Lamellen'!$F$10/3600/$G$1/PI())*2*1000)/2<20,"0",IF((C12-SQRT('Berechnung bündige Lamellen'!$F$10/3600/$G$1/PI())*2*1000)/2<80,ROUND((C12-SQRT('Berechnung bündige Lamellen'!$F$10/3600/$G$1/PI())*2*1000)/10,0)*10/2,IF((C12-SQRT('Berechnung bündige Lamellen'!$F$10/3600/$G$1/PI())*2*1000)<C12/2,ROUND((C12-SQRT('Berechnung bündige Lamellen'!$F$10/3600/$G$1/PI())*2*1000)/20,0)*20/2,C12/2))) -> 1280
A121: 4200 | B121: 13.8544236 | C121: 3960 | D121: 12.31629984 | E121: 3632 | F121: 10.36052018 | G121: 266032.0765 | J121: =IF('Berechnung bündige Lamellen'!$F$12<='Kamindaten bündige Lamellen'!$AQ$16,ROUNDUP(G121/3600/(2.2*$J$4/100)/PI()*100000000/(C121*K121*$J$4),0),ROUNDUP(G121/3600/2.5/PI()*100000000/(C121*K121*$J$4),0)) -> 31 | K121: 120 | L121: 180 | O121: 13194.68915 | P121: 4300 | Q121: 8 | R121: 4200 | S121: 14 | U121: 140 | V121: 4480 | W121: 2992 | X121: 3900 | Y121: 6892 | AA121: 1.3 | AB121: 6.56 | AC121: 12.78 | AF121: =IF((C13-SQRT('Berechnung bündige Lamellen'!$F$10/3600/$G$1/PI())*2*1000)/2<20,"0",IF((C13-SQRT('Berechnung bündige Lamellen'!$F$10/3600/$G$1/PI())*2*1000)/2<80,ROUND((C13-SQRT('Berechnung bündige Lamellen'!$F$10/3600/$G$1/PI())*2*1000)/10,0)*10/2,IF((C13-SQRT('Berechnung bündige Lamellen'!$F$10/3600/$G$1/PI())*2*1000)<C13/2,ROUND((C13-SQRT('Berechnung bündige Lamellen'!$F$10/3600/$G$1/PI())*2*1000)/20,0)*20/2,C13/2))) -> 1230
A122: 4100 | B122: 13.20254313 | C122: 3860 | D122: 11.70211848 | E122: 3633 | F122: 10.3662261 | G122: 252765.7591 | J122: =IF('Berechnung bündige Lamellen'!$F$12<='Kamindaten bündige Lamellen'!$AQ$16,ROUNDUP(G122/3600/(2.2*$J$4/100)/PI()*100000000/(C122*K122*$J$4),0),ROUNDUP(G122/3600/2.5/PI()*100000000/(C122*K122*$J$4),0)) -> 31 | K122: 120 | L122: 180 | O122: 12880.52988 | P122: 4200 | Q122: 8 | R122: 4100 | S122: 14 | U122: 140 | V122: 4380 | W122: 2993 | X122: 3900 | Y122: 6893 | AA122: 1.4 | AB122: 7.11 | AC122: 13.38 | AF122: =IF((C14-SQRT('Berechnung bündige Lamellen'!$F$10/3600/$G$1/PI())*2*1000)/2<20,"0",IF((C14-SQRT('Berechnung bündige Lamellen'!$F$10/3600/$G$1/PI())*2*1000)/2<80,ROUND((C14-SQRT('Berechnung bündige Lamellen'!$F$10/3600/$G$1/PI())*2*1000)/10,0)*10/2,IF((C14-SQRT('Berechnung bündige Lamellen'!$F$10/3600/$G$1/PI())*2*1000)<C14/2,ROUND((C14-SQRT('Berechnung bündige Lamellen'!$F$10/3600/$G$1/PI())*2*1000)/20,0)*20/2,C14/2))) -> 1180
A123: 4000 | B123: 12.56637061 | C123: 3760 | D123: 11.10364507 | E123: 3634 | F123: 10.37193359 | G123: 239838.7336 | J123: =IF('Berechnung bündige Lamellen'!$F$12<='Kamindaten bündige Lamellen'!$AQ$16,ROUNDUP(G123/3600/(2.2*$J$4/100)/PI()*100000000/(C123*K123*$J$4),0),ROUNDUP(G123/3600/2.5/PI()*100000000/(C123*K123*$J$4),0)) -> 30 | K123: 120 | L123: 180 | O123: 12566.37061 | P123: 4100 | Q123: 8 | R123: 4000 | S123: 14 | U123: 140 | V123: 4280 | W123: 2994 | X123: 3780 | Y123: 6774 | AA123: 1.5 | AB123: 7.65 | AC123: 13.98 | AF123: =IF((C15-SQRT('Berechnung bündige Lamellen'!$F$10/3600/$G$1/PI())*2*1000)/2<20,"0",IF((C15-SQRT('Berechnung bündige Lamellen'!$F$10/3600/$G$1/PI())*2*1000)/2<80,ROUND((C15-SQRT('Berechnung bündige Lamellen'!$F$10/3600/$G$1/PI())*2*1000)/10,0)*10/2,IF((C15-SQRT('Berechnung bündige Lamellen'!$F$10/3600/$G$1/PI())*2*1000)<C15/2,ROUND((C15-SQRT('Berechnung bündige Lamellen'!$F$10/3600/$G$1/PI())*2*1000)/20,0)*20/2,C15/2))) -> 1130
A124: 3900 | B124: 11.94590607 | C124: 3660 | D124: 10.52087964 | E124: 3635 | F124: 10.37764265 | G124: 227251.0002 | J124: =IF('Berechnung bündige Lamellen'!$F$12<='Kamindaten bündige Lamellen'!$AQ$16,ROUNDUP(G124/3600/(2.2*$J$4/100)/PI()*100000000/(C124*K124*$J$4),0),ROUNDUP(G124/3600/2.5/PI()*100000000/(C124*K124*$J$4),0)) -> 29 | K124: 120 | L124: 180 | O124: 12252.21135 | P124: 4000 | Q124: 8 | R124: 3900 | S124: 14 | U124: 140 | V124: 4180 | W124: 2995 | X124: 3660 | Y124: 6655 | AA124: 1.6 | AB124: 8.2 | AC124: 14.57 | AF124: =IF((C16-SQRT('Berechnung bündige Lamellen'!$F$10/3600/$G$1/PI())*2*1000)/2<20,"0",IF((C16-SQRT('Berechnung bündige Lamellen'!$F$10/3600/$G$1/PI())*2*1000)/2<80,ROUND((C16-SQRT('Berechnung bündige Lamellen'!$F$10/3600/$G$1/PI())*2*1000)/10,0)*10/2,IF((C16-SQRT('Berechnung bündige Lamellen'!$F$10/3600/$G$1/PI())*2*1000)<C16/2,ROUND((C16-SQRT('Berechnung bündige Lamellen'!$F$10/3600/$G$1/PI())*2*1000)/20,0)*20/2,C16/2))) -> 1080
A125: 3800 | B125: 11.34114948 | C125: 3560 | D125: 9.953822164 | E125: 3636 | F125: 10.38335328 | G125: 215002.5587 | J125: =IF('Berechnung bündige Lamellen'!$F$12<='Kamindaten bündige Lamellen'!$AQ$16,ROUNDUP(G125/3600/(2.2*$J$4/100)/PI()*100000000/(C125*K125*$J$4),0),ROUNDUP(G125/3600/2.5/PI()*100000000/(C125*K125*$J$4),0)) -> 28 | K125: 120 | L125: 180 | O125: 11938.05208 | P125: 3900 | Q125: 8 | R125: 3800 | S125: 14 | U125: 140 | V125: 4080 | W125: 2996 | X125: 3540 | Y125: 6536 | AA125: 1.7 | AB125: 8.73 | AC125: 15.17 | AF125: =IF((C17-SQRT('Berechnung bündige Lamellen'!$F$10/3600/$G$1/PI())*2*1000)/2<20,"0",IF((C17-SQRT('Berechnung bündige Lamellen'!$F$10/3600/$G$1/PI())*2*1000)/2<80,ROUND((C17-SQRT('Berechnung bündige Lamellen'!$F$10/3600/$G$1/PI())*2*1000)/10,0)*10/2,IF((C17-SQRT('Berechnung bündige Lamellen'!$F$10/3600/$G$1/PI())*2*1000)<C17/2,ROUND((C17-SQRT('Berechnung bündige Lamellen'!$F$10/3600/$G$1/PI())*2*1000)/20,0)*20/2,C17/2))) -> 1030
A126: 3700 | B126: 10.75210086 | C126: 3460 | D126: 9.402472653 | E126: 3637 | F126: 10.38906548 | G126: 203093.4093 | J126: =IF('Berechnung bündige Lamellen'!$F$12<='Kamindaten bündige Lamellen'!$AQ$16,ROUNDUP(G126/3600/(2.2*$J$4/100)/PI()*100000000/(C126*K126*$J$4),0),ROUNDUP(G126/3600/2.5/PI()*100000000/(C126*K126*$J$4),0)) -> 28 | K126: 120 | L126: 180 | O126: 11623.89282 | P126: 3800 | Q126: 8 | R126: 3700 | S126: 14 | U126: 140 | V126: 3980 | W126: 2997 | X126: 3540 | Y126: 6537 | AA126: 1.8 | AB126: 9.23 | AC126: 15.76 | AF126: =IF((C18-SQRT('Berechnung bündige Lamellen'!$F$10/3600/$G$1/PI())*2*1000)/2<20,"0",IF((C18-SQRT('Berechnung bündige Lamellen'!$F$10/3600/$G$1/PI())*2*1000)/2<80,ROUND((C18-SQRT('Berechnung bündige Lamellen'!$F$10/3600/$G$1/PI())*2*1000)/10,0)*10/2,IF((C18-SQRT('Berechnung bündige Lamellen'!$F$10/3600/$G$1/PI())*2*1000)<C18/2,ROUND((C18-SQRT('Berechnung bündige Lamellen'!$F$10/3600/$G$1/PI())*2*1000)/20,0)*20/2,C18/2))) -> 980
A127: 3600 | B127: 10.1787602 | C127: 3360 | D127: 8.866831105 | E127: 3638 | F127: 10.39477925 | G127: 191523.5519 | J127: =IF('Berechnung bündige Lamellen'!$F$12<='Kamindaten bündige Lamellen'!$AQ$16,ROUNDUP(G127/3600/(2.2*$J$4/100)/PI()*100000000/(C127*K127*$J$4),0),ROUNDUP(G127/3600/2.5/PI()*100000000/(C127*K127*$J$4),0)) -> 27 | K127: 120 | L127: 180 | O127: 11309.73355 | P127: 3700 | Q127: 8 | R127: 3600 | S127: 14 | U127: 140 | V127: 3880 | W127: 2998 | X127: 3420 | Y127: 6418 | AA127: 1.9 | AB127: 9.69 | AC127: 16.36 | AF127: =IF((C19-SQRT('Berechnung bündige Lamellen'!$F$10/3600/$G$1/PI())*2*1000)/2<20,"0",IF((C19-SQRT('Berechnung bündige Lamellen'!$F$10/3600/$G$1/PI())*2*1000)/2<80,ROUND((C19-SQRT('Berechnung bündige Lamellen'!$F$10/3600/$G$1/PI())*2*1000)/10,0)*10/2,IF((C19-SQRT('Berechnung bündige Lamellen'!$F$10/3600/$G$1/PI())*2*1000)<C19/2,ROUND((C19-SQRT('Berechnung bündige Lamellen'!$F$10/3600/$G$1/PI())*2*1000)/20,0)*20/2,C19/2))) -> 930

Sheet Berechnung FO-über_ohne_Schatte
D1: ="Typ: " & 'Match-Code'!O6 -> Typ: AU-Ø700-H3,54-1.4301-LAS01-Bp-(1x) | H1: x | I1: x | J1: x | M1: x | N1: x | O1: x | P1: x | Q1: x | R1: x | S1: x | T1: x | U1: x | V1: x | W1: x | X1: x | Y1: x | AL1: x | AM1: x | AN1: x | AO1: x | AP1: x | AQ1: x | AR1: x | AS1: x | AT1: x | AU1: x | AV1: x | AW1: x | AX1: x | AY1: x | AZ1: x | BA1: x | BB1: x | BC1: x | BD1: x | BE1: x | BF1: x | BG1: x | BH1: x | BI1: x | BJ1: x | BK1: x | BL1: x | BM1: x | BN1: x | BO1: x | BP1: x | BQ1: x | BR1: x | BS1: x | BT1: x | BU1: x | BV1: x | BW1: x | BX1: x | BY1: x | BZ1: x | CA1: x | CB1: x | CC1: x | CD1: x | CE1: x | CF1: x | CG1: x | CH1: x | CI1: x | CJ1: x | CK1: x | CL1: x | CM1: x | CN1: x | CO1: x | CP1: x | CQ1: x | CR1: x | CS1: x | CT1: x | CU1: x | CV1: x | CW1: x | CX1: x | CY1: x | CZ1: x | DA1: x | DB1: x | DC1: x | DD1: x | DE1: x
A2: Produkt: | B2: =Auswertung!D10 -> Außenluftturm | D2: =IF(OR(Auswertung!B23=3,Auswertung!B23=4),Auswertung!BE5,IF(Auswertung!H48=1,Auswertung!BF5,Auswertung!BD5))&IF(Auswertung!H35=TRUE,IF(Auswertung!B5=2,"1.4301 gebeizt","1.4571 gebeizt"),"S235JR - lackiert") -> → Lamellen 360° umlaufend mit 45° Neigung → Sichtschweißnähte → Fertigung nach ALS-KD-Werksnorm → Zubehör ist zeichnerisch nicht dargestellt → Bodenplatte S235JR - lackiert
J3: ='Match-Code'!O12 -> AU-Ø700-H3,54-1.4301-LAS01-Bp(s)-(1x)-Lochb-Dger | R3: RAS | T3: 0 | V3: Turmart | W3: =TLD -> 212 | Y3: Luftgeschwindigkeit Lamelle
A4: Bauvorhaben: | B4: =Deckblatt!B16&" - "&TEXT(Deckblatt!B19,"00000") & " " & Deckblatt!C19 -> - 00000 | R4: Turmart | V4: Luftrichtung | W4: =TLD_T -> 2 | X4: =CHOOSE(TLD_T,"FO","AU") -> AU | Y4: =SUM(T5*Y6) -> 0
I5: 1 | R5: LAS 02 | T5: =IF(TLD_L=2,1,0) -> 0 | V5: Lamellen | W5: =TLD_L -> 1 | X5: =CHOOSE(TLD_L,"bündig","überstehend","ohne","Schatten") -> bündig
A6: Anzahl: | B6: =Deckblatt!B22 -> 1 | I6: 0 | K6: Standard-werte | R6: seitlicher Anschluss | T6: 0 | V6: Dach | W6: =TLD_D -> 2 | X6: =CHOOSE(TLD_D,"VSG","geschlossen") -> geschlossen | Y6: =IF(TLD_D=2,1,0) -> 1
B7: =IF(S8,"","Achtung! Standardwerte wurden geändert!") -> 
J8: Formeln | S8: =IFERROR(IF(T5=1,S13*S33*S17*S35*S23*S29,S13*S33*S51*S35),1) -> 1 | T8: =IF(S8,"Standard-LAS02","nStandard-LAS02") -> Standard-LAS02 | AG8: Gewünschte Gesamthöhe: | AI8: 3000
R9: GRK | T9: 0
H10: x
D11: Luftmenge (Volumenstrom) | F11: 4999 | G11: m³/h | R11: Sattelstutzen | T11: 0 | V11: Lamellen + Dach | W11: =TLD_LD -> 12 | AG11: erforderliches Maß für L1 | AI11: =IF(AI8=0,"",IF(AI8<=(F21+F23),"nicht möglich",AI8-F21-F25)) ->  | AJ11: =IF(OR(AI8=0,AI11="nicht möglich"),"",IF(AI11<>F19,"Bitte Maß bei L1 eintragen","")) -> 
D13: Durchmesser*** | E13: ØA | F13: =K13 -> 600 | G13: mm | I13: =F13 -> 600 | J13: =INDEX('Kamindaten FO-über_ohne_Schatte'!$A$5:$N$42,MATCH(SQRT($F$11/3600/'Kamindaten FO-über_ohne_Schatte'!$H$4*4/PI()*1000000),'Kamindaten FO-über_ohne_Schatte'!$A$5:$A$42,-1),1) -> 600 | K13: =IFERROR(IF(OR('Kamindaten FO-über_ohne_Schatte'!AL7=1,'Kamindaten FO-über_ohne_Schatte'!AL15=1),INDEX('Kamindaten FO-über_ohne_Schatte'!$A$5:$N$36,MATCH(F11,'Kamindaten FO-über_ohne_Schatte'!$H$5:$H$36,-1),1),INDEX('Kamindaten FO-über_ohne_Schatte'!$A$5:$N$42,MATCH(F11,'Kamindaten FO-über_ohne_Schatte'!$H$5:$H$42,-1),1)),"") -> 600 | L13: =IF(F13<160,"Mindestdurchmesser Ø160 mm.","") ->  | S13: =EXACT(F13,K13) -> TRUE
D15: Durchmesser | E15: ØC | F15: =IFERROR(F13+F17*2,"") ->  | G15: mm | I15: =IF($T$5,I13+I17*2,"") ->  | J15: =IF($T$5,J13+J17*2,"") ->  | K15: =IFERROR(IF($T$5,K13+K17*2,""),"") ->  | R15: Luftfilter | T15: 0 | V15: Dachform | W15: =Dachform -> 1 | AL15: Kulissenschalldämpfer: | BH15: Rohrschalldämpfer mit Kern: | CI15: Rohrschalldämpfer ohne Kern:
D17: Lamellenhöhe | E17: z | F17: =K17 ->  | G17: mm | I17: =INDEX('Kamindaten FO-über_ohne_Schatte'!M5:M42,MATCH($F$13,'Kamindaten FO-über_ohne_Schatte'!A5:A42,-1)) -> 60 | J17: =INDEX('Kamindaten FO-über_ohne_Schatte'!M5:M42,MATCH($J$13,'Kamindaten FO-über_ohne_Schatte'!A5:A42,-1)) -> 60 | K17: =IFERROR(IF(T5,INDEX('Kamindaten FO-über_ohne_Schatte'!M5:M42,MATCH($K$13,'Kamindaten FO-über_ohne_Schatte'!A5:A42,-1)),""),"") ->  | R17: Schalldämpfer | S17: =EXACT(F17,K17) -> TRUE | T17: 0 | AL17: Länge: | AM17: 2000 | AN17: mm | AO17: Kulissenbreite: | AQ17: 200 | BH17: Länge: | BI17: 1500 | BJ17: mm | BK17: Packungsdicke: | BM17: =Schalldämpfer!CP7 -> 100 | CI17: Länge: | CJ17: 1000 | CK17: mm | CL17: Packungsdicke: | CN17: =Schalldämpfer!DV12 -> 50
D19: Höhe Rohr | E19: L1 | F19: 3000 | G19: mm | I19: 3000 | J19: =IF(T5,3000,"") ->  | S19: =EXACT(F19,K19) -> FALSE | T19: <= wird nicht verwendet | AL19: Oktav-Frequenzen: | AN19: 63 | AO19: 125 | AP19: 250 | AQ19: 500 | AR19: 1000 | AS19: 2000 | AT19: 4000 | AU19: 8000 | AX19: 63 | AY19: 125 | AZ19: 250 | BA19: 500 | BB19: 1000 | BC19: 2000 | BD19: 4000 | BE19: 8000 | BH19: Oktav-Frequenzen: | BJ19: 63 | BK19: 125 | BL19: 250 | BM19: 500 | BN19: 1000 | BO19: 2000 | BP19: 4000 | BQ19: 8000 | BW19: 63 | BX19: 125 | BY19: 250 | BZ19: 500 | CA19: 1000 | CB19: 2000 | CC19: 4000 | CD19: 8000 | CI19: Oktav-Frequenzen: | CK19: 63 | CL19: 125 | CM19: 250 | CN19: 500 | CO19: 1000 | CP19: 2000 | CQ19: 4000 | CR19: 8000 | CX19: 63 | CY19: 125 | CZ19: 250 | DA19: 500 | DB19: 1000 | DC19: 2000 | DD19: 4000 | DE19: 8000
D21: Höhe Lamellenbereich | E21: L2 | F21: =IFERROR(F23*F17,"") ->  | G21: mm | J21: =IF(T5,J23*J17,"") ->  | K21: =IFERROR(IF(T5,K23*K17,""),"") ->  | AN21: 2 | AO21: 14 | AP21: 21 | AQ21: 21 | AR21: 23 | AS21: 14 | AT21: 9 | AU21: 7 | AX21: =IFERROR(IF($AQ$17=100,IF($AM$17=500,INDEX(Schalldämpfer!$C$25:'Schalldämpfer'!$K$30,MATCH(Schalldämpfer!$AO$7,Schalldämpfer!$C$25:$C$30,-1),MATCH(AX19,Schalldämpfer!$C$24:$K$24,0)),IF($AM$17=1000,INDEX(Schalldämpfer!$C$31:'Schalldämpfer'!$K$36,MATCH(Schalldämpfer!$AO$7,Schalldämpfer!$C$25:$C$30,-1),MATCH(AX19,Schalldämpfer!$C$24:$K$24,0)),IF($AM$17=1500,INDEX(Schalldämpfer!$C$37:'Schalldämpfer'!$K$42,MATCH(Schalldämpfer!$AO$7,Schalldämpfer!$C$25:$C$30,-1),MATCH(AX19,Schalldämpfer!$C$24:$K$24,0)),IF($AM$17=2000,INDEX(Schalldämpfer!$C$43:'Schalldämpfer'!$K$48,MATCH(Schalldämpfer!$AO$7,Schalldämpfer!$C$25:$C$30,-1),MATCH(AX19,Schalldämpfer!$C$24:$K$24,0)),IF($AM$17=2500,INDEX(Schalldämpfer!$C$49:'Schalldämpfer'!$K$54,MATCH(Schalldämpfer!$AO$7,Schalldämpfer!$C$25:$C$30,-1),MATCH(AX19,Schalldämpfer!$C$24:$K$24,0)),IF($AM$17=3000,INDEX(Schalldämpfer!$C$55:'Schalldämpfer'!$K$60,MATCH(Schalldämpfer!$AO$7,Schalldämpfer!$C$25:$C$30,-1),MATCH(AX19,Schalldämpfer!$C$24:$K$24,0)),0)))))),IF($AQ$17=200,IF($AM$17=500,INDEX(Schalldämpfer!$S$25:'Schalldämpfer'!$Z$33,MATCH(Schalldämpfer!$AO$7,Schalldämpfer!$R$25:$R$33,-1),MATCH(AX19,Schalldämpfer!$S$24:$Z$24,0)),IF($AM$17=1000,INDEX(Schalldämpfer!$S$34:'Schalldämpfer'!$Z$42,MATCH(Schalldämpfer!$AO$7,Schalldämpfer!$R$25:$R$33,-1),MATCH(AX19,Schalldämpfer!$S$24:$Z$24,0)),IF($AM$17=1500,INDEX(Schalldämpfer!$S$43:'Schalldämpfer'!$Z$51,MATCH(Schalldämpfer!$AO$7,Schalldämpfer!$R$25:$R$33,-1),MATCH(AX19,Schalldämpfer!$S$24:$Z$24,0)),IF($AM$17=2000,INDEX(Schalldämpfer!$S$52:'Schalldämpfer'!$Z$60,MATCH(Schalldämpfer!$AO$7,Schalldämpfer!$R$25:$R$33,-1),MATCH(AX19,Schalldämpfer!$S$24:$Z$24,0)),IF($AM$17=2500,INDEX(Schalldämpfer!$S$61:'Schalldämpfer'!$Z$69,MATCH(Schalldämpfer!$AO$7,Schalldämpfer!$R$25:$R$33,-1),MATCH(AX19,Schalldämpfer!$S$24:$Z$24,0)),IF($AM$17=3000,INDEX(Schalldämpfer!$S$70:'Schalldämpfer'!$Z$78,MATCH(Schalldämpfer!$AO$7,Schalldämpfer!$R$25:$R$33,-1),MATCH(AX19,Schalldämpfer!$S$24:$Z$24,0)),0)))))))),"k.W.") -> 2 | AY21: =IFERROR(IF($AQ$17=100,IF($AM$17=500,INDEX(Schalldämpfer!$C$25:'Schalldämpfer'!$K$30,MATCH(Schalldämpfer!$AO$7,Schalldämpfer!$C$25:$C$30,-1),MATCH(AY19,Schalldämpfer!$C$24:$K$24,0)),IF($AM$17=1000,INDEX(Schalldämpfer!$C$31:'Schalldämpfer'!$K$36,MATCH(Schalldämpfer!$AO$7,Schalldämpfer!$C$25:$C$30,-1),MATCH(AY19,Schalldämpfer!$C$24:$K$24,0)),IF($AM$17=1500,INDEX(Schalldämpfer!$C$37:'Schalldämpfer'!$K$42,MATCH(Schalldämpfer!$AO$7,Schalldämpfer!$C$25:$C$30,-1),MATCH(AY19,Schalldämpfer!$C$24:$K$24,0)),IF($AM$17=2000,INDEX(Schalldämpfer!$C$43:'Schalldämpfer'!$K$48,MATCH(Schalldämpfer!$AO$7,Schalldämpfer!$C$25:$C$30,-1),MATCH(AY19,Schalldämpfer!$C$24:$K$24,0)),IF($AM$17=2500,INDEX(Schalldämpfer!$C$49:'Schalldämpfer'!$K$54,MATCH(Schalldämpfer!$AO$7,Schalldämpfer!$C$25:$C$30,-1),MATCH(AY19,Schalldämpfer!$C$24:$K$24,0)),IF($AM$17=3000,INDEX(Schalldämpfer!$C$55:'Schalldämpfer'!$K$60,MATCH(Schalldämpfer!$AO$7,Schalldämpfer!$C$25:$C$30,-1),MATCH(AY19,Schalldämpfer!$C$24:$K$24,0)),0)))))),IF($AQ$17=200,IF($AM$17=500,INDEX(Schalldämpfer!$S$25:'Schalldämpfer'!$Z$33,MATCH(Schalldämpfer!$AO$7,Schalldämpfer!$R$25:$R$33,-1),MATCH(AY19,Schalldämpfer!$S$24:$Z$24,0)),IF($AM$17=1000,INDEX(Schalldämpfer!$S$34:'Schalldämpfer'!$Z$42,MATCH(Schalldämpfer!$AO$7,Schalldämpfer!$R$25:$R$33,-1),MATCH(AY19,Schalldämpfer!$S$24:$Z$24,0)),IF($AM$17=1500,INDEX(Schalldämpfer!$S$43:'Schalldämpfer'!$Z$51,MATCH(Schalldämpfer!$AO$7,Schalldämpfer!$R$25:$R$33,-1),MATCH(AY19,Schalldämpfer!$S$24:$Z$24,0)),IF($AM$17=2000,INDEX(Schalldämpfer!$S$52:'Schalldämpfer'!$Z$60,MATCH(Schalldämpfer!$AO$7,Schalldämpfer!$R$25:$R$33,-1),MATCH(AY19,Schalldämpfer!$S$24:$Z$24,0)),IF($AM$17=2500,INDEX(Schalldämpfer!$S$61:'Schalldämpfer'!$Z$69,MATCH(Schalldämpfer!$AO$7,Schalldämpfer!$R$25:$R$33,-1),MATCH(AY19,Schalldämpfer!$S$24:$Z$24,0)),IF($AM$17=3000,INDEX(Schalldämpfer!$S$70:'Schalldämpfer'!$Z$78,MATCH(Schalldämpfer!$AO$7,Schalldämpfer!$R$25:$R$33,-1),MATCH(AY19,Schalldämpfer!$S$24:$Z$24,0)),0)))))))),"k.W.") -> 21 | AZ21: =IFERROR(IF($AQ$17=100,IF($AM$17=500,INDEX(Schalldämpfer!$C$25:'Schalldämpfer'!$K$30,MATCH(Schalldämpfer!$AO$7,Schalldämpfer!$C$25:$C$30,-1),MATCH(AZ19,Schalldämpfer!$C$24:$K$24,0)),IF($AM$17=1000,INDEX(Schalldämpfer!$C$31:'Schalldämpfer'!$K$36,MATCH(Schalldämpfer!$AO$7,Schalldämpfer!$C$25:$C$30,-1),MATCH(AZ19,Schalldämpfer!$C$24:$K$24,0)),IF($AM$17=1500,INDEX(Schalldämpfer!$C$37:'Schalldämpfer'!$K$42,MATCH(Schalldämpfer!$AO$7,Schalldämpfer!$C$25:$C$30,-1),MATCH(AZ19,Schalldämpfer!$C$24:$K$24,0)),IF($AM$17=2000,INDEX(Schalldämpfer!$C$43:'Schalldämpfer'!$K$48,MATCH(Schalldämpfer!$AO$7,Schalldämpfer!$C$25:$C$30,-1),MATCH(AZ19,Schalldämpfer!$C$24:$K$24,0)),IF($AM$17=2500,INDEX(Schalldämpfer!$C$49:'Schalldämpfer'!$K$54,MATCH(Schalldämpfer!$AO$7,Schalldämpfer!$C$25:$C$30,-1),MATCH(AZ19,Schalldämpfer!$C$24:$K$24,0)),IF($AM$17=3000,INDEX(Schalldämpfer!$C$55:'Schalldämpfer'!$K$60,MATCH(Schalldämpfer!$AO$7,Schalldämpfer!$C$25:$C$30,-1),MATCH(AZ19,Schalldämpfer!$C$24:$K$24,0)),0)))))),IF($AQ$17=200,IF($AM$17=500,INDEX(Schalldämpfer!$S$25:'Schalldämpfer'!$Z$33,MATCH(Schalldämpfer!$AO$7,Schalldämpfer!$R$25:$R$33,-1),MATCH(AZ19,Schalldämpfer!$S$24:$Z$24,0)),IF($AM$17=1000,INDEX(Schalldämpfer!$S$34:'Schalldämpfer'!$Z$42,MATCH(Schalldämpfer!$AO$7,Schalldämpfer!$R$25:$R$33,-1),MATCH(AZ19,Schalldämpfer!$S$24:$Z$24,0)),IF($AM$17=1500,INDEX(Schalldämpfer!$S$43:'Schalldämpfer'!$Z$51,MATCH(Schalldämpfer!$AO$7,Schalldämpfer!$R$25:$R$33,-1),MATCH(AZ19,Schalldämpfer!$S$24:$Z$24,0)),IF($AM$17=2000,INDEX(Schalldämpfer!$S$52:'Schalldämpfer'!$Z$60,MATCH(Schalldämpfer!$AO$7,Schalldämpfer!$R$25:$R$33,-1),MATCH(AZ19,Schalldämpfer!$S$24:$Z$24,0)),IF($AM$17=2500,INDEX(Schalldämpfer!$S$61:'Schalldämpfer'!$Z$69,MATCH(Schalldämpfer!$AO$7,Schalldämpfer!$R$25:$R$33,-1),MATCH(AZ19,Schalldämpfer!$S$24:$Z$24,0)),IF($AM$17=3000,INDEX(Schalldämpfer!$S$70:'Schalldämpfer'!$Z$78,MATCH(Schalldämpfer!$AO$7,Schalldämpfer!$R$25:$R$33,-1),MATCH(AZ19,Schalldämpfer!$S$24:$Z$24,0)),0)))))))),"k.W.") -> 35 | BA21: =IFERROR(IF($AQ$17=100,IF($AM$17=500,INDEX(Schalldämpfer!$C$25:'Schalldämpfer'!$K$30,MATCH(Schalldämpfer!$AO$7,Schalldämpfer!$C$25:$C$30,-1),MATCH(BA19,Schalldämpfer!$C$24:$K$24,0)),IF($AM$17=1000,INDEX(Schalldämpfer!$C$31:'Schalldämpfer'!$K$36,MATCH(Schalldämpfer!$AO$7,Schalldämpfer!$C$25:$C$30,-1),MATCH(BA19,Schalldämpfer!$C$24:$K$24,0)),IF($AM$17=1500,INDEX(Schalldämpfer!$C$37:'Schalldämpfer'!$K$42,MATCH(Schalldämpfer!$AO$7,Schalldämpfer!$C$25:$C$30,-1),MATCH(BA19,Schalldämpfer!$C$24:$K$24,0)),IF($AM$17=2000,INDEX(Schalldämpfer!$C$43:'Schalldämpfer'!$K$48,MATCH(Schalldämpfer!$AO$7,Schalldämpfer!$C$25:$C$30,-1),MATCH(BA19,Schalldämpfer!$C$24:$K$24,0)),IF($AM$17=2500,INDEX(Schalldämpfer!$C$49:'Schalldämpfer'!$K$54,MATCH(Schalldämpfer!$AO$7,Schalldämpfer!$C$25:$C$30,-1),MATCH(BA19,Schalldämpfer!$C$24:$K$24,0)),IF($AM$17=3000,INDEX(Schalldämpfer!$C$55:'Schalldämpfer'!$K$60,MATCH(Schalldämpfer!$AO$7,Schalldämpfer!$C$25:$C$30,-1),MATCH(BA19,Schalldämpfer!$C$24:$K$24,0)),0)))))),IF($AQ$17=200,IF($AM$17=500,INDEX(Schalldämpfer!$S$25:'Schalldämpfer'!$Z$33,MATCH(Schalldämpfer!$AO$7,Schalldämpfer!$R$25:$R$33,-1),MATCH(BA19,Schalldämpfer!$S$24:$Z$24,0)),IF($AM$17=1000,INDEX(Schalldämpfer!$S$34:'Schalldämpfer'!$Z$42,MATCH(Schalldämpfer!$AO$7,Schalldämpfer!$R$25:$R$33,-1),MATCH(BA19,Schalldämpfer!$S$24:$Z$24,0)),IF($AM$17=1500,INDEX(Schalldämpfer!$S$43:'Schalldämpfer'!$Z$51,MATCH(Schalldämpfer!$AO$7,Schalldämpfer!$R$25:$R$33,-1),MATCH(BA19,Schalldämpfer!$S$24:$Z$24,0)),IF($AM$17=2000,INDEX(Schalldämpfer!$S$52:'Schalldämpfer'!$Z$60,MATCH(Schalldämpfer!$AO$7,Schalldämpfer!$R$25:$R$33,-1),MATCH(BA19,Schalldämpfer!$S$24:$Z$24,0)),IF($AM$17=2500,INDEX(Schalldämpfer!$S$61:'Schalldämpfer'!$Z$69,MATCH(Schalldämpfer!$AO$7,Schalldämpfer!$R$25:$R$33,-1),MATCH(BA19,Schalldämpfer!$S$24:$Z$24,0)),IF($AM$17=3000,INDEX(Schalldämpfer!$S$70:'Schalldämpfer'!$Z$78,MATCH(Schalldämpfer!$AO$7,Schalldämpfer!$R$25:$R$33,-1),MATCH(BA19,Schalldämpfer!$S$24:$Z$24,0)),0)))))))),"k.W.") -> 35 | BB21: =IFERROR(IF($AQ$17=100,IF($AM$17=500,INDEX(Schalldämpfer!$C$25:'Schalldämpfer'!$K$30,MATCH(Schalldämpfer!$AO$7,Schalldämpfer!$C$25:$C$30,-1),MATCH(BB19,Schalldämpfer!$C$24:$K$24,0)),IF($AM$17=1000,INDEX(Schalldämpfer!$C$31:'Schalldämpfer'!$K$36,MATCH(Schalldämpfer!$AO$7,Schalldämpfer!$C$25:$C$30,-1),MATCH(BB19,Schalldämpfer!$C$24:$K$24,0)),IF($AM$17=1500,INDEX(Schalldämpfer!$C$37:'Schalldämpfer'!$K$42,MATCH(Schalldämpfer!$AO$7,Schalldämpfer!$C$25:$C$30,-1),MATCH(BB19,Schalldämpfer!$C$24:$K$24,0)),IF($AM$17=2000,INDEX(Schalldämpfer!$C$43:'Schalldämpfer'!$K$48,MATCH(Schalldämpfer!$AO$7,Schalldämpfer!$C$25:$C$30,-1),MATCH(BB19,Schalldämpfer!$C$24:$K$24,0)),IF($AM$17=2500,INDEX(Schalldämpfer!$C$49:'Schalldämpfer'!$K$54,MATCH(Schalldämpfer!$AO$7,Schalldämpfer!$C$25:$C$30,-1),MATCH(BB19,Schalldämpfer!$C$24:$K$24,0)),IF($AM$17=3000,INDEX(Schalldämpfer!$C$55:'Schalldämpfer'!$K$60,MATCH(Schalldämpfer!$AO$7,Schalldämpfer!$C$25:$C$30,-1),MATCH(BB19,Schalldämpfer!$C$24:$K$24,0)),0)))))),IF($AQ$17=200,IF($AM$17=500,INDEX(Schalldämpfer!$S$25:'Schalldämpfer'!$Z$33,MATCH(Schalldämpfer!$AO$7,Schalldämpfer!$R$25:$R$33,-1),MATCH(BB19,Schalldämpfer!$S$24:$Z$24,0)),IF($AM$17=1000,INDEX(Schalldämpfer!$S$34:'Schalldämpfer'!$Z$42,MATCH(Schalldämpfer!$AO$7,Schalldämpfer!$R$25:$R$33,-1),MATCH(BB19,Schalldämpfer!$S$24:$Z$24,0)),IF($AM$17=1500,INDEX(Schalldämpfer!$S$43:'Schalldämpfer'!$Z$51,MATCH(Schalldämpfer!$AO$7,Schalldämpfer!$R$25:$R$33,-1),MATCH(BB19,Schalldämpfer!$S$24:$Z$24,0)),IF($AM$17=2000,INDEX(Schalldämpfer!$S$52:'Schalldämpfer'!$Z$60,MATCH(Schalldämpfer!$AO$7,Schalldämpfer!$R$25:$R$33,-1),MATCH(BB19,Schalldämpfer!$S$24:$Z$24,0)),IF($AM$17=2500,INDEX(Schalldämpfer!$S$61:'Schalldämpfer'!$Z$69,MATCH(Schalldämpfer!$AO$7,Schalldämpfer!$R$25:$R$33,-1),MATCH(BB19,Schalldämpfer!$S$24:$Z$24,0)),IF($AM$17=3000,INDEX(Schalldämpfer!$S$70:'Schalldämpfer'!$Z$78,MATCH(Schalldämpfer!$AO$7,Schalldämpfer!$R$25:$R$33,-1),MATCH(BB19,Schalldämpfer!$S$24:$Z$24,0)),0)))))))),"k.W.") -> 42 | BC21: =IFERROR(IF($AQ$17=100,IF($AM$17=500,INDEX(Schalldämpfer!$C$25:'Schalldämpfer'!$K$30,MATCH(Schalldämpfer!$AO$7,Schalldämpfer!$C$25:$C$30,-1),MATCH(BC19,Schalldämpfer!$C$24:$K$24,0)),IF($AM$17=1000,INDEX(Schalldämpfer!$C$31:'Schalldämpfer'!$K$36,MATCH(Schalldämpfer!$AO$7,Schalldämpfer!$C$25:$C$30,-1),MATCH(BC19,Schalldämpfer!$C$24:$K$24,0)),IF($AM$17=1500,INDEX(Schalldämpfer!$C$37:'Schalldämpfer'!$K$42,MATCH(Schalldämpfer!$AO$7,Schalldämpfer!$C$25:$C$30,-1),MATCH(BC19,Schalldämpfer!$C$24:$K$24,0)),IF($AM$17=2000,INDEX(Schalldämpfer!$C$43:'Schalldämpfer'!$K$48,MATCH(Schalldämpfer!$AO$7,Schalldämpfer!$C$25:$C$30,-1),MATCH(BC19,Schalldämpfer!$C$24:$K$24,0)),IF($AM$17=2500,INDEX(Schalldämpfer!$C$49:'Schalldämpfer'!$K$54,MATCH(Schalldämpfer!$AO$7,Schalldämpfer!$C$25:$C$30,-1),MATCH(BC19,Schalldämpfer!$C$24:$K$24,0)),IF($AM$17=3000,INDEX(Schalldämpfer!$C$55:'Schalldämpfer'!$K$60,MATCH(Schalldämpfer!$AO$7,Schalldämpfer!$C$25:$C$30,-1),MATCH(BC19,Schalldämpfer!$C$24:$K$24,0)),0)))))),IF($AQ$17=200,IF($AM$17=500,INDEX(Schalldämpfer!$S$25:'Schalldämpfer'!$Z$33,MATCH(Schalldämpfer!$AO$7,Schalldämpfer!$R$25:$R$33,-1),MATCH(BC19,Schalldämpfer!$S$24:$Z$24,0)),IF($AM$17=1000,INDEX(Schalldämpfer!$S$34:'Schalldämpfer'!$Z$42,MATCH(Schalldämpfer!$AO$7,Schalldämpfer!$R$25:$R$33,-1),MATCH(BC19,Schalldämpfer!$S$24:$Z$24,0)),IF($AM$17=1500,INDEX(Schalldämpfer!$S$43:'Schalldämpfer'!$Z$51,MATCH(Schalldämpfer!$AO$7,Schalldämpfer!$R$25:$R$33,-1),MATCH(BC19,Schalldämpfer!$S$24:$Z$24,0)),IF($AM$17=2000,INDEX(Schalldämpfer!$S$52:'Schalldämpfer'!$Z$60,MATCH(Schalldämpfer!$AO$7,Schalldämpfer!$R$25:$R$33,-1),MATCH(BC19,Schalldämpfer!$S$24:$Z$24,0)),IF($AM$17=2500,INDEX(Schalldämpfer!$S$61:'Schalldämpfer'!$Z$69,MATCH(Schalldämpfer!$AO$7,Schalldämpfer!$R$25:$R$33,-1),MATCH(BC19,Schalldämpfer!$S$24:$Z$24,0)),IF($AM$17=3000,INDEX(Schalldämpfer!$S$70:'Schalldämpfer'!$Z$78,MATCH(Schalldämpfer!$AO$7,Schalldämpfer!$R$25:$R$33,-1),MATCH(BC19,Schalldämpfer!$S$24:$Z$24,0)),0)))))))),"k.W.") -> 34 | BD21: =IFERROR(IF($AQ$17=100,IF($AM$17=500,INDEX(Schalldämpfer!$C$25:'Schalldämpfer'!$K$30,MATCH(Schalldämpfer!$AO$7,Schalldämpfer!$C$25:$C$30,-1),MATCH(BD19,Schalldämpfer!$C$24:$K$24,0)),IF($AM$17=1000,INDEX(Schalldämpfer!$C$31:'Schalldämpfer'!$K$36,MATCH(Schalldämpfer!$AO$7,Schalldämpfer!$C$25:$C$30,-1),MATCH(BD19,Schalldämpfer!$C$24:$K$24,0)),IF($AM$17=1500,INDEX(Schalldämpfer!$C$37:'Schalldämpfer'!$K$42,MATCH(Schalldämpfer!$AO$7,Schalldämpfer!$C$25:$C$30,-1),MATCH(BD19,Schalldämpfer!$C$24:$K$24,0)),IF($AM$17=2000,INDEX(Schalldämpfer!$C$43:'Schalldämpfer'!$K$48,MATCH(Schalldämpfer!$AO$7,Schalldämpfer!$C$25:$C$30,-1),MATCH(BD19,Schalldämpfer!$C$24:$K$24,0)),IF($AM$17=2500,INDEX(Schalldämpfer!$C$49:'Schalldämpfer'!$K$54,MATCH(Schalldämpfer!$AO$7,Schalldämpfer!$C$25:$C$30,-1),MATCH(BD19,Schalldämpfer!$C$24:$K$24,0)),IF($AM$17=3000,INDEX(Schalldämpfer!$C$55:'Schalldämpfer'!$K$60,MATCH(Schalldämpfer!$AO$7,Schalldämpfer!$C$25:$C$30,-1),MATCH(BD19,Schalldämpfer!$C$24:$K$24,0)),0)))))),IF($AQ$17=200,IF($AM$17=500,INDEX(Schalldämpfer!$S$25:'Schalldämpfer'!$Z$33,MATCH(Schalldämpfer!$AO$7,Schalldämpfer!$R$25:$R$33,-1),MATCH(BD19,Schalldämpfer!$S$24:$Z$24,0)),IF($AM$17=1000,INDEX(Schalldämpfer!$S$34:'Schalldämpfer'!$Z$42,MATCH(Schalldämpfer!$AO$7,Schalldämpfer!$R$25:$R$33,-1),MATCH(BD19,Schalldämpfer!$S$24:$Z$24,0)),IF($AM$17=1500,INDEX(Schalldämpfer!$S$43:'Schalldämpfer'!$Z$51,MATCH(Schalldämpfer!$AO$7,Schalldämpfer!$R$25:$R$33,-1),MATCH(BD19,Schalldämpfer!$S$24:$Z$24,0)),IF($AM$17=2000,INDEX(Schalldämpfer!$S$52:'Schalldämpfer'!$Z$60,MATCH(Schalldämpfer!$AO$7,Schalldämpfer!$R$25:$R$33,-1),MATCH(BD19,Schalldämpfer!$S$24:$Z$24,0)),IF($AM$17=2500,INDEX(Schalldämpfer!$S$61:'Schalldämpfer'!$Z$69,MATCH(Schalldämpfer!$AO$7,Schalldämpfer!$R$25:$R$33,-1),MATCH(BD19,Schalldämpfer!$S$24:$Z$24,0)),IF($AM$17=3000,INDEX(Schalldämpfer!$S$70:'Schalldämpfer'!$Z$78,MATCH(Schalldämpfer!$AO$7,Schalldämpfer!$R$25:$R$33,-1),MATCH(BD19,Schalldämpfer!$S$24:$Z$24,0)),0)))))))),"k.W.") -> 21 | BE21: =IFERROR(IF($AQ$17=100,IF($AM$17=500,INDEX(Schalldämpfer!$C$25:'Schalldämpfer'!$K$30,MATCH(Schalldämpfer!$AO$7,Schalldämpfer!$C$25:$C$30,-1),MATCH(BE19,Schalldämpfer!$C$24:$K$24,0)),IF($AM$17=1000,INDEX(Schalldämpfer!$C$31:'Schalldämpfer'!$K$36,MATCH(Schalldämpfer!$AO$7,Schalldämpfer!$C$25:$C$30,-1),MATCH(BE19,Schalldämpfer!$C$24:$K$24,0)),IF($AM$17=1500,INDEX(Schalldämpfer!$C$37:'Schalldämpfer'!$K$42,MATCH(Schalldämpfer!$AO$7,Schalldämpfer!$C$25:$C$30,-1),MATCH(BE19,Schalldämpfer!$C$24:$K$24,0)),IF($AM$17=2000,INDEX(Schalldämpfer!$C$43:'Schalldämpfer'!$K$48,MATCH(Schalldämpfer!$AO$7,Schalldämpfer!$C$25:$C$30,-1),MATCH(BE19,Schalldämpfer!$C$24:$K$24,0)),IF($AM$17=2500,INDEX(Schalldämpfer!$C$49:'Schalldämpfer'!$K$54,MATCH(Schalldämpfer!$AO$7,Schalldämpfer!$C$25:$C$30,-1),MATCH(BE19,Schalldämpfer!$C$24:$K$24,0)),IF($AM$17=3000,INDEX(Schalldämpfer!$C$55:'Schalldämpfer'!$K$60,MATCH(Schalldämpfer!$AO$7,Schalldämpfer!$C$25:$C$30,-1),MATCH(BE19,Schalldämpfer!$C$24:$K$24,0)),0)))))),IF($AQ$17=200,IF($AM$17=500,INDEX(Schalldämpfer!$S$25:'Schalldämpfer'!$Z$33,MATCH(Schalldämpfer!$AO$7,Schalldämpfer!$R$25:$R$33,-1),MATCH(BE19,Schalldämpfer!$S$24:$Z$24,0)),IF($AM$17=1000,INDEX(Schalldämpfer!$S$34:'Schalldämpfer'!$Z$42,MATCH(Schalldämpfer!$AO$7,Schalldämpfer!$R$25:$R$33,-1),MATCH(BE19,Schalldämpfer!$S$24:$Z$24,0)),IF($AM$17=1500,INDEX(Schalldämpfer!$S$43:'Schalldämpfer'!$Z$51,MATCH(Schalldämpfer!$AO$7,Schalldämpfer!$R$25:$R$33,-1),MATCH(BE19,Schalldämpfer!$S$24:$Z$24,0)),IF($AM$17=2000,INDEX(Schalldämpfer!$S$52:'Schalldämpfer'!$Z$60,MATCH(Schalldämpfer!$AO$7,Schalldämpfer!$R$25:$R$33,-1),MATCH(BE19,Schalldämpfer!$S$24:$Z$24,0)),IF($AM$17=2500,INDEX(Schalldämpfer!$S$61:'Schalldämpfer'!$Z$69,MATCH(Schalldämpfer!$AO$7,Schalldämpfer!$R$25:$R$33,-1),MATCH(BE19,Schalldämpfer!$S$24:$Z$24,0)),IF($AM$17=3000,INDEX(Schalldämpfer!$S$70:'Schalldämpfer'!$Z$78,MATCH(Schalldämpfer!$AO$7,Schalldämpfer!$R$25:$R$33,-1),MATCH(BE19,Schalldämpfer!$S$24:$Z$24,0)),0)))))))),"k.W.") -> 14 | BJ21: 5 | BK21: 8 | BL21: 14 | BM21: 30 | BN21: 47 | BO21: 47 | BP21: 37 | BQ21: 23 | BW21: =IFERROR(IF($BI$17=500,INDEX(Schalldämpfer!$BZ$14:$CI$25,MATCH(Schalldämpfer!$CE$6,Schalldämpfer!$BZ$14:$BZ$25,-1),MATCH(BW19,Schalldämpfer!$BZ$14:$CI$14)),IF($BI$17=1000,INDEX(Schalldämpfer!$CV$14:$DE$25,MATCH(Schalldämpfer!$CE$6,Schalldämpfer!$CV$14:$CV$25,-1),MATCH(BW19,Schalldämpfer!$CV$14:$DE$14)),IF($BI$17=1500,INDEX(Schalldämpfer!$CK$14:$CT$25,MATCH(Schalldämpfer!$CE$6,Schalldämpfer!$CK$14:$CK$25,-1),MATCH(BW19,Schalldämpfer!$CK$14:$CT$14)),0))),"k.W.") -> 5 | BX21: =IFERROR(IF($BI$17=500,INDEX(Schalldämpfer!$BZ$14:$CI$25,MATCH(Schalldämpfer!$CE$6,Schalldämpfer!$BZ$14:$BZ$25,-1),MATCH(BX19,Schalldämpfer!$BZ$14:$CI$14)),IF($BI$17=1000,INDEX(Schalldämpfer!$CV$14:$DE$25,MATCH(Schalldämpfer!$CE$6,Schalldämpfer!$CV$14:$CV$25,-1),MATCH(BX19,Schalldämpfer!$CV$14:$DE$14)),IF($BI$17=1500,INDEX(Schalldämpfer!$CK$14:$CT$25,MATCH(Schalldämpfer!$CE$6,Schalldämpfer!$CK$14:$CK$25,-1),MATCH(BX19,Schalldämpfer!$CK$14:$CT$14)),0))),"k.W.") -> 8 | BY21: =IFERROR(IF($BI$17=500,INDEX(Schalldämpfer!$BZ$14:$CI$25,MATCH(Schalldämpfer!$CE$6,Schalldämpfer!$BZ$14:$BZ$25,-1),MATCH(BY19,Schalldämpfer!$BZ$14:$CI$14)),IF($BI$17=1000,INDEX(Schalldämpfer!$CV$14:$DE$25,MATCH(Schalldämpfer!$CE$6,Schalldämpfer!$CV$14:$CV$25,-1),MATCH(BY19,Schalldämpfer!$CV$14:$DE$14)),IF($BI$17=1500,INDEX(Schalldämpfer!$CK$14:$CT$25,MATCH(Schalldämpfer!$CE$6,Schalldämpfer!$CK$14:$CK$25,-1),MATCH(BY19,Schalldämpfer!$CK$14:$CT$14)),0))),"k.W.") -> 14 | BZ21: =IFERROR(IF($BI$17=500,INDEX(Schalldämpfer!$BZ$14:$CI$25,MATCH(Schalldämpfer!$CE$6,Schalldämpfer!$BZ$14:$BZ$25,-1),MATCH(BZ19,Schalldämpfer!$BZ$14:$CI$14)),IF($BI$17=1000,INDEX(Schalldämpfer!$CV$14:$DE$25,MATCH(Schalldämpfer!$CE$6,Schalldämpfer!$CV$14:$CV$25,-1),MATCH(BZ19,Schalldämpfer!$CV$14:$DE$14)),IF($BI$17=1500,INDEX(Schalldämpfer!$CK$14:$CT$25,MATCH(Schalldämpfer!$CE$6,Schalldämpfer!$CK$14:$CK$25,-1),MATCH(BZ19,Schalldämpfer!$CK$14:$CT$14)),0))),"k.W.") -> 30 | CA21: =IFERROR(IF($BI$17=500,INDEX(Schalldämpfer!$BZ$14:$CI$25,MATCH(Schalldämpfer!$CE$6,Schalldämpfer!$BZ$14:$BZ$25,-1),MATCH(CA19,Schalldämpfer!$BZ$14:$CI$14)),IF($BI$17=1000,INDEX(Schalldämpfer!$CV$14:$DE$25,MATCH(Schalldämpfer!$CE$6,Schalldämpfer!$CV$14:$CV$25,-1),MATCH(CA19,Schalldämpfer!$CV$14:$DE$14)),IF($BI$17=1500,INDEX(Schalldämpfer!$CK$14:$CT$25,MATCH(Schalldämpfer!$CE$6,Schalldämpfer!$CK$14:$CK$25,-1),MATCH(CA19,Schalldämpfer!$CK$14:$CT$14)),0))),"k.W.") -> 47 | CB21: =IFERROR(IF($BI$17=500,INDEX(Schalldämpfer!$BZ$14:$CI$25,MATCH(Schalldämpfer!$CE$6,Schalldämpfer!$BZ$14:$BZ$25,-1),MATCH(CB19,Schalldämpfer!$BZ$14:$CI$14)),IF($BI$17=1000,INDEX(Schalldämpfer!$CV$14:$DE$25,MATCH(Schalldämpfer!$CE$6,Schalldämpfer!$CV$14:$CV$25,-1),MATCH(CB19,Schalldämpfer!$CV$14:$DE$14)),IF($BI$17=1500,INDEX(Schalldämpfer!$CK$14:$CT$25,MATCH(Schalldämpfer!$CE$6,Schalldämpfer!$CK$14:$CK$25,-1),MATCH(CB19,Schalldämpfer!$CK$14:$CT$14)),0))),"k.W.") -> 47 | CC21: =IFERROR(IF($BI$17=500,INDEX(Schalldämpfer!$BZ$14:$CI$25,MATCH(Schalldämpfer!$CE$6,Schalldämpfer!$BZ$14:$BZ$25,-1),MATCH(CC19,Schalldämpfer!$BZ$14:$CI$14)),IF($BI$17=1000,INDEX(Schalldämpfer!$CV$14:$DE$25,MATCH(Schalldämpfer!$CE$6,Schalldämpfer!$CV$14:$CV$25,-1),MATCH(CC19,Schalldämpfer!$CV$14:$DE$14)),IF($BI$17=1500,INDEX(Schalldämpfer!$CK$14:$CT$25,MATCH(Schalldämpfer!$CE$6,Schalldämpfer!$CK$14:$CK$25,-1),MATCH(CC19,Schalldämpfer!$CK$14:$CT$14)),0))),"k.W.") -> 37 | CD21: =IFERROR(IF($BI$17=500,INDEX(Schalldämpfer!$BZ$14:$CI$25,MATCH(Schalldämpfer!$CE$6,Schalldämpfer!$BZ$14:$BZ$25,-1),MATCH(CD19,Schalldämpfer!$BZ$14:$CI$14)),IF($BI$17=1000,INDEX(Schalldämpfer!$CV$14:$DE$25,MATCH(Schalldämpfer!$CE$6,Schalldämpfer!$CV$14:$CV$25,-1),MATCH(CD19,Schalldämpfer!$CV$14:$DE$14)),IF($BI$17=1500,INDEX(Schalldämpfer!$CK$14:$CT$25,MATCH(Schalldämpfer!$CE$6,Schalldämpfer!$CK$14:$CK$25,-1),MATCH(CD19,Schalldämpfer!$CK$14:$CT$14)),0))),"k.W.") -> 23 | CK21: 1 | CL21: 2 | CM21: 4 | CN21: 9 | CO21: 22 | CP21: 10 | CQ21: 4 | CR21: 5 | CX21: =IFERROR(IF($CJ$17=500,INDEX(Schalldämpfer!$DJ$15:$DS$22,MATCH(Schalldämpfer!$DL$10,Schalldämpfer!$DJ$15:$DJ$22,-1),MATCH('Berechnung FO-über_ohne_Schatte'!CX19,Schalldämpfer!$DJ$15:$DS$15,0)),IF($CJ$17=1000,INDEX(Schalldämpfer!$DV$15:$EE$22,MATCH(Schalldämpfer!$DL$10,Schalldämpfer!$DV$15:$DV$22,-1),MATCH('Berechnung FO-über_ohne_Schatte'!CX19,Schalldämpfer!$DV$15:$EE$15,0)),0)),"k.W.") -> k.W. | CY21: =IFERROR(IF($CJ$17=500,INDEX(Schalldämpfer!$DJ$15:$DS$22,MATCH(Schalldämpfer!$DL$10,Schalldämpfer!$DJ$15:$DJ$22,-1),MATCH('Berechnung FO-über_ohne_Schatte'!CY19,Schalldämpfer!$DJ$15:$DS$15,0)),IF($CJ$17=1000,INDEX(Schalldämpfer!$DV$15:$EE$22,MATCH(Schalldämpfer!$DL$10,Schalldämpfer!$DV$15:$DV$22,-1),MATCH('Berechnung FO-über_ohne_Schatte'!CY19,Schalldämpfer!$DV$15:$EE$15,0)),0)),"k.W.") -> k.W. | CZ21: =IFERROR(IF($CJ$17=500,INDEX(Schalldämpfer!$DJ$15:$DS$22,MATCH(Schalldämpfer!$DL$10,Schalldämpfer!$DJ$15:$DJ$22,-1),MATCH('Berechnung FO-über_ohne_Schatte'!CZ19,Schalldämpfer!$DJ$15:$DS$15,0)),IF($CJ$17=1000,INDEX(Schalldämpfer!$DV$15:$EE$22,MATCH(Schalldämpfer!$DL$10,Schalldämpfer!$DV$15:$DV$22,-1),MATCH('Berechnung FO-über_ohne_Schatte'!CZ19,Schalldämpfer!$DV$15:$EE$15,0)),0)),"k.W.") -> k.W. | DA21: =IFERROR(IF($CJ$17=500,INDEX(Schalldämpfer!$DJ$15:$DS$22,MATCH(Schalldämpfer!$DL$10,Schalldämpfer!$DJ$15:$DJ$22,-1),MATCH('Berechnung FO-über_ohne_Schatte'!DA19,Schalldämpfer!$DJ$15:$DS$15,0)),IF($CJ$17=1000,INDEX(Schalldämpfer!$DV$15:$EE$22,MATCH(Schalldämpfer!$DL$10,Schalldämpfer!$DV$15:$DV$22,-1),MATCH('Berechnung FO-über_ohne_Schatte'!DA19,Schalldämpfer!$DV$15:$EE$15,0)),0)),"k.W.") -> k.W. | DB21: =IFERROR(IF($CJ$17=500,INDEX(Schalldämpfer!$DJ$15:$DS$22,MATCH(Schalldämpfer!$DL$10,Schalldämpfer!$DJ$15:$DJ$22,-1),MATCH('Berechnung FO-über_ohne_Schatte'!DB19,Schalldämpfer!$DJ$15:$DS$15,0)),IF($CJ$17=1000,INDEX(Schalldämpfer!$DV$15:$EE$22,MATCH(Schalldämpfer!$DL$10,Schalldämpfer!$DV$15:$DV$22,-1),MATCH('Berechnung FO-über_ohne_Schatte'!DB19,Schalldämpfer!$DV$15:$EE$15,0)),0)),"k.W.") -> k.W. | DC21: =IFERROR(IF($CJ$17=500,INDEX(Schalldämpfer!$DJ$15:$DS$22,MATCH(Schalldämpfer!$DL$10,Schalldämpfer!$DJ$15:$DJ$22,-1),MATCH('Berechnung FO-über_ohne_Schatte'!DC19,Schalldämpfer!$DJ$15:$DS$15,0)),IF($CJ$17=1000,INDEX(Schalldämpfer!$DV$15:$EE$22,MATCH(Schalldämpfer!$DL$10,Schalldämpfer!$DV$15:$DV$22,-1),MATCH('Berechnung FO-über_ohne_Schatte'!DC19,Schalldämpfer!$DV$15:$EE$15,0)),0)),"k.W.") -> k.W. | DD21: =IFERROR(IF($CJ$17=500,INDEX(Schalldämpfer!$DJ$15:$DS$22,MATCH(Schalldämpfer!$DL$10,Schalldämpfer!$DJ$15:$DJ$22,-1),MATCH('Berechnung FO-über_ohne_Schatte'!DD19,Schalldämpfer!$DJ$15:$DS$15,0)),IF($CJ$17=1000,INDEX(Schalldämpfer!$DV$15:$EE$22,MATCH(Schalldämpfer!$DL$10,Schalldämpfer!$DV$15:$DV$22,-1),MATCH('Berechnung FO-über_ohne_Schatte'!DD19,Schalldämpfer!$DV$15:$EE$15,0)),0)),"k.W.") -> k.W. | DE21: =IFERROR(IF($CJ$17=500,INDEX(Schalldämpfer!$DJ$15:$DS$22,MATCH(Schalldämpfer!$DL$10,Schalldämpfer!$DJ$15:$DJ$22,-1),MATCH('Berechnung FO-über_ohne_Schatte'!DE19,Schalldämpfer!$DJ$15:$DS$15,0)),IF($CJ$17=1000,INDEX(Schalldämpfer!$DV$15:$EE$22,MATCH(Schalldämpfer!$DL$10,Schalldämpfer!$DV$15:$DV$22,-1),MATCH('Berechnung FO-über_ohne_Schatte'!DE19,Schalldämpfer!$DV$15:$EE$15,0)),0)),"k.W.") -> k.W.
D23: Lamellenanzahl | E23: n | F23: =I23 ->  | G23: Stück | I23: =IFERROR(ROUNDUP(IF(Auswertung!H48,360/Auswertung!H47,1)*J23,0),"") ->  | J23: =IF(AND('Kamindaten bündige Lamellen'!$AI$12=1,'Berechnung bündige Lamellen'!$F$13<='Kamindaten bündige Lamellen'!$AQ$16),ROUNDUP(F11/3600/(2.2*'Berechnung bündige Lamellen'!$K$28/100)/PI()*100000000/(F13*F17*'Berechnung bündige Lamellen'!$K$28),0),ROUNDUP(F11/3600/2.5/PI()*100000000/(F13*F17*'Berechnung bündige Lamellen'!K$28),0)) ->  | K23: =IFERROR(ROUNDUP(IF(Auswertung!H48,360/Auswertung!H47,1)*M23,0),"") ->  | M23: =IF(AND('Kamindaten bündige Lamellen'!$AI$12=1,'Berechnung bündige Lamellen'!$K$13<='Kamindaten bündige Lamellen'!$AQ$16),ROUNDUP(F11/3600/(2.2*'Berechnung bündige Lamellen'!$K$28/100)/PI()*100000000/(K13*K17*'Berechnung bündige Lamellen'!$K$28),0),ROUNDUP(F11/3600/2.5/PI()*100000000/(K13*K17*'Berechnung bündige Lamellen'!K$28),0)) ->  | S23: =EXACT(F23,K23) -> TRUE
D25: =IF(Dachform=1,"","Höhe Kopfbereich") ->  | E25: =IF(Dachform=1,"","L3") ->  | F25: =J25 -> 0 | G25: =IF(Dachform=1,"","mm") ->  | J25: =IFERROR(IF(Dachform=1,0,IF(AND(Auswertung!A15,OR(Auswertung!B23=3,Auswertung!B23=4)),"",IF(Dachform=2,F17+ROUNDUP((F13*TAN(Auswertung!D19/180*PI()))/10,0)*10,F17*2))),"") -> 0 | K25: =IFERROR(IF(AND(Auswertung!A15,OR(Auswertung!B23=3,Auswertung!B23=4)),"",IF(Dachform=2,K17+ROUNDUP((K13*TAN(Auswertung!D19/180*PI()))/10,0)*10,K17*2)),"") ->  | S25: =EXACT(F25,K25) -> FALSE | T25: <= wird nicht verwendet
D27: Gesamthöhe | E27: L | F27: =IFERROR(IF(T5,F21+F19+F25,IF(OR(Auswertung!B23=3,Auswertung!B23=4),3000+Tabelle1!V22+F13,3000+Tabelle1!V22)),"") -> 3000 | G27: mm | L27: =IFERROR(IF(F29-2*50<F13,"Bodenplatte mind. 100 mm größer als Außendurchmesser.",""),"") ->  | O27: 121;131;141 | Q27: ='Berechnung bündige Lamellen'!P78*((1.2/2)*'Kamindaten FO-über_ohne_Schatte'!AK19*F49^2+(1.2/2)*'Kamindaten FO-über_ohne_Schatte'!AK25*(IF(Auswertung!I21="nein",F49,J51))^2+(1.2/2)*'Kamindaten FO-über_ohne_Schatte'!AK28*IF(Auswertung!I21="nein",F49,J51)^2) -> 0 | S27: =EXACT(F27,K27) -> FALSE | T27: <= wird nicht verwendet | AY27: =IF(Auswertung!H51=2,"n. Statik",IF(OR(Auswertung!B38=3,Auswertung!B38=4,Auswertung!B47=2,Auswertung!B47=3),IF(Auswertung!B69=0,IF(F27>8000,"n. Statik",3),IF(F27>16000,"n. Statik",3)),IF(Auswertung!B69,IF(F13<1399,IF(F27<11999,2,IF(F27<15999,3,"n. Statik")), IF(F27<15999,3,"n.Statik")),IF(F13<499,IF(F27<4999,2,IF(F27<7999,3,"n. Statik")),IF(F13<1399,IF(F27<7999,2,"n.Statik"),IF(F27<7999,3,"n. Statik")))))) -> 2 | AZ27: Blechdicke
AD28: =IF('Kamindaten FO-über_ohne_Schatte'!AL11,"→","") ->  | AE28: =IF(Schalldämpfer,"Für korrekte Angaben zu Druckverlust und Schallleistung ist nach einem Durchmesserwechsel immer auch eine Aktualisierung der Schalldämpferberechnung notwendig."&CHAR(10)&"k.W. = keine Werte (bitte Luftgeschw. reduzieren)","") -> 
D29: Bodenplatte* | E29: ¨Bp | F29: =I29 -> 700 | G29: mm | H29: x | I29: =I13+'Kamindaten FO-über_ohne_Schatte'!$R$4 -> 700 | J29: =J13+'Kamindaten FO-über_ohne_Schatte'!$R$4 -> 700 | K29: =K13+'Kamindaten FO-über_ohne_Schatte'!$R$4 -> 700 | S29: =EXACT(F29,K29) -> TRUE
H30: x
D31: Mindest-Fundamentgröße ¨ | F31: =F13+2*'Kamindaten FO-über_ohne_Schatte'!$W$4 -> 880 | G31: mm | H31: x | J31: =VLOOKUP(J13,'Kamindaten FO-über_ohne_Schatte'!$A$4:$AB$205,22,FALSE) -> 0 | K31: =VLOOKUP(K13,'Kamindaten FO-über_ohne_Schatte'!$A$4:$AB$205,22,FALSE) -> 0
H32: x
D33: =IF(OR(Auswertung!B62=1,Auswertung!B62=3),"Bodenplatte*","Rundflansch") -> Bodenplatte* | E33: =IF(OR(Auswertung!B62=1,Auswertung!B62=3),"Bp","") -> Bp | F33: =IFERROR(IF(OR(Auswertung!B62=1,Auswertung!B62=3),F13+'Kamindaten bündige Lamellen'!P4,"n. Statik"),"") -> 700 | G33: =IF(OR(Auswertung!B62=1,Auswertung!B62=3),"mm","") -> mm | J33: 64 | K33: =IFERROR(IF(OR(Auswertung!B62=1,Auswertung!B62=3),K13+'Kamindaten bündige Lamellen'!P4,"n. Statik"),"") -> 700 | O33: 221;231;241 | Q33: ='Berechnung bündige Lamellen'!P78*((1.2/2)*'Kamindaten FO-über_ohne_Schatte'!AK19*F49^2+(1.2/2)*'Kamindaten FO-über_ohne_Schatte'!AK28*F49^2) -> 0 | S33: =EXACT(F33,K33) -> TRUE
D35: =IF(Auswertung!I21="ja","Durchmesser","") ->  | E35: =IF(Auswertung!I21="ja","ØD","") ->  | F35: =K35 ->  | G35: =IF(Auswertung!I21="ja","mm","") ->  | I35: =IF(TLD_TD=11,I13-IF((I13-SQRT($F$11/3600/'Kamindaten FO-über_ohne_Schatte'!$H$1/PI())*2*1000)<20,"0",IF((I13-SQRT($F$11/3600/'Kamindaten FO-über_ohne_Schatte'!$H$1/PI())*2*1000)<80,ROUND((I13-SQRT($F$11/3600/'Kamindaten FO-über_ohne_Schatte'!$H$1/PI())*2*1000)/10,0)*10,IF((I13-SQRT($F$11/3600/'Kamindaten FO-über_ohne_Schatte'!$H$1/PI())*2*1000)<I13/2,ROUND((I13-SQRT($F$11/3600/'Kamindaten FO-über_ohne_Schatte'!$H$1/PI())*2*1000)/20,0)*20,I13/2))),"") ->  | J35: =IF(TLD_TD=11,J13-IF((J13-SQRT($F$11/3600/'Kamindaten FO-über_ohne_Schatte'!$H$1/PI())*2*1000)<20,"0",IF((J13-SQRT($F$11/3600/'Kamindaten FO-über_ohne_Schatte'!$H$1/PI())*2*1000)<80,ROUND((J13-SQRT($F$11/3600/'Kamindaten FO-über_ohne_Schatte'!$H$1/PI())*2*1000)/10,0)*10,IF((J13-SQRT($F$11/3600/'Kamindaten FO-über_ohne_Schatte'!$H$1/PI())*2*1000)<J13/2,ROUND((J13-SQRT($F$11/3600/'Kamindaten FO-über_ohne_Schatte'!$H$1/PI())*2*1000)/20,0)*20,J13/2))),"") ->  | K35: =IF(Auswertung!B31=2,F13,IF(TLD_T=1,IF(TLD_D=1,IF(TLD_TD=11,K13-IF((K13-SQRT($F$11/3600/'Kamindaten FO-über_ohne_Schatte'!$H$1/PI())*2*1000)<20,"0",IF((K13-SQRT($F$11/3600/'Kamindaten FO-über_ohne_Schatte'!$H$1/PI())*2*1000)<80,ROUND((K13-SQRT($F$11/3600/'Kamindaten FO-über_ohne_Schatte'!$H$1/PI())*2*1000)/10,0)*10,IF((K13-SQRT($F$11/3600/'Kamindaten FO-über_ohne_Schatte'!$H$1/PI())*2*1000)<K13/2,ROUND((K13-SQRT($F$11/3600/'Kamindaten FO-über_ohne_Schatte'!$H$1/PI())*2*1000)/20,0)*20,K13/2))),""),""),"")) ->  | O35: Rest | Q35: ='Berechnung bündige Lamellen'!P78*((1.2/2)*'Kamindaten FO-über_ohne_Schatte'!AK19*F49^2+ZetaLBKuLam!C18) -> 49.03570709 | S35: =EXACT(F35,K35) -> TRUE
D37: Querschnitt Lochblech | F37: =F17*F23/1000*PI()*F13/1000*F39/100 ->  | G37: m² | H37: x | J37: =(5+50*(LOG(J49)))+(10*(LOG(J43))) -> 34.07333651 | K37: =(5+50*(LOG(K49)))+(10*(LOG(K43))) -> 34.07333651
H38: x
D39: Lochblechkorb | F39: 64 | G39: % | H39: x | K39: 64
H40: x
D41: VSG freier Querschnitt | F41: 77 | G41: % | H41: x | J41: 77 | K41: 77
H42: x
D43: Querschnitt ØA | F43: =SUM((F13*F13*PI())/4/1000/1000) -> 0.2827433388 | G43: m² | H43: x | J43: =SUM((J13*J13*PI())/4/1000/1000) -> 0.2827433388 | K43: =SUM((K13*K13*PI())/4/1000/1000) -> 0.2827433388 | O43: Höchstwert
H44: x | O44: 7
D45: Querschnitt ØD | F45: =IF(F35="","",(F35/2)^2*PI()/1000000) ->  | G45: m² | H45: x | J45: =IF(J35="","",J43*J41/100) ->  | K45: =IF(K35="","",(K35/2)^2*PI()/1000000) -> 
H46: x
D47: Durchmesser ØB | F47: =INDEX('Kamindaten FO-über_ohne_Schatte'!D5:D42,MATCH($F$13,'Kamindaten FO-über_ohne_Schatte'!A5:A42,-1)) -> 600 | G47: mm | H47: x
H48: x
D49: Luftgeschwindigkeit ØA | E49: v | F49: =IFERROR(SUM(($F$11)/3600/F43),"k.A.") -> 4.911207164 | G49: m/s | J49: =SUM(($F$11)/3600/J43) -> 4.911207164 | K49: =IFERROR(SUM(($F$11)/3600/K43),"") -> 4.911207164 | L49: =IF(F49>'Kamindaten FO-über_ohne_Schatte'!$H$4,"Ausserhalb des Standards!","") ->  | O49: 222 | Q49: ='Berechnung bündige Lamellen'!P78*((1.2/2)*F49^2*'Kamindaten FO-über_ohne_Schatte'!AK19+ZetaLBKuLam!C18) -> 49.03570709
AD50: =IF('Kamindaten FO-über_ohne_Schatte'!AL11,"→"&CHAR(10),"") ->  | AE50: =IF('Kamindaten FO-über_ohne_Schatte'!AL11,"Für die Werte zur Schalldämmberechnung des Schalldämpfers bitte nach rechts scrollen.","") -> 
D51: =IF(Auswertung!I21="ja","Luftgeschwindigkeit ØD ****","") ->  | E51: =IF(Auswertung!I21="ja","v","") ->  | F51: =IFERROR(IF(AND(Dachform<>2,Auswertung!B31=2),">7,00",J51),"") ->  | G51: =IF(Auswertung!I21="ja","m/s","") ->  | J51: =IF(Auswertung!I21="ja",$F$11/3600/(F45)/(F41/100),"") ->  | K51: =IFERROR(IF(AND(Dachform<>2,Auswertung!B31=2),">7,00",IF(Auswertung!I21="ja",IF($F$11=0,0,$F$11/3600/(K45)/(K41/100)),"")),"") ->  | L51: =IFERROR(IF(Auswertung!B31=2,"",IF(Auswertung!I21="nein","",IF(TLD_T=1,IF(TLD_D=1,IF(F51>O44,"Ausserhalb des Standards!",""),""),""))),"") ->  | M51: Z-ØB | N51: Ausströmung | O51: VSG | S51: =EXACT(AI55,AY27) -> TRUE | AA51: =IFERROR(IF(Auswertung!B31=2,"",IF(F51="","",IF(F35<>I35,"Ausserhalb des Standards!",""))),"") -> 
D53: Ø Luftgeschwindigkeit Lamelle | E53: v | F53: =IFERROR(IF(Auswertung!H48,360/Auswertung!H47,1)*($F$11/3600/F37),"k.A.") -> k.A. | G53: m/s | I53: =IF(F49<O42,ROUNDUP('Berechnung bündige Lamellen'!P80*((1.2/2)*(M53)*(F49)^2),0)) -> FALSE | L53: =IF(F53="k. A.","Ausserhalb des Standards!","") ->  | M53: =SUM(N53:W53) -> 1.35 | N53: 1 | O53: 0.35
AA54: =IF(F54="k. A.","Ausserhalb des Standards!","") -> 
D55: Druckverlust | E55: DP | F55: =IFERROR(ROUNDUP(IF(Auswertung!B31=2,Klappe_Druckverlust,0)+IF(OR(AND('Kamindaten FO-über_ohne_Schatte'!AL10,F13>='Kamindaten bündige Lamellen'!AQ14),AND('Kamindaten FO-über_ohne_Schatte'!AL10=1,F13<'Kamindaten bündige Lamellen'!AQ14,S8<>1)),"k.A.",IF(OR(VALUE(TLD)=121,VALUE(TLD)=131,VALUE(TLD)=141),Q27,IF(OR(VALUE(TLD)=221,VALUE(TLD)=231,VALUE(TLD)=241),Q33,IF(VALUE(TLD)=222,Q49,Q35)))),0),"k.A.") -> 50 | G55: Pa | I55: =IF(J51<O44,ROUNDUP('Berechnung bündige Lamellen'!P78*((1.2/2)*(M55)*(J51)^2),0)) -> FALSE | L55: =IF(F55="k. A.","Ausserhalb des Standards!","") ->  | M55: =SUM(N55:W55) -> 1.35 | N55: 1 | O55: 0.35 | AG55: Bleckstärke Rohr: | AI55: =AY27 -> 2
D57: Schallleistungspegel(vom Turm ohne SD) | E57: LwA | F57: =IFERROR(IF(Auswertung!B31=2,"k.A.",IF(I57="k.A.","k.A.",IF(I57<30,"<30",I57))),"k.A.") -> k.A. | G57: dB(A) | I57: =IF((F55)="k.A.","k.A.",IF(AND(Auswertung!B27=1,Auswertung!B10=1),ROUNDUP('Berechnung bündige Lamellen'!P79+(70*LOG(IF(Auswertung!I21="nein",F49,J51)/0.77)+10*LOG(F45*F41/100)-25),0),IF(AND(Auswertung!B27=1,Auswertung!B10=2),ROUNDUP('Berechnung bündige Lamellen'!P79+(70*LOG(F49/(F41/100))+10*LOG(F43*F41/100)-25),0),ROUNDUP('Berechnung bündige Lamellen'!P80+(10*LOG(10^((70*LOG(1.4*F49)+10*LOG(F43)-25)/10)+10^((70*LOG(3*F53)+10*LOG((F13/1000)*PI()*(F21/1000)*('Berechnung bündige Lamellen'!F30/100))-25)/10))),0)))) ->  | J57: =VLOOKUP(J49,'Kamindaten FO-über_ohne_Schatte'!$AC$2:$AE$205,2) -> 8.73 | L57: =IF(F57="k. A.","Ausserhalb des Standards!","") ->  | AG57: Achtung: Voraussichtliche Wandstärke Die tatsächliche Wandstärke wird definiert nach statischer Berechnung
D59: Entfernung von der Lärmquelle | E59: d | F59: 3 | G59: m | I59: =IF(F57="<30","30",F57) -> k.A. | K59: 3 | L59: =IF(F59="k. A.","Ausserhalb des Standards!","") ->  | S59: =EXACT(F59,K59) -> TRUE | T59: <= wird nicht verwendet
D61: Schalldruckpegel in der Entfernung** | E61: LpA | F61: =IF(F57="<30","<"&I61,I61) -> k. A. | G61: dB(A) | I61: =IF(I59="k.A.","k. A.",IF(F59=0,I59,IF(OR(ROUNDUP(I59-10*LOG(2*PI()*F59^2),0)<0,F59<0),0,ROUNDUP(I59-10*LOG(2*PI()*F59^2),0)))) -> k. A.
D63: Bemerkungen:
D68: Pos.:
D70: Lieferumfang: → Lüftungsturm → Befestigungsdübel gemäß Herstellerangaben → Kranösen, Blitzschutzlaschen → Montageanleitung
Q71: Gesamtcode: | R71: 0
A74: * Maß und Form der Bodenplatte nur vorläufig. Verbindliche Angaben nach statischer Berechnung. ** bei halbkugelförmiger Schallausbreitung - Lärmquelle in Bodennähe, Schalldruckpegel vom Turm ohne Schalldämpfer (SD) Genaue Berechnung siehe VDI-Richtlinie 2714 *** Durchmesserabweichungen +/- 5% (Handelsformate) **** Bei Dach mit Vogelschutzgitter wurde der freie Querschnitt vom Gitter berücksichtigt.
D76: Bei der angegebenen Schalleistung wurden die Schallwerte nach DIN 45635 mit einer Toleranz von ± 5 dB(A) ermittelt. Die Schalleistung im Turm entsteht durch das Strömungsrauschen. Die in den Lüftungsturm eingebrachte Schalleistung von Bauteilen in der Anschlussleitung muss mindestens 10 dB geringer sein als das Strömungsrauschen des Turms. Filter werden nur mit ihrem Anfangsdruckverlust berücksichtigt.
A81: ="Typenschlüssel lang:" & 'Match-Code'!O12 -> Typenschlüssel lang:AU-Ø700-H3,54-1.4301-LAS01-Bp(s)-(1x)-Lochb-Dger

Sheet Kamindaten FO-über_ohne_Schatte (hidden)
A1: 1 | B1: 2 | C1: 3 | D1: 4 | E1: 5 | F1: 6 | G1: 7 | H1: 5 | I1: 9 | J1: 10 | K1: 11 | L1: 12 | M1: 13 | N1: 12 | O1: 13 | P1: 14 | Q1: 15 | R1: 16 | S1: 17 | T1: 18 | U1: 19 | V1: 20 | W1: 21 | X1: 22 | Y1: 23 | Z1: 24 | AA1: 25 | AC1: 1 | AD1: 2
A2: Kaminturm-durchmesser | C2: Kamin-querschnitt | E2: Kamin-querschnitt | G2: Differenz Volumen- strom | H2: Volumen-strom | I2: Volumen-strom | J2: Volumen-strom | K2: Anzahl Lamellen | L2: Reduzierung | M2: Lamellen-abstand | N2: b | O2: Druck-verlust | P2: Schall-leistungs-pegel | Q2: Umfang | R2: Platte ¨ | S2: Platten-stärke | T2: Bohrungen ¨ | U2: Bohrungen Ø | V2: Anker (4x) | W2: Rand-abstand | X2: Fundament-größe | Y2: Höhe Grundrohr | Z2: Höhe Lamellen-kopf | AA2: Gesamt-höhe | AC2: Geschwindig-keit | AD2: Druck-verlust | AE2: Schall-leistungs-pegel | AG2: vor VSG | AH2: nach VSG
A3: mm | C3: m² | D3: mm | E3: m² | H3: m³/h | I3: m² | J3: m² | K3: Stück | L3: mm | M3: mm | N3: mm | O3: Pa | P3: dB(A) | Q3: mm | R3: mm | S3: mm | T3: mm | U3: mm | W3: mm | X3: mm | Y3: mm | Z3: mm | AA3: mm | AC3: m/s | AD3: Pa | AE3: dB(A) | AS3: Aussage,ob Druckverlust kann berechnet werden >1499, wurde schon angezeigt
A4: ØA | C4: Q ØA | D4: ØD | E4: Q ØD | H4: =IF(AND(AL10=1,OR(AND(AL7=1,'Berechnung FO-über_ohne_Schatte'!F11>AT28),AND(TLD_D=2,'Berechnung FO-über_ohne_Schatte'!F11>AT29),AND(TLD_T=1,TLD_D=1, 'Berechnung FO-über_ohne_Schatte'!F11>AT30),AND(TLD_T=2,TLD_D=1,'Berechnung FO-über_ohne_Schatte'!F11>AT31))),2.2/SIN('Kamindaten bündige Lamellen'!AQ15)*0.77,IF(AL7=1,3.5,IF(TLD_D=2,6,IF(TLD_T=1,5,4.62)))) -> 6 | K4: ='Berechnung FO-über_ohne_Schatte'!F39 -> 64 | L4: ='Berechnung FO-über_ohne_Schatte'!F41/100 -> 0.77 | M4: LH | N4: 60 | R4: 100 | T4: 0 | W4: 140 | AC4: v | AD4: Pv | AE4: LwA | AS4: 0
A5: 3500 | C5: =(A5/2)^2*PI()/1000000 -> 9.621127502 | D5: =A5-L5 -> 1750 | E5: =(D5/2)^2*PI()/1000000 -> 2.405281875 | G5: =H5-H6 -> 11705.57423 | H5: =$H$4*C5*3600 -> 207816.354 | K5: =IF(AND($AL$10=1,'Berechnung FO-über_ohne_Schatte'!$F$13<'Kamindaten bündige Lamellen'!$AQ$17),ROUNDUP(H5/3600/(2.2*$K$4/100)/PI()*100000000/(A5*M5*$K$4),0),ROUNDUP(H5/3600/2.5/PI()*100000000/(A5*M5*$K$4),0)) -> 28 | L5: =IF((A5-SQRT('Berechnung FO-über_ohne_Schatte'!$F$11/3600/'Kamindaten FO-über_ohne_Schatte'!$H$1/PI())*2*1000)<20,"0",IF((A5-SQRT('Berechnung FO-über_ohne_Schatte'!$F$11/3600/'Kamindaten FO-über_ohne_Schatte'!$H$1/PI())*2*1000)<80,ROUND((A5-SQRT('Berechnung FO-über_ohne_Schatte'!$F$11/3600/'Kamindaten FO-über_ohne_Schatte'!$H$1/PI())*2*1000)/10,0)*10,IF((A5-SQRT('Berechnung FO-über_ohne_Schatte'!$F$11/3600/'Kamindaten FO-über_ohne_Schatte'!$H$1/PI())*2*1000)<A5/2,ROUND((A5-SQRT('Berechnung FO-über_ohne_Schatte'!$F$11/3600/'Kamindaten FO-über_ohne_Schatte'!$H$1/PI())*2*1000)/20,0)*20,A5/2))) -> 1750 | M5: 120 | N5: =M5+$N$4 -> 180 | Q5: =A5*PI() -> 10995.57429 | R5: =A5+$R$4 -> 3600 | S5: 8 | T5: =A5+$T$4 -> 3500 | U5: 14 | W5: 140 | X5: =T5+2*W5 -> 3780 | Y5: 3000 | Z5: =K5*M5+N5 -> 3540 | AA5: =Y5+Z5 -> 6540 | AC5: 1.6 | AD5: 9.23 | AE5: 15.76 | AG5: ='Berechnung FO-über_ohne_Schatte'!$F$11/E20/3600 -> 1.768034579 | AH5: =AG5/0.77 -> 2.296148804 | AS5: Aussage,ob Druckverlust kann berechnet werden <499, wurde schon angezeigt | AX5: 1000 | AY5: =AX5-50 -> 950 | AZ5: =AY5/$AX$5 -> 0.95 | BA5: =(0.707*SQRT(1-(AZ5)^2))^2 -> 0.0487352775
A6: 3400 | C6: =(A6/2)^2*PI()/1000000 -> 9.079202769 | D6: =A6-L6 -> 1700 | E6: =(D6/2)^2*PI()/1000000 -> 2.269800692 | G6: =H6-H7 -> 11366.28222 | H6: =$H$4*C6*3600 -> 196110.7798 | K6: =IF(AND($AL$10=1,'Berechnung FO-über_ohne_Schatte'!$F$13<'Kamindaten bündige Lamellen'!$AQ$17),ROUNDUP(H6/3600/(2.2*$K$4/100)/PI()*100000000/(A6*M6*$K$4),0),ROUNDUP(H6/3600/2.5/PI()*100000000/(A6*M6*$K$4),0)) -> 27 | L6: =IF((A6-SQRT('Berechnung FO-über_ohne_Schatte'!$F$11/3600/'Kamindaten FO-über_ohne_Schatte'!$H$1/PI())*2*1000)<20,"0",IF((A6-SQRT('Berechnung FO-über_ohne_Schatte'!$F$11/3600/'Kamindaten FO-über_ohne_Schatte'!$H$1/PI())*2*1000)<80,ROUND((A6-SQRT('Berechnung FO-über_ohne_Schatte'!$F$11/3600/'Kamindaten FO-über_ohne_Schatte'!$H$1/PI())*2*1000)/10,0)*10,IF((A6-SQRT('Berechnung FO-über_ohne_Schatte'!$F$11/3600/'Kamindaten FO-über_ohne_Schatte'!$H$1/PI())*2*1000)<A6/2,ROUND((A6-SQRT('Berechnung FO-über_ohne_Schatte'!$F$11/3600/'Kamindaten FO-über_ohne_Schatte'!$H$1/PI())*2*1000)/20,0)*20,A6/2))) -> 1700 | M6: 120 | N6: =M6+$N$4 -> 180 | Q6: =A6*PI() -> 10681.41502 | R6: =A6+$R$4 -> 3500 | S6: 8 | T6: =A6+$T$4 -> 3400 | U6: 14 | W6: 140 | X6: =T6+2*W6 -> 3680 | Y6: 3000 | Z6: =K6*M6+N6 -> 3420 | AA6: =Y6+Z6 -> 6420 | AC6: 1.6 | AD6: 9.69 | AE6: 16.36 | AG6: ='Berechnung FO-über_ohne_Schatte'!$F$11/E21/3600 -> 1.959041085 | AH6: 2.544209201 | AK6: Bauteile vorhanden | AL6: ja/nein | AN6: Turmart | AO6: Luftrichtung | AP6: Dach | AS6: 0 | AY6: =AY5-50 -> 900 | AZ6: =AY6/$AX$5 -> 0.9 | BA6: =(0.707*SQRT(1-(AZ6)^2))^2 -> 0.09497131
A7: 3300 | C7: =(A7/2)^2*PI()/1000000 -> 8.552985999 | D7: =A7-L7 -> 1650 | E7: =(D7/2)^2*PI()/1000000 -> 2.1382465 | G7: 11026.99021 | H7: =$H$4*C7*3600 -> 184744.4976 | K7: =IF(AND($AL$10=1,'Berechnung FO-über_ohne_Schatte'!$F$13<'Kamindaten bündige Lamellen'!$AQ$17),ROUNDUP(H7/3600/(2.2*$K$4/100)/PI()*100000000/(A7*M7*$K$4),0),ROUNDUP(H7/3600/2.5/PI()*100000000/(A7*M7*$K$4),0)) -> 26 | L7: =IF((A7-SQRT('Berechnung FO-über_ohne_Schatte'!$F$11/3600/'Kamindaten FO-über_ohne_Schatte'!$H$1/PI())*2*1000)<20,"0",IF((A7-SQRT('Berechnung FO-über_ohne_Schatte'!$F$11/3600/'Kamindaten FO-über_ohne_Schatte'!$H$1/PI())*2*1000)<80,ROUND((A7-SQRT('Berechnung FO-über_ohne_Schatte'!$F$11/3600/'Kamindaten FO-über_ohne_Schatte'!$H$1/PI())*2*1000)/10,0)*10,IF((A7-SQRT('Berechnung FO-über_ohne_Schatte'!$F$11/3600/'Kamindaten FO-über_ohne_Schatte'!$H$1/PI())*2*1000)<A7/2,ROUND((A7-SQRT('Berechnung FO-über_ohne_Schatte'!$F$11/3600/'Kamindaten FO-über_ohne_Schatte'!$H$1/PI())*2*1000)/20,0)*20,A7/2))) -> 1650 | M7: 120 | N7: =M7+$N$4 -> 180 | Q7: =A7*PI() -> 10367.25576 | R7: =A7+$R$4 -> 3400 | S7: 8 | T7: =A7+$T$4 -> 3300 | U7: 14 | W7: 140 | X7: =T7+2*W7 -> 3580 | Y7: 3000 | Z7: =K7*M7+N7 -> 3300 | AA7: =Y7+Z7 -> 6300 | AC7: 1.6 | AD7: 10.1 | AE7: 16.96 | AG7: ='Berechnung FO-über_ohne_Schatte'!$F$11/E22/3600 -> 2.182758739 | AH7: 2.83475161 | AK7: RAS | AL7: =RASja -> 0 | AN7: =TLD -> 212 | AO7: =TLD_T -> 2 | AP7: =TLD_D -> 2 | AS7: Aussage, ob Info über nicht notwenigen Wandhalterung/Ankerkorb schon angezeigt wurde | AY7: =AY6-50 -> 850 | AZ7: 0.85 | BA7: 0.1387080975
A8: 3200 | C8: =(A8/2)^2*PI()/1000000 -> 8.042477193 | D8: =A8-L8 -> 1600 | E8: =(D8/2)^2*PI()/1000000 -> 2.010619298 | G8: 10687.69821 | H8: =$H$4*C8*3600 -> 173717.5074 | K8: =IF(AND($AL$10=1,'Berechnung FO-über_ohne_Schatte'!$F$13<'Kamindaten bündige Lamellen'!$AQ$17),ROUNDUP(H8/3600/(2.2*$K$4/100)/PI()*100000000/(A8*M8*$K$4),0),ROUNDUP(H8/3600/2.5/PI()*100000000/(A8*M8*$K$4),0)) -> 25 | L8: =IF((A8-SQRT('Berechnung FO-über_ohne_Schatte'!$F$11/3600/'Kamindaten FO-über_ohne_Schatte'!$H$1/PI())*2*1000)<20,"0",IF((A8-SQRT('Berechnung FO-über_ohne_Schatte'!$F$11/3600/'Kamindaten FO-über_ohne_Schatte'!$H$1/PI())*2*1000)<80,ROUND((A8-SQRT('Berechnung FO-über_ohne_Schatte'!$F$11/3600/'Kamindaten FO-über_ohne_Schatte'!$H$1/PI())*2*1000)/10,0)*10,IF((A8-SQRT('Berechnung FO-über_ohne_Schatte'!$F$11/3600/'Kamindaten FO-über_ohne_Schatte'!$H$1/PI())*2*1000)<A8/2,ROUND((A8-SQRT('Berechnung FO-über_ohne_Schatte'!$F$11/3600/'Kamindaten FO-über_ohne_Schatte'!$H$1/PI())*2*1000)/20,0)*20,A8/2))) -> 1600 | M8: 120 | N8: =M8+$N$4 -> 180 | Q8: =A8*PI() -> 10053.09649 | R8: =A8+$R$4 -> 3300 | S8: 8 | T8: =A8+$T$4 -> 3200 | U8: 14 | W8: 140 | X8: =T8+2*W8 -> 3480 | Y8: 3000 | Z8: =K8*M8+N8 -> 3180 | AA8: =Y8+Z8 -> 6180 | AC8: 1.6 | AD8: 10.46 | AE8: 17.56 | AG8: ='Berechnung FO-über_ohne_Schatte'!$F$11/E23/3600 -> 2.447106684 | AH8: 3.178060628 | AK8: VSG | AL8: =IF(VSG,1,0) -> 0 | AO8: =CHOOSE(AO7,"FO","AU") -> AU | AP8: =CHOOSE(AP7,"VSG","geschlossen") -> geschlossen | AS8: 0 | AY8: 800 | AZ8: 0.8 | BA8: 0.17994564
A9: 3100 | C9: =(A9/2)^2*PI()/1000000 -> 7.54767635 | D9: =A9-L9 -> 1550 | E9: =(D9/2)^2*PI()/1000000 -> 1.886919088 | G9: 10348.4062 | H9: =$H$4*C9*3600 -> 163029.8092 | K9: =IF(AND($AL$10=1,'Berechnung FO-über_ohne_Schatte'!$F$13<'Kamindaten bündige Lamellen'!$AQ$17),ROUNDUP(H9/3600/(2.2*$K$4/100)/PI()*100000000/(A9*M9*$K$4),0),ROUNDUP(H9/3600/2.5/PI()*100000000/(A9*M9*$K$4),0)) -> 25 | L9: =IF((A9-SQRT('Berechnung FO-über_ohne_Schatte'!$F$11/3600/'Kamindaten FO-über_ohne_Schatte'!$H$1/PI())*2*1000)<20,"0",IF((A9-SQRT('Berechnung FO-über_ohne_Schatte'!$F$11/3600/'Kamindaten FO-über_ohne_Schatte'!$H$1/PI())*2*1000)<80,ROUND((A9-SQRT('Berechnung FO-über_ohne_Schatte'!$F$11/3600/'Kamindaten FO-über_ohne_Schatte'!$H$1/PI())*2*1000)/10,0)*10,IF((A9-SQRT('Berechnung FO-über_ohne_Schatte'!$F$11/3600/'Kamindaten FO-über_ohne_Schatte'!$H$1/PI())*2*1000)<A9/2,ROUND((A9-SQRT('Berechnung FO-über_ohne_Schatte'!$F$11/3600/'Kamindaten FO-über_ohne_Schatte'!$H$1/PI())*2*1000)/20,0)*20,A9/2))) -> 1550 | M9: 120 | N9: =M9+$N$4 -> 180 | Q9: =A9*PI() -> 9738.937226 | R9: =A9+$R$4 -> 3200 | S9: 8 | T9: =A9+$T$4 -> 3100 | U9: 14 | W9: 140 | X9: =T9+2*W9 -> 3380 | Y9: 3000 | Z9: =K9*M9+N9 -> 3180 | AA9: =Y9+Z9 -> 6180 | AC9: 1.6 | AD9: 10.76 | AE9: 18.17 | AG9: ='Berechnung FO-über_ohne_Schatte'!$F$11/E24/3600 -> 2.76255403 | AH9: 3.587732506 | AK9: seitlicher Anschluss | AL9: =IF(OR(Auswertung!B47=3,Auswertung!B47=2),1,0) -> 0 | AN9: Turmart mit RAS | AY9: 750 | AZ9: 0.75 | BA9: 0.2186839375
A10: 3000 | C10: =(A10/2)^2*PI()/1000000 -> 7.068583471 | D10: =A10-L10 -> 1500 | E10: =(D10/2)^2*PI()/1000000 -> 1.767145868 | G10: 10009.11419 | H10: =$H$4*C10*3600 -> 152681.403 | K10: =IF(AND($AL$10=1,'Berechnung FO-über_ohne_Schatte'!$F$13<'Kamindaten bündige Lamellen'!$AQ$17),ROUNDUP(H10/3600/(2.2*$K$4/100)/PI()*100000000/(A10*M10*$K$4),0),ROUNDUP(H10/3600/2.5/PI()*100000000/(A10*M10*$K$4),0)) -> 24 | L10: =IF((A10-SQRT('Berechnung FO-über_ohne_Schatte'!$F$11/3600/'Kamindaten FO-über_ohne_Schatte'!$H$1/PI())*2*1000)<20,"0",IF((A10-SQRT('Berechnung FO-über_ohne_Schatte'!$F$11/3600/'Kamindaten FO-über_ohne_Schatte'!$H$1/PI())*2*1000)<80,ROUND((A10-SQRT('Berechnung FO-über_ohne_Schatte'!$F$11/3600/'Kamindaten FO-über_ohne_Schatte'!$H$1/PI())*2*1000)/10,0)*10,IF((A10-SQRT('Berechnung FO-über_ohne_Schatte'!$F$11/3600/'Kamindaten FO-über_ohne_Schatte'!$H$1/PI())*2*1000)<A10/2,ROUND((A10-SQRT('Berechnung FO-über_ohne_Schatte'!$F$11/3600/'Kamindaten FO-über_ohne_Schatte'!$H$1/PI())*2*1000)/20,0)*20,A10/2))) -> 1500 | M10: 120 | N10: =M10+$N$4 -> 180 | Q10: =A10*PI() -> 9424.777961 | R10: =A10+$R$4 -> 3100 | S10: 8 | T10: =A10+$T$4 -> 3000 | U10: 14 | W10: 140 | X10: =T10+2*W10 -> 3280 | Y10: 3000 | Z10: =K10*M10+N10 -> 3060 | AA10: =Y10+Z10 -> 6060 | AC10: 1.6 | AD10: 11.01 | AE10: 18.78 | AG10: ='Berechnung FO-über_ohne_Schatte'!$F$11/E25/3600 -> 3.143172585 | AH10: 4.082042318 | AK10: Luftfilter | AL10: =IF(Luftfilter,1,0) -> 0 | AN10: =CONCATENATE(TLD,AL7) -> 2120 | AT10: O= | AU10: =IF('Berechnung FO-über_ohne_Schatte'!F13<'Kamindaten bündige Lamellen'!AQ17,PI()*'Berechnung FO-über_ohne_Schatte'!F13/1000*'Berechnung FO-über_ohne_Schatte'!F21/1000,PI()*('Berechnung FO-über_ohne_Schatte'!F13/1000)^2/(4*SIN('Kamindaten bündige Lamellen'!AQ15))) -> 0.3998594644 | AV10: Oberfläche Luftfiltermatte/Giebeldachfilter | AY10: 700 | AZ10: 0.7 | BA10: 0.25492299
A11: 2900 | C11: 6.605198554 | D11: 1450 | E11: 1.651299639 | G11: 9669.822188 | H11: 142672.2888 | K11: =IF(AND($AL$10=1,'Berechnung FO-über_ohne_Schatte'!$F$13<'Kamindaten bündige Lamellen'!$AQ$17),ROUNDUP(H11/3600/(2.2*$K$4/100)/PI()*100000000/(A11*M11*$K$4),0),ROUNDUP(H11/3600/2.5/PI()*100000000/(A11*M11*$K$4),0)) -> 23 | L11: =IF((A11-SQRT('Berechnung FO-über_ohne_Schatte'!$F$11/3600/'Kamindaten FO-über_ohne_Schatte'!$H$1/PI())*2*1000)<20,"0",IF((A11-SQRT('Berechnung FO-über_ohne_Schatte'!$F$11/3600/'Kamindaten FO-über_ohne_Schatte'!$H$1/PI())*2*1000)<80,ROUND((A11-SQRT('Berechnung FO-über_ohne_Schatte'!$F$11/3600/'Kamindaten FO-über_ohne_Schatte'!$H$1/PI())*2*1000)/10,0)*10,IF((A11-SQRT('Berechnung FO-über_ohne_Schatte'!$F$11/3600/'Kamindaten FO-über_ohne_Schatte'!$H$1/PI())*2*1000)<A11/2,ROUND((A11-SQRT('Berechnung FO-über_ohne_Schatte'!$F$11/3600/'Kamindaten FO-über_ohne_Schatte'!$H$1/PI())*2*1000)/20,0)*20,A11/2))) -> 1450 | M11: 120 | N11: 180 | Q11: 9110.618695 | R11: 3000 | S11: 8 | T11: 2900 | U11: 14 | W11: 140 | X11: 3180 | Y11: 3000 | Z11: 2940 | AA11: 5940 | AC11: 1.6 | AD11: 11.22 | AE11: 19.41 | AG11: ='Berechnung FO-über_ohne_Schatte'!$F$11/E26/3600 -> 3.608233835 | AH11: 4.686017967 | AK11: Schalldämpfer | AL11: =IF(Schalldämpfer,1,0) -> 0 | AT11: vLuft= | AU11: ='Berechnung FO-über_ohne_Schatte'!F49*('Berechnung FO-über_ohne_Schatte'!F13/1000)^2/4*PI()/AU10 -> 3.472747889 | AV11: Luftgeschw. An Filtermatte | AY11: 650 | AZ11: 0.65 | BA11: 0.2886627975
A12: 2800 | C12: 6.157521601 | D12: 1400 | E12: 1.5393804 | G12: 9330.530181 | H12: 133002.4666 | K12: =IF(AND($AL$10=1,'Berechnung FO-über_ohne_Schatte'!$F$13<'Kamindaten bündige Lamellen'!$AQ$17),ROUNDUP(H12/3600/(2.2*$K$4/100)/PI()*100000000/(A12*M12*$K$4),0),ROUNDUP(H12/3600/2.5/PI()*100000000/(A12*M12*$K$4),0)) -> 22 | L12: =IF((A12-SQRT('Berechnung FO-über_ohne_Schatte'!$F$11/3600/'Kamindaten FO-über_ohne_Schatte'!$H$1/PI())*2*1000)<20,"0",IF((A12-SQRT('Berechnung FO-über_ohne_Schatte'!$F$11/3600/'Kamindaten FO-über_ohne_Schatte'!$H$1/PI())*2*1000)<80,ROUND((A12-SQRT('Berechnung FO-über_ohne_Schatte'!$F$11/3600/'Kamindaten FO-über_ohne_Schatte'!$H$1/PI())*2*1000)/10,0)*10,IF((A12-SQRT('Berechnung FO-über_ohne_Schatte'!$F$11/3600/'Kamindaten FO-über_ohne_Schatte'!$H$1/PI())*2*1000)<A12/2,ROUND((A12-SQRT('Berechnung FO-über_ohne_Schatte'!$F$11/3600/'Kamindaten FO-über_ohne_Schatte'!$H$1/PI())*2*1000)/20,0)*20,A12/2))) -> 1400 | M12: 120 | N12: 180 | Q12: 8796.45943 | R12: 2900 | S12: 8 | T12: 2800 | U12: 14 | W12: 140 | X12: 3080 | Y12: 3000 | Z12: 2820 | AA12: 5820 | AC12: 1.6 | AD12: 11.38 | AE12: 20.06 | AG12: ='Berechnung FO-über_ohne_Schatte'!$F$11/E27/3600 -> 4.184697228 | AH12: 5.434671725 | AK12: Sattelstutzen | AL12: =IF(Sattelstutzen,1,0) -> 0 | AT12: Δp= | AU12: ='Kamindaten bündige Lamellen'!AN18*AU11^2+'Kamindaten bündige Lamellen'!AN19*AU11+'Kamindaten bündige Lamellen'!AN20 -> 75.05638198 | AV12: Druckverlust an Filtermatten | AY12: 600 | AZ12: 0.6 | BA12: 0.31990336
A13: 2700 | C13: 5.725552611 | D13: 1350 | E13: 1.431388153 | G13: 8991.238175 | H13: 123671.9364 | K13: =IF(AND($AL$10=1,'Berechnung FO-über_ohne_Schatte'!$F$13<'Kamindaten bündige Lamellen'!$AQ$17),ROUNDUP(H13/3600/(2.2*$K$4/100)/PI()*100000000/(A13*M13*$K$4),0),ROUNDUP(H13/3600/2.5/PI()*100000000/(A13*M13*$K$4),0)) -> 22 | L13: =IF((A13-SQRT('Berechnung FO-über_ohne_Schatte'!$F$11/3600/'Kamindaten FO-über_ohne_Schatte'!$H$1/PI())*2*1000)<20,"0",IF((A13-SQRT('Berechnung FO-über_ohne_Schatte'!$F$11/3600/'Kamindaten FO-über_ohne_Schatte'!$H$1/PI())*2*1000)<80,ROUND((A13-SQRT('Berechnung FO-über_ohne_Schatte'!$F$11/3600/'Kamindaten FO-über_ohne_Schatte'!$H$1/PI())*2*1000)/10,0)*10,IF((A13-SQRT('Berechnung FO-über_ohne_Schatte'!$F$11/3600/'Kamindaten FO-über_ohne_Schatte'!$H$1/PI())*2*1000)<A13/2,ROUND((A13-SQRT('Berechnung FO-über_ohne_Schatte'!$F$11/3600/'Kamindaten FO-über_ohne_Schatte'!$H$1/PI())*2*1000)/20,0)*20,A13/2))) -> 1350 | M13: 120 | N13: 180 | Q13: 8482.300165 | R13: 2800 | S13: 8 | T13: 2700 | U13: 14 | W13: 140 | X13: 2980 | Y13: 3000 | Z13: 2820 | AA13: 5820 | AC13: 1.6 | AD13: 11.52 | AE13: 20.71 | AG13: ='Berechnung FO-über_ohne_Schatte'!$F$11/E28/3600 -> 4.911207164 | AH13: 6.378191122 | AK13: MetuDeckel | AL13: =IF(MetuDeckel,1,0) -> 0 | AY13: 550 | AZ13: 0.55 | BA13: 0.3486446775
A14: 2600 | C14: 5.309291585 | D14: 1300 | E14: 1.327322896 | G14: 8651.946168 | H14: 114680.6982 | K14: =IF(AND($AL$10=1,'Berechnung FO-über_ohne_Schatte'!$F$13<'Kamindaten bündige Lamellen'!$AQ$17),ROUNDUP(H14/3600/(2.2*$K$4/100)/PI()*100000000/(A14*M14*$K$4),0),ROUNDUP(H14/3600/2.5/PI()*100000000/(A14*M14*$K$4),0)) -> 21 | L14: =IF((A14-SQRT('Berechnung FO-über_ohne_Schatte'!$F$11/3600/'Kamindaten FO-über_ohne_Schatte'!$H$1/PI())*2*1000)<20,"0",IF((A14-SQRT('Berechnung FO-über_ohne_Schatte'!$F$11/3600/'Kamindaten FO-über_ohne_Schatte'!$H$1/PI())*2*1000)<80,ROUND((A14-SQRT('Berechnung FO-über_ohne_Schatte'!$F$11/3600/'Kamindaten FO-über_ohne_Schatte'!$H$1/PI())*2*1000)/10,0)*10,IF((A14-SQRT('Berechnung FO-über_ohne_Schatte'!$F$11/3600/'Kamindaten FO-über_ohne_Schatte'!$H$1/PI())*2*1000)<A14/2,ROUND((A14-SQRT('Berechnung FO-über_ohne_Schatte'!$F$11/3600/'Kamindaten FO-über_ohne_Schatte'!$H$1/PI())*2*1000)/20,0)*20,A14/2))) -> 1300 | M14: 120 | N14: 180 | Q14: 8168.140899 | R14: 2700 | S14: 8 | T14: 2600 | U14: 14 | W14: 140 | X14: 2880 | Y14: 3000 | Z14: 2700 | AA14: 5700 | AC14: 1.6 | AD14: 11.69 | AE14: 21.36 | AG14: ='Berechnung FO-über_ohne_Schatte'!$F$11/E29/3600 -> 4.911207164 | AH14: 6.378191122 | AK14: Türe_bündig | AL14: =IF(Türe_bündig,1,0) -> 0 | AN14: automatische Akualisierung | AY14: 500 | AZ14: 0.5 | BA14: 0.37488675
A15: 2500 | C15: 4.908738521 | D15: 1250 | E15: 1.22718463 | G15: 8312.654161 | H15: 106028.7521 | K15: =IF(AND($AL$10=1,'Berechnung FO-über_ohne_Schatte'!$F$13<'Kamindaten bündige Lamellen'!$AQ$17),ROUNDUP(H15/3600/(2.2*$K$4/100)/PI()*100000000/(A15*M15*$K$4),0),ROUNDUP(H15/3600/2.5/PI()*100000000/(A15*M15*$K$4),0)) -> 20 | L15: =IF((A15-SQRT('Berechnung FO-über_ohne_Schatte'!$F$11/3600/'Kamindaten FO-über_ohne_Schatte'!$H$1/PI())*2*1000)<20,"0",IF((A15-SQRT('Berechnung FO-über_ohne_Schatte'!$F$11/3600/'Kamindaten FO-über_ohne_Schatte'!$H$1/PI())*2*1000)<80,ROUND((A15-SQRT('Berechnung FO-über_ohne_Schatte'!$F$11/3600/'Kamindaten FO-über_ohne_Schatte'!$H$1/PI())*2*1000)/10,0)*10,IF((A15-SQRT('Berechnung FO-über_ohne_Schatte'!$F$11/3600/'Kamindaten FO-über_ohne_Schatte'!$H$1/PI())*2*1000)<A15/2,ROUND((A15-SQRT('Berechnung FO-über_ohne_Schatte'!$F$11/3600/'Kamindaten FO-über_ohne_Schatte'!$H$1/PI())*2*1000)/20,0)*20,A15/2))) -> 1250 | M15: 120 | N15: 180 | Q15: 7853.981634 | R15: 2600 | S15: 8 | T15: 2500 | U15: 14 | W15: 140 | X15: 2780 | Y15: 3000 | Z15: 2580 | AA15: 5580 | AC15: 1.6 | AD15: 11.98 | AE15: 21.97 | AG15: ='Berechnung FO-über_ohne_Schatte'!$F$11/E30/3600 -> 5.079099623 | AH15: 6.596233277 | AK15: GRK | AL15: =IF(GRK,1,0) -> 0 | AY15: 450 | AZ15: 0.45 | BA15: 0.3986295775
A16: 2400 | C16: 4.523893421 | D16: 1200 | E16: 1.130973355 | G16: 7973.362155 | H16: 97716.0979 | K16: =IF(AND($AL$10=1,'Berechnung FO-über_ohne_Schatte'!$F$13<'Kamindaten bündige Lamellen'!$AQ$17),ROUNDUP(H16/3600/(2.2*$K$4/100)/PI()*100000000/(A16*M16*$K$4),0),ROUNDUP(H16/3600/2.5/PI()*100000000/(A16*M16*$K$4),0)) -> 19 | L16: =IF((A16-SQRT('Berechnung FO-über_ohne_Schatte'!$F$11/3600/'Kamindaten FO-über_ohne_Schatte'!$H$1/PI())*2*1000)<20,"0",IF((A16-SQRT('Berechnung FO-über_ohne_Schatte'!$F$11/3600/'Kamindaten FO-über_ohne_Schatte'!$H$1/PI())*2*1000)<80,ROUND((A16-SQRT('Berechnung FO-über_ohne_Schatte'!$F$11/3600/'Kamindaten FO-über_ohne_Schatte'!$H$1/PI())*2*1000)/10,0)*10,IF((A16-SQRT('Berechnung FO-über_ohne_Schatte'!$F$11/3600/'Kamindaten FO-über_ohne_Schatte'!$H$1/PI())*2*1000)<A16/2,ROUND((A16-SQRT('Berechnung FO-über_ohne_Schatte'!$F$11/3600/'Kamindaten FO-über_ohne_Schatte'!$H$1/PI())*2*1000)/20,0)*20,A16/2))) -> 1200 | M16: 120 | N16: 180 | Q16: 7539.822369 | R16: 2500 | S16: 8 | T16: 2400 | U16: 14 | W16: 140 | X16: 2680 | Y16: 3000 | Z16: 2460 | AA16: 5460 | AC16: 1.6 | AD16: 12.46 | AE16: 22.54 | AG16: ='Berechnung FO-über_ohne_Schatte'!$F$11/E31/3600 -> 4.911207164 | AH16: 6.378191122 | AW16: alte Formel, | AY16: 400 | AZ16: 0.4 | BA16: 0.41987316
A17: 2300 | C17: 4.154756284 | D17: 1150 | E17: 1.038689071 | G17: 7634.070148 | H17: 89742.73574 | K17: =IF(AND($AL$10=1,'Berechnung FO-über_ohne_Schatte'!$F$13<'Kamindaten bündige Lamellen'!$AQ$17),ROUNDUP(H17/3600/(2.2*$K$4/100)/PI()*100000000/(A17*M17*$K$4),0),ROUNDUP(H17/3600/2.5/PI()*100000000/(A17*M17*$K$4),0)) -> 18 | L17: =IF((A17-SQRT('Berechnung FO-über_ohne_Schatte'!$F$11/3600/'Kamindaten FO-über_ohne_Schatte'!$H$1/PI())*2*1000)<20,"0",IF((A17-SQRT('Berechnung FO-über_ohne_Schatte'!$F$11/3600/'Kamindaten FO-über_ohne_Schatte'!$H$1/PI())*2*1000)<80,ROUND((A17-SQRT('Berechnung FO-über_ohne_Schatte'!$F$11/3600/'Kamindaten FO-über_ohne_Schatte'!$H$1/PI())*2*1000)/10,0)*10,IF((A17-SQRT('Berechnung FO-über_ohne_Schatte'!$F$11/3600/'Kamindaten FO-über_ohne_Schatte'!$H$1/PI())*2*1000)<A17/2,ROUND((A17-SQRT('Berechnung FO-über_ohne_Schatte'!$F$11/3600/'Kamindaten FO-über_ohne_Schatte'!$H$1/PI())*2*1000)/20,0)*20,A17/2))) -> 1150 | M17: 120 | N17: 180 | Q17: 7225.663103 | R17: 2400 | S17: 8 | T17: 2300 | U17: 14 | W17: 140 | X17: 2580 | Y17: 3000 | Z17: 2340 | AA17: 5340 | AC17: 1.6 | AD17: 13.08 | AE17: 23.04 | AG17: ='Berechnung FO-über_ohne_Schatte'!$F$11/E32/3600 -> 4.911207164 | AH17: 6.378191122 | AW17: nicht verwendet | AY17: 350 | AZ17: 0.35 | BA17: 0.4386174975
A18: 2200 | C18: 3.801327111 | D18: 1100 | E18: 0.9503317777 | G18: 7294.778142 | H18: 82108.66559 | K18: =IF(AND($AL$10=1,'Berechnung FO-über_ohne_Schatte'!$F$13<'Kamindaten bündige Lamellen'!$AQ$17),ROUNDUP(H18/3600/(2.2*$K$4/100)/PI()*100000000/(A18*M18*$K$4),0),ROUNDUP(H18/3600/2.5/PI()*100000000/(A18*M18*$K$4),0)) -> 18 | L18: =IF((A18-SQRT('Berechnung FO-über_ohne_Schatte'!$F$11/3600/'Kamindaten FO-über_ohne_Schatte'!$H$1/PI())*2*1000)<20,"0",IF((A18-SQRT('Berechnung FO-über_ohne_Schatte'!$F$11/3600/'Kamindaten FO-über_ohne_Schatte'!$H$1/PI())*2*1000)<80,ROUND((A18-SQRT('Berechnung FO-über_ohne_Schatte'!$F$11/3600/'Kamindaten FO-über_ohne_Schatte'!$H$1/PI())*2*1000)/10,0)*10,IF((A18-SQRT('Berechnung FO-über_ohne_Schatte'!$F$11/3600/'Kamindaten FO-über_ohne_Schatte'!$H$1/PI())*2*1000)<A18/2,ROUND((A18-SQRT('Berechnung FO-über_ohne_Schatte'!$F$11/3600/'Kamindaten FO-über_ohne_Schatte'!$H$1/PI())*2*1000)/20,0)*20,A18/2))) -> 1100 | M18: 120 | N18: 180 | Q18: 6911.503838 | R18: 2300 | S18: 8 | T18: 2200 | U18: 14 | W18: 140 | X18: 2480 | Y18: 3000 | Z18: 2340 | AA18: 5340 | AC18: 1.6 | AD18: 13.8 | AE18: 23.49 | AG18: ='Berechnung FO-über_ohne_Schatte'!$F$11/E33/3600 -> 4.911207164 | AH18: 6.378191122 | AK18: Zetawerte ØA | AL18: RAS-eco | AM18: seitlicher Anschluss | AN18: Lufttilter | AO18: Schalldämpfer | AP18: Reduzierung | AQ18: VSG-1 | AS18: Sattelstutzen | AT18: MetuDeckel | AU18: Türe_bündig | AW18: Lochblech | AY18: 300 | AZ18: 0.3 | BA18: 0.45486259
A19: 2100 | C19: 3.463605901 | D19: 1050 | E19: 0.8659014751 | G19: 6955.486135 | H19: 74813.88745 | K19: =IF(AND($AL$10=1,'Berechnung FO-über_ohne_Schatte'!$F$13<'Kamindaten bündige Lamellen'!$AQ$17),ROUNDUP(H19/3600/(2.2*$K$4/100)/PI()*100000000/(A19*M19*$K$4),0),ROUNDUP(H19/3600/2.5/PI()*100000000/(A19*M19*$K$4),0)) -> 17 | L19: =IF((A19-SQRT('Berechnung FO-über_ohne_Schatte'!$F$11/3600/'Kamindaten FO-über_ohne_Schatte'!$H$1/PI())*2*1000)<20,"0",IF((A19-SQRT('Berechnung FO-über_ohne_Schatte'!$F$11/3600/'Kamindaten FO-über_ohne_Schatte'!$H$1/PI())*2*1000)<80,ROUND((A19-SQRT('Berechnung FO-über_ohne_Schatte'!$F$11/3600/'Kamindaten FO-über_ohne_Schatte'!$H$1/PI())*2*1000)/10,0)*10,IF((A19-SQRT('Berechnung FO-über_ohne_Schatte'!$F$11/3600/'Kamindaten FO-über_ohne_Schatte'!$H$1/PI())*2*1000)<A19/2,ROUND((A19-SQRT('Berechnung FO-über_ohne_Schatte'!$F$11/3600/'Kamindaten FO-über_ohne_Schatte'!$H$1/PI())*2*1000)/20,0)*20,A19/2))) -> 1050 | M19: 120 | N19: 180 | Q19: 6597.344573 | R19: 2200 | S19: 8 | T19: 2100 | U19: 14 | W19: 140 | X19: 2380 | Y19: 3000 | Z19: 2220 | AA19: 5220 | AC19: 1.6 | AD19: 14.61 | AE19: 23.9 | AG19: ='Berechnung FO-über_ohne_Schatte'!$F$11/E34/3600 -> 4.911207164 | AH19: 6.378191122 | AK19: =SUM(AL19:AU19) -> 0 | AL19: =IF(AL7=1,1.9,0) -> 0 | AM19: =IF(AL9=1,1.22,0) -> 0 | AN19: =IF(AL10,AU12/(0.6*'Berechnung FO-über_ohne_Schatte'!F49^2),0) -> 0 | AO19: =IF(AL11,IF('Berechnung FO-über_ohne_Schatte'!F13>700,Schalldämpfer!M126,IF('Berechnung FO-über_ohne_Schatte'!F13>415,Schalldämpfer!CS36,Schalldämpfer!DY36))/(0.6*'Berechnung FO-über_ohne_Schatte'!F49^2)+IF('Berechnung FO-über_ohne_Schatte'!F12<=415,(0.707*SQRT(1-(('Berechnung FO-über_ohne_Schatte'!F13-2*50)/'Berechnung FO-über_ohne_Schatte'!F13)^2)^2)+((1-(('Berechnung FO-über_ohne_Schatte'!F13-2*50)/'Berechnung FO-über_ohne_Schatte'!F13)^2)^2*('Berechnung FO-über_ohne_Schatte'!F13/('Berechnung FO-über_ohne_Schatte'!F13-2*50))^4),IF('Berechnung FO-über_ohne_Schatte'!F13<=700,(0.707*SQRT(1-(('Berechnung FO-über_ohne_Schatte'!F13-2*100)/'Berechnung FO-über_ohne_Schatte'!F13)^2)^2)+((1-(('Berechnung FO-über_ohne_Schatte'!F13-2*100)/'Berechnung FO-über_ohne_Schatte'!F13)^2)^2*('Berechnung FO-über_ohne_Schatte'!F13/('Berechnung FO-über_ohne_Schatte'!F13-2*100))^4),0)),0) -> 0 | AP19: =IF(AND(VALUE(AO7)=1,VALUE(AP7)=1),(0.707*SQRT(1-('Berechnung FO-über_ohne_Schatte'!F35/'Berechnung FO-über_ohne_Schatte'!F13)^2))^2,0) -> 0 | AQ19: =IF(AND(VALUE(AO7)=2,VALUE(AP7)=1),0.35,0) -> 0 | AS19: =IF(AL12=1,0.13,0) -> 0 | AT19: =IF(AL13,0.13,0) -> 0 | AU19: =IF(AL14,0.13,0) -> 0 | AW19: =IF(AND(VALUE(AP7)=2,VALUE(AO7)=2),3.03/('Berechnung FO-über_ohne_Schatte'!K37/'Berechnung FO-über_ohne_Schatte'!K43)-0.46,IF(AND(VALUE(AO7)=1,VALUE(AP7)=2),4/('Berechnung FO-über_ohne_Schatte'!K37/'Berechnung FO-über_ohne_Schatte'!K43)+0.3,0)) -> -0.4348568117 | AY19: 250 | AZ19: 0.25 | BA19: 0.4686084375
A20: 2000 | C20: 3.141592654 | D20: 1000 | E20: 0.7853981634 | G20: 6616.194128 | H20: 67858.40132 | K20: =IF(AND($AL$10=1,'Berechnung FO-über_ohne_Schatte'!$F$13<'Kamindaten bündige Lamellen'!$AQ$17),ROUNDUP(H20/3600/(2.2*$K$4/100)/PI()*100000000/(A20*M20*$K$4),0),ROUNDUP(H20/3600/2.5/PI()*100000000/(A20*M20*$K$4),0)) -> 16 | L20: =IF((A20-SQRT('Berechnung FO-über_ohne_Schatte'!$F$11/3600/'Kamindaten FO-über_ohne_Schatte'!$H$1/PI())*2*1000)<20,"0",IF((A20-SQRT('Berechnung FO-über_ohne_Schatte'!$F$11/3600/'Kamindaten FO-über_ohne_Schatte'!$H$1/PI())*2*1000)<80,ROUND((A20-SQRT('Berechnung FO-über_ohne_Schatte'!$F$11/3600/'Kamindaten FO-über_ohne_Schatte'!$H$1/PI())*2*1000)/10,0)*10,IF((A20-SQRT('Berechnung FO-über_ohne_Schatte'!$F$11/3600/'Kamindaten FO-über_ohne_Schatte'!$H$1/PI())*2*1000)<A20/2,ROUND((A20-SQRT('Berechnung FO-über_ohne_Schatte'!$F$11/3600/'Kamindaten FO-über_ohne_Schatte'!$H$1/PI())*2*1000)/20,0)*20,A20/2))) -> 1000 | M20: 120 | N20: 180 | Q20: 6283.185307 | R20: 2100 | S20: 8 | T20: 2000 | U20: 14 | W20: =$W$4 -> 140 | X20: 2280 | Y20: 3000 | Z20: 2100 | AA20: 5100 | AC20: 1.6 | AD20: 15.55 | AE20: 24.29 | AG20: ='Berechnung FO-über_ohne_Schatte'!$F$11/E35/3600 -> 7.836164339 | AH20: 10.1768368 | AY20: 200 | AZ20: 0.2 | BA20: 0.47985504
A21: 1900 | C21: 2.83528737 | D21: 950 | E21: 0.7088218425 | G21: 6276.902122 | H21: 61242.20719 | K21: =IF(AND($AL$10=1,'Berechnung FO-über_ohne_Schatte'!$F$13<'Kamindaten bündige Lamellen'!$AQ$17),ROUNDUP(H21/3600/(2.2*$K$4/100)/PI()*100000000/(A21*M21*$K$4),0),ROUNDUP(H21/3600/2.5/PI()*100000000/(A21*M21*$K$4),0)) -> 15 | L21: =IF((A21-SQRT('Berechnung FO-über_ohne_Schatte'!$F$11/3600/'Kamindaten FO-über_ohne_Schatte'!$H$1/PI())*2*1000)<20,"0",IF((A21-SQRT('Berechnung FO-über_ohne_Schatte'!$F$11/3600/'Kamindaten FO-über_ohne_Schatte'!$H$1/PI())*2*1000)<80,ROUND((A21-SQRT('Berechnung FO-über_ohne_Schatte'!$F$11/3600/'Kamindaten FO-über_ohne_Schatte'!$H$1/PI())*2*1000)/10,0)*10,IF((A21-SQRT('Berechnung FO-über_ohne_Schatte'!$F$11/3600/'Kamindaten FO-über_ohne_Schatte'!$H$1/PI())*2*1000)<A21/2,ROUND((A21-SQRT('Berechnung FO-über_ohne_Schatte'!$F$11/3600/'Kamindaten FO-über_ohne_Schatte'!$H$1/PI())*2*1000)/20,0)*20,A21/2))) -> 950 | M21: 120 | N21: =M21+$N$4 -> 180 | Q21: 5969.026042 | R21: 2000 | S21: 8 | T21: 1900 | U21: 14 | W21: =$W$4 -> 140 | X21: =T21+2*W21 -> 2180 | Y21: 3000 | Z21: 1980 | AA21: =Y21+Z21 -> 4980 | AC21: 1.6 | AD21: 16.63 | AE21: 24.65 | AG21: ='Berechnung FO-über_ohne_Schatte'!$F$11/E36/3600 -> 11.05021612 | AH21: 14.35093002 | AY21: 150 | AZ21: 0.15 | BA21: 0.4886023975
A22: 1800 | C22: 2.544690049 | D22: 900 | E22: 0.6361725124 | G22: 5937.610115 | H22: 54965.30507 | K22: =IF(AND($AL$10=1,'Berechnung FO-über_ohne_Schatte'!$F$13<'Kamindaten bündige Lamellen'!$AQ$17),ROUNDUP(H22/3600/(2.2*$K$4/100)/PI()*100000000/(A22*M22*$K$4),0),ROUNDUP(H22/3600/2.5/PI()*100000000/(A22*M22*$K$4),0)) -> 15 | L22: =IF((A22-SQRT('Berechnung FO-über_ohne_Schatte'!$F$11/3600/'Kamindaten FO-über_ohne_Schatte'!$H$1/PI())*2*1000)<20,"0",IF((A22-SQRT('Berechnung FO-über_ohne_Schatte'!$F$11/3600/'Kamindaten FO-über_ohne_Schatte'!$H$1/PI())*2*1000)<80,ROUND((A22-SQRT('Berechnung FO-über_ohne_Schatte'!$F$11/3600/'Kamindaten FO-über_ohne_Schatte'!$H$1/PI())*2*1000)/10,0)*10,IF((A22-SQRT('Berechnung FO-über_ohne_Schatte'!$F$11/3600/'Kamindaten FO-über_ohne_Schatte'!$H$1/PI())*2*1000)<A22/2,ROUND((A22-SQRT('Berechnung FO-über_ohne_Schatte'!$F$11/3600/'Kamindaten FO-über_ohne_Schatte'!$H$1/PI())*2*1000)/20,0)*20,A22/2))) -> 900 | M22: 120 | N22: 180 | Q22: 5654.866776 | R22: 1900 | S22: 8 | T22: 1800 | U22: 14 | W22: 140 | X22: 2080 | Y22: 3000 | Z22: 1980 | AA22: 4980 | AC22: 1.6 | AD22: 17.75 | AE22: 25.01 | AG22: ='Berechnung FO-über_ohne_Schatte'!$F$11/E37/3600 -> 14.43293534 | AH22: 18.74407187 | AY22: 100 | AZ22: 0.1 | BA22: 0.49485051
A23: 1700 | C23: 2.269800692 | D23: 850 | E23: 0.5674501731 | G23: 5598.318109 | H23: 49027.69495 | K23: =IF(AND($AL$10=1,'Berechnung FO-über_ohne_Schatte'!$F$13<'Kamindaten bündige Lamellen'!$AQ$17),ROUNDUP(H23/3600/(2.2*$K$4/100)/PI()*100000000/(A23*M23*$K$4),0),ROUNDUP(H23/3600/2.5/PI()*100000000/(A23*M23*$K$4),0)) -> 14 | L23: =IF((A23-SQRT('Berechnung FO-über_ohne_Schatte'!$F$11/3600/'Kamindaten FO-über_ohne_Schatte'!$H$1/PI())*2*1000)<20,"0",IF((A23-SQRT('Berechnung FO-über_ohne_Schatte'!$F$11/3600/'Kamindaten FO-über_ohne_Schatte'!$H$1/PI())*2*1000)<80,ROUND((A23-SQRT('Berechnung FO-über_ohne_Schatte'!$F$11/3600/'Kamindaten FO-über_ohne_Schatte'!$H$1/PI())*2*1000)/10,0)*10,IF((A23-SQRT('Berechnung FO-über_ohne_Schatte'!$F$11/3600/'Kamindaten FO-über_ohne_Schatte'!$H$1/PI())*2*1000)<A23/2,ROUND((A23-SQRT('Berechnung FO-über_ohne_Schatte'!$F$11/3600/'Kamindaten FO-über_ohne_Schatte'!$H$1/PI())*2*1000)/20,0)*20,A23/2))) -> 850 | M23: 120 | N23: 180 | Q23: 5340.707511 | R23: 1800 | S23: 8 | T23: 1700 | U23: 14 | W23: 140 | X23: 1980 | Y23: 3000 | Z23: 1860 | AA23: 4860 | AC23: 1.6 | AD23: 18.84 | AE23: 25.37 | AG23: ='Berechnung FO-über_ohne_Schatte'!$F$11/E38/3600 -> 19.64482865 | AH23: 25.51276449 | AS23: =IF(AL7,2,IF(AL8,2,IF(AL9,3,0))) -> 0 | AY23: 50 | AZ23: 0.05 | BA23: 0.4985993775
A24: 1600 | C24: 2.010619298 | D24: 800 | E24: 0.5026548246 | G24: 5259.026102 | H24: 43429.37684 | K24: =IF(AND($AL$10=1,'Berechnung FO-über_ohne_Schatte'!$F$13<'Kamindaten bündige Lamellen'!$AQ$17),ROUNDUP(H24/3600/(2.2*$K$4/100)/PI()*100000000/(A24*M24*$K$4),0),ROUNDUP(H24/3600/2.5/PI()*100000000/(A24*M24*$K$4),0)) -> 13 | L24: =IF((A24-SQRT('Berechnung FO-über_ohne_Schatte'!$F$11/3600/'Kamindaten FO-über_ohne_Schatte'!$H$1/PI())*2*1000)<20,"0",IF((A24-SQRT('Berechnung FO-über_ohne_Schatte'!$F$11/3600/'Kamindaten FO-über_ohne_Schatte'!$H$1/PI())*2*1000)<80,ROUND((A24-SQRT('Berechnung FO-über_ohne_Schatte'!$F$11/3600/'Kamindaten FO-über_ohne_Schatte'!$H$1/PI())*2*1000)/10,0)*10,IF((A24-SQRT('Berechnung FO-über_ohne_Schatte'!$F$11/3600/'Kamindaten FO-über_ohne_Schatte'!$H$1/PI())*2*1000)<A24/2,ROUND((A24-SQRT('Berechnung FO-über_ohne_Schatte'!$F$11/3600/'Kamindaten FO-über_ohne_Schatte'!$H$1/PI())*2*1000)/20,0)*20,A24/2))) -> 800 | M24: 120 | N24: 180 | Q24: 5026.548246 | R24: 1700 | S24: 8 | T24: 1600 | U24: 14 | W24: 140 | X24: 1880 | Y24: 3000 | Z24: 1740 | AA24: 4740 | AC24: 1.6 | AD24: 19.9 | AE24: 25.73 | AG24: ='Berechnung FO-über_ohne_Schatte'!$F$11/E39/3600 -> 28.28855326 | AH24: 36.73838086 | AK24: Zetawerte ØD | AL24: VSG-2
A25: 1500 | C25: 1.767145868 | D25: 750 | E25: 0.4417864669 | G25: 4919.734096 | H25: 38170.35074 | K25: =IF(AND($AL$10=1,'Berechnung FO-über_ohne_Schatte'!$F$13<'Kamindaten bündige Lamellen'!$AQ$17),ROUNDUP(H25/3600/(2.2*$K$4/100)/PI()*100000000/(A25*M25*$K$4),0),ROUNDUP(H25/3600/2.5/PI()*100000000/(A25*M25*$K$4),0)) -> 12 | L25: =IF((A25-SQRT('Berechnung FO-über_ohne_Schatte'!$F$11/3600/'Kamindaten FO-über_ohne_Schatte'!$H$1/PI())*2*1000)<20,"0",IF((A25-SQRT('Berechnung FO-über_ohne_Schatte'!$F$11/3600/'Kamindaten FO-über_ohne_Schatte'!$H$1/PI())*2*1000)<80,ROUND((A25-SQRT('Berechnung FO-über_ohne_Schatte'!$F$11/3600/'Kamindaten FO-über_ohne_Schatte'!$H$1/PI())*2*1000)/10,0)*10,IF((A25-SQRT('Berechnung FO-über_ohne_Schatte'!$F$11/3600/'Kamindaten FO-über_ohne_Schatte'!$H$1/PI())*2*1000)<A25/2,ROUND((A25-SQRT('Berechnung FO-über_ohne_Schatte'!$F$11/3600/'Kamindaten FO-über_ohne_Schatte'!$H$1/PI())*2*1000)/20,0)*20,A25/2))) -> 750 | M25: 120 | N25: 180 | Q25: 4712.38898 | R25: 1600 | S25: 8 | T25: 1500 | U25: 14 | W25: 140 | X25: 1780 | Y25: 3000 | Z25: 1620 | AA25: 4620 | AC25: 1.6 | AD25: 20.94 | AE25: 26.1 | AG25: ='Berechnung FO-über_ohne_Schatte'!$F$11/E40/3600 -> 44.20086447 | AH25: 57.40372009 | AK25: =SUM(AL25:AP25) -> 0 | AL25: =IF(AND(VALUE(AO7)=1,VALUE(AP7)=1),0.35,0) -> 0
A26: 1400 | C26: 1.5393804 | D26: 700 | E26: 0.3848451001 | G26: 4580.442089 | H26: 33250.61665 | K26: =IF(AND($AL$10=1,'Berechnung FO-über_ohne_Schatte'!$F$13<'Kamindaten bündige Lamellen'!$AQ$17),ROUNDUP(H26/3600/(2.2*$K$4/100)/PI()*100000000/(A26*M26*$K$4),0),ROUNDUP(H26/3600/2.5/PI()*100000000/(A26*M26*$K$4),0)) -> 11 | L26: =IF((A26-SQRT('Berechnung FO-über_ohne_Schatte'!$F$11/3600/'Kamindaten FO-über_ohne_Schatte'!$H$1/PI())*2*1000)<20,"0",IF((A26-SQRT('Berechnung FO-über_ohne_Schatte'!$F$11/3600/'Kamindaten FO-über_ohne_Schatte'!$H$1/PI())*2*1000)<80,ROUND((A26-SQRT('Berechnung FO-über_ohne_Schatte'!$F$11/3600/'Kamindaten FO-über_ohne_Schatte'!$H$1/PI())*2*1000)/10,0)*10,IF((A26-SQRT('Berechnung FO-über_ohne_Schatte'!$F$11/3600/'Kamindaten FO-über_ohne_Schatte'!$H$1/PI())*2*1000)<A26/2,ROUND((A26-SQRT('Berechnung FO-über_ohne_Schatte'!$F$11/3600/'Kamindaten FO-über_ohne_Schatte'!$H$1/PI())*2*1000)/20,0)*20,A26/2))) -> 700 | M26: 120 | N26: 180 | Q26: 4398.229715 | R26: 1500 | S26: 8 | T26: 1400 | U26: 14 | W26: 140 | X26: 1680 | Y26: 3000 | Z26: 1500 | AA26: 4500 | AC26: 1.6 | AD26: 21.98 | AE26: 26.49 | AG26: ='Berechnung FO-über_ohne_Schatte'!$F$11/E41/3600 -> 69.06385074 | AH26: 89.69331265
A27: 1300 | C27: 1.327322896 | D27: 650 | E27: 0.331830724 | G27: 4241.150082 | H27: 28670.17456 | K27: =IF(AND($AL$10=1,'Berechnung FO-über_ohne_Schatte'!$F$13<'Kamindaten bündige Lamellen'!$AQ$17),ROUNDUP(H27/3600/(2.2*$K$4/100)/PI()*100000000/(A27*M27*$K$4),0),ROUNDUP(H27/3600/2.5/PI()*100000000/(A27*M27*$K$4),0)) -> 11 | L27: =IF((A27-SQRT('Berechnung FO-über_ohne_Schatte'!$F$11/3600/'Kamindaten FO-über_ohne_Schatte'!$H$1/PI())*2*1000)<20,"0",IF((A27-SQRT('Berechnung FO-über_ohne_Schatte'!$F$11/3600/'Kamindaten FO-über_ohne_Schatte'!$H$1/PI())*2*1000)<80,ROUND((A27-SQRT('Berechnung FO-über_ohne_Schatte'!$F$11/3600/'Kamindaten FO-über_ohne_Schatte'!$H$1/PI())*2*1000)/10,0)*10,IF((A27-SQRT('Berechnung FO-über_ohne_Schatte'!$F$11/3600/'Kamindaten FO-über_ohne_Schatte'!$H$1/PI())*2*1000)<A27/2,ROUND((A27-SQRT('Berechnung FO-über_ohne_Schatte'!$F$11/3600/'Kamindaten FO-über_ohne_Schatte'!$H$1/PI())*2*1000)/20,0)*20,A27/2))) -> 650 | M27: 120 | N27: 180 | Q27: 4084.07045 | R27: 1400 | S27: 8 | T27: 1300 | U27: 14 | W27: 140 | X27: 1580 | Y27: 3000 | Z27: 1500 | AA27: 4500 | AC27: 1.6 | AD27: 23.05 | AE27: 26.9 | AG27: ='Berechnung FO-über_ohne_Schatte'!$F$11/E42/3600 -> 176.8034579 | AH27: 229.6148804 | AK27: Zetawerte Gitter | AL27: An/- Ausströmung
A28: 1200 | C28: 1.130973355 | D28: 600 | E28: 0.2827433388 | G28: 3901.858076 | H28: 24429.02447 | K28: =IF(AND($AL$10=1,'Berechnung FO-über_ohne_Schatte'!$F$13<'Kamindaten bündige Lamellen'!$AQ$17),ROUNDUP(H28/3600/(2.2*$K$4/100)/PI()*100000000/(A28*M28*$K$4),0),ROUNDUP(H28/3600/2.5/PI()*100000000/(A28*M28*$K$4),0)) -> 10 | L28: =IF((A28-SQRT('Berechnung FO-über_ohne_Schatte'!$F$11/3600/'Kamindaten FO-über_ohne_Schatte'!$H$1/PI())*2*1000)<20,"0",IF((A28-SQRT('Berechnung FO-über_ohne_Schatte'!$F$11/3600/'Kamindaten FO-über_ohne_Schatte'!$H$1/PI())*2*1000)<80,ROUND((A28-SQRT('Berechnung FO-über_ohne_Schatte'!$F$11/3600/'Kamindaten FO-über_ohne_Schatte'!$H$1/PI())*2*1000)/10,0)*10,IF((A28-SQRT('Berechnung FO-über_ohne_Schatte'!$F$11/3600/'Kamindaten FO-über_ohne_Schatte'!$H$1/PI())*2*1000)<A28/2,ROUND((A28-SQRT('Berechnung FO-über_ohne_Schatte'!$F$11/3600/'Kamindaten FO-über_ohne_Schatte'!$H$1/PI())*2*1000)/20,0)*20,A28/2))) -> 600 | M28: 120 | N28: 180 | Q28: 3769.911184 | R28: 1300 | S28: 8 | T28: 1200 | U28: 14 | W28: 140 | X28: 1480 | Y28: 3000 | Z28: 1380 | AA28: 4380 | AC28: 1.6 | AD28: 24.16 | AE28: 27.34 | AK28: =SUM(AL28:AP28) -> 0 | AL28: =IF(AL8=1,1,0) -> 0 | AS28: Q Grenz;RAS= | AT28: =('Kamindaten bündige Lamellen'!$AQ$17/1000/2)^2*PI()*3600*3.5 -> 1583.362697
A29: 1100 | C29: 0.9503317777 | D29: 600 | E29: 0.2827433388 | G29: 5216.614601 | H29: 20527.1664 | K29: =IF(AND($AL$10=1,'Berechnung FO-über_ohne_Schatte'!$F$13<'Kamindaten bündige Lamellen'!$AQ$17),ROUNDUP(H29/3600/(2.2*$K$4/100)/PI()*100000000/(A29*M29*$K$4),0),ROUNDUP(H29/3600/2.5/PI()*100000000/(A29*M29*$K$4),0)) -> 11 | L29: =IF((A29-SQRT('Berechnung FO-über_ohne_Schatte'!$F$11/3600/'Kamindaten FO-über_ohne_Schatte'!$H$1/PI())*2*1000)<20,"0",IF((A29-SQRT('Berechnung FO-über_ohne_Schatte'!$F$11/3600/'Kamindaten FO-über_ohne_Schatte'!$H$1/PI())*2*1000)<80,ROUND((A29-SQRT('Berechnung FO-über_ohne_Schatte'!$F$11/3600/'Kamindaten FO-über_ohne_Schatte'!$H$1/PI())*2*1000)/10,0)*10,IF((A29-SQRT('Berechnung FO-über_ohne_Schatte'!$F$11/3600/'Kamindaten FO-über_ohne_Schatte'!$H$1/PI())*2*1000)<A29/2,ROUND((A29-SQRT('Berechnung FO-über_ohne_Schatte'!$F$11/3600/'Kamindaten FO-über_ohne_Schatte'!$H$1/PI())*2*1000)/20,0)*20,A29/2))) -> 500 | M29: 100 | N29: 160 | Q29: 3455.751919 | R29: 1200 | S29: 8 | T29: 1100 | U29: 14 | W29: 140 | X29: 1380 | Y29: 3000 | Z29: 1260 | AA29: 4260 | AC29: 1.6 | AD29: 25.32 | AE29: 27.82 | AS29: Q Grenz;gesch= | AT29: =('Kamindaten bündige Lamellen'!$AQ$17/1000/2)^2*PI()*3600*6 -> 2714.336053
A30: 950 | C30: 0.7088218425 | D30: 590 | E30: 0.2733971007 | G30: 1569.22553 | H30: 15310.5518 | K30: =IF(AND($AL$10=1,'Berechnung FO-über_ohne_Schatte'!$F$13<'Kamindaten bündige Lamellen'!$AQ$17),ROUNDUP(H30/3600/(2.2*$K$4/100)/PI()*100000000/(A30*M30*$K$4),0),ROUNDUP(H30/3600/2.5/PI()*100000000/(A30*M30*$K$4),0)) -> 9 | L30: =IF((A30-SQRT('Berechnung FO-über_ohne_Schatte'!$F$11/3600/'Kamindaten FO-über_ohne_Schatte'!$H$1/PI())*2*1000)<20,"0",IF((A30-SQRT('Berechnung FO-über_ohne_Schatte'!$F$11/3600/'Kamindaten FO-über_ohne_Schatte'!$H$1/PI())*2*1000)<80,ROUND((A30-SQRT('Berechnung FO-über_ohne_Schatte'!$F$11/3600/'Kamindaten FO-über_ohne_Schatte'!$H$1/PI())*2*1000)/10,0)*10,IF((A30-SQRT('Berechnung FO-über_ohne_Schatte'!$F$11/3600/'Kamindaten FO-über_ohne_Schatte'!$H$1/PI())*2*1000)<A30/2,ROUND((A30-SQRT('Berechnung FO-über_ohne_Schatte'!$F$11/3600/'Kamindaten FO-über_ohne_Schatte'!$H$1/PI())*2*1000)/20,0)*20,A30/2))) -> 360 | M30: 100 | N30: 160 | Q30: 2984.513021 | R30: 1050 | S30: 8 | T30: 950 | U30: 14 | W30: 140 | X30: 1230 | Y30: 3000 | Z30: 1060 | AA30: 4060 | AC30: 1.6 | AD30: 26.51 | AE30: 28.32 | AS30: Q Grenz;FO= | AT30: =('Kamindaten bündige Lamellen'!$AQ$17/1000/2)^2*PI()*3600*5 -> 2261.946711
A31: 900 | C31: 0.6361725124 | D31: 600 | E31: 0.2827433388 | G31: 2883.982056 | H31: 13741.32627 | K31: =IF(AND($AL$10=1,'Berechnung FO-über_ohne_Schatte'!$F$13<'Kamindaten bündige Lamellen'!$AQ$17),ROUNDUP(H31/3600/(2.2*$K$4/100)/PI()*100000000/(A31*M31*$K$4),0),ROUNDUP(H31/3600/2.5/PI()*100000000/(A31*M31*$K$4),0)) -> 11 | L31: =IF((A31-SQRT('Berechnung FO-über_ohne_Schatte'!$F$11/3600/'Kamindaten FO-über_ohne_Schatte'!$H$1/PI())*2*1000)<20,"0",IF((A31-SQRT('Berechnung FO-über_ohne_Schatte'!$F$11/3600/'Kamindaten FO-über_ohne_Schatte'!$H$1/PI())*2*1000)<80,ROUND((A31-SQRT('Berechnung FO-über_ohne_Schatte'!$F$11/3600/'Kamindaten FO-über_ohne_Schatte'!$H$1/PI())*2*1000)/10,0)*10,IF((A31-SQRT('Berechnung FO-über_ohne_Schatte'!$F$11/3600/'Kamindaten FO-über_ohne_Schatte'!$H$1/PI())*2*1000)<A31/2,ROUND((A31-SQRT('Berechnung FO-über_ohne_Schatte'!$F$11/3600/'Kamindaten FO-über_ohne_Schatte'!$H$1/PI())*2*1000)/20,0)*20,A31/2))) -> 300 | M31: 80 | N31: 140 | Q31: 2827.433388 | R31: 1000 | S31: 8 | T31: 900 | U31: 14 | W31: 140 | X31: 1180 | Y31: 3000 | Z31: 1020 | AA31: 4020 | AC31: 1.6 | AD31: 27.74 | AE31: 28.85 | AS31: Q Grenz;Rest= | AT31: =('Kamindaten bündige Lamellen'!$AQ$17/1000/2)^2*PI()*3600*4.62 -> 2090.038761
A32: 800 | C32: 0.5026548246 | D32: 600 | E32: 0.2827433388 | G32: 2544.690049 | H32: 10857.34421 | K32: =IF(AND($AL$10=1,'Berechnung FO-über_ohne_Schatte'!$F$13<'Kamindaten bündige Lamellen'!$AQ$17),ROUNDUP(H32/3600/(2.2*$K$4/100)/PI()*100000000/(A32*M32*$K$4),0),ROUNDUP(H32/3600/2.5/PI()*100000000/(A32*M32*$K$4),0)) -> 10 | L32: =IF((A32-SQRT('Berechnung FO-über_ohne_Schatte'!$F$11/3600/'Kamindaten FO-über_ohne_Schatte'!$H$1/PI())*2*1000)<20,"0",IF((A32-SQRT('Berechnung FO-über_ohne_Schatte'!$F$11/3600/'Kamindaten FO-über_ohne_Schatte'!$H$1/PI())*2*1000)<80,ROUND((A32-SQRT('Berechnung FO-über_ohne_Schatte'!$F$11/3600/'Kamindaten FO-über_ohne_Schatte'!$H$1/PI())*2*1000)/10,0)*10,IF((A32-SQRT('Berechnung FO-über_ohne_Schatte'!$F$11/3600/'Kamindaten FO-über_ohne_Schatte'!$H$1/PI())*2*1000)<A32/2,ROUND((A32-SQRT('Berechnung FO-über_ohne_Schatte'!$F$11/3600/'Kamindaten FO-über_ohne_Schatte'!$H$1/PI())*2*1000)/20,0)*20,A32/2))) -> 200 | M32: 80 | N32: 140 | Q32: 2513.274123 | R32: 900 | S32: 8 | T32: 800 | U32: 14 | W32: 140 | X32: 1080 | Y32: 3000 | Z32: 940 | AA32: 3940 | AC32: 1.6 | AD32: 29 | AE32: 29.38
A33: 700 | C33: 0.3848451001 | D33: 600 | E33: 0.2827433388 | G33: 2205.398043 | H33: 8312.654161 | K33: =IF(AND($AL$10=1,'Berechnung FO-über_ohne_Schatte'!$F$13<'Kamindaten bündige Lamellen'!$AQ$17),ROUNDUP(H33/3600/(2.2*$K$4/100)/PI()*100000000/(A33*M33*$K$4),0),ROUNDUP(H33/3600/2.5/PI()*100000000/(A33*M33*$K$4),0)) -> 11 | L33: =IF((A33-SQRT('Berechnung FO-über_ohne_Schatte'!$F$11/3600/'Kamindaten FO-über_ohne_Schatte'!$H$1/PI())*2*1000)<20,"0",IF((A33-SQRT('Berechnung FO-über_ohne_Schatte'!$F$11/3600/'Kamindaten FO-über_ohne_Schatte'!$H$1/PI())*2*1000)<80,ROUND((A33-SQRT('Berechnung FO-über_ohne_Schatte'!$F$11/3600/'Kamindaten FO-über_ohne_Schatte'!$H$1/PI())*2*1000)/10,0)*10,IF((A33-SQRT('Berechnung FO-über_ohne_Schatte'!$F$11/3600/'Kamindaten FO-über_ohne_Schatte'!$H$1/PI())*2*1000)<A33/2,ROUND((A33-SQRT('Berechnung FO-über_ohne_Schatte'!$F$11/3600/'Kamindaten FO-über_ohne_Schatte'!$H$1/PI())*2*1000)/20,0)*20,A33/2))) -> 100 | M33: 60 | N33: 120 | Q33: 2199.114858 | R33: 800 | S33: 8 | T33: 700 | U33: 14 | W33: 140 | X33: 980 | Y33: 3000 | Z33: 780 | AA33: 3780 | AC33: 1.6 | AD33: 30.28 | AE33: 29.92
A34: 600 | C34: 0.2827433388 | D34: 600 | E34: 0.2827433388 | G34: 2279.618169 | H34: 6107.256119 | K34: =IF(AND($AL$10=1,'Berechnung FO-über_ohne_Schatte'!$F$13<'Kamindaten bündige Lamellen'!$AQ$17),ROUNDUP(H34/3600/(2.2*$K$4/100)/PI()*100000000/(A34*M34*$K$4),0),ROUNDUP(H34/3600/2.5/PI()*100000000/(A34*M34*$K$4),0)) -> 10 | L34: =IF((A34-SQRT('Berechnung FO-über_ohne_Schatte'!$F$11/3600/'Kamindaten FO-über_ohne_Schatte'!$H$1/PI())*2*1000)<20,"0",IF((A34-SQRT('Berechnung FO-über_ohne_Schatte'!$F$11/3600/'Kamindaten FO-über_ohne_Schatte'!$H$1/PI())*2*1000)<80,ROUND((A34-SQRT('Berechnung FO-über_ohne_Schatte'!$F$11/3600/'Kamindaten FO-über_ohne_Schatte'!$H$1/PI())*2*1000)/10,0)*10,IF((A34-SQRT('Berechnung FO-über_ohne_Schatte'!$F$11/3600/'Kamindaten FO-über_ohne_Schatte'!$H$1/PI())*2*1000)<A34/2,ROUND((A34-SQRT('Berechnung FO-über_ohne_Schatte'!$F$11/3600/'Kamindaten FO-über_ohne_Schatte'!$H$1/PI())*2*1000)/20,0)*20,A34/2))) -> 0 | M34: 60 | N34: 120 | Q34: 1884.955592 | R34: 700 | S34: 8 | T34: 600 | U34: 14 | W34: 140 | X34: 880 | Y34: 3000 | Z34: 720 | AA34: 3720 | AC34: 1.6 | AD34: 31.56 | AE34: 30.44
A35: 475 | C35: 0.1772054606 | D35: 475 | E35: 0.1772054606 | G35: 1113.301897 | H35: 3827.637949 | K35: =IF(AND($AL$10=1,'Berechnung FO-über_ohne_Schatte'!$F$13<'Kamindaten bündige Lamellen'!$AQ$17),ROUNDUP(H35/3600/(2.2*$K$4/100)/PI()*100000000/(A35*M35*$K$4),0),ROUNDUP(H35/3600/2.5/PI()*100000000/(A35*M35*$K$4),0)) -> 9 | L35: =IF((A35-SQRT('Berechnung FO-über_ohne_Schatte'!$F$11/3600/'Kamindaten FO-über_ohne_Schatte'!$H$1/PI())*2*1000)<20,"0",IF((A35-SQRT('Berechnung FO-über_ohne_Schatte'!$F$11/3600/'Kamindaten FO-über_ohne_Schatte'!$H$1/PI())*2*1000)<80,ROUND((A35-SQRT('Berechnung FO-über_ohne_Schatte'!$F$11/3600/'Kamindaten FO-über_ohne_Schatte'!$H$1/PI())*2*1000)/10,0)*10,IF((A35-SQRT('Berechnung FO-über_ohne_Schatte'!$F$11/3600/'Kamindaten FO-über_ohne_Schatte'!$H$1/PI())*2*1000)<A35/2,ROUND((A35-SQRT('Berechnung FO-über_ohne_Schatte'!$F$11/3600/'Kamindaten FO-über_ohne_Schatte'!$H$1/PI())*2*1000)/20,0)*20,A35/2))) -> 0 | M35: 50 | N35: 110 | Q35: 1492.25651 | R35: 575 | S35: 8 | T35: 475 | U35: 14 | W35: 140 | X35: 755 | Y35: 3000 | Z35: 560 | AA35: 3560 | AC35: 1.6 | AD35: 32.84 | AE35: 30.95 | AS35: Aussage, ob Info über Schalldämpferlänge RoK angezeigt
A36: 400 | C36: 0.1256637061 | D36: 400 | E36: 0.1256637061 | G36: 636.1725124 | H36: 2714.336053 | K36: =IF(AND($AL$10=1,'Berechnung FO-über_ohne_Schatte'!$F$13<'Kamindaten bündige Lamellen'!$AQ$17),ROUNDUP(H36/3600/(2.2*$K$4/100)/PI()*100000000/(A36*M36*$K$4),0),ROUNDUP(H36/3600/2.5/PI()*100000000/(A36*M36*$K$4),0)) -> 10 | L36: =IF((A36-SQRT('Berechnung FO-über_ohne_Schatte'!$F$11/3600/'Kamindaten FO-über_ohne_Schatte'!$H$1/PI())*2*1000)<20,"0",IF((A36-SQRT('Berechnung FO-über_ohne_Schatte'!$F$11/3600/'Kamindaten FO-über_ohne_Schatte'!$H$1/PI())*2*1000)<80,ROUND((A36-SQRT('Berechnung FO-über_ohne_Schatte'!$F$11/3600/'Kamindaten FO-über_ohne_Schatte'!$H$1/PI())*2*1000)/10,0)*10,IF((A36-SQRT('Berechnung FO-über_ohne_Schatte'!$F$11/3600/'Kamindaten FO-über_ohne_Schatte'!$H$1/PI())*2*1000)<A36/2,ROUND((A36-SQRT('Berechnung FO-über_ohne_Schatte'!$F$11/3600/'Kamindaten FO-über_ohne_Schatte'!$H$1/PI())*2*1000)/20,0)*20,A36/2))) -> 0 | M36: 40 | N36: 100 | Q36: 1256.637061 | R36: 500 | S36: 8 | T36: 400 | U36: 14 | W36: 140 | X36: 680 | Y36: 3000 | Z36: 500 | AA36: 3500 | AC36: 1.6 | AD36: 34.12 | AE36: 31.47 | AS36: 0
A37: 350 | C37: 0.09621127502 | D37: 350 | E37: 0.09621127502 | G37: 551.3495107 | H37: 2078.16354 | K37: =IF(AND($AL$10=1,'Berechnung FO-über_ohne_Schatte'!$F$13<'Kamindaten bündige Lamellen'!$AQ$17),ROUNDUP(H37/3600/(2.2*$K$4/100)/PI()*100000000/(A37*M37*$K$4),0),ROUNDUP(H37/3600/2.5/PI()*100000000/(A37*M37*$K$4),0)) -> 9 | L37: =IF((A37-SQRT('Berechnung FO-über_ohne_Schatte'!$F$11/3600/'Kamindaten FO-über_ohne_Schatte'!$H$1/PI())*2*1000)<20,"0",IF((A37-SQRT('Berechnung FO-über_ohne_Schatte'!$F$11/3600/'Kamindaten FO-über_ohne_Schatte'!$H$1/PI())*2*1000)<80,ROUND((A37-SQRT('Berechnung FO-über_ohne_Schatte'!$F$11/3600/'Kamindaten FO-über_ohne_Schatte'!$H$1/PI())*2*1000)/10,0)*10,IF((A37-SQRT('Berechnung FO-über_ohne_Schatte'!$F$11/3600/'Kamindaten FO-über_ohne_Schatte'!$H$1/PI())*2*1000)<A37/2,ROUND((A37-SQRT('Berechnung FO-über_ohne_Schatte'!$F$11/3600/'Kamindaten FO-über_ohne_Schatte'!$H$1/PI())*2*1000)/20,0)*20,A37/2))) -> 0 | M37: 40 | N37: 100 | Q37: 1099.557429 | R37: 450 | S37: 8 | T37: 350 | U37: 14 | W37: 140 | X37: 630 | Y37: 3000 | Z37: 460 | AA37: 3460 | AC37: 1.6 | AD37: 35.38 | AE37: 31.99 | AK37: Anzahl Lamellen | AL37: Höhe Lamellen | AS37: Aussage, ob Info über Schalldämpferlänge RmK angezeigt
A38: 300 | C38: 0.07068583471 | D38: 300 | E38: 0.07068583471 | G38: 466.5265091 | H38: 1526.81403 | K38: =IF(AND($AL$10=1,'Berechnung FO-über_ohne_Schatte'!$F$13<'Kamindaten bündige Lamellen'!$AQ$17),ROUNDUP(H38/3600/(2.2*$K$4/100)/PI()*100000000/(A38*M38*$K$4),0),ROUNDUP(H38/3600/2.5/PI()*100000000/(A38*M38*$K$4),0)) -> 10 | L38: =IF((A38-SQRT('Berechnung FO-über_ohne_Schatte'!$F$11/3600/'Kamindaten FO-über_ohne_Schatte'!$H$1/PI())*2*1000)<20,"0",IF((A38-SQRT('Berechnung FO-über_ohne_Schatte'!$F$11/3600/'Kamindaten FO-über_ohne_Schatte'!$H$1/PI())*2*1000)<80,ROUND((A38-SQRT('Berechnung FO-über_ohne_Schatte'!$F$11/3600/'Kamindaten FO-über_ohne_Schatte'!$H$1/PI())*2*1000)/10,0)*10,IF((A38-SQRT('Berechnung FO-über_ohne_Schatte'!$F$11/3600/'Kamindaten FO-über_ohne_Schatte'!$H$1/PI())*2*1000)<A38/2,ROUND((A38-SQRT('Berechnung FO-über_ohne_Schatte'!$F$11/3600/'Kamindaten FO-über_ohne_Schatte'!$H$1/PI())*2*1000)/20,0)*20,A38/2))) -> 0 | M38: 30 | N38: 90 | Q38: 942.4777961 | R38: 400 | S38: 8 | T38: 300 | U38: 14 | W38: 140 | X38: 580 | Y38: 3000 | Z38: 390 | AA38: 3390 | AC38: 1.6 | AD38: 36.61 | AE38: 32.53 | AK38: ='Berechnung FO-über_ohne_Schatte'!F23 ->  | AL38: ='Berechnung FO-über_ohne_Schatte'!F25 -> 0 | AS38: 0
A39: 250 | C39: 0.04908738521 | D39: 250 | E39: 0.04908738521 | G39: 381.7035074 | H39: 1060.287521 | K39: =IF(AND($AL$10=1,'Berechnung FO-über_ohne_Schatte'!$F$13<'Kamindaten bündige Lamellen'!$AQ$17),ROUNDUP(H39/3600/(2.2*$K$4/100)/PI()*100000000/(A39*M39*$K$4),0),ROUNDUP(H39/3600/2.5/PI()*100000000/(A39*M39*$K$4),0)) -> 8 | L39: =IF((A39-SQRT('Berechnung FO-über_ohne_Schatte'!$F$11/3600/'Kamindaten FO-über_ohne_Schatte'!$H$1/PI())*2*1000)<20,"0",IF((A39-SQRT('Berechnung FO-über_ohne_Schatte'!$F$11/3600/'Kamindaten FO-über_ohne_Schatte'!$H$1/PI())*2*1000)<80,ROUND((A39-SQRT('Berechnung FO-über_ohne_Schatte'!$F$11/3600/'Kamindaten FO-über_ohne_Schatte'!$H$1/PI())*2*1000)/10,0)*10,IF((A39-SQRT('Berechnung FO-über_ohne_Schatte'!$F$11/3600/'Kamindaten FO-über_ohne_Schatte'!$H$1/PI())*2*1000)<A39/2,ROUND((A39-SQRT('Berechnung FO-über_ohne_Schatte'!$F$11/3600/'Kamindaten FO-über_ohne_Schatte'!$H$1/PI())*2*1000)/20,0)*20,A39/2))) -> 0 | M39: 30 | N39: 90 | Q39: 785.3981634 | R39: 350 | S39: 8 | T39: 250 | U39: 14 | W39: 140 | X39: 530 | Y39: 3000 | Z39: 330 | AA39: 3330 | AC39: 1.6 | AD39: 37.81 | AE39: 33.08 | AS39: Aussage, ob Info über Schalldämpferlänge Kul angezeigt
A40: 200 | C40: 0.03141592654 | D40: 200 | E40: 0.03141592654 | G40: 244.2902447 | H40: 678.5840132 | K40: =IF(AND($AL$10=1,'Berechnung FO-über_ohne_Schatte'!$F$13<'Kamindaten bündige Lamellen'!$AQ$17),ROUNDUP(H40/3600/(2.2*$K$4/100)/PI()*100000000/(A40*M40*$K$4),0),ROUNDUP(H40/3600/2.5/PI()*100000000/(A40*M40*$K$4),0)) -> 7 | L40: =IF((A40-SQRT('Berechnung FO-über_ohne_Schatte'!$F$11/3600/'Kamindaten FO-über_ohne_Schatte'!$H$1/PI())*2*1000)<20,"0",IF((A40-SQRT('Berechnung FO-über_ohne_Schatte'!$F$11/3600/'Kamindaten FO-über_ohne_Schatte'!$H$1/PI())*2*1000)<80,ROUND((A40-SQRT('Berechnung FO-über_ohne_Schatte'!$F$11/3600/'Kamindaten FO-über_ohne_Schatte'!$H$1/PI())*2*1000)/10,0)*10,IF((A40-SQRT('Berechnung FO-über_ohne_Schatte'!$F$11/3600/'Kamindaten FO-über_ohne_Schatte'!$H$1/PI())*2*1000)<A40/2,ROUND((A40-SQRT('Berechnung FO-über_ohne_Schatte'!$F$11/3600/'Kamindaten FO-über_ohne_Schatte'!$H$1/PI())*2*1000)/20,0)*20,A40/2))) -> 0 | M40: 30 | N40: 90 | Q40: 628.3185307 | R40: 300 | S40: 8 | T40: 200 | U40: 14 | W40: 140 | X40: 480 | Y40: 3000 | Z40: 300 | AA40: 3300 | AC40: 1.6 | AD40: 38.97 | AE40: 33.64 | AS40: 0
A41: 160 | C41: 0.02010619298 | D41: 160 | E41: 0.02010619298 | G41: 264.6477651 | H41: 434.2937684 | K41: =IF(AND($AL$10=1,'Berechnung FO-über_ohne_Schatte'!$F$13<'Kamindaten bündige Lamellen'!$AQ$17),ROUNDUP(H41/3600/(2.2*$K$4/100)/PI()*100000000/(A41*M41*$K$4),0),ROUNDUP(H41/3600/2.5/PI()*100000000/(A41*M41*$K$4),0)) -> 5 | L41: =IF((A41-SQRT('Berechnung FO-über_ohne_Schatte'!$F$11/3600/'Kamindaten FO-über_ohne_Schatte'!$H$1/PI())*2*1000)<20,"0",IF((A41-SQRT('Berechnung FO-über_ohne_Schatte'!$F$11/3600/'Kamindaten FO-über_ohne_Schatte'!$H$1/PI())*2*1000)<80,ROUND((A41-SQRT('Berechnung FO-über_ohne_Schatte'!$F$11/3600/'Kamindaten FO-über_ohne_Schatte'!$H$1/PI())*2*1000)/10,0)*10,IF((A41-SQRT('Berechnung FO-über_ohne_Schatte'!$F$11/3600/'Kamindaten FO-über_ohne_Schatte'!$H$1/PI())*2*1000)<A41/2,ROUND((A41-SQRT('Berechnung FO-über_ohne_Schatte'!$F$11/3600/'Kamindaten FO-über_ohne_Schatte'!$H$1/PI())*2*1000)/20,0)*20,A41/2))) -> 0 | M41: 30 | N41: 90 | Q41: 502.6548246 | R41: 260 | S41: 8 | T41: 160 | U41: 14 | W41: 140 | X41: 440 | Y41: 3000 | Z41: 240 | AA41: 3240 | AC41: 1.6 | AD41: 40.09 | AE41: 34.18
A42: 100 | C42: 0.007853981634 | D42: 100 | E42: 0.007853981634 | G42: =H42-#REF! ->  | H42: 169.6460033 | K42: =IF(AND($AL$10=1,'Berechnung FO-über_ohne_Schatte'!$F$13<'Kamindaten bündige Lamellen'!$AQ$17),ROUNDUP(H42/3600/(2.2*$K$4/100)/PI()*100000000/(A42*M42*$K$4),0),ROUNDUP(H42/3600/2.5/PI()*100000000/(A42*M42*$K$4),0)) -> 4 | L42: =IF((A42-SQRT('Berechnung FO-über_ohne_Schatte'!$F$11/3600/'Kamindaten FO-über_ohne_Schatte'!$H$1/PI())*2*1000)<20,"0",IF((A42-SQRT('Berechnung FO-über_ohne_Schatte'!$F$11/3600/'Kamindaten FO-über_ohne_Schatte'!$H$1/PI())*2*1000)<80,ROUND((A42-SQRT('Berechnung FO-über_ohne_Schatte'!$F$11/3600/'Kamindaten FO-über_ohne_Schatte'!$H$1/PI())*2*1000)/10,0)*10,IF((A42-SQRT('Berechnung FO-über_ohne_Schatte'!$F$11/3600/'Kamindaten FO-über_ohne_Schatte'!$H$1/PI())*2*1000)<A42/2,ROUND((A42-SQRT('Berechnung FO-über_ohne_Schatte'!$F$11/3600/'Kamindaten FO-über_ohne_Schatte'!$H$1/PI())*2*1000)/20,0)*20,A42/2))) -> 0 | M42: 30 | N42: 90 | Q42: 314.1592654 | R42: 200 | T42: 100 | U42: 14 | W42: 140 | X42: 380 | Y42: 3000 | Z42: 210 | AA42: 3210 | AC42: 1.6 | AD42: 41.16 | AE42: 34.7
AC43: 1.6 | AD43: 42.19 | AE43: 35.2
AC44: 1.6 | AD44: 43.25 | AE44: 35.68
AC45: 1.6 | AD45: 44.41 | AE45: 36.13
AC46: 1.6 | AD46: 45.74 | AE46: 36.56
AC47: 1.6 | AD47: 47.26 | AE47: 36.96
AC48: 1.6 | AD48: 48.98 | AE48: 37.35
AC49: 1.6 | AD49: 50.85 | AE49: 37.71
AC50: 1.6 | AD50: 52.8 | AE50: 38.05
AC51: 1.6 | AD51: 54.8 | AE51: 38.37
AC52: 1.6 | AD52: 56.81 | AE52: 38.67
AC53: 1.6 | AD53: 58.81 | AE53: 38.96
AC54: 1.6 | AD54: 60.78 | AE54: 39.22
AC55: 1.6 | AD55: 62.73 | AE55: 39.48
AC56: 1.6 | AD56: 64.68 | AE56: 39.73
AC57: 1.6 | AD57: 66.68 | AE57: 39.97
AC58: 1.6 | AD58: 68.76 | AE58: 40.2
AC59: 1.6 | AD59: 70.92 | AE59: 40.42
AC60: 1.6 | AD60: 73.11 | AE60: 40.64
AC61: 1.6 | AD61: 75.3 | AE61: 40.85
AC62: 1.6 | AD62: 77.45 | AE62: 41.06
AC63: 1.6 | AD63: 79.59 | AE63: 41.26
AC64: 1.6 | AD64: 81.74 | AE64: 41.45
AC65: 1.6 | AD65: 83.93 | AE65: 41.64
AC66: 1.6 | AD66: 86.19 | AE66: 41.83
AC67: 1.6 | AD67: 88.57 | AE67: 42.02
AC68: 1.6 | AD68: 91.14 | AE68: 42.21
AC69: 1.6 | AD69: 93.6 | AE69: 42.4
AC70: 1.6 | AD70: 96.81 | AE70: 42.59
AC71: 1.6 | AD71: 99.79 | AE71: 42.78
AC72: 1.6 | AD72: 102.77 | AE72: 42.98
AC73: 1.6 | AD73: 105.68 | AE73: 43.17
AC74: 1.6 | AD74: 108.52 | AE74: 43.36
AC75: 1.6 | AD75: 111.37 | AE75: 43.56
AC76: 1.6 | AD76: 114.18 | AE76: 43.75
AC77: 1.6 | AD77: 116.81 | AE77: 43.95
AC78: 1.6 | AD78: 119.23 | AE78: 44.16
AC79: 1.6 | AD79: 121.56 | AE79: 44.36
AC80: 1.6 | AD80: 123.94 | AE80: 44.57
AC81: 1.6 | AD81: 126.38 | AE81: 44.78
AC82: 1.6 | AD82: 128.81 | AE82: 44.99
AC83: 1.6 | AD83: 131.17 | AE83: 45.19
AC84: 1.6 | AD84: 133.48 | AE84: 45.4
AC85: 1.6 | AD85: 135.75 | AE85: 45.6
AC86: 1.6 | AD86: 137.98 | AE86: 45.8
AC87: 1.6 | AD87: 140.2 | AE87: 46
AK139: 4.736227209
A142: 60000
A146: => wurde nach unten kopiert, oberen Grenzdurchmesser auf 3.500 herabzusetzen!
A147: 5000 | C147: =(A147/2)^2*PI()/1000000 -> 19.63495408 | D147: =A147-L147 -> 2500 | E147: =(D147/2)^2*PI()/1000000 -> 4.908738521 | G147: =H147-H148 -> 16794.95433 | H147: =$H$4*C147*3600 -> 424115.0082 | K147: =IF(AND($AL$10=1,'Berechnung FO-über_ohne_Schatte'!$F$13<'Kamindaten bündige Lamellen'!$AQ$17),ROUNDUP(H147/3600/(2.2*$K$4/100)/PI()*100000000/(A147*M147*$K$4),0),ROUNDUP(H147/3600/2.5/PI()*100000000/(A147*M147*$K$4),0)) -> 40 | L147: =IF((A147-SQRT('Berechnung FO-über_ohne_Schatte'!$F$11/3600/'Kamindaten FO-über_ohne_Schatte'!$H$1/PI())*2*1000)<20,"0",IF((A147-SQRT('Berechnung FO-über_ohne_Schatte'!$F$11/3600/'Kamindaten FO-über_ohne_Schatte'!$H$1/PI())*2*1000)<80,ROUND((A147-SQRT('Berechnung FO-über_ohne_Schatte'!$F$11/3600/'Kamindaten FO-über_ohne_Schatte'!$H$1/PI())*2*1000)/10,0)*10,IF((A147-SQRT('Berechnung FO-über_ohne_Schatte'!$F$11/3600/'Kamindaten FO-über_ohne_Schatte'!$H$1/PI())*2*1000)<A147/2,ROUND((A147-SQRT('Berechnung FO-über_ohne_Schatte'!$F$11/3600/'Kamindaten FO-über_ohne_Schatte'!$H$1/PI())*2*1000)/20,0)*20,A147/2))) -> 2500 | M147: 120 | N147: =M147+$N$4 -> 180 | Q147: =A147*PI() -> 15707.96327 | R147: =A147+$R$4 -> 5100 | S147: 8 | T147: =A147+$T$4 -> 5000 | U147: 14 | W147: 140 | X147: =T147+2*W147 -> 5280 | Y147: 3000 | Z147: =K147*M147+N147 -> 4980 | AA147: =Y147+Z147 -> 7980 | AG147: ='Berechnung FO-über_ohne_Schatte'!$F$11/E147/3600 -> 0.2828855326 | AH147: =AG147/0.77 -> 0.3673838086
A148: 4900 | C148: 18.8574099 | D148: 2450 | E148: 4.714352476 | G148: 16455.66232 | H148: 407320.0539 | K148: =IF(AND($AL$10=1,'Berechnung FO-über_ohne_Schatte'!$F$13<'Kamindaten bündige Lamellen'!$AQ$17),ROUNDUP(H148/3600/(2.2*$K$4/100)/PI()*100000000/(A148*M148*$K$4),0),ROUNDUP(H148/3600/2.5/PI()*100000000/(A148*M148*$K$4),0)) -> 39 | L148: =IF((A148-SQRT('Berechnung FO-über_ohne_Schatte'!$F$11/3600/'Kamindaten FO-über_ohne_Schatte'!$H$1/PI())*2*1000)<20,"0",IF((A148-SQRT('Berechnung FO-über_ohne_Schatte'!$F$11/3600/'Kamindaten FO-über_ohne_Schatte'!$H$1/PI())*2*1000)<80,ROUND((A148-SQRT('Berechnung FO-über_ohne_Schatte'!$F$11/3600/'Kamindaten FO-über_ohne_Schatte'!$H$1/PI())*2*1000)/10,0)*10,IF((A148-SQRT('Berechnung FO-über_ohne_Schatte'!$F$11/3600/'Kamindaten FO-über_ohne_Schatte'!$H$1/PI())*2*1000)<A148/2,ROUND((A148-SQRT('Berechnung FO-über_ohne_Schatte'!$F$11/3600/'Kamindaten FO-über_ohne_Schatte'!$H$1/PI())*2*1000)/20,0)*20,A148/2))) -> 2450 | M148: 120 | N148: 180 | Q148: 15393.804 | R148: 5000 | S148: 8 | T148: 4900 | U148: 14 | W148: 140 | X148: 5180 | Y148: 3000 | Z148: 4860 | AA148: 7860 | AG148: ='Berechnung FO-über_ohne_Schatte'!$F$11/E6/3600 -> 0.6117766709 | AH148: 0.794515157
A149: 4800 | C149: 18.09557368 | D149: 2400 | E149: 4.523893421 | G149: 16116.37031 | H149: 390864.3916 | K149: =IF(AND($AL$10=1,'Berechnung FO-über_ohne_Schatte'!$F$13<'Kamindaten bündige Lamellen'!$AQ$17),ROUNDUP(H149/3600/(2.2*$K$4/100)/PI()*100000000/(A149*M149*$K$4),0),ROUNDUP(H149/3600/2.5/PI()*100000000/(A149*M149*$K$4),0)) -> 38 | L149: =IF((A149-SQRT('Berechnung FO-über_ohne_Schatte'!$F$11/3600/'Kamindaten FO-über_ohne_Schatte'!$H$1/PI())*2*1000)<20,"0",IF((A149-SQRT('Berechnung FO-über_ohne_Schatte'!$F$11/3600/'Kamindaten FO-über_ohne_Schatte'!$H$1/PI())*2*1000)<80,ROUND((A149-SQRT('Berechnung FO-über_ohne_Schatte'!$F$11/3600/'Kamindaten FO-über_ohne_Schatte'!$H$1/PI())*2*1000)/10,0)*10,IF((A149-SQRT('Berechnung FO-über_ohne_Schatte'!$F$11/3600/'Kamindaten FO-über_ohne_Schatte'!$H$1/PI())*2*1000)<A149/2,ROUND((A149-SQRT('Berechnung FO-über_ohne_Schatte'!$F$11/3600/'Kamindaten FO-über_ohne_Schatte'!$H$1/PI())*2*1000)/20,0)*20,A149/2))) -> 2400 | M149: 120 | N149: 180 | Q149: 15079.64474 | R149: 4900 | S149: 8 | T149: 4800 | U149: 14 | W149: 140 | X149: 5080 | Y149: 3000 | Z149: 4740 | AA149: 7740 | AG149: ='Berechnung FO-über_ohne_Schatte'!$F$11/E7/3600 -> 0.6494158233 | AH149: 0.8433971731
A150: 4700 | C150: 17.34944543 | D150: 2350 | E150: 4.337361357 | G150: 15777.07831 | H150: 374748.0213 | K150: =IF(AND($AL$10=1,'Berechnung FO-über_ohne_Schatte'!$F$13<'Kamindaten bündige Lamellen'!$AQ$17),ROUNDUP(H150/3600/(2.2*$K$4/100)/PI()*100000000/(A150*M150*$K$4),0),ROUNDUP(H150/3600/2.5/PI()*100000000/(A150*M150*$K$4),0)) -> 37 | L150: =IF((A150-SQRT('Berechnung FO-über_ohne_Schatte'!$F$11/3600/'Kamindaten FO-über_ohne_Schatte'!$H$1/PI())*2*1000)<20,"0",IF((A150-SQRT('Berechnung FO-über_ohne_Schatte'!$F$11/3600/'Kamindaten FO-über_ohne_Schatte'!$H$1/PI())*2*1000)<80,ROUND((A150-SQRT('Berechnung FO-über_ohne_Schatte'!$F$11/3600/'Kamindaten FO-über_ohne_Schatte'!$H$1/PI())*2*1000)/10,0)*10,IF((A150-SQRT('Berechnung FO-über_ohne_Schatte'!$F$11/3600/'Kamindaten FO-über_ohne_Schatte'!$H$1/PI())*2*1000)<A150/2,ROUND((A150-SQRT('Berechnung FO-über_ohne_Schatte'!$F$11/3600/'Kamindaten FO-über_ohne_Schatte'!$H$1/PI())*2*1000)/20,0)*20,A150/2))) -> 2350 | M150: 120 | N150: 180 | Q150: 14765.48547 | R150: 4800 | S150: 8 | T150: 4700 | U150: 14 | W150: 140 | X150: 4980 | Y150: 3000 | Z150: 4620 | AA150: 7620 | AG150: ='Berechnung FO-über_ohne_Schatte'!$F$11/E8/3600 -> 0.6906385074 | AH150: 0.8969331265
A151: 4600 | C151: 16.61902514 | D151: 2300 | E151: 4.154756284 | G151: 15437.7863 | H151: 358970.943 | K151: =IF(AND($AL$10=1,'Berechnung FO-über_ohne_Schatte'!$F$13<'Kamindaten bündige Lamellen'!$AQ$17),ROUNDUP(H151/3600/(2.2*$K$4/100)/PI()*100000000/(A151*M151*$K$4),0),ROUNDUP(H151/3600/2.5/PI()*100000000/(A151*M151*$K$4),0)) -> 36 | L151: =IF((A151-SQRT('Berechnung FO-über_ohne_Schatte'!$F$11/3600/'Kamindaten FO-über_ohne_Schatte'!$H$1/PI())*2*1000)<20,"0",IF((A151-SQRT('Berechnung FO-über_ohne_Schatte'!$F$11/3600/'Kamindaten FO-über_ohne_Schatte'!$H$1/PI())*2*1000)<80,ROUND((A151-SQRT('Berechnung FO-über_ohne_Schatte'!$F$11/3600/'Kamindaten FO-über_ohne_Schatte'!$H$1/PI())*2*1000)/10,0)*10,IF((A151-SQRT('Berechnung FO-über_ohne_Schatte'!$F$11/3600/'Kamindaten FO-über_ohne_Schatte'!$H$1/PI())*2*1000)<A151/2,ROUND((A151-SQRT('Berechnung FO-über_ohne_Schatte'!$F$11/3600/'Kamindaten FO-über_ohne_Schatte'!$H$1/PI())*2*1000)/20,0)*20,A151/2))) -> 2300 | M151: 120 | N151: 180 | Q151: 14451.32621 | R151: 4700 | S151: 8 | T151: 4600 | U151: 14 | W151: 140 | X151: 4880 | Y151: 3000 | Z151: 4500 | AA151: 7500 | AG151: ='Berechnung FO-über_ohne_Schatte'!$F$11/E9/3600 -> 0.735914497 | AH151: 0.9557331129
A152: 4500 | C152: 15.90431281 | D152: 2250 | E152: 3.976078202 | G152: 15098.49429 | H152: 343533.1567 | K152: =IF(AND($AL$10=1,'Berechnung FO-über_ohne_Schatte'!$F$13<'Kamindaten bündige Lamellen'!$AQ$17),ROUNDUP(H152/3600/(2.2*$K$4/100)/PI()*100000000/(A152*M152*$K$4),0),ROUNDUP(H152/3600/2.5/PI()*100000000/(A152*M152*$K$4),0)) -> 36 | L152: =IF((A152-SQRT('Berechnung FO-über_ohne_Schatte'!$F$11/3600/'Kamindaten FO-über_ohne_Schatte'!$H$1/PI())*2*1000)<20,"0",IF((A152-SQRT('Berechnung FO-über_ohne_Schatte'!$F$11/3600/'Kamindaten FO-über_ohne_Schatte'!$H$1/PI())*2*1000)<80,ROUND((A152-SQRT('Berechnung FO-über_ohne_Schatte'!$F$11/3600/'Kamindaten FO-über_ohne_Schatte'!$H$1/PI())*2*1000)/10,0)*10,IF((A152-SQRT('Berechnung FO-über_ohne_Schatte'!$F$11/3600/'Kamindaten FO-über_ohne_Schatte'!$H$1/PI())*2*1000)<A152/2,ROUND((A152-SQRT('Berechnung FO-über_ohne_Schatte'!$F$11/3600/'Kamindaten FO-über_ohne_Schatte'!$H$1/PI())*2*1000)/20,0)*20,A152/2))) -> 2250 | M152: 120 | N152: 180 | Q152: 14137.16694 | R152: 4600 | S152: 8 | T152: 4500 | U152: 14 | W152: 140 | X152: 4780 | Y152: 3000 | Z152: 4500 | AA152: 7500 | AG152: ='Berechnung FO-über_ohne_Schatte'!$F$11/E10/3600 -> 0.7857931462 | AH152: 1.020510579
A153: 4400 | C153: 15.20530844 | D153: 2200 | E153: 3.801327111 | G153: 14759.20229 | H153: 328434.6624 | K153: =IF(AND($AL$10=1,'Berechnung FO-über_ohne_Schatte'!$F$13<'Kamindaten bündige Lamellen'!$AQ$17),ROUNDUP(H153/3600/(2.2*$K$4/100)/PI()*100000000/(A153*M153*$K$4),0),ROUNDUP(H153/3600/2.5/PI()*100000000/(A153*M153*$K$4),0)) -> 35 | L153: =IF((A153-SQRT('Berechnung FO-über_ohne_Schatte'!$F$11/3600/'Kamindaten FO-über_ohne_Schatte'!$H$1/PI())*2*1000)<20,"0",IF((A153-SQRT('Berechnung FO-über_ohne_Schatte'!$F$11/3600/'Kamindaten FO-über_ohne_Schatte'!$H$1/PI())*2*1000)<80,ROUND((A153-SQRT('Berechnung FO-über_ohne_Schatte'!$F$11/3600/'Kamindaten FO-über_ohne_Schatte'!$H$1/PI())*2*1000)/10,0)*10,IF((A153-SQRT('Berechnung FO-über_ohne_Schatte'!$F$11/3600/'Kamindaten FO-über_ohne_Schatte'!$H$1/PI())*2*1000)<A153/2,ROUND((A153-SQRT('Berechnung FO-über_ohne_Schatte'!$F$11/3600/'Kamindaten FO-über_ohne_Schatte'!$H$1/PI())*2*1000)/20,0)*20,A153/2))) -> 2200 | M153: 120 | N153: 180 | Q153: 13823.00768 | R153: 4500 | S153: 8 | T153: 4400 | U153: 14 | W153: 140 | X153: 4680 | Y153: 3000 | Z153: 4380 | AA153: 7380 | AG153: ='Berechnung FO-über_ohne_Schatte'!$F$11/E11/3600 -> 0.8409201327 | AH153: 1.092104068
A154: 4300 | C154: 14.52201204 | D154: 2150 | E154: 3.63050301 | G154: 14419.91028 | H154: 313675.4601 | K154: =IF(AND($AL$10=1,'Berechnung FO-über_ohne_Schatte'!$F$13<'Kamindaten bündige Lamellen'!$AQ$17),ROUNDUP(H154/3600/(2.2*$K$4/100)/PI()*100000000/(A154*M154*$K$4),0),ROUNDUP(H154/3600/2.5/PI()*100000000/(A154*M154*$K$4),0)) -> 34 | L154: =IF((A154-SQRT('Berechnung FO-über_ohne_Schatte'!$F$11/3600/'Kamindaten FO-über_ohne_Schatte'!$H$1/PI())*2*1000)<20,"0",IF((A154-SQRT('Berechnung FO-über_ohne_Schatte'!$F$11/3600/'Kamindaten FO-über_ohne_Schatte'!$H$1/PI())*2*1000)<80,ROUND((A154-SQRT('Berechnung FO-über_ohne_Schatte'!$F$11/3600/'Kamindaten FO-über_ohne_Schatte'!$H$1/PI())*2*1000)/10,0)*10,IF((A154-SQRT('Berechnung FO-über_ohne_Schatte'!$F$11/3600/'Kamindaten FO-über_ohne_Schatte'!$H$1/PI())*2*1000)<A154/2,ROUND((A154-SQRT('Berechnung FO-über_ohne_Schatte'!$F$11/3600/'Kamindaten FO-über_ohne_Schatte'!$H$1/PI())*2*1000)/20,0)*20,A154/2))) -> 2150 | M154: 120 | N154: 180 | Q154: 13508.84841 | R154: 4400 | S154: 8 | T154: 4300 | U154: 14 | W154: 140 | X154: 4580 | Y154: 3000 | Z154: 4260 | AA154: 7260 | AC154: 1 | AD154: 4.92 | AE154: 10.97 | AG154: ='Berechnung FO-über_ohne_Schatte'!$F$11/E12/3600 -> 0.9020584586 | AH154: 1.171504492
A155: 4200 | C155: 13.8544236 | D155: 2100 | E155: 3.463605901 | G155: 14080.61827 | H155: 299255.5498 | K155: =IF(AND($AL$10=1,'Berechnung FO-über_ohne_Schatte'!$F$13<'Kamindaten bündige Lamellen'!$AQ$17),ROUNDUP(H155/3600/(2.2*$K$4/100)/PI()*100000000/(A155*M155*$K$4),0),ROUNDUP(H155/3600/2.5/PI()*100000000/(A155*M155*$K$4),0)) -> 33 | L155: =IF((A155-SQRT('Berechnung FO-über_ohne_Schatte'!$F$11/3600/'Kamindaten FO-über_ohne_Schatte'!$H$1/PI())*2*1000)<20,"0",IF((A155-SQRT('Berechnung FO-über_ohne_Schatte'!$F$11/3600/'Kamindaten FO-über_ohne_Schatte'!$H$1/PI())*2*1000)<80,ROUND((A155-SQRT('Berechnung FO-über_ohne_Schatte'!$F$11/3600/'Kamindaten FO-über_ohne_Schatte'!$H$1/PI())*2*1000)/10,0)*10,IF((A155-SQRT('Berechnung FO-über_ohne_Schatte'!$F$11/3600/'Kamindaten FO-über_ohne_Schatte'!$H$1/PI())*2*1000)<A155/2,ROUND((A155-SQRT('Berechnung FO-über_ohne_Schatte'!$F$11/3600/'Kamindaten FO-über_ohne_Schatte'!$H$1/PI())*2*1000)/20,0)*20,A155/2))) -> 2100 | M155: 120 | N155: 180 | Q155: 13194.68915 | R155: 4300 | S155: 8 | T155: 4200 | U155: 14 | W155: 140 | X155: 4480 | Y155: 3000 | Z155: 4140 | AA155: 7140 | AC155: 1.1 | AD155: 5.47 | AE155: 11.57 | AG155: ='Berechnung FO-über_ohne_Schatte'!$F$11/E13/3600 -> 0.9701149953 | AH155: 1.259889604
A156: 4100 | C156: 13.20254313 | D156: 2050 | E156: 3.300635782 | G156: 13741.32627 | H156: 285174.9315 | K156: =IF(AND($AL$10=1,'Berechnung FO-über_ohne_Schatte'!$F$13<'Kamindaten bündige Lamellen'!$AQ$17),ROUNDUP(H156/3600/(2.2*$K$4/100)/PI()*100000000/(A156*M156*$K$4),0),ROUNDUP(H156/3600/2.5/PI()*100000000/(A156*M156*$K$4),0)) -> 33 | L156: =IF((A156-SQRT('Berechnung FO-über_ohne_Schatte'!$F$11/3600/'Kamindaten FO-über_ohne_Schatte'!$H$1/PI())*2*1000)<20,"0",IF((A156-SQRT('Berechnung FO-über_ohne_Schatte'!$F$11/3600/'Kamindaten FO-über_ohne_Schatte'!$H$1/PI())*2*1000)<80,ROUND((A156-SQRT('Berechnung FO-über_ohne_Schatte'!$F$11/3600/'Kamindaten FO-über_ohne_Schatte'!$H$1/PI())*2*1000)/10,0)*10,IF((A156-SQRT('Berechnung FO-über_ohne_Schatte'!$F$11/3600/'Kamindaten FO-über_ohne_Schatte'!$H$1/PI())*2*1000)<A156/2,ROUND((A156-SQRT('Berechnung FO-über_ohne_Schatte'!$F$11/3600/'Kamindaten FO-über_ohne_Schatte'!$H$1/PI())*2*1000)/20,0)*20,A156/2))) -> 2050 | M156: 120 | N156: 180 | Q156: 12880.52988 | R156: 4200 | S156: 8 | T156: 4100 | U156: 14 | W156: 140 | X156: 4380 | Y156: 3000 | Z156: 4140 | AA156: 7140 | AC156: 1.2 | AD156: 6.01 | AE156: 12.18 | AG156: ='Berechnung FO-über_ohne_Schatte'!$F$11/E14/3600 -> 1.046174307 | AH156: 1.358667931
A157: 4000 | C157: 12.56637061 | D157: 2000 | E157: 3.141592654 | G157: 13402.03426 | H157: 271433.6053 | K157: =IF(AND($AL$10=1,'Berechnung FO-über_ohne_Schatte'!$F$13<'Kamindaten bündige Lamellen'!$AQ$17),ROUNDUP(H157/3600/(2.2*$K$4/100)/PI()*100000000/(A157*M157*$K$4),0),ROUNDUP(H157/3600/2.5/PI()*100000000/(A157*M157*$K$4),0)) -> 32 | L157: =IF((A157-SQRT('Berechnung FO-über_ohne_Schatte'!$F$11/3600/'Kamindaten FO-über_ohne_Schatte'!$H$1/PI())*2*1000)<20,"0",IF((A157-SQRT('Berechnung FO-über_ohne_Schatte'!$F$11/3600/'Kamindaten FO-über_ohne_Schatte'!$H$1/PI())*2*1000)<80,ROUND((A157-SQRT('Berechnung FO-über_ohne_Schatte'!$F$11/3600/'Kamindaten FO-über_ohne_Schatte'!$H$1/PI())*2*1000)/10,0)*10,IF((A157-SQRT('Berechnung FO-über_ohne_Schatte'!$F$11/3600/'Kamindaten FO-über_ohne_Schatte'!$H$1/PI())*2*1000)<A157/2,ROUND((A157-SQRT('Berechnung FO-über_ohne_Schatte'!$F$11/3600/'Kamindaten FO-über_ohne_Schatte'!$H$1/PI())*2*1000)/20,0)*20,A157/2))) -> 2000 | M157: 120 | N157: 180 | Q157: 12566.37061 | R157: 4100 | S157: 8 | T157: 4000 | U157: 14 | W157: 140 | X157: 4280 | Y157: 3000 | Z157: 4020 | AA157: 7020 | AC157: 1.3 | AD157: 6.56 | AE157: 12.78 | AG157: ='Berechnung FO-über_ohne_Schatte'!$F$11/E15/3600 -> 1.131542131 | AH157: 1.469535234
A158: 3900 | C158: 11.94590607 | D158: 1950 | E158: 2.986476516 | G158: 13062.74225 | H158: 258031.571 | K158: =IF(AND($AL$10=1,'Berechnung FO-über_ohne_Schatte'!$F$13<'Kamindaten bündige Lamellen'!$AQ$17),ROUNDUP(H158/3600/(2.2*$K$4/100)/PI()*100000000/(A158*M158*$K$4),0),ROUNDUP(H158/3600/2.5/PI()*100000000/(A158*M158*$K$4),0)) -> 31 | L158: =IF((A158-SQRT('Berechnung FO-über_ohne_Schatte'!$F$11/3600/'Kamindaten FO-über_ohne_Schatte'!$H$1/PI())*2*1000)<20,"0",IF((A158-SQRT('Berechnung FO-über_ohne_Schatte'!$F$11/3600/'Kamindaten FO-über_ohne_Schatte'!$H$1/PI())*2*1000)<80,ROUND((A158-SQRT('Berechnung FO-über_ohne_Schatte'!$F$11/3600/'Kamindaten FO-über_ohne_Schatte'!$H$1/PI())*2*1000)/10,0)*10,IF((A158-SQRT('Berechnung FO-über_ohne_Schatte'!$F$11/3600/'Kamindaten FO-über_ohne_Schatte'!$H$1/PI())*2*1000)<A158/2,ROUND((A158-SQRT('Berechnung FO-über_ohne_Schatte'!$F$11/3600/'Kamindaten FO-über_ohne_Schatte'!$H$1/PI())*2*1000)/20,0)*20,A158/2))) -> 1950 | M158: 120 | N158: 180 | Q158: 12252.21135 | R158: 4000 | S158: 8 | T158: 3900 | U158: 14 | W158: 140 | X158: 4180 | Y158: 3000 | Z158: 3900 | AA158: 6900 | AC158: 1.4 | AD158: 7.11 | AE158: 13.38 | AG158: ='Berechnung FO-über_ohne_Schatte'!$F$11/E16/3600 -> 1.227801791 | AH158: 1.59454778
A159: 3800 | C159: 11.34114948 | D159: 1900 | E159: 2.83528737 | G159: 12723.45025 | H159: 244968.8288 | K159: =IF(AND($AL$10=1,'Berechnung FO-über_ohne_Schatte'!$F$13<'Kamindaten bündige Lamellen'!$AQ$17),ROUNDUP(H159/3600/(2.2*$K$4/100)/PI()*100000000/(A159*M159*$K$4),0),ROUNDUP(H159/3600/2.5/PI()*100000000/(A159*M159*$K$4),0)) -> 30 | L159: =IF((A159-SQRT('Berechnung FO-über_ohne_Schatte'!$F$11/3600/'Kamindaten FO-über_ohne_Schatte'!$H$1/PI())*2*1000)<20,"0",IF((A159-SQRT('Berechnung FO-über_ohne_Schatte'!$F$11/3600/'Kamindaten FO-über_ohne_Schatte'!$H$1/PI())*2*1000)<80,ROUND((A159-SQRT('Berechnung FO-über_ohne_Schatte'!$F$11/3600/'Kamindaten FO-über_ohne_Schatte'!$H$1/PI())*2*1000)/10,0)*10,IF((A159-SQRT('Berechnung FO-über_ohne_Schatte'!$F$11/3600/'Kamindaten FO-über_ohne_Schatte'!$H$1/PI())*2*1000)<A159/2,ROUND((A159-SQRT('Berechnung FO-über_ohne_Schatte'!$F$11/3600/'Kamindaten FO-über_ohne_Schatte'!$H$1/PI())*2*1000)/20,0)*20,A159/2))) -> 1900 | M159: 120 | N159: 180 | Q159: 11938.05208 | R159: 3900 | S159: 8 | T159: 3800 | U159: 14 | W159: 140 | X159: 4080 | Y159: 3000 | Z159: 3780 | AA159: 6780 | AC159: 1.5 | AD159: 7.65 | AE159: 13.98 | AG159: ='Berechnung FO-über_ohne_Schatte'!$F$11/E17/3600 -> 1.33688815 | AH159: 1.736218377
A160: 3700 | C160: 10.75210086 | D160: 1850 | E160: 2.688025214 | G160: 12384.15824 | H160: 232245.3785 | K160: =IF(AND($AL$10=1,'Berechnung FO-über_ohne_Schatte'!$F$13<'Kamindaten bündige Lamellen'!$AQ$17),ROUNDUP(H160/3600/(2.2*$K$4/100)/PI()*100000000/(A160*M160*$K$4),0),ROUNDUP(H160/3600/2.5/PI()*100000000/(A160*M160*$K$4),0)) -> 29 | L160: =IF((A160-SQRT('Berechnung FO-über_ohne_Schatte'!$F$11/3600/'Kamindaten FO-über_ohne_Schatte'!$H$1/PI())*2*1000)<20,"0",IF((A160-SQRT('Berechnung FO-über_ohne_Schatte'!$F$11/3600/'Kamindaten FO-über_ohne_Schatte'!$H$1/PI())*2*1000)<80,ROUND((A160-SQRT('Berechnung FO-über_ohne_Schatte'!$F$11/3600/'Kamindaten FO-über_ohne_Schatte'!$H$1/PI())*2*1000)/10,0)*10,IF((A160-SQRT('Berechnung FO-über_ohne_Schatte'!$F$11/3600/'Kamindaten FO-über_ohne_Schatte'!$H$1/PI())*2*1000)<A160/2,ROUND((A160-SQRT('Berechnung FO-über_ohne_Schatte'!$F$11/3600/'Kamindaten FO-über_ohne_Schatte'!$H$1/PI())*2*1000)/20,0)*20,A160/2))) -> 1850 | M160: 120 | N160: 180 | Q160: 11623.89282 | R160: 3800 | S160: 8 | T160: 3700 | U160: 14 | W160: 140 | X160: 3980 | Y160: 3000 | Z160: 3660 | AA160: 6660 | AC160: 1.6 | AD160: 8.2 | AE160: 14.57 | AG160: ='Berechnung FO-über_ohne_Schatte'!$F$11/E18/3600 -> 1.461185602 | AH160: 1.89764364
A161: 3600 | C161: 10.1787602 | D161: 1800 | E161: 2.544690049 | G161: =H161-H5 -> 12044.86623 | H161: 219861.2203 | K161: =IF(AND($AL$10=1,'Berechnung FO-über_ohne_Schatte'!$F$13<'Kamindaten bündige Lamellen'!$AQ$17),ROUNDUP(H161/3600/(2.2*$K$4/100)/PI()*100000000/(A161*M161*$K$4),0),ROUNDUP(H161/3600/2.5/PI()*100000000/(A161*M161*$K$4),0)) -> 29 | L161: =IF((A161-SQRT('Berechnung FO-über_ohne_Schatte'!$F$11/3600/'Kamindaten FO-über_ohne_Schatte'!$H$1/PI())*2*1000)<20,"0",IF((A161-SQRT('Berechnung FO-über_ohne_Schatte'!$F$11/3600/'Kamindaten FO-über_ohne_Schatte'!$H$1/PI())*2*1000)<80,ROUND((A161-SQRT('Berechnung FO-über_ohne_Schatte'!$F$11/3600/'Kamindaten FO-über_ohne_Schatte'!$H$1/PI())*2*1000)/10,0)*10,IF((A161-SQRT('Berechnung FO-über_ohne_Schatte'!$F$11/3600/'Kamindaten FO-über_ohne_Schatte'!$H$1/PI())*2*1000)<A161/2,ROUND((A161-SQRT('Berechnung FO-über_ohne_Schatte'!$F$11/3600/'Kamindaten FO-über_ohne_Schatte'!$H$1/PI())*2*1000)/20,0)*20,A161/2))) -> 1800 | M161: 120 | N161: 180 | Q161: 11309.73355 | R161: 3700 | S161: 8 | T161: 3600 | U161: 14 | W161: 140 | X161: 3880 | Y161: 3000 | Z161: 3660 | AA161: 6660 | AC161: 1.6 | AD161: 8.73 | AE161: 15.17 | AG161: ='Berechnung FO-über_ohne_Schatte'!$F$11/E19/3600 -> 1.603659482 | AH161: 2.082674652

Sheet Schalldämpfer (hidden)
A1: freie Querschnitte | E1: 63 | F1: 125 | G1: 250 | H1: 500 | I1: 1000 | J1: 2000 | K1: 4000 | L1: 8000 | P1: 63 | Q1: 125 | R1: 250 | S1: 500 | T1: 1000 | U1: 2000 | V1: 4000 | W1: 8000 | AA1: 63 | AB1: 125 | AC1: 250 | AD1: 500 | AE1: 1000 | AF1: 2000 | AG1: 4000 | AH1: 8000 | AM1: freier Querschnitt:
A2: 55.55555556 | B2: 1 | D2: =M2/($C$102+M2)*100 -> 55.55555556 | E2: 1.2 | F2: 5.1 | G2: 9.2 | H2: 9 | I2: 9.4 | J2: 7.6 | K2: 5.8 | L2: 5.1 | M2: 250 | O2: 250 | P2: 2.6 | Q2: 9.6 | R2: 17 | S2: 17.2 | T2: 14.3 | U2: 11.9 | V2: 8.5 | W2: 6.9 | X2: =O2/($C$102+O2)*100 -> 55.55555556 | Z2: 250 | AA2: 3.9 | AB2: 14 | AC2: 24.7 | AD2: 25.3 | AE2: 19.2 | AF2: 16.1 | AG2: 11.2 | AH2: 8.7 | AI2: =Z2/($C$102+Z2)*100 -> 55.55555556 | AQ2: r= | AR2: 300 | AS2: k= | AT2: 200
A3: 52.94117647 | B3: 2 | D3: 52.94117647 | E3: 1.5 | F3: 5.7 | G3: 10.5 | H3: 10.6 | I3: 11.1 | J3: 8.7 | K3: 6.6 | L3: 5.8 | M3: 225 | O3: 225 | P3: 3 | Q3: 10.6 | R3: 19.2 | S3: 19.9 | T3: 17.5 | U3: 13.1 | V3: 9.8 | W3: 7.8 | X3: 52.94117647 | Z3: 225 | AA3: 4.5 | AB3: 15.6 | AC3: 27.9 | AD3: 29.3 | AE3: 24 | AF3: 17.4 | AG3: 13 | AH3: 9.8 | AI3: 52.94117647 | CI3: Rohrschalldämpfer mit Kern
A4: 50 | B4: 3 | D4: 50 | E4: 1.8 | F4: 6.2 | G4: 11.8 | H4: 12.1 | I4: 12.8 | J4: 9.8 | K4: 7.4 | L4: 6.4 | M4: 200 | O4: 200 | P4: 3.4 | Q4: 11.7 | R4: 21.4 | S4: 22.7 | T4: 20.8 | U4: 14.3 | V4: 11.1 | W4: 8.6 | X4: 50 | Z4: 200 | AA4: 5 | AB4: 17.1 | AC4: 31 | AD4: 33.2 | AE4: 28.7 | AF4: 18.7 | AG4: 14.7 | AH4: 10.8 | AI4: 50 | AP4: Durchmesser= | AQ4: =AR2*2 -> 600
A5: 46.66666667 | B5: 4 | D5: 46.66666667 | E5: 2.1 | F5: 6.8 | G5: 13.1 | H5: 13.7 | I5: 14.5 | J5: 10.9 | K5: 8.3 | L5: 7.1 | M5: 175 | O5: 175 | P5: 3.8 | Q5: 12.7 | R5: 23.6 | S5: 25.4 | T5: 23.9 | U5: 15.4 | V5: 12.4 | W5: 9.5 | X5: 46.66666667 | Z5: 175 | AA5: 5.6 | AB5: 18.6 | AC5: 34.2 | AD5: 37.2 | AE5: 33.4 | AF5: 20 | AG5: 16.5 | AH5: 11.9 | AI5: 46.66666667 | AN5: n= | AO5: 2 | DP5: Rohrschalldämpfer ohne Kern
A6: 42.85714286 | B6: 5 | D6: 42.85714286 | E6: 2.3 | F6: 7.3 | G6: 14.3 | H6: 15.3 | I6: 16.1 | J6: 11.9 | K6: 9.1 | L6: 7.8 | M6: 150 | O6: 150 | P6: 4.2 | Q6: 13.7 | R6: 25.8 | S6: 28.2 | T6: 27.1 | U6: 16.6 | V6: 13.7 | W6: 10.4 | X6: 42.85714286 | Z6: 150 | AA6: 6.1 | AB6: 20.1 | AC6: 37.3 | AD6: 41.1 | AE6: 38.1 | AF6: 21.2 | AG6: 18.2 | AH6: 12.9 | AI6: 42.85714286 | CC6: Durchmesser: | CE6: =AQ4 -> 600
A7: 38.46153846 | B7: 6 | D7: 38.46153846 | E7: 3.1 | F7: 8.8 | G7: 17.7 | H7: 20.4 | I7: 22.9 | J7: 17.5 | K7: 19.9 | L7: 10.1 | M7: 125 | O7: 125 | P7: 5.6 | Q7: 16.9 | R7: 31 | S7: 35.1 | T7: 36.1 | U7: 27.5 | V7: 23 | W7: 13.9 | X7: 38.46153846 | Z7: 125 | AA7: 8.1 | AB7: 24.4 | AC7: 44.4 | AD7: 49.8 | AE7: 49.4 | AF7: 37.4 | AG7: 26.2 | AH7: 17.7 | AI7: 38.46153846 | AN7: spaltbreite= | AO7: =2*AR2/(AO5)-AT2 -> 100 | AS7: =AS9/1000000 -> 0.08222883124 | CN7: Packungsdicke = | CP7: 100
A8: 33.33333333 | B8: 7 | D8: 33.33333333 | E8: 3.9 | F8: 10.3 | G8: 21.1 | H8: 25.4 | I8: 29.6 | J8: 23.1 | K8: 30.6 | L8: 12.3 | M8: 100 | O8: 100 | P8: 7 | Q8: 20 | R8: 36.3 | S8: 41.9 | T8: 45.1 | U8: 38.4 | V8: 32.4 | W8: 17.4 | X8: 33.33333333 | Z8: 100 | AA8: 10 | AB8: 27.7 | AC8: 50 | AD8: 50 | AE8: 50 | AF8: 50 | AG8: 34.2 | AH8: 22.4 | AI8: 33.33333333
A9: 27.27272727 | B9: 8 | D9: 27.27272727 | E9: 4.7 | F9: 11.8 | G9: 24.5 | H9: 30.5 | I9: 36.3 | J9: 28.7 | K9: 26.1 | L9: 14.5 | M9: 75 | O9: 75 | P9: 8.3 | Q9: 23.1 | R9: 41.5 | S9: 48.8 | T9: 50 | U9: 49.2 | V9: 34.1 | W9: 20.8 | X9: 27.27272727 | Z9: 75 | AA9: 12 | AB9: 34.5 | AC9: 58.4 | AD9: 50 | AE9: 50 | AF9: 50 | AG9: 42.2 | AH9: 27.2 | AI9: 27.27272727 | AR9: Agesamt frei= | AS9: =(AN10-AN11+AN12-AN13+AN14-AN15+AN16-AN17+AN18-AN19+AN20-AN21+AN22-AN23+AN24-AN25+AN26-AN27+AN28-AN29+AN30)*2 -> 82228.83124
A10: 20 | B10: 9 | D10: 20 | E10: 5.4 | F10: 13.2 | G10: 27.9 | H10: 35.5 | I10: 43 | J10: 34.2 | K10: 21.5 | L10: 16.7 | M10: 50 | O10: 50 | P10: 9.7 | Q10: 26.3 | R10: 46.7 | S10: 50 | T10: 50 | U10: 50 | V10: 35 | W10: 24.3 | X10: 20 | Z10: 50 | AA10: 13.9 | AB10: 39.3 | AC10: 50 | AD10: 50 | AE10: 50 | AF10: 50 | AG10: 50 | AH10: 31.9 | AI10: 20 | AM10: A1= | AN10: =IF(ISEVEN($AO$5),IF(AP10<=($AO$5+1),$AR$2^2*ACOS(1-AV10/$AR$2)-($AR$2-AV10)*SQRT(2*$AR$2*AV10-AV10^2),0),IF(AP10<=($AO$5+0),$AR$2^2*ACOS(1-AV10/$AR$2)-($AR$2-AV10)*SQRT(2*$AR$2*AV10-AV10^2),0)) -> 11253.88903 | AO10: =AN10/1000000 -> 0.01125388903 | AP10: 1 | AU10: h1= | AV10: =SUM(AW10:BQ10) -> 50 | AW10: =$AO$7/2 -> 50 | DJ10: Durchmesser= | DL10: =AQ4 -> 600
AM11: A2= | AN11: 111511.1428 | AO11: 0.1115111428 | AP11: 2 | AR11: AKreis= | AS11: =AR2^2*PI() -> 282743.3388 | AU11: h2= | AV11: =SUM(AW11:BQ11) -> 250 | AW11: 50 | AX11: =IF($AO$5=1,$AT$2/2,$AT$2) -> 200 | CD11: L = 500 | CP11: L = 1500 | DA11: L = 1000
H12: 1000 | T12: 2000 | AE12: 3000 | AM12: A3= | AN12: 141371.6694 | AO12: 0.1413716694 | AP12: 3 | AU12: h3= | AV12: 300 | AW12: 50 | AX12: =$AT$2 -> 200 | AY12: =IF($AO$5=2,$AO$7/2,$AO$7) -> 50 | DT12: Packungsdicke = | DV12: 50
AM13: A4= | AN13: 0 | AO13: 0 | AP13: 4 | AU13: h4= | AV13: 550 | AW13: 50 | AX13: 200 | AY13: =$AO$7 -> 100 | AZ13: =IF($AO$5=3,$AT$2/2,$AT$2) -> 200 | DM13: L = 500 | DZ13: L=1000
AM14: A5= | AN14: 0 | AO14: 0 | AP14: 5 | AU14: h5= | AV14: 650 | AW14: 50 | AX14: 200 | AY14: 100 | AZ14: =$AT$2 -> 200 | BA14: =IF($AO$5=4,$AO$7/2,$AO$7) -> 100 | BZ14: RohrØ | CB14: 63 | CC14: 125 | CD14: 250 | CE14: 500 | CF14: 1000 | CG14: 2000 | CH14: 4000 | CI14: 8000 | CK14: RohrØ | CM14: 63 | CN14: 125 | CO14: 250 | CP14: 500 | CQ14: 1000 | CR14: 2000 | CS14: 4000 | CT14: 8000 | CV14: RohrØ | CX14: 63 | CY14: 125 | CZ14: 250 | DA14: 500 | DB14: 1000 | DC14: 2000 | DD14: 4000 | DE14: 8000
AM15: A6= | AN15: 0 | AO15: 0 | AP15: 6 | AR15: f.Q. Rund= | AS15: =AS9/AS11*100 -> 29.0824999 | AU15: h6= | AV15: 850 | AW15: 50 | AX15: 200 | AY15: 100 | AZ15: 200 | BA15: =$AO$7 -> 100 | BB15: =IF($AO$5=5,$AT$2/2,$AT$2) -> 200 | BZ15: =CA15+2*$CP$7 -> 1200 | CA15: 1000 | CB15: 1 | CC15: 2 | CD15: 4 | CE15: 8 | CF15: 9 | CG15: 8 | CH15: 5 | CI15: 4 | CK15: =CL15+2*$CP$7 -> 1200 | CL15: 1000 | CM15: 3 | CN15: 5 | CO15: 8 | CP15: 20 | CQ15: 42 | CR15: 30 | CS15: 13 | CT15: 8 | CV15: =CW15+2*$CP$7 -> 1200 | CW15: 1000 | CX15: 2 | CY15: 3 | CZ15: 6 | DA15: 14 | DB15: 26 | DC15: 19 | DD15: 9 | DE15: 6 | DJ15: RohrØ | DL15: 63 | DM15: 125 | DN15: 250 | DO15: 500 | DP15: 1000 | DQ15: 2000 | DR15: 4000 | DS15: 8000 | DV15: RohrØ | DX15: 63 | DY15: 125 | DZ15: 250 | EA15: 500 | EB15: 1000 | EC15: 2000 | ED15: 4000 | EE15: 8000
AM16: A7= | AN16: 0 | AO16: 0 | AP16: 7 | AU16: h7= | AV16: 950 | AW16: 50 | AX16: 200 | AY16: 100 | AZ16: 200 | BA16: 100 | BB16: =$AT$2 -> 200 | BC16: =IF($AO$5=6,$AO$7/2,$AO$7) -> 100 | BZ16: 1100 | CA16: 900 | CB16: 1 | CC16: 2 | CD16: 4 | CE16: 8 | CF16: 10 | CG16: 8 | CH16: 6 | CI16: 5 | CK16: 1100 | CL16: 900 | CM16: 3 | CN16: 5 | CO16: 9 | CP16: 21 | CQ16: 44 | CR16: 31 | CS16: 14 | CT16: 8 | CV16: 1100 | CW16: 900 | CX16: 2 | CY16: 3 | CZ16: 7 | DA16: 15 | DB16: 27 | DC16: 20 | DD16: 10 | DE16: 7 | DJ16: =DK16+2*$DV$12 -> 500 | DK16: 400 | DL16: 1 | DM16: 1 | DN16: 3 | DO16: 5 | DP16: 8 | DQ16: 5 | DR16: 1 | DS16: 2 | DV16: =DW16+2*$DV$12 -> 500 | DW16: 400 | DX16: 1 | DY16: 2 | DZ16: 3 | EA16: 8 | EB16: 19 | EC16: 8 | ED16: 3 | EE16: 4
AM17: A8= | AN17: 0 | AO17: 0 | AP17: 8 | AU17: h8= | AV17: 1150 | AW17: 50 | AX17: 200 | AY17: 100 | AZ17: 200 | BA17: 100 | BB17: 200 | BC17: =$AO$7 -> 100 | BD17: =IF($AO$5=7,$AT$2/2,$AT$2) -> 200 | BZ17: 1000 | CA17: 800 | CB17: 1 | CC17: 2 | CD17: 4 | CE17: 8 | CF17: 10 | CG17: 8 | CH17: 6 | CI17: 6 | CK17: 1000 | CL17: 800 | CM17: 3 | CN17: 5 | CO17: 10 | CP17: 23 | CQ17: 46 | CR17: 34 | CS17: 17 | CT17: 9 | CV17: 1000 | CW17: 800 | CX17: 2 | CY17: 4 | CZ17: 7 | DA17: 16 | DB17: 28 | DC17: 22 | DD17: 11 | DE17: 8 | DJ17: =DK17+2*$DV$12 -> 415 | DK17: 315 | DL17: 1 | DM17: 1 | DN17: 3 | DO17: 6 | DP17: 9 | DQ17: 6 | DR17: 2 | DS17: 3 | DV17: =DW17+2*$DV$12 -> 415 | DW17: 315 | DX17: 1 | DY17: 2 | DZ17: 4 | EA17: 9 | EB17: 22 | EC17: 10 | ED17: 4 | EE17: 5
AM18: A9= | AN18: 0 | AO18: 0 | AP18: 9 | AR18: f.Q. Recht= | AS18: =(2*AR2-AT2*AO5)/(AR2*2)*100 -> 33.33333333 | AU18: h9= | AV18: 1250 | AW18: 50 | AX18: 200 | AY18: 100 | AZ18: 200 | BA18: 100 | BB18: 200 | BC18: 100 | BD18: =$AT$2 -> 200 | BE18: =IF($AO$5=8,$AO$7/2,$AO$7) -> 100 | BZ18: 910 | CA18: 710 | CB18: 1 | CC18: 3 | CD18: 5 | CE18: 9 | CF18: 11 | CG18: 9 | CH18: 7 | CI18: 6 | CK18: 910 | CL18: 710 | CM18: 3 | CN18: 6 | CO18: 10 | CP18: 25 | CQ18: 47 | CR18: 38 | CS18: 20 | CT18: 11 | CV18: 910 | CW18: 710 | CX18: 2 | CY18: 4 | CZ18: 8 | DA18: 17 | DB18: 30 | DC18: 24 | DD18: 14 | DE18: 9 | DJ18: 350 | DK18: 250 | DL18: 1 | DM18: 2 | DN18: 3 | DO18: 6 | DP18: 11 | DQ18: 8 | DR18: 3 | DS18: 3 | DV18: 350 | DW18: 250 | DX18: 2 | DY18: 3 | DZ18: 5 | EA18: 11 | EB18: 25 | EC18: 14 | ED18: 6 | EE18: 7
AM19: A10= | AN19: 0 | AO19: 0 | AP19: 10 | AU19: h10= | AV19: 1450 | AW19: 50 | AX19: 200 | AY19: 100 | AZ19: 200 | BA19: 100 | BB19: 200 | BC19: 100 | BD19: 200 | BE19: =$AO$7 -> 100 | BF19: =IF($AO$5=9,$AT$2/2,$AT$2) -> 200 | BZ19: 830 | CA19: 630 | CB19: 1 | CC19: 3 | CD19: 5 | CE19: 9 | CF19: 12 | CG19: 10 | CH19: 8 | CI19: 7 | CK19: 830 | CL19: 630 | CM19: 3 | CN19: 6 | CO19: 11 | CP19: 26 | CQ19: 47 | CR19: 41 | CS19: 23 | CT19: 13 | CV19: 830 | CW19: 630 | CX19: 2 | CY19: 4 | CZ19: 8 | DA19: 18 | DB19: 31 | DC19: 26 | DD19: 16 | DE19: 10 | DJ19: 300 | DK19: 200 | DL19: 1 | DM19: 2 | DN19: 4 | DO19: 7 | DP19: 13 | DQ19: 10 | DR19: 4 | DS19: 5 | DV19: 300 | DW19: 200 | DX19: 2 | DY19: 3 | DZ19: 6 | EA19: 13 | EB19: 28 | EC19: 19 | ED19: 9 | EE19: 8
C20: Kulissenbreite 100 | R20: Kulissenbreite 200 | AH20: =MATCH(AO7,Z2:Z10,1) ->  | AM20: A11= | AN20: 0 | AO20: 0 | AP20: 11 | AU20: h11= | AV20: 1550 | AW20: 50 | AX20: 200 | AY20: 100 | AZ20: 200 | BA20: 100 | BB20: 200 | BC20: 100 | BD20: 200 | BE20: 100 | BF20: =$AT$2 -> 200 | BG20: =IF($AO$5=10,$AO$7/2,$AO$7) -> 100 | BZ20: 760 | CA20: 560 | CB20: 1 | CC20: 3 | CD20: 5 | CE20: 10 | CF20: 12 | CG20: 11 | CH20: 8 | CI20: 8 | CK20: 760 | CL20: 560 | CM20: 3 | CN20: 6 | CO20: 12 | CP20: 27 | CQ20: 47 | CR20: 45 | CS20: 26 | CT20: 16 | CV20: 760 | CW20: 560 | CX20: 2 | CY20: 5 | CZ20: 8 | DA20: 19 | DB20: 33 | DC20: 28 | DD20: 18 | DE20: 12 | DJ20: 260 | DK20: 160 | DL20: 2 | DM20: 3 | DN20: 5 | DO20: 8 | DP20: 15 | DQ20: 14 | DR20: 6 | DS20: 6 | DV20: 260 | DW20: 160 | DX20: 3 | DY20: 4 | DZ20: 7 | EA20: 16 | EB20: 31 | EC20: 27 | ED20: 15 | EE20: 12
AM21: A12= | AN21: 0 | AO21: 0 | AP21: 12 | AU21: h12= | AV21: 1750 | AW21: 50 | AX21: 200 | AY21: 100 | AZ21: 200 | BA21: 100 | BB21: 200 | BC21: 100 | BD21: 200 | BE21: 100 | BF21: 200 | BG21: =$AO$7 -> 100 | BH21: =IF($AO$5=11,$AT$2/2,$AT$2) -> 200 | BZ21: 700 | CA21: 500 | CB21: 1 | CC21: 3 | CD21: 6 | CE21: 10 | CF21: 13 | CG21: 12 | CH21: 10 | CI21: 8 | CK21: 700 | CL21: 500 | CM21: 4 | CN21: 7 | CO21: 13 | CP21: 27 | CQ21: 47 | CR21: 47 | CS21: 30 | CT21: 18 | CV21: 700 | CW21: 500 | CX21: 2 | CY21: 5 | CZ21: 9 | DA21: 20 | DB21: 35 | DC21: 30 | DD21: 21 | DE21: 14 | DJ21: 225 | DK21: 125 | DL21: 3 | DM21: 3 | DN21: 6 | DO21: 9 | DP21: 18 | DQ21: 20 | DR21: 9 | DS21: 8 | DV21: 225 | DW21: 125 | DX21: 3 | DY21: 6 | DZ21: 9 | EA21: 20 | EB21: 35 | EC21: 39 | ED21: 26 | EE21: 17
D22: De (dB/Okt) | S22: De (dB/Okt) | AM22: A13= | AN22: 0 | AO22: 0 | AP22: 13 | AU22: h13= | AV22: 1850 | AW22: 50 | AX22: 200 | AY22: 100 | AZ22: 200 | BA22: 100 | BB22: 200 | BC22: 100 | BD22: 200 | BE22: 100 | BF22: 200 | BG22: 100 | BH22: =$AT$2 -> 200 | BI22: =IF($AO$5=12,$AO$7/2,$AO$7) -> 100 | BZ22: 650 | CA22: 450 | CB22: 1 | CC22: 3 | CD22: 6 | CE22: 11 | CF22: 13 | CG22: 13 | CH22: 11 | CI22: 9 | CK22: 650 | CL22: 450 | CM22: 4 | CN22: 7 | CO22: 13 | CP22: 28 | CQ22: 47 | CR22: 47 | CS22: 33 | CT22: 20 | CV22: 650 | CW22: 450 | CX22: 3 | CY22: 6 | CZ22: 9 | DA22: 21 | DB22: 36 | DC22: 32 | DD22: 23 | DE22: 15 | DJ22: 200 | DK22: 100 | DL22: 3 | DM22: 4 | DN22: 6 | DO22: 11 | DP22: 20 | DQ22: 27 | DR22: 15 | DS22: 10 | DV22: 200 | DW22: 100 | DX22: 3 | DY22: 7 | DZ22: 12 | EA22: 24 | EB22: 39 | EC22: 47 | ED22: 40 | EE22: 22
D23: fm (Hz) | S23: fm (Hz) | AM23: A14= | AN23: 0 | AO23: 0 | AP23: 14 | AU23: h14= | AV23: 2050 | AW23: 50 | AX23: 200 | AY23: 100 | AZ23: 200 | BA23: 100 | BB23: 200 | BC23: 100 | BD23: 200 | BE23: 100 | BF23: 200 | BG23: 100 | BH23: 200 | BI23: =$AO$7 -> 100 | BJ23: =IF($AO$5=13,$AT$2/2,$AT$2) -> 200 | BZ23: 600 | CA23: 400 | CB23: 1 | CC23: 3 | CD23: 6 | CE23: 11 | CF23: 15 | CG23: 14 | CH23: 13 | CI23: 11 | CK23: 600 | CL23: 400 | CM23: 5 | CN23: 8 | CO23: 14 | CP23: 30 | CQ23: 47 | CR23: 47 | CS23: 37 | CT23: 23 | CV23: 600 | CW23: 400 | CX23: 3 | CY23: 6 | CZ23: 10 | DA23: 22 | DB23: 37 | DC23: 35 | DD23: 26 | DE23: 18
A24: L [mm] | C24: l | D24: 63 | E24: 125 | F24: 250 | G24: 500 | H24: 1000 | I24: 2000 | J24: 4000 | K24: 8000 | R24: l | S24: 63 | T24: 125 | U24: 250 | V24: 500 | W24: 1000 | X24: 2000 | Y24: 4000 | Z24: 8000 | AM24: A15= | AN24: 0 | AO24: 0 | AP24: 15 | AU24: h15= | AV24: 2150 | AW24: 50 | AX24: 200 | AY24: 100 | AZ24: 200 | BA24: 100 | BB24: 200 | BC24: 100 | BD24: 200 | BE24: 100 | BF24: 200 | BG24: 100 | BH24: 200 | BI24: 100 | BJ24: =$AT$2 -> 200 | BK24: =IF($AO$5=14,$AO$7/2,$AO$7) -> 100 | BZ24: 515 | CA24: 315 | CB24: 2 | CC24: 4 | CD24: 7 | CE24: 13 | CF24: 18 | CG24: 17 | CH24: 18 | CI24: 15 | CK24: 515 | CL24: 315 | CM24: 6 | CN24: 9 | CO24: 17 | CP24: 34 | CQ24: 47 | CR24: 47 | CS24: 47 | CT24: 31 | CV24: 515 | CW24: 315 | CX24: 3 | CY24: 7 | CZ24: 12 | DA24: 24 | DB24: 41 | DC24: 42 | DD24: 36 | DE24: 24 | DN24: um bis zu 3 dB gegenüber Trox reduziert | EA24: um bis zu 3 dB gegenüber Trox reduziert
A25: 500 | B25: S (mm) | C25: 100 | D25: 0 | E25: 2 | F25: 2 | G25: 6 | H25: 9 | I25: 8 | J25: 5 | K25: 3 | Q25: L=500 | R25: 200 | S25: 1 | T25: 2 | U25: 4 | V25: 4 | W25: 7 | X25: 6 | Y25: 4 | Z25: 2 | AM25: A16= | AN25: 0 | AO25: 0 | AP25: 16 | AU25: h16= | AV25: 2350 | AW25: 50 | AX25: 200 | AY25: 100 | AZ25: 200 | BA25: 100 | BB25: 200 | BC25: 100 | BD25: 200 | BE25: 100 | BF25: 200 | BG25: 100 | BH25: 200 | BI25: 100 | BJ25: 200 | BK25: =$AO$7 -> 100 | BL25: =IF($AO$5=15,$AT$2/2,$AT$2) -> 200 | BZ25: 450 | CA25: 250 | CB25: 2 | CC25: 4 | CD25: 8 | CE25: 14 | CF25: 21 | CG25: 20 | CH25: 23 | CI25: 21 | CK25: 450 | CL25: 250 | CM25: 6 | CN25: 11 | CO25: 19 | CP25: 38 | CQ25: 47 | CR25: 47 | CS25: 47 | CT25: 41 | CV25: 450 | CW25: 250 | CX25: 4 | CY25: 8 | CZ25: 14 | DA25: 27 | DB25: 44 | DC25: 47 | DD25: 47 | DE25: 33
C26: 90 | D26: 0 | E26: 2 | F26: 3 | G26: 6 | H26: 10 | I26: 9 | J26: 6 | K26: 4 | R26: 180 | S26: 1 | T26: 2 | U26: 5 | V26: 5 | W26: 7 | X26: 5 | Y26: 4 | Z26: 2 | AM26: A17= | AN26: 0 | AO26: 0 | AP26: 17 | AU26: h17= | AV26: 2450 | AW26: 50 | AX26: 200 | AY26: 100 | AZ26: 200 | BA26: 100 | BB26: 200 | BC26: 100 | BD26: 200 | BE26: 100 | BF26: 200 | BG26: 100 | BH26: 200 | BI26: 100 | BJ26: 200 | BK26: 100 | BL26: =$AT$2 -> 200 | BM26: =IF($AO$5=16,$AO$7/2,$AO$7) -> 100
C27: 80 | D27: 0 | E27: 1 | F27: 3 | G27: 7 | H27: 11 | I27: 10 | J27: 7 | K27: 5 | R27: 160 | S27: 1 | T27: 1 | U27: 5 | V27: 5 | W27: 8 | X27: 5 | Y27: 4 | Z27: 3 | AM27: A18= | AN27: 0 | AO27: 0 | AP27: 18 | AU27: h18= | AV27: 2650 | AW27: 50 | AX27: 200 | AY27: 100 | AZ27: 200 | BA27: 100 | BB27: 200 | BC27: 100 | BD27: 200 | BE27: 100 | BF27: 200 | BG27: 100 | BH27: 200 | BI27: 100 | BJ27: 200 | BK27: 100 | BL27: =$AT$2 -> 200 | BM27: =$AO$7 -> 100 | BN27: =IF($AO$5=17,$AT$2/2,$AT$2) -> 200 | CC27: um bis zu 3 dB gegenüber Trox reduziert | CO27: um bis zu 3 dB gegenüber Trox reduziert | CY27: um bis zu 3 dB gegenüber Trox reduziert
C28: 70 | D28: 1 | E28: 1 | F28: 4 | G28: 8 | H28: 13 | I28: 12 | J28: 9 | K28: 7 | R28: 140 | S28: 1 | T28: 1 | U28: 7 | V28: 6 | W28: 9 | X28: 6 | Y28: 4 | Z28: 3 | AM28: A19= | AN28: 0 | AO28: 0 | AP28: 19 | AU28: h19= | AV28: 2750 | AW28: 50 | AX28: 200 | AY28: 100 | AZ28: 200 | BA28: 100 | BB28: 200 | BC28: 100 | BD28: 200 | BE28: 100 | BF28: 200 | BG28: 100 | BH28: 200 | BI28: 100 | BJ28: 200 | BK28: 100 | BL28: =$AT$2 -> 200 | BM28: =$AO$7 -> 100 | BN28: =$AT$2 -> 200 | BO28: =IF($AO$5=18,$AO$7/2,$AO$7) -> 100
C29: 60 | D29: 1 | E29: 2 | F29: 5 | G29: 9 | H29: 14 | I29: 14 | J29: 10 | K29: 8 | R29: 120 | S29: 1 | T29: 1 | U29: 8 | V29: 8 | W29: 11 | X29: 8 | Y29: 5 | Z29: 4 | AM29: A20= | AN29: 0 | AO29: 0 | AP29: 20 | AR29: =$AO$7 -> 100 | AU29: h20= | AV29: 2950 | AW29: 50 | AX29: 200 | AY29: 100 | AZ29: 200 | BA29: 100 | BB29: 200 | BC29: 100 | BD29: 200 | BE29: 100 | BF29: 200 | BG29: 100 | BH29: 200 | BI29: 100 | BJ29: 200 | BK29: 100 | BL29: =$AT$2 -> 200 | BM29: =$AO$7 -> 100 | BN29: =$AT$2 -> 200 | BO29: =$AO$7 -> 100 | BP29: =IF($AO$5=19,$AT$2/2,$AT$2) -> 200
C30: 50 | D30: 1 | E30: 2 | F30: 6 | G30: 10 | H30: 16 | I30: 16 | J30: 12 | K30: 10 | R30: 100 | S30: 2 | T30: 2 | U30: 10 | V30: 9 | W30: 13 | X30: 10 | Y30: 6 | Z30: 4 | AM30: A21= | AN30: 0 | AO30: 0 | AP30: 21 | AU30: h21= | AV30: =SUM(AW30:BQ30) -> 3050 | AW30: 50 | AX30: 200 | AY30: 100 | AZ30: 200 | BA30: 100 | BB30: 200 | BC30: 100 | BD30: 200 | BE30: 100 | BF30: 200 | BG30: 100 | BH30: 200 | BI30: 100 | BJ30: 200 | BK30: 100 | BL30: =$AT$2 -> 200 | BM30: =$AO$7 -> 100 | BN30: =$AT$2 -> 200 | BO30: =$AO$7 -> 100 | BP30: =$AT$2 -> 200 | BQ30: =IF($AO$5=20,$AO$7/2,$AO$7) -> 100
A31: 1000 | B31: S (mm) | C31: 100 | D31: 1 | E31: 2 | F31: 9 | G31: 19 | H31: 22 | I31: 15 | J31: 8 | K31: 6 | R31: 80 | S31: 2 | T31: 2 | U31: 12 | V31: 11 | W31: 15 | X31: 12 | Y31: 8 | Z31: 5
C32: 90 | D32: 1 | E32: 2 | F32: 11 | G32: 20 | H32: 25 | I32: 19 | J32: 10 | K32: 8 | R32: 60 | S32: 2 | T32: 3 | U32: 16 | V32: 15 | W32: 19 | X32: 18 | Y32: 11 | Z32: 7
C33: 80 | D33: 2 | E33: 2 | F33: 12 | G33: 22 | H33: 29 | I33: 22 | J33: 12 | K33: 9 | R33: 50 | S33: 2 | T33: 4 | U33: 19 | V33: 18 | W33: 23 | X33: 22 | Y33: 15 | Z33: 9 | CQ33: vØA= | CS33: =IF(Auswertung!B23=1,'Berechnung bündige Lamellen'!F48,'Berechnung FO-über_ohne_Schatte'!F49) -> 3.608233835 | DW33: vØA= | DY33: =IF(Auswertung!B23=1,'Berechnung bündige Lamellen'!F48,'Berechnung FO-über_ohne_Schatte'!F49) -> 3.608233835
C34: 70 | D34: 2 | E34: 3 | F34: 13 | G34: 25 | H34: 33 | I34: 27 | J34: 14 | K34: 11 | Q34: L=1000 | R34: 200 | S34: 2 | T34: 6 | U34: 11 | V34: 11 | W34: 12 | X34: 8 | Y34: 6 | Z34: 4 | CQ34: Länge SD | CS34: =IF(Auswertung!B23=1,'Berechnung bündige Lamellen'!BB16,'Berechnung FO-über_ohne_Schatte'!BI17) -> 1500 | DW34: Länge SD | DY34: =IF(Auswertung!B23=1,'Berechnung bündige Lamellen'!BX16,'Berechnung FO-über_ohne_Schatte'!CJ17) -> 1000
C35: 60 | D35: 2 | E35: 4 | F35: 14 | G35: 27 | H35: 37 | I35: 31 | J35: 17 | K35: 13 | R35: 180 | S35: 2 | T35: 6 | U35: 13 | V35: 12 | W35: 14 | X35: 9 | Y35: 6 | Z35: 4 | CQ35: Durchmesser ØA | CS35: =IF(Auswertung!B23=1,'Berechnung bündige Lamellen'!F12,'Berechnung FO-über_ohne_Schatte'!F13) -> 700 | CT35: =MATCH(CS35,CG43:CG53,1) -> 7 | DW35: Durchmesser ØA | DY35: =IF(Auswertung!B23=1,'Berechnung bündige Lamellen'!F12,'Berechnung FO-über_ohne_Schatte'!F13) -> 700 | DZ35: =MATCH(DY35,DL53:DL65,1) -> 11
C36: 50 | D36: 2 | E36: 4 | F36: 16 | G36: 30 | H36: 42 | I36: 37 | J36: 21 | K36: 16 | R36: 160 | S36: 2 | T36: 6 | U36: 14 | V36: 13 | W36: 16 | X36: 10 | Y36: 7 | Z36: 5 | CQ36: ΔpRohr mit Kern= | CS36: =IF(CT36<7,7,CT36) -> 14.32300348 | CT36: =CS37*CS33^2+CS38*CS33+CS39 -> 14.32300348 | DW36: ΔpRohr ohne Kern= | DY36: =IF(DZ36<7,7,DZ36) -> 7 | DZ36: =DY37*DY33^2+DY38*DY33+DY39 -> 0
A37: 1500 | B37: S (mm) | C37: 100 | D37: 2 | E37: 3 | F37: 15 | G37: 27 | H37: 33 | I37: 22 | J37: 11 | K37: 7 | R37: 140 | S37: 2 | T37: 7 | U37: 16 | V37: 14 | W37: 18 | X37: 13 | Y37: 8 | Z37: 6 | AO37: Achtung Anmerkung | CQ37: a= | CS37: =IF(CS34=500,VLOOKUP($CT$35,CW39:CZ49,2),IF(CS34=2000,VLOOKUP($CT$35,DB39:DE49,2),IF(CS34=1500,VLOOKUP($CT$35,DG39:DJ49,2),0))) -> 0.456315513 | DW37: a= | DY37: =IF(DY34=500,VLOOKUP($CT$35,EB39:EE51,2),IF(DY34=2000,VLOOKUP($CT$35,EG39:EJ51,2),IF(DY34=1500,VLOOKUP($CT$35,EL39:EO51,2),0))) -> 0
C38: 90 | D38: 2 | E38: 4 | F38: 16 | G38: 29 | H38: 37 | I38: 27 | J38: 14 | K38: 9 | R38: 120 | S38: 1 | T38: 8 | U38: 18 | V38: 17 | W38: 21 | X38: 16 | Y38: 10 | Z38: 8 | CI38: Druckverlustberechnung Rohrschalldämpfer mit Kern | CQ38: b= | CS38: =IF(CS34=500,VLOOKUP($CT$35,CW39:CZ49,3),IF(CS34=2000,VLOOKUP($CT$35,DB39:DE49,3),IF(CS34=1500,VLOOKUP($CT$35,DG39:DJ49,3),0))) -> 6.944482603 | CW38: l=500 | CX38: a | CY38: b | CZ38: c | DB38: l=1000 | DC38: a | DD38: b | DE38: c | DG38: l=1500 | DH38: a | DI38: b | DJ38: c | DW38: b= | DY38: =IF(DY34=500,VLOOKUP($CT$35,EB39:EE51,3),IF(DY34=2000,VLOOKUP($CT$35,EG39:EJ51,3),IF(DY34=1500,VLOOKUP($CT$35,EL39:EO51,3),0))) -> 0 | EB38: l=500 | EC38: a | ED38: b | EE38: c | EG38: l=1000 | EH38: a | EI38: b | EJ38: c | EL38: l=1500 | EM38: a | EN38: b | EO38: c
C39: 80 | D39: 2 | E39: 5 | F39: 18 | G39: 31 | H39: 41 | I39: 32 | J39: 17 | K39: 11 | R39: 100 | S39: 2 | T39: 9 | U39: 20 | V39: 20 | W39: 24 | X39: 20 | Y39: 12 | Z39: 9 | CQ39: c= | CS39: =IF(CS34=500,VLOOKUP($CT$35,CW39:CZ49,4),IF(CS34=2000,VLOOKUP($CT$35,DB39:DE49,4),IF(CS34=1500,VLOOKUP($CT$35,DG39:DJ49,4),0))) -> -16.67524563 | CW39: 1 | CX39: =CQ43 -> 0.8768601725 | CY39: =CQ44 -> 0.04956937313 | CZ39: =CQ45 -> 2.671087533 | DB39: 1 | DC39: =CS43 -> 1.069724558 | DD39: =CS44 -> 1.818076685 | DE39: =CS45 -> -3.063660477 | DG39: 1 | DH39: =CU43 -> 1.827726446 | DI39: =CU44 -> -3.788516375 | DJ39: =CU45 -> 14.28116711 | DW39: c= | DY39: =IF(DY34=500,VLOOKUP($CT$35,EB39:EE51,4),IF(DY34=2000,VLOOKUP($CT$35,EG39:EJ51,4),IF(DY34=1500,VLOOKUP($CT$35,EL39:EO51,4),0))) -> 0 | EB39: 1 | EC39: =DV43 -> 1.184352528 | ED39: =DV44 -> -1.884955592 | EE39: =DV45 -> 4.666666667 | EG39: 1 | EH39: =DX43 -> 1.184352528 | EI39: =DX44 -> 1.884955592 | EJ39: =DX45 -> 0.6666666667 | EL39: 1 | EM39: =DZ43 -> 0 | EN39: =DZ44 -> 0 | EO39: =DZ45 -> 0
C40: 70 | D40: 2 | E40: 6 | F40: 20 | G40: 34 | H40: 45 | I40: 37 | J40: 20 | K40: 14 | R40: 80 | S40: 2 | T40: 10 | U40: 23 | V40: 23 | W40: 27 | X40: 24 | Y40: 15 | Z40: 11 | CW40: 2 | CX40: =CQ47 -> 0.9970130085 | CY40: =CQ48 -> -2.507636178 | CZ40: =CQ49 -> 10.542777 | DB40: 2 | DC40: =CS47 -> -2.481361507 | DD40: =CS48 -> 48.80841914 | DE40: =CS49 -> -133.0147265 | DG40: 2 | DH40: =CU47 -> -3.260539741 | DI40: =CU48 -> 62.55607086 | DJ40: =CU49 -> -167.8842917 | EB40: 2 | EC40: =DV47 -> 0.9913665135 | ED40: =DV48 -> -1.290296983 | EE40: =DV49 -> 4.19047619 | EG40: 2 | EH40: =DX47 -> 1.982733027 | EI40: =DX48 -> -2.580593965 | EJ40: =DX49 -> 4.380952381 | EL40: 2 | EM40: =DZ47 -> 0 | EN40: =DZ48 -> 0 | EO40: =DZ49 -> 0
C41: 60 | D41: 1 | E41: 7 | F41: 22 | G41: 37 | H41: 47 | I41: 43 | J41: 24 | K41: 16 | R41: 60 | S41: 2 | T41: 12 | U41: 27 | V41: 28 | W41: 33 | X41: 33 | Y41: 21 | Z41: 16 | CW41: 3 | CX41: =CQ51 -> 0.4924431455 | CY41: =CQ52 -> 3.827584785 | CZ41: =CQ53 -> -8.718120805 | DB41: 3 | DC41: =CS51 -> 1.08337492 | DD41: =CS52 -> -1.632409963 | DE41: =CS53 -> 7.620134228 | DG41: 3 | DH41: =CU51 -> 1.036271663 | DI41: =CU52 -> 1.716748021 | DJ41: =CU53 -> -0.8416107383 | EB41: 3 | EC41: =DV51 -> 2.277911562 | ED41: =DV52 -> -7.395582289 | EE41: =DV53 -> 9.391304348 | EG41: 3 | EH41: =DX51 -> -0.1518607708 | EI41: =DX52 -> 4.353427872 | EJ41: =DX53 -> -0.6260869565 | EL41: 3 | EM41: =DZ51 -> 0 | EN41: =DZ52 -> 0 | EO41: =DZ53 -> 0
C42: 50 | D42: 1 | E42: 8 | F42: 24 | G42: 40 | H42: 47 | I42: 47 | J42: 28 | K42: 19 | R42: 50 | S42: 4 | T42: 14 | U42: 31 | V42: 33 | W42: 38 | X42: 40 | Y42: 26 | Z42: 20 | CF42: Ø Schalldämpfer | CJ42: Ø | CK42: l/s | CL42: m³/h | CM42: dB(A) | CN42: m/s | CP42: Pa-500 | CR42: Pa-1000 | CT42: Pa-1500 | CW42: 4 | CX42: =CQ55 -> 0.4995727883 | CY42: =CQ56 -> 3.748820021 | CZ42: =CQ57 -> -8.688595745 | DB42: 4 | DC42: =CS55 -> 0.6683750848 | DD42: =CS56 -> 3.274967108 | DE42: =CS57 -> -5.460255319 | DG42: 4 | DH42: =CU55 -> 1.264308698 | DI42: =CU56 -> -2.261302159 | DJ42: =CU57 -> 11.11914894 | DP42: Ø | DQ42: l/s | DR42: m³/h | DS42: m/s | DU42: Pa-500 | DW42: Pa-1000 | DY42: Pa-1500 | EB42: 4 | EC42: =DV55 -> 2.127402462 | ED42: =DV56 -> -6.959836033 | EE42: =DV57 -> 9.093555094 | EG42: 4 | EH42: =DX55 -> 0.9750594618 | EI42: =DX56 -> -1.304969256 | EJ42: =DX57 -> 4.251212751 | EL42: 4 | EM42: =DZ55 -> 0 | EN42: =DZ56 -> 0 | EO42: =DZ57 -> 0
A43: 2000 | B43: S (mm) | C43: 100 | D43: 1 | E43: 6 | F43: 19 | G43: 32 | H43: 41 | I43: 28 | J43: 14 | K43: 9 | Q43: L=1500 | R43: 200 | S43: 1 | T43: 10 | U43: 16 | V43: 15 | W43: 18 | X43: 10 | Y43: 7 | Z43: 5 | CF43: 1 | CG43: 250 | CI43: 1 | CJ43: 250 | CK43: 190 | CL43: 684 | CM43: 34 | CN43: =CL43/3600/((CJ43/1000)^2/4*PI()) -> 3.870648216 | CO43: a | CP43: 16 | CQ43: =(CN43*(CP44-CP45)+CN44*(CP45-CP43)+CN45*(CP43-CP44))/((CN43-CN44)*(CN43-CN45)*(CN45-CN44)) -> 0.8768601725 | CR43: 20 | CS43: =((CR43-CR44)*(CN43-CN45)-(CR43-CR45)*(CN43-CN44))/((CN43-CN44)*(CN43-CN45)*(CN44-CN45)) -> 1.069724558 | CT43: 27 | CU43: =((CT43-CT44)*(CN43-CN45)-(CT43-CT45)*(CN43-CN44))/((CN43-CN44)*(CN43-CN45)*(CN44-CN45)) -> 1.827726446 | CW43: 5 | CX43: =CQ59 -> 0.7122211169 | CY43: =CQ60 -> -0.07281111633 | CZ43: =CQ61 -> 3.191592385 | DB43: 5 | DC43: =CS59 -> 0.7948847515 | DD43: =CS60 -> 0.9751921945 | DE43: =CS61 -> -0.2327500825 | DG43: 5 | DH43: =CU59 -> 0.9629492272 | DI43: =CU60 -> 0.5052447423 | DJ43: =CU61 -> 3.003851656 | DO43: 1 | DP43: 100 | DQ43: 30 | DR43: 108 | DS43: =DQ43/3600/((DP43/1000)^2/4*PI()) -> 1.061032954 | DT43: a | DU43: 4 | DV43: =(DS43*(DU44-DU45)+DS44*(DU45-DU43)+DS45*(DU43-DU44))/((DS43-DS44)*(DS43-DS45)*(DS45-DS44)) -> 1.184352528 | DW43: 4 | DX43: =((DW43-DW44)*(DS43-DS45)-(DW43-DW45)*(DS43-DS44))/((DS43-DS44)*(DS43-DS45)*(DS44-DS45)) -> 1.184352528 | EB43: 5 | EC43: =DV59 -> 0 | ED43: =DV60 -> 0 | EE43: =DV61 -> 4 | EG43: 5 | EH43: =DX59 -> -1.133504362 | EI43: =DX60 -> 5.580460635 | EJ43: =DX61 -> -0.777676951 | EL43: 5 | EM43: =DZ59 -> 1.020153926 | EN43: =DZ60 -> -1.488122836 | EO43: =DZ61 -> 4.399909256
C44: 90 | D44: 1 | E44: 7 | F44: 21 | G44: 34 | H44: 45 | I44: 33 | J44: 17 | K44: 11 | R44: 180 | S44: 1 | T44: 11 | U44: 18 | V44: 17 | W44: 21 | X44: 13 | Y44: 8 | Z44: 6 | CF44: 2 | CG44: 315 | CI44: 2 | CJ44: 250 | CK44: 385 | CL44: 1386 | CM44: 51 | CN44: =CL44/3600/((CJ44/1000)^2/4*PI()) -> 7.843155596 | CO44: b | CP44: 57 | CQ44: =(CN43^2*(CP44-CP45)+CN44^2*(CP45-CP43)+CN45^2*(CP43-CP44))/((CN43-CN44)*(CN43-CN45)*(CN44-CN45)) -> 0.04956937313 | CR44: 77 | CS44: =(CR43-CR45)/(CN43-CN45)-CS43*(CN43+CN45) -> 1.818076685 | CT44: 97 | CU44: =(CT43-CT45)/(CN43-CN45)-CU43*(CN43+CN45) -> -3.788516375 | CW44: 6 | CX44: =CQ63 -> 0.7354584103 | CY44: =CQ64 -> -0.3977609252 | CZ44: =CQ65 -> 4.049710493 | DB44: 6 | DC44: =CS63 -> 0.8228874566 | DD44: =CS64 -> 0.5848864011 | DE44: =CS65 -> 0.7897895777 | DG44: 6 | DH44: =CU63 -> 0.9955488397 | DI44: =CU64 -> 0.05010585403 | DJ44: =CU65 -> 4.201101539 | DO44: 2 | DP44: 100 | DQ44: 60 | DR44: 216 | DS44: =DQ44/3600/((DP44/1000)^2/4*PI()) -> 2.122065908 | DT44: b | DU44: 6 | DV44: =(DS43^2*(DU44-DU45)+DS44^2*(DU45-DU43)+DS45^2*(DU43-DU44))/((DS43-DS44)*(DS43-DS45)*(DS44-DS45)) -> -1.884955592 | DW44: 10 | DX44: =(DW43-DW45)/(DS43-DS45)-DX43*(DS43+DS45) -> 1.884955592 | EB44: 6 | EC44: =DV63 -> 0 | ED44: =DV64 -> 0 | EE44: =DV65 -> 4 | EG44: 6 | EH44: =DX63 -> 2.207839227 | EI44: =DX64 -> -7.279401742 | EJ44: =DX65 -> 9.347826087 | EL44: 6 | EM44: =DZ63 -> -1.122016656 | EN44: =DZ64 -> 5.539053855 | EO44: =DZ65 -> -0.7505345688
C45: 80 | D45: 1 | E45: 8 | F45: 23 | G45: 37 | H45: 47 | I45: 39 | J45: 21 | K45: 14 | R45: 160 | S45: 1 | T45: 11 | U45: 20 | V45: 18 | W45: 23 | X45: 15 | Y45: 8 | Z45: 7 | CF45: 3 | CG45: 400 | CI45: 3 | CJ45: 250 | CK45: 480 | CL45: 1728 | CM45: 56 | CN45: 9.778479704 | CO45: c | CP45: 87 | CQ45: =CP45-CQ43*CN45^2-CQ44*CN45 -> 2.671087533 | CR45: 117 | CS45: =CR45-CS43*CN45^2-CS44*CN45 -> -3.063660477 | CT45: 152 | CU45: =CT45-CU43*CN45^2-CU44*CN45 -> 14.28116711 | CW45: 7 | CX45: =CQ67 -> 0.7125226489 | CY45: =CQ68 -> -0.1392021725 | CZ45: =CQ69 -> 3.367663681 | DB45: 7 | DC45: =CS67 -> 0.3731935717 | DD45: =CS68 -> 5.913159708 | DE45: =CS69 -> -13.28462742 | DG45: 7 | DH45: =CU67 -> 0.456315513 | DI45: =CU68 -> 6.944482603 | DJ45: =CU69 -> -16.67524563 | DO45: 3 | DP45: 100 | DQ45: 75 | DR45: 270 | DS45: 2.652582385 | DT45: c | DU45: 8 | DV45: =DU45-DV43*DS45^2-DV44*DS45 -> 4.666666667 | DW45: 14 | DX45: =DW45-DX43*DS45^2-DX44*DS45 -> 0.6666666667 | EB45: 7 | EC45: =DV67 -> 0 | ED45: =DV68 -> 0 | EE45: =DV69 -> 4 | EG45: 7 | EH45: =DX67 -> 0 | EI45: =DX68 -> 0 | EJ45: =DX69 -> 4 | EL45: 7 | EM45: =DZ67 -> 2.197649577 | EN45: =DZ68 -> -7.262518835 | EO45: =DZ69 -> 9.342281879
C46: 70 | D46: 1 | E46: 9 | F46: 25 | G46: 40 | H46: 47 | I46: 45 | J46: 25 | K46: 17 | R46: 140 | S46: 2 | T46: 13 | U46: 22 | V46: 21 | W46: 26 | X46: 19 | Y46: 10 | Z46: 8 | CF46: 4 | CG46: 450 | CI46: 4 | CJ46: 250 | CK46: 575 | CL46: 2070 | CM46: 60 | CN46: 11.71380381 | CP46: 122 | CR46: 167 | CT46: 212 | CW46: 8 | CX46: =CQ71 -> 0.7207282001 | CY46: =CQ72 -> -0.2521778434 | CZ46: =CQ73 -> 3.666666667 | DB46: 8 | DC46: =CS71 -> 1.017498635 | DD46: =CS72 -> -3.026134121 | DE46: =CS73 -> 12 | DG46: 8 | DH46: =CU71 -> 1.102290188 | DI46: =CU72 -> -2.017422747 | DJ46: =CU73 -> 8.666666667 | DO46: 4 | DP46: 100 | DQ46: 90 | DR46: 324 | DS46: 3.183098862 | DU46: 10 | DW46: 20 | EB46: 8 | EC46: =DV71 -> 0 | ED46: =DV72 -> 0 | EE46: =DV73 -> 4 | EG46: 8 | EH46: =DX71 -> 2.202533145 | EI46: =DX72 -> -7.270542998 | EJ46: =DX73 -> 9.333333333 | EL46: 8 | EM46: =DZ71 -> 0 | EN46: =DZ72 -> 0 | EO46: =DZ73 -> 0
C47: 60 | D47: 1 | E47: 10 | F47: 28 | G47: 43 | H47: 47 | I47: 47 | J47: 29 | K47: 21 | R47: 120 | S47: 2 | T47: 14 | U47: 25 | V47: 25 | W47: 31 | X47: 24 | Y47: 13 | Z47: 9 | CF47: 5 | CG47: 500 | CI47: 1 | CJ47: 315 | CK47: 305 | CL47: 1098 | CM47: 35 | CN47: 3.913711879 | CO47: a | CP47: 16 | CQ47: =((CP47-CP48)*(CN47-CN49)-(CP47-CP49)*(CN47-CN48))/((CN47-CN48)*(CN47-CN49)*(CN48-CN49)) -> 0.9970130085 | CR47: 20 | CS47: =((CR47-CR48)*(CN47-CN49)-(CR47-CR49)*(CN47-CN48))/((CN47-CN48)*(CN47-CN49)*(CN48-CN49)) -> -2.481361507 | CT47: 27 | CU47: =((CT47-CT48)*(CN47-CN49)-(CT47-CT49)*(CN47-CN48))/((CN47-CN48)*(CN47-CN49)*(CN48-CN49)) -> -3.260539741 | CW47: 9 | CX47: =CQ75 -> 0.7135818011 | CY47: =CQ76 -> -0.1818698497 | CZ47: =CQ77 -> 3.481218698 | DB47: 9 | DC47: =CS75 -> 0.5021501563 | DD47: =CS76 -> 3.595386584 | DE47: =CS77 -> -8.179883139 | DG47: 9 | DH47: =CU75 -> 0.1638595247 | DI47: =CU76 -> 9.638996878 | DJ47: =CU77 -> -24.83764608 | DO47: 1 | DP47: 125 | DQ47: 50 | DR47: 180 | DS47: 1.131768484 | DT47: a | DU47: 4 | DV47: =((DU47-DU48)*(DS47-DS49)-(DU47-DU49)*(DS47-DS48))/((DS47-DS48)*(DS47-DS49)*(DS48-DS49)) -> 0.9913665135 | DW47: 4 | DX47: =((DW47-DW48)*(DS47-DS49)-(DW47-DW49)*(DS47-DS48))/((DS47-DS48)*(DS47-DS49)*(DS48-DS49)) -> 1.982733027 | EB47: 9 | EC47: =DV75 -> 0 | ED47: =DV76 -> 0 | EE47: =DV77 -> 4 | EG47: 9 | EH47: =DX75 -> 0 | EI47: =DX76 -> 0 | EJ47: =DX77 -> 4 | EL47: 9 | EM47: =DZ75 -> 0 | EN47: =DZ76 -> 0 | EO47: =DZ77 -> 0
C48: 50 | D48: 2 | E48: 11 | F48: 31 | G48: 46 | H48: 47 | I48: 47 | J48: 35 | K48: 25 | R48: 100 | S48: 2 | T48: 16 | U48: 29 | V48: 29 | W48: 35 | X48: 28 | Y48: 16 | Z48: 11 | CF48: 6 | CG48: 560 | CI48: 2 | CJ48: 315 | CK48: 610 | CL48: 2196 | CM48: 52 | CN48: 7.827423757 | CO48: b | CP48: 52 | CQ48: =(CP47-CP49)/(CN47-CN49)-CQ47*(CN47+CN49) -> -2.507636178 | CR48: 97 | CS48: =(CR47-CR49)/(CN47-CN49)-CS47*(CN47+CN49) -> 48.80841914 | CT48: 122 | CU48: =(CT47-CT49)/(CN47-CN49)-CU47*(CN47+CN49) -> 62.55607086 | CW48: 10 | CX48: =CQ79 -> 0.2926946828 | CY48: =CQ80 -> 4.824574167 | CZ48: =CQ81 -> -9.816092374 | DB48: 10 | DC48: =CS79 -> 0.5033145003 | DD48: =CS80 -> 3.573129729 | DE48: =CS81 -> -8.170333603 | DG48: 10 | DH48: =CU79 -> 0.7985165619 | DI48: =CU80 -> 0.8093234578 | DJ48: =CU81 -> 0.1522140077 | DO48: 2 | DP48: 125 | DQ48: 95 | DR48: 342 | DS48: 2.15036012 | DT48: b | DU48: 6 | DV48: =(DU47-DU49)/(DS47-DS49)-DV47*(DS47+DS49) -> -1.290296983 | DW48: 8 | DX48: =(DW47-DW49)/(DS47-DS49)-DX47*(DS47+DS49) -> -2.580593965 | EB48: 10 | EC48: =DV79 -> 0 | ED48: =DV80 -> 0 | EE48: =DV81 -> 4 | EG48: 10 | EH48: =DX79 -> 0 | EI48: =DX80 -> 0 | EJ48: =DX81 -> 0 | EL48: 10 | EM48: =DZ79 -> 0 | EN48: =DZ80 -> 0 | EO48: =DZ81 -> 0
A49: 2500 | B49: S (mm) | C49: 100 | D49: 1 | E49: 9 | F49: 23 | G49: 36 | H49: 46 | I49: 32 | J49: 18 | K49: 12 | R49: 80 | S49: 2 | T49: 17 | U49: 32 | V49: 32 | W49: 38 | X49: 33 | Y49: 20 | Z49: 14 | CF49: 7 | CG49: 630 | CI49: 3 | CJ49: 315 | CK49: 765 | CL49: 2754 | CM49: 57 | CN49: 9.816359302 | CO49: c | CP49: 82 | CQ49: =CP49-CQ47*CN49^2-CQ48*CN49 -> 10.542777 | CR49: 107 | CS49: =CR49-CS47*CN49^2-CS48*CN49 -> -133.0147265 | CT49: 132 | CU49: =CT49-CU47*CN49^2-CU48*CN49 -> -167.8842917 | CW49: 11 | CX49: =CQ83 -> 0.2957177245 | CY49: =CQ84 -> 4.779108236 | CZ49: =CQ85 -> -9.6971034 | DB49: 11 | DC49: =CS83 -> 0.5069446705 | DD49: =CS84 -> 3.517767908 | DE49: =CS85 -> -8.022415352 | DG49: 11 | DH49: =CU83 -> 0.802662395 | DI49: =CU84 -> 0.7449707267 | DJ49: =CU85 -> 0.3285581717 | DO49: 3 | DP49: 125 | DQ49: 120 | DR49: 432 | DS49: 2.716244362 | DT49: c | DU49: 8 | DV49: =DU49-DV47*DS49^2-DV48*DS49 -> 4.19047619 | DW49: 12 | DX49: =DW49-DX47*DS49^2-DX48*DS49 -> 4.380952381 | EB49: 11 | EC49: =DV83 -> 0 | ED49: =DV84 -> 0 | EE49: =DV85 -> 4 | EG49: 11 | EH49: =DX83 -> 0 | EI49: =DX84 -> 0 | EJ49: =DX85 -> 0 | EL49: 11 | EM49: =DZ83 -> 0 | EN49: =DZ84 -> 0 | EO49: =DZ85 -> 0
C50: 90 | D50: 1 | E50: 10 | F50: 25 | G50: 39 | H50: 47 | I50: 38 | J50: 22 | K50: 15 | R50: 60 | S50: 3 | T50: 19 | U50: 37 | V50: 40 | W50: 44 | X50: 41 | Y50: 27 | Z50: 20 | CF50: 8 | CG50: 710 | CI50: 4 | CJ50: 315 | CK50: 915 | CL50: 3294 | CM50: 61 | CN50: 11.74113564 | CP50: 117 | CR50: 147 | CT50: 182 | DO50: 4 | DP50: 125 | DQ50: 145 | DR50: 522 | DS50: 3.282128604 | DU50: 8 | DW50: 16 | EB50: 12 | EC50: =DV87 -> 0 | ED50: =DV88 -> 0 | EE50: =DV89 -> 4 | EG50: 12 | EH50: =DX87 -> 0 | EI50: =DX88 -> 0 | EJ50: =DX89 -> 0 | EL50: 12 | EM50: =DZ87 -> 0 | EN50: =DZ88 -> 0 | EO50: =DZ89 -> 0
C51: 80 | D51: 1 | E51: 10 | F51: 27 | G51: 41 | H51: 47 | I51: 44 | J51: 26 | K51: 18 | R51: 50 | S51: 5 | T51: 21 | U51: 42 | V51: 46 | W51: 50 | X51: 50 | Y51: 33 | Z51: 24 | CF51: 9 | CG51: 800 | CI51: 1 | CJ51: 400 | CK51: 495 | CL51: 1782 | CM51: 36 | CN51: 3.939084842 | CO51: a | CP51: 14 | CQ51: =((CP51-CP52)*(CN51-CN53)-(CP51-CP53)*(CN51-CN52))/((CN51-CN52)*(CN51-CN53)*(CN52-CN53)) -> 0.4924431455 | CR51: 18 | CS51: =((CR51-CR52)*(CN51-CN53)-(CR51-CR53)*(CN51-CN52))/((CN51-CN52)*(CN51-CN53)*(CN52-CN53)) -> 1.08337492 | CT51: 22 | CU51: =((CT51-CT52)*(CN51-CN53)-(CT51-CT53)*(CN51-CN52))/((CN51-CN52)*(CN51-CN53)*(CN52-CN53)) -> 1.036271663 | DO51: 1 | DP51: 160 | DQ51: 80 | DR51: 288 | DS51: 1.10524266 | DT51: a | DU51: 4 | DV51: =((DU51-DU52)*(DS51-DS53)-(DU51-DU53)*(DS51-DS52))/((DS51-DS52)*(DS51-DS53)*(DS52-DS53)) -> 2.277911562 | DW51: 4 | DX51: =((DW51-DW52)*(DS51-DS53)-(DW51-DW53)*(DS51-DS52))/((DS51-DS52)*(DS51-DS53)*(DS52-DS53)) -> -0.1518607708 | EB51: 13 | EC51: =DV91 -> 0 | ED51: =DV92 -> 0 | EE51: =DV93 -> 4 | EG51: 13 | EH51: =DX91 -> 0 | EI51: =DX92 -> 0 | EJ51: =DX93 -> 0 | EL51: 13 | EM51: =DZ91 -> 0 | EN51: =DZ92 -> 0 | EO51: =DZ93 -> 0
C52: 70 | D52: 2 | E52: 11 | F52: 29 | G52: 44 | H52: 47 | I52: 47 | J52: 31 | K52: 21 | Q52: L=2000 | R52: 200 | S52: 2 | T52: 14 | U52: 21 | V52: 21 | W52: 23 | X52: 14 | Y52: 9 | Z52: 7 | CF52: 10 | CG52: 900 | CI52: 2 | CJ52: 400 | CK52: 990 | CL52: 3564 | CM52: 52 | CN52: 7.878169683 | CO52: b | CP52: 52 | CQ52: =(CP51-CP53)/(CN51-CN53)-CQ51*(CN51+CN53) -> 3.827584785 | CR52: 62 | CS52: =(CR51-CR53)/(CN51-CN53)-CS51*(CN51+CN53) -> -1.632409963 | CT52: 77 | CU52: =(CT51-CT53)/(CN51-CN53)-CU51*(CN51+CN53) -> 1.716748021 | DK52: Ø Schalldämpfer | DO52: 2 | DP52: 160 | DQ52: 155 | DR52: 558 | DS52: 2.141407654 | DT52: b | DU52: 4 | DV52: =(DU51-DU53)/(DS51-DS53)-DV51*(DS51+DS53) -> -7.395582289 | DW52: 8 | DX52: =(DW51-DW53)/(DS51-DS53)-DX51*(DS51+DS53) -> 4.353427872
C53: 60 | D53: 2 | E53: 12 | F53: 32 | G53: 47 | H53: 47 | I53: 47 | J53: 36 | K53: 24 | R53: 180 | S53: 2 | T53: 15 | U53: 22 | V53: 22 | W53: 25 | X53: 17 | Y53: 10 | Z53: 8 | CF53: 11 | CG53: 1000 | CI53: 3 | CJ53: 400 | CK53: 1240 | CL53: 4464 | CM53: 58 | CN53: 9.867606472 | CO53: c | CP53: 77 | CQ53: =CP53-CQ51*CN53^2-CQ52*CN53 -> -8.718120805 | CR53: 97 | CS53: =CR53-CS51*CN53^2-CS52*CN53 -> 7.620134228 | CT53: 117 | CU53: =CT53-CU51*CN53^2-CU52*CN53 -> -0.8416107383 | DK53: 1 | DL53: 100 | DO53: 3 | DP53: 160 | DQ53: 195 | DR53: 702 | DS53: 2.694028985 | DT53: c | DU53: 6 | DV53: =DU53-DV51*DS53^2-DV52*DS53 -> 9.391304348 | DW53: 10 | DX53: =DW53-DX51*DS53^2-DX52*DS53 -> -0.6260869565
C54: 50 | D54: 2 | E54: 12 | F54: 35 | G54: 47 | H54: 47 | I54: 47 | J54: 42 | K54: 28 | R54: 160 | S54: 2 | T54: 16 | U54: 24 | V54: 23 | W54: 28 | X54: 20 | Y54: 11 | Z54: 9 | CI54: 4 | CJ54: 400 | CK54: 1485 | CL54: 5346 | CM54: 62 | CN54: 11.81725452 | CP54: 112 | CR54: 137 | CT54: 167 | DK54: 2 | DL54: 125 | DO54: 4 | DP54: 160 | DQ54: 235 | DR54: 846 | DS54: 3.246650315 | DU54: 8 | DW54: 12
A55: 3000 | B55: S (mm) | C55: 100 | D55: 2 | E55: 8 | F55: 29 | G55: 47 | H55: 47 | I55: 42 | J55: 22 | K55: 15 | R55: 140 | S55: 2 | T55: 17 | U55: 27 | V55: 26 | W55: 32 | X55: 24 | Y55: 13 | Z55: 10 | CI55: 1 | CJ55: 450 | CK55: 630 | CL55: 2268 | CM55: 36 | CN55: 3.961189695 | CO55: a | CP55: 14 | CQ55: =((CP55-CP56)*(CN55-CN57)-(CP55-CP57)*(CN55-CN56))/((CN55-CN56)*(CN55-CN57)*(CN56-CN57)) -> 0.4995727883 | CR55: 18 | CS55: =((CR55-CR56)*(CN55-CN57)-(CR55-CR57)*(CN55-CN56))/((CN55-CN56)*(CN55-CN57)*(CN56-CN57)) -> 0.6683750848 | CT55: 22 | CU55: =((CT55-CT56)*(CN55-CN57)-(CT55-CT57)*(CN55-CN56))/((CN55-CN56)*(CN55-CN57)*(CN56-CN57)) -> 1.264308698 | DK55: 3 | DL55: 160 | DO55: 1 | DP55: 200 | DQ55: 125 | DR55: 450 | DS55: 1.10524266 | DT55: a | DU55: 4 | DV55: =((DU55-DU56)*(DS55-DS57)-(DU55-DU57)*(DS55-DS56))/((DS55-DS56)*(DS55-DS57)*(DS56-DS57)) -> 2.127402462 | DW55: 4 | DX55: =((DW55-DW56)*(DS55-DS57)-(DW55-DW57)*(DS55-DS56))/((DS55-DS56)*(DS55-DS57)*(DS56-DS57)) -> 0.9750594618
C56: 90 | D56: 2 | E56: 10 | F56: 31 | G56: 47 | H56: 47 | I56: 47 | J56: 28 | K56: 19 | R56: 120 | S56: 2 | T56: 19 | U56: 31 | V56: 30 | W56: 37 | X56: 29 | Y56: 17 | Z56: 12 | CI56: 2 | CJ56: 450 | CK56: 1255 | CL56: 4518 | CM56: 53 | CN56: 7.890941376 | CO56: b | CP56: 52 | CQ56: =(CP55-CP57)/(CN55-CN57)-CQ55*(CN55+CN57) -> 3.748820021 | CR56: 62 | CS56: =(CR55-CR57)/(CN55-CN57)-CS55*(CN55+CN57) -> 3.274967108 | CT56: 72 | CU56: =(CT55-CT57)/(CN55-CN57)-CU55*(CN55+CN57) -> -2.261302159 | DK56: 4 | DL56: 200 | DO56: 2 | DP56: 200 | DQ56: 245 | DR56: 882 | DS56: 2.166275614 | DT56: b | DU56: 4 | DV56: =(DU55-DU57)/(DS55-DS57)-DV55*(DS55+DS57) -> -6.959836033 | DW56: 6 | DX56: =(DW55-DW57)/(DS55-DS57)-DX55*(DS55+DS57) -> -1.304969256
C57: 80 | D57: 2 | E57: 11 | F57: 35 | G57: 47 | H57: 47 | I57: 47 | J57: 33 | K57: 22 | R57: 100 | S57: 2 | T57: 21 | U57: 35 | V57: 35 | W57: 42 | X57: 34 | Y57: 21 | Z57: 14 | CI57: 3 | CJ57: 450 | CK57: 1570 | CL57: 5652 | CM57: 58 | CN57: 9.871536223 | CO57: c | CP57: 77 | CQ57: =CP57-CQ55*CN57^2-CQ56*CN57 -> -8.688595745 | CR57: 92 | CS57: =CR57-CS55*CN57^2-CS56*CN57 -> -5.460255319 | CT57: 112 | CU57: =CT57-CU55*CN57^2-CU56*CN57 -> 11.11914894 | DK57: 5 | DL57: 250 | DO57: 3 | DP57: 200 | DQ57: 310 | DR57: 1116 | DS57: 2.741001798 | DT57: c | DU57: 6 | DV57: =DU57-DV55*DS57^2-DV56*DS57 -> 9.093555094 | DW57: 8 | DX57: =DW57-DX55*DS57^2-DX56*DS57 -> 4.251212751
C58: 70 | D58: 2 | E58: 13 | F58: 38 | G58: 47 | H58: 47 | I58: 47 | J58: 38 | K58: 28 | R58: 80 | S58: 3 | T58: 22 | U58: 37 | V58: 38 | W58: 45 | X58: 38 | Y58: 25 | Z58: 18 | CI58: 4 | CJ58: 450 | CK58: 1885 | CL58: 6786 | CM58: 63 | CN58: 11.85213107 | CP58: 109 | CR58: 132 | CT58: 157 | DK58: 6 | DL58: 315 | DO58: 4 | DP58: 200 | DQ58: 370 | DR58: 1332 | DS58: 3.271518275 | DU58: 6 | DW58: 10
C59: 60 | D59: 2 | E59: 15 | F59: 42 | G59: 47 | H59: 47 | I59: 47 | J59: 46 | K59: 31 | R59: 60 | S59: 5 | T59: 24 | U59: 42 | V59: 45 | W59: 47 | X59: 45 | Y59: 34 | Z59: 24 | CI59: 1 | CJ59: 500 | CK59: 775 | CL59: 2790 | CM59: 36 | CN59: 3.947042589 | CO59: a | CP59: 14 | CQ59: =((CP59-CP60)*(CN59-CN61)-(CP59-CP61)*(CN59-CN60))/((CN59-CN60)*(CN59-CN61)*(CN60-CN61)) -> 0.7122211169 | CR59: 16 | CS59: =((CR59-CR60)*(CN59-CN61)-(CR59-CR61)*(CN59-CN60))/((CN59-CN60)*(CN59-CN61)*(CN60-CN61)) -> 0.7948847515 | CT59: 20 | CU59: =((CT59-CT60)*(CN59-CN61)-(CT59-CT61)*(CN59-CN60))/((CN59-CN60)*(CN59-CN61)*(CN60-CN61)) -> 0.9629492272 | DK59: 7 | DL59: 400 | DO59: 1 | DP59: 250 | DQ59: 195 | DR59: 702 | DS59: 1.103474272 | DT59: a | DU59: 4 | DV59: =((DU59-DU60)*(DS59-DS61)-(DU59-DU61)*(DS59-DS60))/((DS59-DS60)*(DS59-DS61)*(DS60-DS61)) -> 0 | DW59: 4 | DX59: =((DW59-DW60)*(DS59-DS61)-(DW59-DW61)*(DS59-DS60))/((DS59-DS60)*(DS59-DS61)*(DS60-DS61)) -> -1.133504362 | DY59: 4 | DZ59: =((DY59-DY60)*(DS59-DS61)-(DY59-DY61)*(DS59-DS60))/((DS59-DS60)*(DS59-DS61)*(DS60-DS61)) -> 1.020153926
C60: 50 | D60: 2 | E60: 17 | F60: 46 | G60: 47 | H60: 47 | I60: 47 | J60: 47 | K60: 37 | R60: 50 | S60: 7 | T60: 26 | U60: 46 | V60: 50 | W60: 50 | X60: 50 | Y60: 42 | Z60: 30 | CI60: 2 | CJ60: 500 | CK60: 1550 | CL60: 5580 | CM60: 53 | CN60: 7.894085177 | CO60: b | CP60: 47 | CQ60: =(CP59-CP61)/(CN59-CN61)-CQ59*(CN59+CN61) -> -0.07281111633 | CR60: 57 | CS60: =(CR59-CR61)/(CN59-CN61)-CS59*(CN59+CN61) -> 0.9751921945 | CT60: 67 | CU60: =(CT59-CT61)/(CN59-CN61)-CU59*(CN59+CN61) -> 0.5052447423 | DK60: 8 | DL60: 450 | DO60: 2 | DP60: 250 | DQ60: 385 | DR60: 1386 | DS60: 2.178654332 | DT60: b | DU60: 4 | DV60: =(DU59-DU61)/(DS59-DS61)-DV59*(DS59+DS61) -> 0 | DW60: 6 | DX60: =(DW59-DW61)/(DS59-DS61)-DX59*(DS59+DS61) -> 5.580460635 | DY60: 6 | DZ60: =(DY59-DY61)/(DS59-DS61)-DZ59*(DS59+DS61) -> -1.488122836
Q61: L=2500 | R61: 200 | S61: 2 | T61: 15 | U61: 27 | V61: 27 | W61: 28 | X61: 19 | Y61: 12 | Z61: 10 | CI61: 3 | CJ61: 500 | CK61: 1940 | CL61: 6984 | CM61: 59 | CN61: 9.880338867 | CO61: c | CP61: 72 | CQ61: =CP61-CQ59*CN61^2-CQ60*CN61 -> 3.191592385 | CR61: 87 | CS61: =CR61-CS59*CN61^2-CS60*CN61 -> -0.2327500825 | CT61: 102 | CU61: =CT61-CU59*CN61^2-CU60*CN61 -> 3.003851656 | DK61: 9 | DL61: 500 | DO61: 3 | DP61: 250 | DQ61: 485 | DR61: 1746 | DS61: 2.744538574 | DT61: c | DU61: 4 | DV61: =DU61-DV59*DS61^2-DV60*DS61 -> 4 | DW61: 6 | DX61: =DW61-DX59*DS61^2-DX60*DS61 -> -0.777676951 | DY61: 8 | DZ61: =DY61-DZ59*DS61^2-DZ60*DS61 -> 4.399909256
R62: 180 | S62: 2 | T62: 16 | U62: 29 | V62: 28 | W62: 31 | X62: 22 | Y62: 13 | Z62: 10 | CI62: 4 | CJ62: 500 | CK62: 2330 | CL62: 8388 | CM62: 63 | CN62: 11.86659256 | CP62: 102 | CR62: 127 | CT62: 152 | DK62: 10 | DL62: 560 | DO62: 4 | DP62: 250 | DQ62: 580 | DR62: 2088 | DS62: 3.282128604 | DU62: 6 | DW62: 8 | DY62: 10
